{"text_format":"1","workbook":"xlsx","n_sheets":8,"sheets":["Instructions","Change Log","Dashboard","Facility Information","Tank Systems","Equipment","Flash Test Results","Lists"],"not_rendered":{"charts":0,"images":0,"macros":1,"external_links":1,"defined_names":24,"comments":0,"pivot_tables":0},"unopened":[],"bounds":{"document_bytes":16777216,"sheet_cells":100000,"rows_first":2000,"rows_last":500,"rows_between":2000,"halvings":0,"cell_chars":16384,"cell_head_chars":4096},"cells_cut":0,"cells_raw":0,"read":"whole","date_system":"1900"}

{"sheet":"Instructions","index":0,"n_rows":11,"n_cols":2,"rows_kept":11,"cut":false,"hidden":false,"merged":[]}
[]
[null,"Instructions for Using This Workbook"]
[]
[null,"This workbook is used to report oil and gas facility information to the Air Resources Board and local air districts in accordance with the Air Resources Board regulation entitled \"Greenhouse Gas Emission Standards for Crude Oil and Natural Gas Production Facilities.\"  "]
[]
[null,"Cells within this workbook have been locked to prevent adding or deleting rows or columns.  Please do not alter the rows or columns in this workbook or it may make the entire workbook unusable."]
[]
[null,"1.  Enter the facility information.  This is the first step to completing this workbook.  All facility and preparer information must be  entered before data entry may begin.  After the facility information is entered, additional data entry form buttons will appear in the main dashboard."]
[null,"2.  Enter or create Tank System ID numbers for the facility along with the number of wells and throughput for each system.  If the facility does not have a tank system, enter the number of wells and throughput for the facility, then proceed to the Equipment Form to enter equipment.  If the facility has one or more Tank System IDs, an additional menu button for Flash Analysis Test Data will appear in the main dashboard."]
[null,"3. Enter the equipment found at the facility.  The types of equipment that require data entry can be found in the dropdown menu.  Please do not input other types of equipment.  Depending on the equipment type chosen, different cells will be highlighted and other cells will be blacked out to signify which cells require data input.  When inputting individual tanks at the facility, use the dropdown menu to link the tanks to the Tank System ID or you may pick N/A if the tanks are not associated with a tank system.  "]
[null,"4. Enter Flash Analysis test data.  Input the laboratory results and calculation results in the form where provided.  Please use the dropdown menu to link the test data to the appropriate Tank System ID to ensure the data is link to the proper system."]

{"sheet":"Change Log","index":1,"n_rows":2,"n_cols":8,"rows_kept":2,"cut":false,"hidden":true,"merged":[]}
[null,"Facility Information",null,"Tank Systems",null,"Equipment",null,"Flash Test Results"]
["Initial Registration",{"$f":"SheetNumber1(B1)","v":{"$error":"#VALUE!"}},null,{"$f":"SheetNumber1(D1)","v":{"$error":"#VALUE!"}},null,{"$f":"SheetNumber1(F1)","v":{"$error":"#VALUE!"}},null,{"$f":"SheetNumber1(H1)","v":{"$error":"#VALUE!"}}]

{"sheet":"Dashboard","index":2,"n_rows":24,"n_cols":15,"rows_kept":24,"cut":false,"hidden":false,"merged":[]}
[]
[]
[]
[]
[]
[]
[]
[]
[]
[]
[]
[]
[null,{"$f":"COUNTIF('Tank Systems'!$C$6:$C$206,Lists!A2)&\": \"&Lists!A2","v":"0: Crude Oil Production"},null,null,null,null,null,{"$f":"IF(IF(ISNA(VLOOKUP(Lists!C2,Equipment!$B$5:$C$497,2,FALSE)),0,VLOOKUP(Lists!C2,Equipment!$B$5:$C$497,2,FALSE))=0,COUNTIF(Equipment!$B$5:$B$497,Lists!C2),VLOOKUP(Lists!C2,Equipment!$B$5:$C$497,2,FALSE))&\": \"&Lists!C2","v":"0: Centrifugal Natural Gas Compressor"},null,null,null,null,{"$f":"SUMPRODUCT((MONTH('Flash Test Results'!$C$9:$C$109)=MONTH(DATEVALUE(N13&\" 1\")))*('Flash Test Results'!$C$9:$C$109<>\"\"))&\": \"&N13&\" \"&'Facility Information'!$C$32","v":"0: Jan "},"Jan",0]
[null,{"$f":"COUNTIF('Tank Systems'!$C$6:$C$206,Lists!A3)&\": \"&Lists!A3","v":"0: Natural Gas Production"},null,null,null,null,null,{"$f":"IF(IF(ISNA(VLOOKUP(Lists!C3,Equipment!$B$5:$C$497,2,FALSE)),0,VLOOKUP(Lists!C3,Equipment!$B$5:$C$497,2,FALSE))=0,COUNTIF(Equipment!$B$5:$B$497,Lists!C3),VLOOKUP(Lists!C3,Equipment!$B$5:$C$497,2,FALSE))&\": \"&Lists!C3","v":"0: Continuous High Bleed Pneumatic Devices"},null,null,null,null,{"$f":"SUMPRODUCT((MONTH('Flash Test Results'!$C$9:$C$109)=MONTH(DATEVALUE(N14&\" 1\")))*('Flash Test Results'!$C$9:$C$109<>\"\"))&\": \"&N14&\" \"&'Facility Information'!$C$32","v":"0: Feb "},"Feb",1]
[null,{"$f":"COUNTIF('Tank Systems'!$C$6:$C$206,Lists!A4)&\": \"&Lists!A4","v":"0: Natural Gas Storage"},null,null,null,null,null,{"$f":"IF(IF(ISNA(VLOOKUP(Lists!C4,Equipment!$B$5:$C$497,2,FALSE)),0,VLOOKUP(Lists!C4,Equipment!$B$5:$C$497,2,FALSE))=0,COUNTIF(Equipment!$B$5:$B$497,Lists!C4),VLOOKUP(Lists!C4,Equipment!$B$5:$C$497,2,FALSE))&\": \"&Lists!C4","v":"0: Continuous Low Bleed Pneumatic Devices"},null,null,null,null,{"$f":"SUMPRODUCT((MONTH('Flash Test Results'!$C$9:$C$109)=MONTH(DATEVALUE(N15&\" 1\")))*('Flash Test Results'!$C$9:$C$109<>\"\"))&\": \"&N15&\" \"&'Facility Information'!$C$32","v":"0: Mar "},"Mar",2]
[null,null,null,null,null,null,null,{"$f":"IF(IF(ISNA(VLOOKUP(Lists!C5,Equipment!$B$5:$C$497,2,FALSE)),0,VLOOKUP(Lists!C5,Equipment!$B$5:$C$497,2,FALSE))=0,COUNTIF(Equipment!$B$5:$B$497,Lists!C5),VLOOKUP(Lists!C5,Equipment!$B$5:$C$497,2,FALSE))&\": \"&Lists!C5","v":"0: Intermittent Bleed Pneumatic Devices"},null,null,null,null,{"$f":"SUMPRODUCT((MONTH('Flash Test Results'!$C$9:$C$109)=MONTH(DATEVALUE(N16&\" 1\")))*('Flash Test Results'!$C$9:$C$109<>\"\"))&\": \"&N16&\" \"&'Facility Information'!$C$32","v":"0: Apr "},"Apr",3]
[null,null,null,null,null,null,null,{"$f":"IF(IF(ISNA(VLOOKUP(Lists!C6,Equipment!$B$5:$C$497,2,FALSE)),0,VLOOKUP(Lists!C6,Equipment!$B$5:$C$497,2,FALSE))=0,COUNTIF(Equipment!$B$5:$B$497,Lists!C6),VLOOKUP(Lists!C6,Equipment!$B$5:$C$497,2,FALSE))&\": \"&Lists!C6","v":"0: Pneumatic Pumps"},null,null,null,null,{"$f":"SUMPRODUCT((MONTH('Flash Test Results'!$C$9:$C$109)=MONTH(DATEVALUE(N17&\" 1\")))*('Flash Test Results'!$C$9:$C$109<>\"\"))&\": \"&N17&\" \"&'Facility Information'!$C$32","v":"0: May "},"May",4]
[null,null,null,null,null,null,null,{"$f":"IF(IF(ISNA(VLOOKUP(Lists!C7,Equipment!$B$5:$C$497,2,FALSE)),0,VLOOKUP(Lists!C7,Equipment!$B$5:$C$497,2,FALSE))=0,COUNTIF(Equipment!$B$5:$B$497,Lists!C7),VLOOKUP(Lists!C7,Equipment!$B$5:$C$497,2,FALSE))&\": \"&Lists!C7","v":"0: Pond"},null,null,null,null,{"$f":"SUMPRODUCT((MONTH('Flash Test Results'!$C$9:$C$109)=MONTH(DATEVALUE(N18&\" 1\")))*('Flash Test Results'!$C$9:$C$109<>\"\"))&\": \"&N18&\" \"&'Facility Information'!$C$32","v":"0: Jun "},"Jun",5]
[null,null,null,null,null,null,null,{"$f":"IF(IF(ISNA(VLOOKUP(Lists!C8,Equipment!$B$5:$C$497,2,FALSE)),0,VLOOKUP(Lists!C8,Equipment!$B$5:$C$497,2,FALSE))=0,COUNTIF(Equipment!$B$5:$B$497,Lists!C8),VLOOKUP(Lists!C8,Equipment!$B$5:$C$497,2,FALSE))&\": \"&Lists!C8","v":"0: Pressure Separator"},null,null,null,null,{"$f":"SUMPRODUCT((MONTH('Flash Test Results'!$C$9:$C$109)=MONTH(DATEVALUE(N19&\" 1\")))*('Flash Test Results'!$C$9:$C$109<>\"\"))&\": \"&N19&\" \"&'Facility Information'!$C$32","v":"0: July "},"July",6]
[null,null,null,null,null,null,null,{"$f":"IF(IF(ISNA(VLOOKUP(Lists!C9,Equipment!$B$5:$C$497,2,FALSE)),0,VLOOKUP(Lists!C9,Equipment!$B$5:$C$497,2,FALSE))=0,COUNTIF(Equipment!$B$5:$B$497,Lists!C9),VLOOKUP(Lists!C9,Equipment!$B$5:$C$497,2,FALSE))&\": \"&Lists!C9","v":"0: Reciprocating Natural Gas Compressor"},null,null,null,null,{"$f":"SUMPRODUCT((MONTH('Flash Test Results'!$C$9:$C$109)=MONTH(DATEVALUE(N20&\" 1\")))*('Flash Test Results'!$C$9:$C$109<>\"\"))&\": \"&N20&\" \"&'Facility Information'!$C$32","v":"0: Aug "},"Aug",7]
[null,null,null,null,null,null,null,{"$f":"IF(IF(ISNA(VLOOKUP(Lists!C10,Equipment!$B$5:$C$497,2,FALSE)),0,VLOOKUP(Lists!C10,Equipment!$B$5:$C$497,2,FALSE))=0,COUNTIF(Equipment!$B$5:$B$497,Lists!C10),VLOOKUP(Lists!C10,Equipment!$B$5:$C$497,2,FALSE))&\": \"&Lists!C10","v":"0: Separator"},null,null,null,null,{"$f":"SUMPRODUCT((MONTH('Flash Test Results'!$C$9:$C$109)=MONTH(DATEVALUE(N21&\" 1\")))*('Flash Test Results'!$C$9:$C$109<>\"\"))&\": \"&N21&\" \"&'Facility Information'!$C$32","v":"0: Sep "},"Sep",8]
[null,null,null,null,null,null,null,{"$f":"IF(IF(ISNA(VLOOKUP(Lists!C11,Equipment!$B$5:$C$497,2,FALSE)),0,VLOOKUP(Lists!C11,Equipment!$B$5:$C$497,2,FALSE))=0,COUNTIF(Equipment!$B$5:$B$497,Lists!C11),VLOOKUP(Lists!C11,Equipment!$B$5:$C$497,2,FALSE))&\": \"&Lists!C11","v":"0: Sump"},null,null,null,null,{"$f":"SUMPRODUCT((MONTH('Flash Test Results'!$C$9:$C$109)=MONTH(DATEVALUE(N22&\" 1\")))*('Flash Test Results'!$C$9:$C$109<>\"\"))&\": \"&N22&\" \"&'Facility Information'!$C$32","v":"0: Oct "},"Oct",9]
[null,null,null,null,null,null,null,{"$f":"IF(IF(ISNA(VLOOKUP(Lists!C13,Equipment!$B$5:$C$497,2,FALSE)),0,VLOOKUP(Lists!C13,Equipment!$B$5:$C$497,2,FALSE))=0,COUNTIF(Equipment!$B$5:$B$497,Lists!C13),VLOOKUP(Lists!C13,Equipment!$B$5:$C$497,2,FALSE))&\": \"&Lists!C13","v":"0: Open Well Casing Vent"},null,null,null,null,{"$f":"SUMPRODUCT((MONTH('Flash Test Results'!$C$9:$C$109)=MONTH(DATEVALUE(N23&\" 1\")))*('Flash Test Results'!$C$9:$C$109<>\"\"))&\": \"&N23&\" \"&'Facility Information'!$C$32","v":"0: Nov "},"Nov",10]
[null,null,null,null,null,null,null,null,null,null,null,null,{"$f":"SUMPRODUCT((MONTH('Flash Test Results'!$C$9:$C$109)=MONTH(DATEVALUE(N24&\" 1\")))*('Flash Test Results'!$C$9:$C$109<>\"\"))&\": \"&N24&\" \"&'Facility Information'!$C$32","v":"0: Dec "},"Dec",11]

{"sheet":"Facility Information","index":3,"n_rows":36,"n_cols":5,"rows_kept":36,"cut":false,"hidden":true,"merged":[[35,1,35,2]]}
[null,"Facility Name and Contact Information"]
[]
[null,{"$f":"D4+D15+D18+D23+D28+D32+D34","v":20}]
[null,"Facility Name:",null,{"$f":"COUNTBLANK(C4:C9)","v":6},"Facility Name and Contact Information"]
[null,"Owner/Operator Name:"]
[null,"Contact Name:"]
[null,"Contact Email:"]
[null,"Contact Phone:"]
[null,"Air District:"]
[null,"Air District Facility ID (if applicable):"]
[null,"Air District Facility ID (if applicable):"]
[null,"Air District Facility ID (if applicable):"]
[null,"Air District Facility ID (if applicable):"]
[null,"Air District Facility ID (if applicable):"]
[null,"Underground Natural Gas Storage Facility (Y/N)",null,{"$f":"COUNTBLANK(C15)","v":1},"Underground Storage Designation"]
[]
[null,"Facility Location",null,{"$f":"DATEVALUE(\"1/1/\"&C32)","v":{"$error":"#VALUE!"}},{"$f":"DATEVALUE(\"12/31/\"&C32)","v":{"$error":"#VALUE!"}}]
[null,"Facility Street:",null,{"$f":"COUNTBLANK(C18:C20)","v":3},"Facility Location"]
[null,"Facility City:"]
[null,"Facility Zip:"]
[]
[null,"Facility Mailing Address"]
[null,"Street:",null,{"$f":"COUNTBLANK(C23:C26)","v":4},"Facility Mailing Address"]
[null,"City:"]
[null,"State:"]
[null,"ZIP/Postal Code:"]
[]
[null,"Preparer's Name:",null,{"$f":"COUNTBLANK(C28:C30)","v":3},"Preparer's Information"]
[null,"Preparer's e-Mail:"]
[null,"Preparer's Phone:"]
[]
[null,"Calendar Year",null,{"$f":"COUNTBLANK(C32)","v":1},"Calendar Year"]
[]
[null,null,null,{"$f":"COUNTBLANK(B34:C34)","v":2},"Date and Signature"]
[null,"Date","Signature (Type in Name)"]
[null,"I attest that I am authorized by the owner or operator to provide this report, and that the information is true and correct."]

{"sheet":"Tank Systems","index":4,"n_rows":5,"n_cols":8,"rows_kept":5,"cut":false,"hidden":true,"merged":[[1,1,1,7],[2,1,2,7]]}
[]
[null,"Instructions:  Enter a unique ID for each tank system at the facility and enter the number of wells and annual throughput for each system.  Each of the individual tanks found within the tank system are inputted in the Equipment Form along with other equipment.  If the facility does not have a tank system, you may leave the Tank System ID blank and input the individual equipment in the Equipment Form. Please note: you must input a Tank System ID in order for the Flash Analaysis test data Form to appear in the main dashboard."]
[null,"A tank system is defined in the regulation as the first separator in a crude oil or natural gas production system and any tank or sump connected directly to the first separator. In many cases, this will be a Wash Tank and the oil and water tanks that are connected directly to the Wash Tank.  There may be additional tanks or pressure separators found in the tank system, and all of those units must be inputted individually under the Equipment Form."]
[]
[null,"Tank System ID\nUnique Facility Identifier for each Tank System ID","Production Type","Number of Wells","Annual Crude Oil Throughput (bbls)","Annual Condensate Throughput (bbls)","Annual Natural Gas Throughput (MMcf)","Annual Produced Water Throughput (bbls)"]

{"sheet":"Equipment","index":5,"n_rows":2497,"n_cols":16,"rows_kept":2497,"cut":false,"hidden":true,"merged":[[2,12,2,15],[1,1,1,15]]}
[]
[null,"Instructions:  To input equipment in this spreadsheet, begin by clicking on the dropdown menu located inside the Equipment Type box.  Select the  type of equipment to input.  Please do not enter other types of equipment that are not listed in the dropdown menu.  Depending on the equipment type chosen, some cells will highlight in yellow and others will black out to signify which columns need to completed.  All cells highlighted in yellow must be filled in.  Please notice the Size Unit column, which will identify the proper measurement units for some equipment. "]
[null,null,null,null,null,null,null,null,null,null,null,null,"If required by local District rule"]
[null,"Equipment Type","Count","Equipment ID\nUnique Facility Identifier for each Equipment ID","Permitted?\n(If required by air district)","Permit ID\n(If required by air district)","Tank System ID","Tank Contents","Is Vapor Recovery Installed?","Size","Size Unit","Equipment subject to requirements of standards in section 95668 (Y/N)","Latitude","Longitude","UTM East","UTM North"]
[null,null,null,null,null,null,null,null,null,null,{"$f":"_xlfn.IFNA((VLOOKUP($B5,Lists!$C$2:$D$13,2,FALSE)),\"\")","v":""}]
[null,null,null,null,null,null,null,null,null,null,{"$f":"_xlfn.IFNA((VLOOKUP($B6,Lists!$C$2:$D$13,2,FALSE)),\"\")","v":""}]
[null,null,null,null,null,null,null,null,null,null,{"$f":"_xlfn.IFNA((VLOOKUP($B7,Lists!$C$2:$D$13,2,FALSE)),\"\")","v":""}]
[null,null,null,null,null,null,null,null,null,null,{"$f":"_xlfn.IFNA((VLOOKUP($B8,Lists!$C$2:$D$13,2,FALSE)),\"\")","v":""}]
[null,null,null,null,null,null,null,null,null,null,{"$f":"_xlfn.IFNA((VLOOKUP($B9,Lists!$C$2:$D$13,2,FALSE)),\"\")","v":""}]
[null,null,null,null,null,null,null,null,null,null,{"$f":"_xlfn.IFNA((VLOOKUP($B10,Lists!$C$2:$D$13,2,FALSE)),\"\")","v":""}]
[null,null,null,null,null,null,null,null,null,null,{"$f":"_xlfn.IFNA((VLOOKUP($B11,Lists!$C$2:$D$13,2,FALSE)),\"\")","v":""}]
[null,null,null,null,null,null,null,null,null,null,{"$f":"_xlfn.IFNA((VLOOKUP($B12,Lists!$C$2:$D$13,2,FALSE)),\"\")","v":""}]
[null,null,null,null,null,null,null,null,null,null,{"$f":"_xlfn.IFNA((VLOOKUP($B13,Lists!$C$2:$D$13,2,FALSE)),\"\")","v":""}]
[null,null,null,null,null,null,null,null,null,null,{"$f":"_xlfn.IFNA((VLOOKUP($B14,Lists!$C$2:$D$13,2,FALSE)),\"\")","v":""}]
[null,null,null,null,null,null,null,null,null,null,{"$f":"_xlfn.IFNA((VLOOKUP($B15,Lists!$C$2:$D$13,2,FALSE)),\"\")","v":""}]
[null,null,null,null,null,null,null,null,null,null,{"$f":"_xlfn.IFNA((VLOOKUP($B16,Lists!$C$2:$D$13,2,FALSE)),\"\")","v":""}]
[null,null,null,null,null,null,null,null,null,null,{"$f":"_xlfn.IFNA((VLOOKUP($B17,Lists!$C$2:$D$13,2,FALSE)),\"\")","v":""}]
[null,null,null,null,null,null,null,null,null,null,{"$f":"_xlfn.IFNA((VLOOKUP($B18,Lists!$C$2:$D$13,2,FALSE)),\"\")","v":""}]
[null,null,null,null,null,null,null,null,null,null,{"$f":"_xlfn.IFNA((VLOOKUP($B19,Lists!$C$2:$D$13,2,FALSE)),\"\")","v":""}]
[null,null,null,null,null,null,null,null,null,null,{"$f":"_xlfn.IFNA((VLOOKUP($B20,Lists!$C$2:$D$13,2,FALSE)),\"\")","v":""}]
[null,null,null,null,null,null,null,null,null,null,{"$f":"_xlfn.IFNA((VLOOKUP($B21,Lists!$C$2:$D$13,2,FALSE)),\"\")","v":""}]
[null,null,null,null,null,null,null,null,null,null,{"$f":"_xlfn.IFNA((VLOOKUP($B22,Lists!$C$2:$D$13,2,FALSE)),\"\")","v":""}]
[null,null,null,null,null,null,null,null,null,null,{"$f":"_xlfn.IFNA((VLOOKUP($B23,Lists!$C$2:$D$13,2,FALSE)),\"\")","v":""}]
[null,null,null,null,null,null,null,null,null,null,{"$f":"_xlfn.IFNA((VLOOKUP($B24,Lists!$C$2:$D$13,2,FALSE)),\"\")","v":""}]
[null,null,null,null,null,null,null,null,null,null,{"$f":"_xlfn.IFNA((VLOOKUP($B25,Lists!$C$2:$D$13,2,FALSE)),\"\")","v":""}]
[null,null,null,null,null,null,null,null,null,null,{"$f":"_xlfn.IFNA((VLOOKUP($B26,Lists!$C$2:$D$13,2,FALSE)),\"\")","v":""}]
[null,null,null,null,null,null,null,null,null,null,{"$f":"_xlfn.IFNA((VLOOKUP($B27,Lists!$C$2:$D$13,2,FALSE)),\"\")","v":""}]
[null,null,null,null,null,null,null,null,null,null,{"$f":"_xlfn.IFNA((VLOOKUP($B28,Lists!$C$2:$D$13,2,FALSE)),\"\")","v":""}]
[null,null,null,null,null,null,null,null,null,null,{"$f":"_xlfn.IFNA((VLOOKUP($B29,Lists!$C$2:$D$13,2,FALSE)),\"\")","v":""}]
[null,null,null,null,null,null,null,null,null,null,{"$f":"_xlfn.IFNA((VLOOKUP($B30,Lists!$C$2:$D$13,2,FALSE)),\"\")","v":""}]
[null,null,null,null,null,null,null,null,null,null,{"$f":"_xlfn.IFNA((VLOOKUP($B31,Lists!$C$2:$D$13,2,FALSE)),\"\")","v":""}]
[null,null,null,null,null,null,null,null,null,null,{"$f":"_xlfn.IFNA((VLOOKUP($B32,Lists!$C$2:$D$13,2,FALSE)),\"\")","v":""}]
[null,null,null,null,null,null,null,null,null,null,{"$f":"_xlfn.IFNA((VLOOKUP($B33,Lists!$C$2:$D$13,2,FALSE)),\"\")","v":""}]
[null,null,null,null,null,null,null,null,null,null,{"$f":"_xlfn.IFNA((VLOOKUP($B34,Lists!$C$2:$D$13,2,FALSE)),\"\")","v":""}]
[null,null,null,null,null,null,null,null,null,null,{"$f":"_xlfn.IFNA((VLOOKUP($B35,Lists!$C$2:$D$13,2,FALSE)),\"\")","v":""}]
[null,null,null,null,null,null,null,null,null,null,{"$f":"_xlfn.IFNA((VLOOKUP($B36,Lists!$C$2:$D$13,2,FALSE)),\"\")","v":""}]
[null,null,null,null,null,null,null,null,null,null,{"$f":"_xlfn.IFNA((VLOOKUP($B37,Lists!$C$2:$D$13,2,FALSE)),\"\")","v":""}]
[null,null,null,null,null,null,null,null,null,null,{"$f":"_xlfn.IFNA((VLOOKUP($B38,Lists!$C$2:$D$13,2,FALSE)),\"\")","v":""}]
[null,null,null,null,null,null,null,null,null,null,{"$f":"_xlfn.IFNA((VLOOKUP($B39,Lists!$C$2:$D$13,2,FALSE)),\"\")","v":""}]
[null,null,null,null,null,null,null,null,null,null,{"$f":"_xlfn.IFNA((VLOOKUP($B40,Lists!$C$2:$D$13,2,FALSE)),\"\")","v":""}]
[null,null,null,null,null,null,null,null,null,null,{"$f":"_xlfn.IFNA((VLOOKUP($B41,Lists!$C$2:$D$13,2,FALSE)),\"\")","v":""}]
[null,null,null,null,null,null,null,null,null,null,{"$f":"_xlfn.IFNA((VLOOKUP($B42,Lists!$C$2:$D$13,2,FALSE)),\"\")","v":""}]
[null,null,null,null,null,null,null,null,null,null,{"$f":"_xlfn.IFNA((VLOOKUP($B43,Lists!$C$2:$D$13,2,FALSE)),\"\")","v":""}]
[null,null,null,null,null,null,null,null,null,null,{"$f":"_xlfn.IFNA((VLOOKUP($B44,Lists!$C$2:$D$13,2,FALSE)),\"\")","v":""}]
[null,null,null,null,null,null,null,null,null,null,{"$f":"_xlfn.IFNA((VLOOKUP($B45,Lists!$C$2:$D$13,2,FALSE)),\"\")","v":""}]
[null,null,null,null,null,null,null,null,null,null,{"$f":"_xlfn.IFNA((VLOOKUP($B46,Lists!$C$2:$D$13,2,FALSE)),\"\")","v":""}]
[null,null,null,null,null,null,null,null,null,null,{"$f":"_xlfn.IFNA((VLOOKUP($B47,Lists!$C$2:$D$13,2,FALSE)),\"\")","v":""}]
[null,null,null,null,null,null,null,null,null,null,{"$f":"_xlfn.IFNA((VLOOKUP($B48,Lists!$C$2:$D$13,2,FALSE)),\"\")","v":""}]
[null,null,null,null,null,null,null,null,null,null,{"$f":"_xlfn.IFNA((VLOOKUP($B49,Lists!$C$2:$D$13,2,FALSE)),\"\")","v":""}]
[null,null,null,null,null,null,null,null,null,null,{"$f":"_xlfn.IFNA((VLOOKUP($B50,Lists!$C$2:$D$13,2,FALSE)),\"\")","v":""}]
[null,null,null,null,null,null,null,null,null,null,{"$f":"_xlfn.IFNA((VLOOKUP($B51,Lists!$C$2:$D$13,2,FALSE)),\"\")","v":""}]
[null,null,null,null,null,null,null,null,null,null,{"$f":"_xlfn.IFNA((VLOOKUP($B52,Lists!$C$2:$D$13,2,FALSE)),\"\")","v":""}]
[null,null,null,null,null,null,null,null,null,null,{"$f":"_xlfn.IFNA((VLOOKUP($B53,Lists!$C$2:$D$13,2,FALSE)),\"\")","v":""}]
[null,null,null,null,null,null,null,null,null,null,{"$f":"_xlfn.IFNA((VLOOKUP($B54,Lists!$C$2:$D$13,2,FALSE)),\"\")","v":""}]
[null,null,null,null,null,null,null,null,null,null,{"$f":"_xlfn.IFNA((VLOOKUP($B55,Lists!$C$2:$D$13,2,FALSE)),\"\")","v":""}]
[null,null,null,null,null,null,null,null,null,null,{"$f":"_xlfn.IFNA((VLOOKUP($B56,Lists!$C$2:$D$13,2,FALSE)),\"\")","v":""}]
[null,null,null,null,null,null,null,null,null,null,{"$f":"_xlfn.IFNA((VLOOKUP($B57,Lists!$C$2:$D$13,2,FALSE)),\"\")","v":""}]
[null,null,null,null,null,null,null,null,null,null,{"$f":"_xlfn.IFNA((VLOOKUP($B58,Lists!$C$2:$D$13,2,FALSE)),\"\")","v":""}]
[null,null,null,null,null,null,null,null,null,null,{"$f":"_xlfn.IFNA((VLOOKUP($B59,Lists!$C$2:$D$13,2,FALSE)),\"\")","v":""}]
[null,null,null,null,null,null,null,null,null,null,{"$f":"_xlfn.IFNA((VLOOKUP($B60,Lists!$C$2:$D$13,2,FALSE)),\"\")","v":""}]
[null,null,null,null,null,null,null,null,null,null,{"$f":"_xlfn.IFNA((VLOOKUP($B61,Lists!$C$2:$D$13,2,FALSE)),\"\")","v":""}]
[null,null,null,null,null,null,null,null,null,null,{"$f":"_xlfn.IFNA((VLOOKUP($B62,Lists!$C$2:$D$13,2,FALSE)),\"\")","v":""}]
[null,null,null,null,null,null,null,null,null,null,{"$f":"_xlfn.IFNA((VLOOKUP($B63,Lists!$C$2:$D$13,2,FALSE)),\"\")","v":""}]
[null,null,null,null,null,null,null,null,null,null,{"$f":"_xlfn.IFNA((VLOOKUP($B64,Lists!$C$2:$D$13,2,FALSE)),\"\")","v":""}]
[null,null,null,null,null,null,null,null,null,null,{"$f":"_xlfn.IFNA((VLOOKUP($B65,Lists!$C$2:$D$13,2,FALSE)),\"\")","v":""}]
[null,null,null,null,null,null,null,null,null,null,{"$f":"_xlfn.IFNA((VLOOKUP($B66,Lists!$C$2:$D$13,2,FALSE)),\"\")","v":""}]
[null,null,null,null,null,null,null,null,null,null,{"$f":"_xlfn.IFNA((VLOOKUP($B67,Lists!$C$2:$D$13,2,FALSE)),\"\")","v":""}]
[null,null,null,null,null,null,null,null,null,null,{"$f":"_xlfn.IFNA((VLOOKUP($B68,Lists!$C$2:$D$13,2,FALSE)),\"\")","v":""}]
[null,null,null,null,null,null,null,null,null,null,{"$f":"_xlfn.IFNA((VLOOKUP($B69,Lists!$C$2:$D$13,2,FALSE)),\"\")","v":""}]
[null,null,null,null,null,null,null,null,null,null,{"$f":"_xlfn.IFNA((VLOOKUP($B70,Lists!$C$2:$D$13,2,FALSE)),\"\")","v":""}]
[null,null,null,null,null,null,null,null,null,null,{"$f":"_xlfn.IFNA((VLOOKUP($B71,Lists!$C$2:$D$13,2,FALSE)),\"\")","v":""}]
[null,null,null,null,null,null,null,null,null,null,{"$f":"_xlfn.IFNA((VLOOKUP($B72,Lists!$C$2:$D$13,2,FALSE)),\"\")","v":""}]
[null,null,null,null,null,null,null,null,null,null,{"$f":"_xlfn.IFNA((VLOOKUP($B73,Lists!$C$2:$D$13,2,FALSE)),\"\")","v":""}]
[null,null,null,null,null,null,null,null,null,null,{"$f":"_xlfn.IFNA((VLOOKUP($B74,Lists!$C$2:$D$13,2,FALSE)),\"\")","v":""}]
[null,null,null,null,null,null,null,null,null,null,{"$f":"_xlfn.IFNA((VLOOKUP($B75,Lists!$C$2:$D$13,2,FALSE)),\"\")","v":""}]
[null,null,null,null,null,null,null,null,null,null,{"$f":"_xlfn.IFNA((VLOOKUP($B76,Lists!$C$2:$D$13,2,FALSE)),\"\")","v":""}]
[null,null,null,null,null,null,null,null,null,null,{"$f":"_xlfn.IFNA((VLOOKUP($B77,Lists!$C$2:$D$13,2,FALSE)),\"\")","v":""}]
[null,null,null,null,null,null,null,null,null,null,{"$f":"_xlfn.IFNA((VLOOKUP($B78,Lists!$C$2:$D$13,2,FALSE)),\"\")","v":""}]
[null,null,null,null,null,null,null,null,null,null,{"$f":"_xlfn.IFNA((VLOOKUP($B79,Lists!$C$2:$D$13,2,FALSE)),\"\")","v":""}]
[null,null,null,null,null,null,null,null,null,null,{"$f":"_xlfn.IFNA((VLOOKUP($B80,Lists!$C$2:$D$13,2,FALSE)),\"\")","v":""}]
[null,null,null,null,null,null,null,null,null,null,{"$f":"_xlfn.IFNA((VLOOKUP($B81,Lists!$C$2:$D$13,2,FALSE)),\"\")","v":""}]
[null,null,null,null,null,null,null,null,null,null,{"$f":"_xlfn.IFNA((VLOOKUP($B82,Lists!$C$2:$D$13,2,FALSE)),\"\")","v":""}]
[null,null,null,null,null,null,null,null,null,null,{"$f":"_xlfn.IFNA((VLOOKUP($B83,Lists!$C$2:$D$13,2,FALSE)),\"\")","v":""}]
[null,null,null,null,null,null,null,null,null,null,{"$f":"_xlfn.IFNA((VLOOKUP($B84,Lists!$C$2:$D$13,2,FALSE)),\"\")","v":""}]
[null,null,null,null,null,null,null,null,null,null,{"$f":"_xlfn.IFNA((VLOOKUP($B85,Lists!$C$2:$D$13,2,FALSE)),\"\")","v":""}]
[null,null,null,null,null,null,null,null,null,null,{"$f":"_xlfn.IFNA((VLOOKUP($B86,Lists!$C$2:$D$13,2,FALSE)),\"\")","v":""}]
[null,null,null,null,null,null,null,null,null,null,{"$f":"_xlfn.IFNA((VLOOKUP($B87,Lists!$C$2:$D$13,2,FALSE)),\"\")","v":""}]
[null,null,null,null,null,null,null,null,null,null,{"$f":"_xlfn.IFNA((VLOOKUP($B88,Lists!$C$2:$D$13,2,FALSE)),\"\")","v":""}]
[null,null,null,null,null,null,null,null,null,null,{"$f":"_xlfn.IFNA((VLOOKUP($B89,Lists!$C$2:$D$13,2,FALSE)),\"\")","v":""}]
[null,null,null,null,null,null,null,null,null,null,{"$f":"_xlfn.IFNA((VLOOKUP($B90,Lists!$C$2:$D$13,2,FALSE)),\"\")","v":""}]
[null,null,null,null,null,null,null,null,null,null,{"$f":"_xlfn.IFNA((VLOOKUP($B91,Lists!$C$2:$D$13,2,FALSE)),\"\")","v":""}]
[null,null,null,null,null,null,null,null,null,null,{"$f":"_xlfn.IFNA((VLOOKUP($B92,Lists!$C$2:$D$13,2,FALSE)),\"\")","v":""}]
[null,null,null,null,null,null,null,null,null,null,{"$f":"_xlfn.IFNA((VLOOKUP($B93,Lists!$C$2:$D$13,2,FALSE)),\"\")","v":""}]
[null,null,null,null,null,null,null,null,null,null,{"$f":"_xlfn.IFNA((VLOOKUP($B94,Lists!$C$2:$D$13,2,FALSE)),\"\")","v":""}]
[null,null,null,null,null,null,null,null,null,null,{"$f":"_xlfn.IFNA((VLOOKUP($B95,Lists!$C$2:$D$13,2,FALSE)),\"\")","v":""}]
[null,null,null,null,null,null,null,null,null,null,{"$f":"_xlfn.IFNA((VLOOKUP($B96,Lists!$C$2:$D$13,2,FALSE)),\"\")","v":""}]
[null,null,null,null,null,null,null,null,null,null,{"$f":"_xlfn.IFNA((VLOOKUP($B97,Lists!$C$2:$D$13,2,FALSE)),\"\")","v":""}]
[null,null,null,null,null,null,null,null,null,null,{"$f":"_xlfn.IFNA((VLOOKUP($B98,Lists!$C$2:$D$13,2,FALSE)),\"\")","v":""}]
[null,null,null,null,null,null,null,null,null,null,{"$f":"_xlfn.IFNA((VLOOKUP($B99,Lists!$C$2:$D$13,2,FALSE)),\"\")","v":""}]
[null,null,null,null,null,null,null,null,null,null,{"$f":"_xlfn.IFNA((VLOOKUP($B100,Lists!$C$2:$D$13,2,FALSE)),\"\")","v":""}]
[null,null,null,null,null,null,null,null,null,null,{"$f":"_xlfn.IFNA((VLOOKUP($B101,Lists!$C$2:$D$13,2,FALSE)),\"\")","v":""}]
[null,null,null,null,null,null,null,null,null,null,{"$f":"_xlfn.IFNA((VLOOKUP($B102,Lists!$C$2:$D$13,2,FALSE)),\"\")","v":""}]
[null,null,null,null,null,null,null,null,null,null,{"$f":"_xlfn.IFNA((VLOOKUP($B103,Lists!$C$2:$D$13,2,FALSE)),\"\")","v":""}]
[null,null,null,null,null,null,null,null,null,null,{"$f":"_xlfn.IFNA((VLOOKUP($B104,Lists!$C$2:$D$13,2,FALSE)),\"\")","v":""}]
[null,null,null,null,null,null,null,null,null,null,{"$f":"_xlfn.IFNA((VLOOKUP($B105,Lists!$C$2:$D$13,2,FALSE)),\"\")","v":""}]
[null,null,null,null,null,null,null,null,null,null,{"$f":"_xlfn.IFNA((VLOOKUP($B106,Lists!$C$2:$D$13,2,FALSE)),\"\")","v":""}]
[null,null,null,null,null,null,null,null,null,null,{"$f":"_xlfn.IFNA((VLOOKUP($B107,Lists!$C$2:$D$13,2,FALSE)),\"\")","v":""}]
[null,null,null,null,null,null,null,null,null,null,{"$f":"_xlfn.IFNA((VLOOKUP($B108,Lists!$C$2:$D$13,2,FALSE)),\"\")","v":""}]
[null,null,null,null,null,null,null,null,null,null,{"$f":"_xlfn.IFNA((VLOOKUP($B109,Lists!$C$2:$D$13,2,FALSE)),\"\")","v":""}]
[null,null,null,null,null,null,null,null,null,null,{"$f":"_xlfn.IFNA((VLOOKUP($B110,Lists!$C$2:$D$13,2,FALSE)),\"\")","v":""}]
[null,null,null,null,null,null,null,null,null,null,{"$f":"_xlfn.IFNA((VLOOKUP($B111,Lists!$C$2:$D$13,2,FALSE)),\"\")","v":""}]
[null,null,null,null,null,null,null,null,null,null,{"$f":"_xlfn.IFNA((VLOOKUP($B112,Lists!$C$2:$D$13,2,FALSE)),\"\")","v":""}]
[null,null,null,null,null,null,null,null,null,null,{"$f":"_xlfn.IFNA((VLOOKUP($B113,Lists!$C$2:$D$13,2,FALSE)),\"\")","v":""}]
[null,null,null,null,null,null,null,null,null,null,{"$f":"_xlfn.IFNA((VLOOKUP($B114,Lists!$C$2:$D$13,2,FALSE)),\"\")","v":""}]
[null,null,null,null,null,null,null,null,null,null,{"$f":"_xlfn.IFNA((VLOOKUP($B115,Lists!$C$2:$D$13,2,FALSE)),\"\")","v":""}]
[null,null,null,null,null,null,null,null,null,null,{"$f":"_xlfn.IFNA((VLOOKUP($B116,Lists!$C$2:$D$13,2,FALSE)),\"\")","v":""}]
[null,null,null,null,null,null,null,null,null,null,{"$f":"_xlfn.IFNA((VLOOKUP($B117,Lists!$C$2:$D$13,2,FALSE)),\"\")","v":""}]
[null,null,null,null,null,null,null,null,null,null,{"$f":"_xlfn.IFNA((VLOOKUP($B118,Lists!$C$2:$D$13,2,FALSE)),\"\")","v":""}]
[null,null,null,null,null,null,null,null,null,null,{"$f":"_xlfn.IFNA((VLOOKUP($B119,Lists!$C$2:$D$13,2,FALSE)),\"\")","v":""}]
[null,null,null,null,null,null,null,null,null,null,{"$f":"_xlfn.IFNA((VLOOKUP($B120,Lists!$C$2:$D$13,2,FALSE)),\"\")","v":""}]
[null,null,null,null,null,null,null,null,null,null,{"$f":"_xlfn.IFNA((VLOOKUP($B121,Lists!$C$2:$D$13,2,FALSE)),\"\")","v":""}]
[null,null,null,null,null,null,null,null,null,null,{"$f":"_xlfn.IFNA((VLOOKUP($B122,Lists!$C$2:$D$13,2,FALSE)),\"\")","v":""}]
[null,null,null,null,null,null,null,null,null,null,{"$f":"_xlfn.IFNA((VLOOKUP($B123,Lists!$C$2:$D$13,2,FALSE)),\"\")","v":""}]
[null,null,null,null,null,null,null,null,null,null,{"$f":"_xlfn.IFNA((VLOOKUP($B124,Lists!$C$2:$D$13,2,FALSE)),\"\")","v":""}]
[null,null,null,null,null,null,null,null,null,null,{"$f":"_xlfn.IFNA((VLOOKUP($B125,Lists!$C$2:$D$13,2,FALSE)),\"\")","v":""}]
[null,null,null,null,null,null,null,null,null,null,{"$f":"_xlfn.IFNA((VLOOKUP($B126,Lists!$C$2:$D$13,2,FALSE)),\"\")","v":""}]
[null,null,null,null,null,null,null,null,null,null,{"$f":"_xlfn.IFNA((VLOOKUP($B127,Lists!$C$2:$D$13,2,FALSE)),\"\")","v":""}]
[null,null,null,null,null,null,null,null,null,null,{"$f":"_xlfn.IFNA((VLOOKUP($B128,Lists!$C$2:$D$13,2,FALSE)),\"\")","v":""}]
[null,null,null,null,null,null,null,null,null,null,{"$f":"_xlfn.IFNA((VLOOKUP($B129,Lists!$C$2:$D$13,2,FALSE)),\"\")","v":""}]
[null,null,null,null,null,null,null,null,null,null,{"$f":"_xlfn.IFNA((VLOOKUP($B130,Lists!$C$2:$D$13,2,FALSE)),\"\")","v":""}]
[null,null,null,null,null,null,null,null,null,null,{"$f":"_xlfn.IFNA((VLOOKUP($B131,Lists!$C$2:$D$13,2,FALSE)),\"\")","v":""}]
[null,null,null,null,null,null,null,null,null,null,{"$f":"_xlfn.IFNA((VLOOKUP($B132,Lists!$C$2:$D$13,2,FALSE)),\"\")","v":""}]
[null,null,null,null,null,null,null,null,null,null,{"$f":"_xlfn.IFNA((VLOOKUP($B133,Lists!$C$2:$D$13,2,FALSE)),\"\")","v":""}]
[null,null,null,null,null,null,null,null,null,null,{"$f":"_xlfn.IFNA((VLOOKUP($B134,Lists!$C$2:$D$13,2,FALSE)),\"\")","v":""}]
[null,null,null,null,null,null,null,null,null,null,{"$f":"_xlfn.IFNA((VLOOKUP($B135,Lists!$C$2:$D$13,2,FALSE)),\"\")","v":""}]
[null,null,null,null,null,null,null,null,null,null,{"$f":"_xlfn.IFNA((VLOOKUP($B136,Lists!$C$2:$D$13,2,FALSE)),\"\")","v":""}]
[null,null,null,null,null,null,null,null,null,null,{"$f":"_xlfn.IFNA((VLOOKUP($B137,Lists!$C$2:$D$13,2,FALSE)),\"\")","v":""}]
[null,null,null,null,null,null,null,null,null,null,{"$f":"_xlfn.IFNA((VLOOKUP($B138,Lists!$C$2:$D$13,2,FALSE)),\"\")","v":""}]
[null,null,null,null,null,null,null,null,null,null,{"$f":"_xlfn.IFNA((VLOOKUP($B139,Lists!$C$2:$D$13,2,FALSE)),\"\")","v":""}]
[null,null,null,null,null,null,null,null,null,null,{"$f":"_xlfn.IFNA((VLOOKUP($B140,Lists!$C$2:$D$13,2,FALSE)),\"\")","v":""}]
[null,null,null,null,null,null,null,null,null,null,{"$f":"_xlfn.IFNA((VLOOKUP($B141,Lists!$C$2:$D$13,2,FALSE)),\"\")","v":""}]
[null,null,null,null,null,null,null,null,null,null,{"$f":"_xlfn.IFNA((VLOOKUP($B142,Lists!$C$2:$D$13,2,FALSE)),\"\")","v":""}]
[null,null,null,null,null,null,null,null,null,null,{"$f":"_xlfn.IFNA((VLOOKUP($B143,Lists!$C$2:$D$13,2,FALSE)),\"\")","v":""}]
[null,null,null,null,null,null,null,null,null,null,{"$f":"_xlfn.IFNA((VLOOKUP($B144,Lists!$C$2:$D$13,2,FALSE)),\"\")","v":""}]
[null,null,null,null,null,null,null,null,null,null,{"$f":"_xlfn.IFNA((VLOOKUP($B145,Lists!$C$2:$D$13,2,FALSE)),\"\")","v":""}]
[null,null,null,null,null,null,null,null,null,null,{"$f":"_xlfn.IFNA((VLOOKUP($B146,Lists!$C$2:$D$13,2,FALSE)),\"\")","v":""}]
[null,null,null,null,null,null,null,null,null,null,{"$f":"_xlfn.IFNA((VLOOKUP($B147,Lists!$C$2:$D$13,2,FALSE)),\"\")","v":""}]
[null,null,null,null,null,null,null,null,null,null,{"$f":"_xlfn.IFNA((VLOOKUP($B148,Lists!$C$2:$D$13,2,FALSE)),\"\")","v":""}]
[null,null,null,null,null,null,null,null,null,null,{"$f":"_xlfn.IFNA((VLOOKUP($B149,Lists!$C$2:$D$13,2,FALSE)),\"\")","v":""}]
[null,null,null,null,null,null,null,null,null,null,{"$f":"_xlfn.IFNA((VLOOKUP($B150,Lists!$C$2:$D$13,2,FALSE)),\"\")","v":""}]
[null,null,null,null,null,null,null,null,null,null,{"$f":"_xlfn.IFNA((VLOOKUP($B151,Lists!$C$2:$D$13,2,FALSE)),\"\")","v":""}]
[null,null,null,null,null,null,null,null,null,null,{"$f":"_xlfn.IFNA((VLOOKUP($B152,Lists!$C$2:$D$13,2,FALSE)),\"\")","v":""}]
[null,null,null,null,null,null,null,null,null,null,{"$f":"_xlfn.IFNA((VLOOKUP($B153,Lists!$C$2:$D$13,2,FALSE)),\"\")","v":""}]
[null,null,null,null,null,null,null,null,null,null,{"$f":"_xlfn.IFNA((VLOOKUP($B154,Lists!$C$2:$D$13,2,FALSE)),\"\")","v":""}]
[null,null,null,null,null,null,null,null,null,null,{"$f":"_xlfn.IFNA((VLOOKUP($B155,Lists!$C$2:$D$13,2,FALSE)),\"\")","v":""}]
[null,null,null,null,null,null,null,null,null,null,{"$f":"_xlfn.IFNA((VLOOKUP($B156,Lists!$C$2:$D$13,2,FALSE)),\"\")","v":""}]
[null,null,null,null,null,null,null,null,null,null,{"$f":"_xlfn.IFNA((VLOOKUP($B157,Lists!$C$2:$D$13,2,FALSE)),\"\")","v":""}]
[null,null,null,null,null,null,null,null,null,null,{"$f":"_xlfn.IFNA((VLOOKUP($B158,Lists!$C$2:$D$13,2,FALSE)),\"\")","v":""}]
[null,null,null,null,null,null,null,null,null,null,{"$f":"_xlfn.IFNA((VLOOKUP($B159,Lists!$C$2:$D$13,2,FALSE)),\"\")","v":""}]
[null,null,null,null,null,null,null,null,null,null,{"$f":"_xlfn.IFNA((VLOOKUP($B160,Lists!$C$2:$D$13,2,FALSE)),\"\")","v":""}]
[null,null,null,null,null,null,null,null,null,null,{"$f":"_xlfn.IFNA((VLOOKUP($B161,Lists!$C$2:$D$13,2,FALSE)),\"\")","v":""}]
[null,null,null,null,null,null,null,null,null,null,{"$f":"_xlfn.IFNA((VLOOKUP($B162,Lists!$C$2:$D$13,2,FALSE)),\"\")","v":""}]
[null,null,null,null,null,null,null,null,null,null,{"$f":"_xlfn.IFNA((VLOOKUP($B163,Lists!$C$2:$D$13,2,FALSE)),\"\")","v":""}]
[null,null,null,null,null,null,null,null,null,null,{"$f":"_xlfn.IFNA((VLOOKUP($B164,Lists!$C$2:$D$13,2,FALSE)),\"\")","v":""}]
[null,null,null,null,null,null,null,null,null,null,{"$f":"_xlfn.IFNA((VLOOKUP($B165,Lists!$C$2:$D$13,2,FALSE)),\"\")","v":""}]
[null,null,null,null,null,null,null,null,null,null,{"$f":"_xlfn.IFNA((VLOOKUP($B166,Lists!$C$2:$D$13,2,FALSE)),\"\")","v":""}]
[null,null,null,null,null,null,null,null,null,null,{"$f":"_xlfn.IFNA((VLOOKUP($B167,Lists!$C$2:$D$13,2,FALSE)),\"\")","v":""}]
[null,null,null,null,null,null,null,null,null,null,{"$f":"_xlfn.IFNA((VLOOKUP($B168,Lists!$C$2:$D$13,2,FALSE)),\"\")","v":""}]
[null,null,null,null,null,null,null,null,null,null,{"$f":"_xlfn.IFNA((VLOOKUP($B169,Lists!$C$2:$D$13,2,FALSE)),\"\")","v":""}]
[null,null,null,null,null,null,null,null,null,null,{"$f":"_xlfn.IFNA((VLOOKUP($B170,Lists!$C$2:$D$13,2,FALSE)),\"\")","v":""}]
[null,null,null,null,null,null,null,null,null,null,{"$f":"_xlfn.IFNA((VLOOKUP($B171,Lists!$C$2:$D$13,2,FALSE)),\"\")","v":""}]
[null,null,null,null,null,null,null,null,null,null,{"$f":"_xlfn.IFNA((VLOOKUP($B172,Lists!$C$2:$D$13,2,FALSE)),\"\")","v":""}]
[null,null,null,null,null,null,null,null,null,null,{"$f":"_xlfn.IFNA((VLOOKUP($B173,Lists!$C$2:$D$13,2,FALSE)),\"\")","v":""}]
[null,null,null,null,null,null,null,null,null,null,{"$f":"_xlfn.IFNA((VLOOKUP($B174,Lists!$C$2:$D$13,2,FALSE)),\"\")","v":""}]
[null,null,null,null,null,null,null,null,null,null,{"$f":"_xlfn.IFNA((VLOOKUP($B175,Lists!$C$2:$D$13,2,FALSE)),\"\")","v":""}]
[null,null,null,null,null,null,null,null,null,null,{"$f":"_xlfn.IFNA((VLOOKUP($B176,Lists!$C$2:$D$13,2,FALSE)),\"\")","v":""}]
[null,null,null,null,null,null,null,null,null,null,{"$f":"_xlfn.IFNA((VLOOKUP($B177,Lists!$C$2:$D$13,2,FALSE)),\"\")","v":""}]
[null,null,null,null,null,null,null,null,null,null,{"$f":"_xlfn.IFNA((VLOOKUP($B178,Lists!$C$2:$D$13,2,FALSE)),\"\")","v":""}]
[null,null,null,null,null,null,null,null,null,null,{"$f":"_xlfn.IFNA((VLOOKUP($B179,Lists!$C$2:$D$13,2,FALSE)),\"\")","v":""}]
[null,null,null,null,null,null,null,null,null,null,{"$f":"_xlfn.IFNA((VLOOKUP($B180,Lists!$C$2:$D$13,2,FALSE)),\"\")","v":""}]
[null,null,null,null,null,null,null,null,null,null,{"$f":"_xlfn.IFNA((VLOOKUP($B181,Lists!$C$2:$D$13,2,FALSE)),\"\")","v":""}]
[null,null,null,null,null,null,null,null,null,null,{"$f":"_xlfn.IFNA((VLOOKUP($B182,Lists!$C$2:$D$13,2,FALSE)),\"\")","v":""}]
[null,null,null,null,null,null,null,null,null,null,{"$f":"_xlfn.IFNA((VLOOKUP($B183,Lists!$C$2:$D$13,2,FALSE)),\"\")","v":""}]
[null,null,null,null,null,null,null,null,null,null,{"$f":"_xlfn.IFNA((VLOOKUP($B184,Lists!$C$2:$D$13,2,FALSE)),\"\")","v":""}]
[null,null,null,null,null,null,null,null,null,null,{"$f":"_xlfn.IFNA((VLOOKUP($B185,Lists!$C$2:$D$13,2,FALSE)),\"\")","v":""}]
[null,null,null,null,null,null,null,null,null,null,{"$f":"_xlfn.IFNA((VLOOKUP($B186,Lists!$C$2:$D$13,2,FALSE)),\"\")","v":""}]
[null,null,null,null,null,null,null,null,null,null,{"$f":"_xlfn.IFNA((VLOOKUP($B187,Lists!$C$2:$D$13,2,FALSE)),\"\")","v":""}]
[null,null,null,null,null,null,null,null,null,null,{"$f":"_xlfn.IFNA((VLOOKUP($B188,Lists!$C$2:$D$13,2,FALSE)),\"\")","v":""}]
[null,null,null,null,null,null,null,null,null,null,{"$f":"_xlfn.IFNA((VLOOKUP($B189,Lists!$C$2:$D$13,2,FALSE)),\"\")","v":""}]
[null,null,null,null,null,null,null,null,null,null,{"$f":"_xlfn.IFNA((VLOOKUP($B190,Lists!$C$2:$D$13,2,FALSE)),\"\")","v":""}]
[null,null,null,null,null,null,null,null,null,null,{"$f":"_xlfn.IFNA((VLOOKUP($B191,Lists!$C$2:$D$13,2,FALSE)),\"\")","v":""}]
[null,null,null,null,null,null,null,null,null,null,{"$f":"_xlfn.IFNA((VLOOKUP($B192,Lists!$C$2:$D$13,2,FALSE)),\"\")","v":""}]
[null,null,null,null,null,null,null,null,null,null,{"$f":"_xlfn.IFNA((VLOOKUP($B193,Lists!$C$2:$D$13,2,FALSE)),\"\")","v":""}]
[null,null,null,null,null,null,null,null,null,null,{"$f":"_xlfn.IFNA((VLOOKUP($B194,Lists!$C$2:$D$13,2,FALSE)),\"\")","v":""}]
[null,null,null,null,null,null,null,null,null,null,{"$f":"_xlfn.IFNA((VLOOKUP($B195,Lists!$C$2:$D$13,2,FALSE)),\"\")","v":""}]
[null,null,null,null,null,null,null,null,null,null,{"$f":"_xlfn.IFNA((VLOOKUP($B196,Lists!$C$2:$D$13,2,FALSE)),\"\")","v":""}]
[null,null,null,null,null,null,null,null,null,null,{"$f":"_xlfn.IFNA((VLOOKUP($B197,Lists!$C$2:$D$13,2,FALSE)),\"\")","v":""}]
[null,null,null,null,null,null,null,null,null,null,{"$f":"_xlfn.IFNA((VLOOKUP($B198,Lists!$C$2:$D$13,2,FALSE)),\"\")","v":""}]
[null,null,null,null,null,null,null,null,null,null,{"$f":"_xlfn.IFNA((VLOOKUP($B199,Lists!$C$2:$D$13,2,FALSE)),\"\")","v":""}]
[null,null,null,null,null,null,null,null,null,null,{"$f":"_xlfn.IFNA((VLOOKUP($B200,Lists!$C$2:$D$13,2,FALSE)),\"\")","v":""}]
[null,null,null,null,null,null,null,null,null,null,{"$f":"_xlfn.IFNA((VLOOKUP($B201,Lists!$C$2:$D$13,2,FALSE)),\"\")","v":""}]
[null,null,null,null,null,null,null,null,null,null,{"$f":"_xlfn.IFNA((VLOOKUP($B202,Lists!$C$2:$D$13,2,FALSE)),\"\")","v":""}]
[null,null,null,null,null,null,null,null,null,null,{"$f":"_xlfn.IFNA((VLOOKUP($B203,Lists!$C$2:$D$13,2,FALSE)),\"\")","v":""}]
[null,null,null,null,null,null,null,null,null,null,{"$f":"_xlfn.IFNA((VLOOKUP($B204,Lists!$C$2:$D$13,2,FALSE)),\"\")","v":""}]
[null,null,null,null,null,null,null,null,null,null,{"$f":"_xlfn.IFNA((VLOOKUP($B205,Lists!$C$2:$D$13,2,FALSE)),\"\")","v":""}]
[null,null,null,null,null,null,null,null,null,null,{"$f":"_xlfn.IFNA((VLOOKUP($B206,Lists!$C$2:$D$13,2,FALSE)),\"\")","v":""}]
[null,null,null,null,null,null,null,null,null,null,{"$f":"_xlfn.IFNA((VLOOKUP($B207,Lists!$C$2:$D$13,2,FALSE)),\"\")","v":""}]
[null,null,null,null,null,null,null,null,null,null,{"$f":"_xlfn.IFNA((VLOOKUP($B208,Lists!$C$2:$D$13,2,FALSE)),\"\")","v":""}]
[null,null,null,null,null,null,null,null,null,null,{"$f":"_xlfn.IFNA((VLOOKUP($B209,Lists!$C$2:$D$13,2,FALSE)),\"\")","v":""}]
[null,null,null,null,null,null,null,null,null,null,{"$f":"_xlfn.IFNA((VLOOKUP($B210,Lists!$C$2:$D$13,2,FALSE)),\"\")","v":""}]
[null,null,null,null,null,null,null,null,null,null,{"$f":"_xlfn.IFNA((VLOOKUP($B211,Lists!$C$2:$D$13,2,FALSE)),\"\")","v":""}]
[null,null,null,null,null,null,null,null,null,null,{"$f":"_xlfn.IFNA((VLOOKUP($B212,Lists!$C$2:$D$13,2,FALSE)),\"\")","v":""}]
[null,null,null,null,null,null,null,null,null,null,{"$f":"_xlfn.IFNA((VLOOKUP($B213,Lists!$C$2:$D$13,2,FALSE)),\"\")","v":""}]
[null,null,null,null,null,null,null,null,null,null,{"$f":"_xlfn.IFNA((VLOOKUP($B214,Lists!$C$2:$D$13,2,FALSE)),\"\")","v":""}]
[null,null,null,null,null,null,null,null,null,null,{"$f":"_xlfn.IFNA((VLOOKUP($B215,Lists!$C$2:$D$13,2,FALSE)),\"\")","v":""}]
[null,null,null,null,null,null,null,null,null,null,{"$f":"_xlfn.IFNA((VLOOKUP($B216,Lists!$C$2:$D$13,2,FALSE)),\"\")","v":""}]
[null,null,null,null,null,null,null,null,null,null,{"$f":"_xlfn.IFNA((VLOOKUP($B217,Lists!$C$2:$D$13,2,FALSE)),\"\")","v":""}]
[null,null,null,null,null,null,null,null,null,null,{"$f":"_xlfn.IFNA((VLOOKUP($B218,Lists!$C$2:$D$13,2,FALSE)),\"\")","v":""}]
[null,null,null,null,null,null,null,null,null,null,{"$f":"_xlfn.IFNA((VLOOKUP($B219,Lists!$C$2:$D$13,2,FALSE)),\"\")","v":""}]
[null,null,null,null,null,null,null,null,null,null,{"$f":"_xlfn.IFNA((VLOOKUP($B220,Lists!$C$2:$D$13,2,FALSE)),\"\")","v":""}]
[null,null,null,null,null,null,null,null,null,null,{"$f":"_xlfn.IFNA((VLOOKUP($B221,Lists!$C$2:$D$13,2,FALSE)),\"\")","v":""}]
[null,null,null,null,null,null,null,null,null,null,{"$f":"_xlfn.IFNA((VLOOKUP($B222,Lists!$C$2:$D$13,2,FALSE)),\"\")","v":""}]
[null,null,null,null,null,null,null,null,null,null,{"$f":"_xlfn.IFNA((VLOOKUP($B223,Lists!$C$2:$D$13,2,FALSE)),\"\")","v":""}]
[null,null,null,null,null,null,null,null,null,null,{"$f":"_xlfn.IFNA((VLOOKUP($B224,Lists!$C$2:$D$13,2,FALSE)),\"\")","v":""}]
[null,null,null,null,null,null,null,null,null,null,{"$f":"_xlfn.IFNA((VLOOKUP($B225,Lists!$C$2:$D$13,2,FALSE)),\"\")","v":""}]
[null,null,null,null,null,null,null,null,null,null,{"$f":"_xlfn.IFNA((VLOOKUP($B226,Lists!$C$2:$D$13,2,FALSE)),\"\")","v":""}]
[null,null,null,null,null,null,null,null,null,null,{"$f":"_xlfn.IFNA((VLOOKUP($B227,Lists!$C$2:$D$13,2,FALSE)),\"\")","v":""}]
[null,null,null,null,null,null,null,null,null,null,{"$f":"_xlfn.IFNA((VLOOKUP($B228,Lists!$C$2:$D$13,2,FALSE)),\"\")","v":""}]
[null,null,null,null,null,null,null,null,null,null,{"$f":"_xlfn.IFNA((VLOOKUP($B229,Lists!$C$2:$D$13,2,FALSE)),\"\")","v":""}]
[null,null,null,null,null,null,null,null,null,null,{"$f":"_xlfn.IFNA((VLOOKUP($B230,Lists!$C$2:$D$13,2,FALSE)),\"\")","v":""}]
[null,null,null,null,null,null,null,null,null,null,{"$f":"_xlfn.IFNA((VLOOKUP($B231,Lists!$C$2:$D$13,2,FALSE)),\"\")","v":""}]
[null,null,null,null,null,null,null,null,null,null,{"$f":"_xlfn.IFNA((VLOOKUP($B232,Lists!$C$2:$D$13,2,FALSE)),\"\")","v":""}]
[null,null,null,null,null,null,null,null,null,null,{"$f":"_xlfn.IFNA((VLOOKUP($B233,Lists!$C$2:$D$13,2,FALSE)),\"\")","v":""}]
[null,null,null,null,null,null,null,null,null,null,{"$f":"_xlfn.IFNA((VLOOKUP($B234,Lists!$C$2:$D$13,2,FALSE)),\"\")","v":""}]
[null,null,null,null,null,null,null,null,null,null,{"$f":"_xlfn.IFNA((VLOOKUP($B235,Lists!$C$2:$D$13,2,FALSE)),\"\")","v":""}]
[null,null,null,null,null,null,null,null,null,null,{"$f":"_xlfn.IFNA((VLOOKUP($B236,Lists!$C$2:$D$13,2,FALSE)),\"\")","v":""}]
[null,null,null,null,null,null,null,null,null,null,{"$f":"_xlfn.IFNA((VLOOKUP($B237,Lists!$C$2:$D$13,2,FALSE)),\"\")","v":""}]
[null,null,null,null,null,null,null,null,null,null,{"$f":"_xlfn.IFNA((VLOOKUP($B238,Lists!$C$2:$D$13,2,FALSE)),\"\")","v":""}]
[null,null,null,null,null,null,null,null,null,null,{"$f":"_xlfn.IFNA((VLOOKUP($B239,Lists!$C$2:$D$13,2,FALSE)),\"\")","v":""}]
[null,null,null,null,null,null,null,null,null,null,{"$f":"_xlfn.IFNA((VLOOKUP($B240,Lists!$C$2:$D$13,2,FALSE)),\"\")","v":""}]
[null,null,null,null,null,null,null,null,null,null,{"$f":"_xlfn.IFNA((VLOOKUP($B241,Lists!$C$2:$D$13,2,FALSE)),\"\")","v":""}]
[null,null,null,null,null,null,null,null,null,null,{"$f":"_xlfn.IFNA((VLOOKUP($B242,Lists!$C$2:$D$13,2,FALSE)),\"\")","v":""}]
[null,null,null,null,null,null,null,null,null,null,{"$f":"_xlfn.IFNA((VLOOKUP($B243,Lists!$C$2:$D$13,2,FALSE)),\"\")","v":""}]
[null,null,null,null,null,null,null,null,null,null,{"$f":"_xlfn.IFNA((VLOOKUP($B244,Lists!$C$2:$D$13,2,FALSE)),\"\")","v":""}]
[null,null,null,null,null,null,null,null,null,null,{"$f":"_xlfn.IFNA((VLOOKUP($B245,Lists!$C$2:$D$13,2,FALSE)),\"\")","v":""}]
[null,null,null,null,null,null,null,null,null,null,{"$f":"_xlfn.IFNA((VLOOKUP($B246,Lists!$C$2:$D$13,2,FALSE)),\"\")","v":""}]
[null,null,null,null,null,null,null,null,null,null,{"$f":"_xlfn.IFNA((VLOOKUP($B247,Lists!$C$2:$D$13,2,FALSE)),\"\")","v":""}]
[null,null,null,null,null,null,null,null,null,null,{"$f":"_xlfn.IFNA((VLOOKUP($B248,Lists!$C$2:$D$13,2,FALSE)),\"\")","v":""}]
[null,null,null,null,null,null,null,null,null,null,{"$f":"_xlfn.IFNA((VLOOKUP($B249,Lists!$C$2:$D$13,2,FALSE)),\"\")","v":""}]
[null,null,null,null,null,null,null,null,null,null,{"$f":"_xlfn.IFNA((VLOOKUP($B250,Lists!$C$2:$D$13,2,FALSE)),\"\")","v":""}]
[null,null,null,null,null,null,null,null,null,null,{"$f":"_xlfn.IFNA((VLOOKUP($B251,Lists!$C$2:$D$13,2,FALSE)),\"\")","v":""}]
[null,null,null,null,null,null,null,null,null,null,{"$f":"_xlfn.IFNA((VLOOKUP($B252,Lists!$C$2:$D$13,2,FALSE)),\"\")","v":""}]
[null,null,null,null,null,null,null,null,null,null,{"$f":"_xlfn.IFNA((VLOOKUP($B253,Lists!$C$2:$D$13,2,FALSE)),\"\")","v":""}]
[null,null,null,null,null,null,null,null,null,null,{"$f":"_xlfn.IFNA((VLOOKUP($B254,Lists!$C$2:$D$13,2,FALSE)),\"\")","v":""}]
[null,null,null,null,null,null,null,null,null,null,{"$f":"_xlfn.IFNA((VLOOKUP($B255,Lists!$C$2:$D$13,2,FALSE)),\"\")","v":""}]
[null,null,null,null,null,null,null,null,null,null,{"$f":"_xlfn.IFNA((VLOOKUP($B256,Lists!$C$2:$D$13,2,FALSE)),\"\")","v":""}]
[null,null,null,null,null,null,null,null,null,null,{"$f":"_xlfn.IFNA((VLOOKUP($B257,Lists!$C$2:$D$13,2,FALSE)),\"\")","v":""}]
[null,null,null,null,null,null,null,null,null,null,{"$f":"_xlfn.IFNA((VLOOKUP($B258,Lists!$C$2:$D$13,2,FALSE)),\"\")","v":""}]
[null,null,null,null,null,null,null,null,null,null,{"$f":"_xlfn.IFNA((VLOOKUP($B259,Lists!$C$2:$D$13,2,FALSE)),\"\")","v":""}]
[null,null,null,null,null,null,null,null,null,null,{"$f":"_xlfn.IFNA((VLOOKUP($B260,Lists!$C$2:$D$13,2,FALSE)),\"\")","v":""}]
[null,null,null,null,null,null,null,null,null,null,{"$f":"_xlfn.IFNA((VLOOKUP($B261,Lists!$C$2:$D$13,2,FALSE)),\"\")","v":""}]
[null,null,null,null,null,null,null,null,null,null,{"$f":"_xlfn.IFNA((VLOOKUP($B262,Lists!$C$2:$D$13,2,FALSE)),\"\")","v":""}]
[null,null,null,null,null,null,null,null,null,null,{"$f":"_xlfn.IFNA((VLOOKUP($B263,Lists!$C$2:$D$13,2,FALSE)),\"\")","v":""}]
[null,null,null,null,null,null,null,null,null,null,{"$f":"_xlfn.IFNA((VLOOKUP($B264,Lists!$C$2:$D$13,2,FALSE)),\"\")","v":""}]
[null,null,null,null,null,null,null,null,null,null,{"$f":"_xlfn.IFNA((VLOOKUP($B265,Lists!$C$2:$D$13,2,FALSE)),\"\")","v":""}]
[null,null,null,null,null,null,null,null,null,null,{"$f":"_xlfn.IFNA((VLOOKUP($B266,Lists!$C$2:$D$13,2,FALSE)),\"\")","v":""}]
[null,null,null,null,null,null,null,null,null,null,{"$f":"_xlfn.IFNA((VLOOKUP($B267,Lists!$C$2:$D$13,2,FALSE)),\"\")","v":""}]
[null,null,null,null,null,null,null,null,null,null,{"$f":"_xlfn.IFNA((VLOOKUP($B268,Lists!$C$2:$D$13,2,FALSE)),\"\")","v":""}]
[null,null,null,null,null,null,null,null,null,null,{"$f":"_xlfn.IFNA((VLOOKUP($B269,Lists!$C$2:$D$13,2,FALSE)),\"\")","v":""}]
[null,null,null,null,null,null,null,null,null,null,{"$f":"_xlfn.IFNA((VLOOKUP($B270,Lists!$C$2:$D$13,2,FALSE)),\"\")","v":""}]
[null,null,null,null,null,null,null,null,null,null,{"$f":"_xlfn.IFNA((VLOOKUP($B271,Lists!$C$2:$D$13,2,FALSE)),\"\")","v":""}]
[null,null,null,null,null,null,null,null,null,null,{"$f":"_xlfn.IFNA((VLOOKUP($B272,Lists!$C$2:$D$13,2,FALSE)),\"\")","v":""}]
[null,null,null,null,null,null,null,null,null,null,{"$f":"_xlfn.IFNA((VLOOKUP($B273,Lists!$C$2:$D$13,2,FALSE)),\"\")","v":""}]
[null,null,null,null,null,null,null,null,null,null,{"$f":"_xlfn.IFNA((VLOOKUP($B274,Lists!$C$2:$D$13,2,FALSE)),\"\")","v":""}]
[null,null,null,null,null,null,null,null,null,null,{"$f":"_xlfn.IFNA((VLOOKUP($B275,Lists!$C$2:$D$13,2,FALSE)),\"\")","v":""}]
[null,null,null,null,null,null,null,null,null,null,{"$f":"_xlfn.IFNA((VLOOKUP($B276,Lists!$C$2:$D$13,2,FALSE)),\"\")","v":""}]
[null,null,null,null,null,null,null,null,null,null,{"$f":"_xlfn.IFNA((VLOOKUP($B277,Lists!$C$2:$D$13,2,FALSE)),\"\")","v":""}]
[null,null,null,null,null,null,null,null,null,null,{"$f":"_xlfn.IFNA((VLOOKUP($B278,Lists!$C$2:$D$13,2,FALSE)),\"\")","v":""}]
[null,null,null,null,null,null,null,null,null,null,{"$f":"_xlfn.IFNA((VLOOKUP($B279,Lists!$C$2:$D$13,2,FALSE)),\"\")","v":""}]
[null,null,null,null,null,null,null,null,null,null,{"$f":"_xlfn.IFNA((VLOOKUP($B280,Lists!$C$2:$D$13,2,FALSE)),\"\")","v":""}]
[null,null,null,null,null,null,null,null,null,null,{"$f":"_xlfn.IFNA((VLOOKUP($B281,Lists!$C$2:$D$13,2,FALSE)),\"\")","v":""}]
[null,null,null,null,null,null,null,null,null,null,{"$f":"_xlfn.IFNA((VLOOKUP($B282,Lists!$C$2:$D$13,2,FALSE)),\"\")","v":""}]
[null,null,null,null,null,null,null,null,null,null,{"$f":"_xlfn.IFNA((VLOOKUP($B283,Lists!$C$2:$D$13,2,FALSE)),\"\")","v":""}]
[null,null,null,null,null,null,null,null,null,null,{"$f":"_xlfn.IFNA((VLOOKUP($B284,Lists!$C$2:$D$13,2,FALSE)),\"\")","v":""}]
[null,null,null,null,null,null,null,null,null,null,{"$f":"_xlfn.IFNA((VLOOKUP($B285,Lists!$C$2:$D$13,2,FALSE)),\"\")","v":""}]
[null,null,null,null,null,null,null,null,null,null,{"$f":"_xlfn.IFNA((VLOOKUP($B286,Lists!$C$2:$D$13,2,FALSE)),\"\")","v":""}]
[null,null,null,null,null,null,null,null,null,null,{"$f":"_xlfn.IFNA((VLOOKUP($B287,Lists!$C$2:$D$13,2,FALSE)),\"\")","v":""}]
[null,null,null,null,null,null,null,null,null,null,{"$f":"_xlfn.IFNA((VLOOKUP($B288,Lists!$C$2:$D$13,2,FALSE)),\"\")","v":""}]
[null,null,null,null,null,null,null,null,null,null,{"$f":"_xlfn.IFNA((VLOOKUP($B289,Lists!$C$2:$D$13,2,FALSE)),\"\")","v":""}]
[null,null,null,null,null,null,null,null,null,null,{"$f":"_xlfn.IFNA((VLOOKUP($B290,Lists!$C$2:$D$13,2,FALSE)),\"\")","v":""}]
[null,null,null,null,null,null,null,null,null,null,{"$f":"_xlfn.IFNA((VLOOKUP($B291,Lists!$C$2:$D$13,2,FALSE)),\"\")","v":""}]
[null,null,null,null,null,null,null,null,null,null,{"$f":"_xlfn.IFNA((VLOOKUP($B292,Lists!$C$2:$D$13,2,FALSE)),\"\")","v":""}]
[null,null,null,null,null,null,null,null,null,null,{"$f":"_xlfn.IFNA((VLOOKUP($B293,Lists!$C$2:$D$13,2,FALSE)),\"\")","v":""}]
[null,null,null,null,null,null,null,null,null,null,{"$f":"_xlfn.IFNA((VLOOKUP($B294,Lists!$C$2:$D$13,2,FALSE)),\"\")","v":""}]
[null,null,null,null,null,null,null,null,null,null,{"$f":"_xlfn.IFNA((VLOOKUP($B295,Lists!$C$2:$D$13,2,FALSE)),\"\")","v":""}]
[null,null,null,null,null,null,null,null,null,null,{"$f":"_xlfn.IFNA((VLOOKUP($B296,Lists!$C$2:$D$13,2,FALSE)),\"\")","v":""}]
[null,null,null,null,null,null,null,null,null,null,{"$f":"_xlfn.IFNA((VLOOKUP($B297,Lists!$C$2:$D$13,2,FALSE)),\"\")","v":""}]
[null,null,null,null,null,null,null,null,null,null,{"$f":"_xlfn.IFNA((VLOOKUP($B298,Lists!$C$2:$D$13,2,FALSE)),\"\")","v":""}]
[null,null,null,null,null,null,null,null,null,null,{"$f":"_xlfn.IFNA((VLOOKUP($B299,Lists!$C$2:$D$13,2,FALSE)),\"\")","v":""}]
[null,null,null,null,null,null,null,null,null,null,{"$f":"_xlfn.IFNA((VLOOKUP($B300,Lists!$C$2:$D$13,2,FALSE)),\"\")","v":""}]
[null,null,null,null,null,null,null,null,null,null,{"$f":"_xlfn.IFNA((VLOOKUP($B301,Lists!$C$2:$D$13,2,FALSE)),\"\")","v":""}]
[null,null,null,null,null,null,null,null,null,null,{"$f":"_xlfn.IFNA((VLOOKUP($B302,Lists!$C$2:$D$13,2,FALSE)),\"\")","v":""}]
[null,null,null,null,null,null,null,null,null,null,{"$f":"_xlfn.IFNA((VLOOKUP($B303,Lists!$C$2:$D$13,2,FALSE)),\"\")","v":""}]
[null,null,null,null,null,null,null,null,null,null,{"$f":"_xlfn.IFNA((VLOOKUP($B304,Lists!$C$2:$D$13,2,FALSE)),\"\")","v":""}]
[null,null,null,null,null,null,null,null,null,null,{"$f":"_xlfn.IFNA((VLOOKUP($B305,Lists!$C$2:$D$13,2,FALSE)),\"\")","v":""}]
[null,null,null,null,null,null,null,null,null,null,{"$f":"_xlfn.IFNA((VLOOKUP($B306,Lists!$C$2:$D$13,2,FALSE)),\"\")","v":""}]
[null,null,null,null,null,null,null,null,null,null,{"$f":"_xlfn.IFNA((VLOOKUP($B307,Lists!$C$2:$D$13,2,FALSE)),\"\")","v":""}]
[null,null,null,null,null,null,null,null,null,null,{"$f":"_xlfn.IFNA((VLOOKUP($B308,Lists!$C$2:$D$13,2,FALSE)),\"\")","v":""}]
[null,null,null,null,null,null,null,null,null,null,{"$f":"_xlfn.IFNA((VLOOKUP($B309,Lists!$C$2:$D$13,2,FALSE)),\"\")","v":""}]
[null,null,null,null,null,null,null,null,null,null,{"$f":"_xlfn.IFNA((VLOOKUP($B310,Lists!$C$2:$D$13,2,FALSE)),\"\")","v":""}]
[null,null,null,null,null,null,null,null,null,null,{"$f":"_xlfn.IFNA((VLOOKUP($B311,Lists!$C$2:$D$13,2,FALSE)),\"\")","v":""}]
[null,null,null,null,null,null,null,null,null,null,{"$f":"_xlfn.IFNA((VLOOKUP($B312,Lists!$C$2:$D$13,2,FALSE)),\"\")","v":""}]
[null,null,null,null,null,null,null,null,null,null,{"$f":"_xlfn.IFNA((VLOOKUP($B313,Lists!$C$2:$D$13,2,FALSE)),\"\")","v":""}]
[null,null,null,null,null,null,null,null,null,null,{"$f":"_xlfn.IFNA((VLOOKUP($B314,Lists!$C$2:$D$13,2,FALSE)),\"\")","v":""}]
[null,null,null,null,null,null,null,null,null,null,{"$f":"_xlfn.IFNA((VLOOKUP($B315,Lists!$C$2:$D$13,2,FALSE)),\"\")","v":""}]
[null,null,null,null,null,null,null,null,null,null,{"$f":"_xlfn.IFNA((VLOOKUP($B316,Lists!$C$2:$D$13,2,FALSE)),\"\")","v":""}]
[null,null,null,null,null,null,null,null,null,null,{"$f":"_xlfn.IFNA((VLOOKUP($B317,Lists!$C$2:$D$13,2,FALSE)),\"\")","v":""}]
[null,null,null,null,null,null,null,null,null,null,{"$f":"_xlfn.IFNA((VLOOKUP($B318,Lists!$C$2:$D$13,2,FALSE)),\"\")","v":""}]
[null,null,null,null,null,null,null,null,null,null,{"$f":"_xlfn.IFNA((VLOOKUP($B319,Lists!$C$2:$D$13,2,FALSE)),\"\")","v":""}]
[null,null,null,null,null,null,null,null,null,null,{"$f":"_xlfn.IFNA((VLOOKUP($B320,Lists!$C$2:$D$13,2,FALSE)),\"\")","v":""}]
[null,null,null,null,null,null,null,null,null,null,{"$f":"_xlfn.IFNA((VLOOKUP($B321,Lists!$C$2:$D$13,2,FALSE)),\"\")","v":""}]
[null,null,null,null,null,null,null,null,null,null,{"$f":"_xlfn.IFNA((VLOOKUP($B322,Lists!$C$2:$D$13,2,FALSE)),\"\")","v":""}]
[null,null,null,null,null,null,null,null,null,null,{"$f":"_xlfn.IFNA((VLOOKUP($B323,Lists!$C$2:$D$13,2,FALSE)),\"\")","v":""}]
[null,null,null,null,null,null,null,null,null,null,{"$f":"_xlfn.IFNA((VLOOKUP($B324,Lists!$C$2:$D$13,2,FALSE)),\"\")","v":""}]
[null,null,null,null,null,null,null,null,null,null,{"$f":"_xlfn.IFNA((VLOOKUP($B325,Lists!$C$2:$D$13,2,FALSE)),\"\")","v":""}]
[null,null,null,null,null,null,null,null,null,null,{"$f":"_xlfn.IFNA((VLOOKUP($B326,Lists!$C$2:$D$13,2,FALSE)),\"\")","v":""}]
[null,null,null,null,null,null,null,null,null,null,{"$f":"_xlfn.IFNA((VLOOKUP($B327,Lists!$C$2:$D$13,2,FALSE)),\"\")","v":""}]
[null,null,null,null,null,null,null,null,null,null,{"$f":"_xlfn.IFNA((VLOOKUP($B328,Lists!$C$2:$D$13,2,FALSE)),\"\")","v":""}]
[null,null,null,null,null,null,null,null,null,null,{"$f":"_xlfn.IFNA((VLOOKUP($B329,Lists!$C$2:$D$13,2,FALSE)),\"\")","v":""}]
[null,null,null,null,null,null,null,null,null,null,{"$f":"_xlfn.IFNA((VLOOKUP($B330,Lists!$C$2:$D$13,2,FALSE)),\"\")","v":""}]
[null,null,null,null,null,null,null,null,null,null,{"$f":"_xlfn.IFNA((VLOOKUP($B331,Lists!$C$2:$D$13,2,FALSE)),\"\")","v":""}]
[null,null,null,null,null,null,null,null,null,null,{"$f":"_xlfn.IFNA((VLOOKUP($B332,Lists!$C$2:$D$13,2,FALSE)),\"\")","v":""}]
[null,null,null,null,null,null,null,null,null,null,{"$f":"_xlfn.IFNA((VLOOKUP($B333,Lists!$C$2:$D$13,2,FALSE)),\"\")","v":""}]
[null,null,null,null,null,null,null,null,null,null,{"$f":"_xlfn.IFNA((VLOOKUP($B334,Lists!$C$2:$D$13,2,FALSE)),\"\")","v":""}]
[null,null,null,null,null,null,null,null,null,null,{"$f":"_xlfn.IFNA((VLOOKUP($B335,Lists!$C$2:$D$13,2,FALSE)),\"\")","v":""}]
[null,null,null,null,null,null,null,null,null,null,{"$f":"_xlfn.IFNA((VLOOKUP($B336,Lists!$C$2:$D$13,2,FALSE)),\"\")","v":""}]
[null,null,null,null,null,null,null,null,null,null,{"$f":"_xlfn.IFNA((VLOOKUP($B337,Lists!$C$2:$D$13,2,FALSE)),\"\")","v":""}]
[null,null,null,null,null,null,null,null,null,null,{"$f":"_xlfn.IFNA((VLOOKUP($B338,Lists!$C$2:$D$13,2,FALSE)),\"\")","v":""}]
[null,null,null,null,null,null,null,null,null,null,{"$f":"_xlfn.IFNA((VLOOKUP($B339,Lists!$C$2:$D$13,2,FALSE)),\"\")","v":""}]
[null,null,null,null,null,null,null,null,null,null,{"$f":"_xlfn.IFNA((VLOOKUP($B340,Lists!$C$2:$D$13,2,FALSE)),\"\")","v":""}]
[null,null,null,null,null,null,null,null,null,null,{"$f":"_xlfn.IFNA((VLOOKUP($B341,Lists!$C$2:$D$13,2,FALSE)),\"\")","v":""}]
[null,null,null,null,null,null,null,null,null,null,{"$f":"_xlfn.IFNA((VLOOKUP($B342,Lists!$C$2:$D$13,2,FALSE)),\"\")","v":""}]
[null,null,null,null,null,null,null,null,null,null,{"$f":"_xlfn.IFNA((VLOOKUP($B343,Lists!$C$2:$D$13,2,FALSE)),\"\")","v":""}]
[null,null,null,null,null,null,null,null,null,null,{"$f":"_xlfn.IFNA((VLOOKUP($B344,Lists!$C$2:$D$13,2,FALSE)),\"\")","v":""}]
[null,null,null,null,null,null,null,null,null,null,{"$f":"_xlfn.IFNA((VLOOKUP($B345,Lists!$C$2:$D$13,2,FALSE)),\"\")","v":""}]
[null,null,null,null,null,null,null,null,null,null,{"$f":"_xlfn.IFNA((VLOOKUP($B346,Lists!$C$2:$D$13,2,FALSE)),\"\")","v":""}]
[null,null,null,null,null,null,null,null,null,null,{"$f":"_xlfn.IFNA((VLOOKUP($B347,Lists!$C$2:$D$13,2,FALSE)),\"\")","v":""}]
[null,null,null,null,null,null,null,null,null,null,{"$f":"_xlfn.IFNA((VLOOKUP($B348,Lists!$C$2:$D$13,2,FALSE)),\"\")","v":""}]
[null,null,null,null,null,null,null,null,null,null,{"$f":"_xlfn.IFNA((VLOOKUP($B349,Lists!$C$2:$D$13,2,FALSE)),\"\")","v":""}]
[null,null,null,null,null,null,null,null,null,null,{"$f":"_xlfn.IFNA((VLOOKUP($B350,Lists!$C$2:$D$13,2,FALSE)),\"\")","v":""}]
[null,null,null,null,null,null,null,null,null,null,{"$f":"_xlfn.IFNA((VLOOKUP($B351,Lists!$C$2:$D$13,2,FALSE)),\"\")","v":""}]
[null,null,null,null,null,null,null,null,null,null,{"$f":"_xlfn.IFNA((VLOOKUP($B352,Lists!$C$2:$D$13,2,FALSE)),\"\")","v":""}]
[null,null,null,null,null,null,null,null,null,null,{"$f":"_xlfn.IFNA((VLOOKUP($B353,Lists!$C$2:$D$13,2,FALSE)),\"\")","v":""}]
[null,null,null,null,null,null,null,null,null,null,{"$f":"_xlfn.IFNA((VLOOKUP($B354,Lists!$C$2:$D$13,2,FALSE)),\"\")","v":""}]
[null,null,null,null,null,null,null,null,null,null,{"$f":"_xlfn.IFNA((VLOOKUP($B355,Lists!$C$2:$D$13,2,FALSE)),\"\")","v":""}]
[null,null,null,null,null,null,null,null,null,null,{"$f":"_xlfn.IFNA((VLOOKUP($B356,Lists!$C$2:$D$13,2,FALSE)),\"\")","v":""}]
[null,null,null,null,null,null,null,null,null,null,{"$f":"_xlfn.IFNA((VLOOKUP($B357,Lists!$C$2:$D$13,2,FALSE)),\"\")","v":""}]
[null,null,null,null,null,null,null,null,null,null,{"$f":"_xlfn.IFNA((VLOOKUP($B358,Lists!$C$2:$D$13,2,FALSE)),\"\")","v":""}]
[null,null,null,null,null,null,null,null,null,null,{"$f":"_xlfn.IFNA((VLOOKUP($B359,Lists!$C$2:$D$13,2,FALSE)),\"\")","v":""}]
[null,null,null,null,null,null,null,null,null,null,{"$f":"_xlfn.IFNA((VLOOKUP($B360,Lists!$C$2:$D$13,2,FALSE)),\"\")","v":""}]
[null,null,null,null,null,null,null,null,null,null,{"$f":"_xlfn.IFNA((VLOOKUP($B361,Lists!$C$2:$D$13,2,FALSE)),\"\")","v":""}]
[null,null,null,null,null,null,null,null,null,null,{"$f":"_xlfn.IFNA((VLOOKUP($B362,Lists!$C$2:$D$13,2,FALSE)),\"\")","v":""}]
[null,null,null,null,null,null,null,null,null,null,{"$f":"_xlfn.IFNA((VLOOKUP($B363,Lists!$C$2:$D$13,2,FALSE)),\"\")","v":""}]
[null,null,null,null,null,null,null,null,null,null,{"$f":"_xlfn.IFNA((VLOOKUP($B364,Lists!$C$2:$D$13,2,FALSE)),\"\")","v":""}]
[null,null,null,null,null,null,null,null,null,null,{"$f":"_xlfn.IFNA((VLOOKUP($B365,Lists!$C$2:$D$13,2,FALSE)),\"\")","v":""}]
[null,null,null,null,null,null,null,null,null,null,{"$f":"_xlfn.IFNA((VLOOKUP($B366,Lists!$C$2:$D$13,2,FALSE)),\"\")","v":""}]
[null,null,null,null,null,null,null,null,null,null,{"$f":"_xlfn.IFNA((VLOOKUP($B367,Lists!$C$2:$D$13,2,FALSE)),\"\")","v":""}]
[null,null,null,null,null,null,null,null,null,null,{"$f":"_xlfn.IFNA((VLOOKUP($B368,Lists!$C$2:$D$13,2,FALSE)),\"\")","v":""}]
[null,null,null,null,null,null,null,null,null,null,{"$f":"_xlfn.IFNA((VLOOKUP($B369,Lists!$C$2:$D$13,2,FALSE)),\"\")","v":""}]
[null,null,null,null,null,null,null,null,null,null,{"$f":"_xlfn.IFNA((VLOOKUP($B370,Lists!$C$2:$D$13,2,FALSE)),\"\")","v":""}]
[null,null,null,null,null,null,null,null,null,null,{"$f":"_xlfn.IFNA((VLOOKUP($B371,Lists!$C$2:$D$13,2,FALSE)),\"\")","v":""}]
[null,null,null,null,null,null,null,null,null,null,{"$f":"_xlfn.IFNA((VLOOKUP($B372,Lists!$C$2:$D$13,2,FALSE)),\"\")","v":""}]
[null,null,null,null,null,null,null,null,null,null,{"$f":"_xlfn.IFNA((VLOOKUP($B373,Lists!$C$2:$D$13,2,FALSE)),\"\")","v":""}]
[null,null,null,null,null,null,null,null,null,null,{"$f":"_xlfn.IFNA((VLOOKUP($B374,Lists!$C$2:$D$13,2,FALSE)),\"\")","v":""}]
[null,null,null,null,null,null,null,null,null,null,{"$f":"_xlfn.IFNA((VLOOKUP($B375,Lists!$C$2:$D$13,2,FALSE)),\"\")","v":""}]
[null,null,null,null,null,null,null,null,null,null,{"$f":"_xlfn.IFNA((VLOOKUP($B376,Lists!$C$2:$D$13,2,FALSE)),\"\")","v":""}]
[null,null,null,null,null,null,null,null,null,null,{"$f":"_xlfn.IFNA((VLOOKUP($B377,Lists!$C$2:$D$13,2,FALSE)),\"\")","v":""}]
[null,null,null,null,null,null,null,null,null,null,{"$f":"_xlfn.IFNA((VLOOKUP($B378,Lists!$C$2:$D$13,2,FALSE)),\"\")","v":""}]
[null,null,null,null,null,null,null,null,null,null,{"$f":"_xlfn.IFNA((VLOOKUP($B379,Lists!$C$2:$D$13,2,FALSE)),\"\")","v":""}]
[null,null,null,null,null,null,null,null,null,null,{"$f":"_xlfn.IFNA((VLOOKUP($B380,Lists!$C$2:$D$13,2,FALSE)),\"\")","v":""}]
[null,null,null,null,null,null,null,null,null,null,{"$f":"_xlfn.IFNA((VLOOKUP($B381,Lists!$C$2:$D$13,2,FALSE)),\"\")","v":""}]
[null,null,null,null,null,null,null,null,null,null,{"$f":"_xlfn.IFNA((VLOOKUP($B382,Lists!$C$2:$D$13,2,FALSE)),\"\")","v":""}]
[null,null,null,null,null,null,null,null,null,null,{"$f":"_xlfn.IFNA((VLOOKUP($B383,Lists!$C$2:$D$13,2,FALSE)),\"\")","v":""}]
[null,null,null,null,null,null,null,null,null,null,{"$f":"_xlfn.IFNA((VLOOKUP($B384,Lists!$C$2:$D$13,2,FALSE)),\"\")","v":""}]
[null,null,null,null,null,null,null,null,null,null,{"$f":"_xlfn.IFNA((VLOOKUP($B385,Lists!$C$2:$D$13,2,FALSE)),\"\")","v":""}]
[null,null,null,null,null,null,null,null,null,null,{"$f":"_xlfn.IFNA((VLOOKUP($B386,Lists!$C$2:$D$13,2,FALSE)),\"\")","v":""}]
[null,null,null,null,null,null,null,null,null,null,{"$f":"_xlfn.IFNA((VLOOKUP($B387,Lists!$C$2:$D$13,2,FALSE)),\"\")","v":""}]
[null,null,null,null,null,null,null,null,null,null,{"$f":"_xlfn.IFNA((VLOOKUP($B388,Lists!$C$2:$D$13,2,FALSE)),\"\")","v":""}]
[null,null,null,null,null,null,null,null,null,null,{"$f":"_xlfn.IFNA((VLOOKUP($B389,Lists!$C$2:$D$13,2,FALSE)),\"\")","v":""}]
[null,null,null,null,null,null,null,null,null,null,{"$f":"_xlfn.IFNA((VLOOKUP($B390,Lists!$C$2:$D$13,2,FALSE)),\"\")","v":""}]
[null,null,null,null,null,null,null,null,null,null,{"$f":"_xlfn.IFNA((VLOOKUP($B391,Lists!$C$2:$D$13,2,FALSE)),\"\")","v":""}]
[null,null,null,null,null,null,null,null,null,null,{"$f":"_xlfn.IFNA((VLOOKUP($B392,Lists!$C$2:$D$13,2,FALSE)),\"\")","v":""}]
[null,null,null,null,null,null,null,null,null,null,{"$f":"_xlfn.IFNA((VLOOKUP($B393,Lists!$C$2:$D$13,2,FALSE)),\"\")","v":""}]
[null,null,null,null,null,null,null,null,null,null,{"$f":"_xlfn.IFNA((VLOOKUP($B394,Lists!$C$2:$D$13,2,FALSE)),\"\")","v":""}]
[null,null,null,null,null,null,null,null,null,null,{"$f":"_xlfn.IFNA((VLOOKUP($B395,Lists!$C$2:$D$13,2,FALSE)),\"\")","v":""}]
[null,null,null,null,null,null,null,null,null,null,{"$f":"_xlfn.IFNA((VLOOKUP($B396,Lists!$C$2:$D$13,2,FALSE)),\"\")","v":""}]
[null,null,null,null,null,null,null,null,null,null,{"$f":"_xlfn.IFNA((VLOOKUP($B397,Lists!$C$2:$D$13,2,FALSE)),\"\")","v":""}]
[null,null,null,null,null,null,null,null,null,null,{"$f":"_xlfn.IFNA((VLOOKUP($B398,Lists!$C$2:$D$13,2,FALSE)),\"\")","v":""}]
[null,null,null,null,null,null,null,null,null,null,{"$f":"_xlfn.IFNA((VLOOKUP($B399,Lists!$C$2:$D$13,2,FALSE)),\"\")","v":""}]
[null,null,null,null,null,null,null,null,null,null,{"$f":"_xlfn.IFNA((VLOOKUP($B400,Lists!$C$2:$D$13,2,FALSE)),\"\")","v":""}]
[null,null,null,null,null,null,null,null,null,null,{"$f":"_xlfn.IFNA((VLOOKUP($B401,Lists!$C$2:$D$13,2,FALSE)),\"\")","v":""}]
[null,null,null,null,null,null,null,null,null,null,{"$f":"_xlfn.IFNA((VLOOKUP($B402,Lists!$C$2:$D$13,2,FALSE)),\"\")","v":""}]
[null,null,null,null,null,null,null,null,null,null,{"$f":"_xlfn.IFNA((VLOOKUP($B403,Lists!$C$2:$D$13,2,FALSE)),\"\")","v":""}]
[null,null,null,null,null,null,null,null,null,null,{"$f":"_xlfn.IFNA((VLOOKUP($B404,Lists!$C$2:$D$13,2,FALSE)),\"\")","v":""}]
[null,null,null,null,null,null,null,null,null,null,{"$f":"_xlfn.IFNA((VLOOKUP($B405,Lists!$C$2:$D$13,2,FALSE)),\"\")","v":""}]
[null,null,null,null,null,null,null,null,null,null,{"$f":"_xlfn.IFNA((VLOOKUP($B406,Lists!$C$2:$D$13,2,FALSE)),\"\")","v":""}]
[null,null,null,null,null,null,null,null,null,null,{"$f":"_xlfn.IFNA((VLOOKUP($B407,Lists!$C$2:$D$13,2,FALSE)),\"\")","v":""}]
[null,null,null,null,null,null,null,null,null,null,{"$f":"_xlfn.IFNA((VLOOKUP($B408,Lists!$C$2:$D$13,2,FALSE)),\"\")","v":""}]
[null,null,null,null,null,null,null,null,null,null,{"$f":"_xlfn.IFNA((VLOOKUP($B409,Lists!$C$2:$D$13,2,FALSE)),\"\")","v":""}]
[null,null,null,null,null,null,null,null,null,null,{"$f":"_xlfn.IFNA((VLOOKUP($B410,Lists!$C$2:$D$13,2,FALSE)),\"\")","v":""}]
[null,null,null,null,null,null,null,null,null,null,{"$f":"_xlfn.IFNA((VLOOKUP($B411,Lists!$C$2:$D$13,2,FALSE)),\"\")","v":""}]
[null,null,null,null,null,null,null,null,null,null,{"$f":"_xlfn.IFNA((VLOOKUP($B412,Lists!$C$2:$D$13,2,FALSE)),\"\")","v":""}]
[null,null,null,null,null,null,null,null,null,null,{"$f":"_xlfn.IFNA((VLOOKUP($B413,Lists!$C$2:$D$13,2,FALSE)),\"\")","v":""}]
[null,null,null,null,null,null,null,null,null,null,{"$f":"_xlfn.IFNA((VLOOKUP($B414,Lists!$C$2:$D$13,2,FALSE)),\"\")","v":""}]
[null,null,null,null,null,null,null,null,null,null,{"$f":"_xlfn.IFNA((VLOOKUP($B415,Lists!$C$2:$D$13,2,FALSE)),\"\")","v":""}]
[null,null,null,null,null,null,null,null,null,null,{"$f":"_xlfn.IFNA((VLOOKUP($B416,Lists!$C$2:$D$13,2,FALSE)),\"\")","v":""}]
[null,null,null,null,null,null,null,null,null,null,{"$f":"_xlfn.IFNA((VLOOKUP($B417,Lists!$C$2:$D$13,2,FALSE)),\"\")","v":""}]
[null,null,null,null,null,null,null,null,null,null,{"$f":"_xlfn.IFNA((VLOOKUP($B418,Lists!$C$2:$D$13,2,FALSE)),\"\")","v":""}]
[null,null,null,null,null,null,null,null,null,null,{"$f":"_xlfn.IFNA((VLOOKUP($B419,Lists!$C$2:$D$13,2,FALSE)),\"\")","v":""}]
[null,null,null,null,null,null,null,null,null,null,{"$f":"_xlfn.IFNA((VLOOKUP($B420,Lists!$C$2:$D$13,2,FALSE)),\"\")","v":""}]
[null,null,null,null,null,null,null,null,null,null,{"$f":"_xlfn.IFNA((VLOOKUP($B421,Lists!$C$2:$D$13,2,FALSE)),\"\")","v":""}]
[null,null,null,null,null,null,null,null,null,null,{"$f":"_xlfn.IFNA((VLOOKUP($B422,Lists!$C$2:$D$13,2,FALSE)),\"\")","v":""}]
[null,null,null,null,null,null,null,null,null,null,{"$f":"_xlfn.IFNA((VLOOKUP($B423,Lists!$C$2:$D$13,2,FALSE)),\"\")","v":""}]
[null,null,null,null,null,null,null,null,null,null,{"$f":"_xlfn.IFNA((VLOOKUP($B424,Lists!$C$2:$D$13,2,FALSE)),\"\")","v":""}]
[null,null,null,null,null,null,null,null,null,null,{"$f":"_xlfn.IFNA((VLOOKUP($B425,Lists!$C$2:$D$13,2,FALSE)),\"\")","v":""}]
[null,null,null,null,null,null,null,null,null,null,{"$f":"_xlfn.IFNA((VLOOKUP($B426,Lists!$C$2:$D$13,2,FALSE)),\"\")","v":""}]
[null,null,null,null,null,null,null,null,null,null,{"$f":"_xlfn.IFNA((VLOOKUP($B427,Lists!$C$2:$D$13,2,FALSE)),\"\")","v":""}]
[null,null,null,null,null,null,null,null,null,null,{"$f":"_xlfn.IFNA((VLOOKUP($B428,Lists!$C$2:$D$13,2,FALSE)),\"\")","v":""}]
[null,null,null,null,null,null,null,null,null,null,{"$f":"_xlfn.IFNA((VLOOKUP($B429,Lists!$C$2:$D$13,2,FALSE)),\"\")","v":""}]
[null,null,null,null,null,null,null,null,null,null,{"$f":"_xlfn.IFNA((VLOOKUP($B430,Lists!$C$2:$D$13,2,FALSE)),\"\")","v":""}]
[null,null,null,null,null,null,null,null,null,null,{"$f":"_xlfn.IFNA((VLOOKUP($B431,Lists!$C$2:$D$13,2,FALSE)),\"\")","v":""}]
[null,null,null,null,null,null,null,null,null,null,{"$f":"_xlfn.IFNA((VLOOKUP($B432,Lists!$C$2:$D$13,2,FALSE)),\"\")","v":""}]
[null,null,null,null,null,null,null,null,null,null,{"$f":"_xlfn.IFNA((VLOOKUP($B433,Lists!$C$2:$D$13,2,FALSE)),\"\")","v":""}]
[null,null,null,null,null,null,null,null,null,null,{"$f":"_xlfn.IFNA((VLOOKUP($B434,Lists!$C$2:$D$13,2,FALSE)),\"\")","v":""}]
[null,null,null,null,null,null,null,null,null,null,{"$f":"_xlfn.IFNA((VLOOKUP($B435,Lists!$C$2:$D$13,2,FALSE)),\"\")","v":""}]
[null,null,null,null,null,null,null,null,null,null,{"$f":"_xlfn.IFNA((VLOOKUP($B436,Lists!$C$2:$D$13,2,FALSE)),\"\")","v":""}]
[null,null,null,null,null,null,null,null,null,null,{"$f":"_xlfn.IFNA((VLOOKUP($B437,Lists!$C$2:$D$13,2,FALSE)),\"\")","v":""}]
[null,null,null,null,null,null,null,null,null,null,{"$f":"_xlfn.IFNA((VLOOKUP($B438,Lists!$C$2:$D$13,2,FALSE)),\"\")","v":""}]
[null,null,null,null,null,null,null,null,null,null,{"$f":"_xlfn.IFNA((VLOOKUP($B439,Lists!$C$2:$D$13,2,FALSE)),\"\")","v":""}]
[null,null,null,null,null,null,null,null,null,null,{"$f":"_xlfn.IFNA((VLOOKUP($B440,Lists!$C$2:$D$13,2,FALSE)),\"\")","v":""}]
[null,null,null,null,null,null,null,null,null,null,{"$f":"_xlfn.IFNA((VLOOKUP($B441,Lists!$C$2:$D$13,2,FALSE)),\"\")","v":""}]
[null,null,null,null,null,null,null,null,null,null,{"$f":"_xlfn.IFNA((VLOOKUP($B442,Lists!$C$2:$D$13,2,FALSE)),\"\")","v":""}]
[null,null,null,null,null,null,null,null,null,null,{"$f":"_xlfn.IFNA((VLOOKUP($B443,Lists!$C$2:$D$13,2,FALSE)),\"\")","v":""}]
[null,null,null,null,null,null,null,null,null,null,{"$f":"_xlfn.IFNA((VLOOKUP($B444,Lists!$C$2:$D$13,2,FALSE)),\"\")","v":""}]
[null,null,null,null,null,null,null,null,null,null,{"$f":"_xlfn.IFNA((VLOOKUP($B445,Lists!$C$2:$D$13,2,FALSE)),\"\")","v":""}]
[null,null,null,null,null,null,null,null,null,null,{"$f":"_xlfn.IFNA((VLOOKUP($B446,Lists!$C$2:$D$13,2,FALSE)),\"\")","v":""}]
[null,null,null,null,null,null,null,null,null,null,{"$f":"_xlfn.IFNA((VLOOKUP($B447,Lists!$C$2:$D$13,2,FALSE)),\"\")","v":""}]
[null,null,null,null,null,null,null,null,null,null,{"$f":"_xlfn.IFNA((VLOOKUP($B448,Lists!$C$2:$D$13,2,FALSE)),\"\")","v":""}]
[null,null,null,null,null,null,null,null,null,null,{"$f":"_xlfn.IFNA((VLOOKUP($B449,Lists!$C$2:$D$13,2,FALSE)),\"\")","v":""}]
[null,null,null,null,null,null,null,null,null,null,{"$f":"_xlfn.IFNA((VLOOKUP($B450,Lists!$C$2:$D$13,2,FALSE)),\"\")","v":""}]
[null,null,null,null,null,null,null,null,null,null,{"$f":"_xlfn.IFNA((VLOOKUP($B451,Lists!$C$2:$D$13,2,FALSE)),\"\")","v":""}]
[null,null,null,null,null,null,null,null,null,null,{"$f":"_xlfn.IFNA((VLOOKUP($B452,Lists!$C$2:$D$13,2,FALSE)),\"\")","v":""}]
[null,null,null,null,null,null,null,null,null,null,{"$f":"_xlfn.IFNA((VLOOKUP($B453,Lists!$C$2:$D$13,2,FALSE)),\"\")","v":""}]
[null,null,null,null,null,null,null,null,null,null,{"$f":"_xlfn.IFNA((VLOOKUP($B454,Lists!$C$2:$D$13,2,FALSE)),\"\")","v":""}]
[null,null,null,null,null,null,null,null,null,null,{"$f":"_xlfn.IFNA((VLOOKUP($B455,Lists!$C$2:$D$13,2,FALSE)),\"\")","v":""}]
[null,null,null,null,null,null,null,null,null,null,{"$f":"_xlfn.IFNA((VLOOKUP($B456,Lists!$C$2:$D$13,2,FALSE)),\"\")","v":""}]
[null,null,null,null,null,null,null,null,null,null,{"$f":"_xlfn.IFNA((VLOOKUP($B457,Lists!$C$2:$D$13,2,FALSE)),\"\")","v":""}]
[null,null,null,null,null,null,null,null,null,null,{"$f":"_xlfn.IFNA((VLOOKUP($B458,Lists!$C$2:$D$13,2,FALSE)),\"\")","v":""}]
[null,null,null,null,null,null,null,null,null,null,{"$f":"_xlfn.IFNA((VLOOKUP($B459,Lists!$C$2:$D$13,2,FALSE)),\"\")","v":""}]
[null,null,null,null,null,null,null,null,null,null,{"$f":"_xlfn.IFNA((VLOOKUP($B460,Lists!$C$2:$D$13,2,FALSE)),\"\")","v":""}]
[null,null,null,null,null,null,null,null,null,null,{"$f":"_xlfn.IFNA((VLOOKUP($B461,Lists!$C$2:$D$13,2,FALSE)),\"\")","v":""}]
[null,null,null,null,null,null,null,null,null,null,{"$f":"_xlfn.IFNA((VLOOKUP($B462,Lists!$C$2:$D$13,2,FALSE)),\"\")","v":""}]
[null,null,null,null,null,null,null,null,null,null,{"$f":"_xlfn.IFNA((VLOOKUP($B463,Lists!$C$2:$D$13,2,FALSE)),\"\")","v":""}]
[null,null,null,null,null,null,null,null,null,null,{"$f":"_xlfn.IFNA((VLOOKUP($B464,Lists!$C$2:$D$13,2,FALSE)),\"\")","v":""}]
[null,null,null,null,null,null,null,null,null,null,{"$f":"_xlfn.IFNA((VLOOKUP($B465,Lists!$C$2:$D$13,2,FALSE)),\"\")","v":""}]
[null,null,null,null,null,null,null,null,null,null,{"$f":"_xlfn.IFNA((VLOOKUP($B466,Lists!$C$2:$D$13,2,FALSE)),\"\")","v":""}]
[null,null,null,null,null,null,null,null,null,null,{"$f":"_xlfn.IFNA((VLOOKUP($B467,Lists!$C$2:$D$13,2,FALSE)),\"\")","v":""}]
[null,null,null,null,null,null,null,null,null,null,{"$f":"_xlfn.IFNA((VLOOKUP($B468,Lists!$C$2:$D$13,2,FALSE)),\"\")","v":""}]
[null,null,null,null,null,null,null,null,null,null,{"$f":"_xlfn.IFNA((VLOOKUP($B469,Lists!$C$2:$D$13,2,FALSE)),\"\")","v":""}]
[null,null,null,null,null,null,null,null,null,null,{"$f":"_xlfn.IFNA((VLOOKUP($B470,Lists!$C$2:$D$13,2,FALSE)),\"\")","v":""}]
[null,null,null,null,null,null,null,null,null,null,{"$f":"_xlfn.IFNA((VLOOKUP($B471,Lists!$C$2:$D$13,2,FALSE)),\"\")","v":""}]
[null,null,null,null,null,null,null,null,null,null,{"$f":"_xlfn.IFNA((VLOOKUP($B472,Lists!$C$2:$D$13,2,FALSE)),\"\")","v":""}]
[null,null,null,null,null,null,null,null,null,null,{"$f":"_xlfn.IFNA((VLOOKUP($B473,Lists!$C$2:$D$13,2,FALSE)),\"\")","v":""}]
[null,null,null,null,null,null,null,null,null,null,{"$f":"_xlfn.IFNA((VLOOKUP($B474,Lists!$C$2:$D$13,2,FALSE)),\"\")","v":""}]
[null,null,null,null,null,null,null,null,null,null,{"$f":"_xlfn.IFNA((VLOOKUP($B475,Lists!$C$2:$D$13,2,FALSE)),\"\")","v":""}]
[null,null,null,null,null,null,null,null,null,null,{"$f":"_xlfn.IFNA((VLOOKUP($B476,Lists!$C$2:$D$13,2,FALSE)),\"\")","v":""}]
[null,null,null,null,null,null,null,null,null,null,{"$f":"_xlfn.IFNA((VLOOKUP($B477,Lists!$C$2:$D$13,2,FALSE)),\"\")","v":""}]
[null,null,null,null,null,null,null,null,null,null,{"$f":"_xlfn.IFNA((VLOOKUP($B478,Lists!$C$2:$D$13,2,FALSE)),\"\")","v":""}]
[null,null,null,null,null,null,null,null,null,null,{"$f":"_xlfn.IFNA((VLOOKUP($B479,Lists!$C$2:$D$13,2,FALSE)),\"\")","v":""}]
[null,null,null,null,null,null,null,null,null,null,{"$f":"_xlfn.IFNA((VLOOKUP($B480,Lists!$C$2:$D$13,2,FALSE)),\"\")","v":""}]
[null,null,null,null,null,null,null,null,null,null,{"$f":"_xlfn.IFNA((VLOOKUP($B481,Lists!$C$2:$D$13,2,FALSE)),\"\")","v":""}]
[null,null,null,null,null,null,null,null,null,null,{"$f":"_xlfn.IFNA((VLOOKUP($B482,Lists!$C$2:$D$13,2,FALSE)),\"\")","v":""}]
[null,null,null,null,null,null,null,null,null,null,{"$f":"_xlfn.IFNA((VLOOKUP($B483,Lists!$C$2:$D$13,2,FALSE)),\"\")","v":""}]
[null,null,null,null,null,null,null,null,null,null,{"$f":"_xlfn.IFNA((VLOOKUP($B484,Lists!$C$2:$D$13,2,FALSE)),\"\")","v":""}]
[null,null,null,null,null,null,null,null,null,null,{"$f":"_xlfn.IFNA((VLOOKUP($B485,Lists!$C$2:$D$13,2,FALSE)),\"\")","v":""}]
[null,null,null,null,null,null,null,null,null,null,{"$f":"_xlfn.IFNA((VLOOKUP($B486,Lists!$C$2:$D$13,2,FALSE)),\"\")","v":""}]
[null,null,null,null,null,null,null,null,null,null,{"$f":"_xlfn.IFNA((VLOOKUP($B487,Lists!$C$2:$D$13,2,FALSE)),\"\")","v":""}]
[null,null,null,null,null,null,null,null,null,null,{"$f":"_xlfn.IFNA((VLOOKUP($B488,Lists!$C$2:$D$13,2,FALSE)),\"\")","v":""}]
[null,null,null,null,null,null,null,null,null,null,{"$f":"_xlfn.IFNA((VLOOKUP($B489,Lists!$C$2:$D$13,2,FALSE)),\"\")","v":""}]
[null,null,null,null,null,null,null,null,null,null,{"$f":"_xlfn.IFNA((VLOOKUP($B490,Lists!$C$2:$D$13,2,FALSE)),\"\")","v":""}]
[null,null,null,null,null,null,null,null,null,null,{"$f":"_xlfn.IFNA((VLOOKUP($B491,Lists!$C$2:$D$13,2,FALSE)),\"\")","v":""}]
[null,null,null,null,null,null,null,null,null,null,{"$f":"_xlfn.IFNA((VLOOKUP($B492,Lists!$C$2:$D$13,2,FALSE)),\"\")","v":""}]
[null,null,null,null,null,null,null,null,null,null,{"$f":"_xlfn.IFNA((VLOOKUP($B493,Lists!$C$2:$D$13,2,FALSE)),\"\")","v":""}]
[null,null,null,null,null,null,null,null,null,null,{"$f":"_xlfn.IFNA((VLOOKUP($B494,Lists!$C$2:$D$13,2,FALSE)),\"\")","v":""}]
[null,null,null,null,null,null,null,null,null,null,{"$f":"_xlfn.IFNA((VLOOKUP($B495,Lists!$C$2:$D$13,2,FALSE)),\"\")","v":""}]
[null,null,null,null,null,null,null,null,null,null,{"$f":"_xlfn.IFNA((VLOOKUP($B496,Lists!$C$2:$D$13,2,FALSE)),\"\")","v":""}]
[null,null,null,null,null,null,null,null,null,null,{"$f":"_xlfn.IFNA((VLOOKUP($B497,Lists!$C$2:$D$13,2,FALSE)),\"\")","v":""}]
[null,null,null,null,null,null,null,null,null,null,{"$f":"_xlfn.IFNA((VLOOKUP($B498,Lists!$C$2:$D$13,2,FALSE)),\"\")","v":""}]
[null,null,null,null,null,null,null,null,null,null,{"$f":"_xlfn.IFNA((VLOOKUP($B499,Lists!$C$2:$D$13,2,FALSE)),\"\")","v":""}]
[null,null,null,null,null,null,null,null,null,null,{"$f":"_xlfn.IFNA((VLOOKUP($B500,Lists!$C$2:$D$13,2,FALSE)),\"\")","v":""}]
[null,null,null,null,null,null,null,null,null,null,{"$f":"_xlfn.IFNA((VLOOKUP($B501,Lists!$C$2:$D$13,2,FALSE)),\"\")","v":""}]
[null,null,null,null,null,null,null,null,null,null,{"$f":"_xlfn.IFNA((VLOOKUP($B502,Lists!$C$2:$D$13,2,FALSE)),\"\")","v":""}]
[null,null,null,null,null,null,null,null,null,null,{"$f":"_xlfn.IFNA((VLOOKUP($B503,Lists!$C$2:$D$13,2,FALSE)),\"\")","v":""}]
[null,null,null,null,null,null,null,null,null,null,{"$f":"_xlfn.IFNA((VLOOKUP($B504,Lists!$C$2:$D$13,2,FALSE)),\"\")","v":""}]
[null,null,null,null,null,null,null,null,null,null,{"$f":"_xlfn.IFNA((VLOOKUP($B505,Lists!$C$2:$D$13,2,FALSE)),\"\")","v":""}]
[null,null,null,null,null,null,null,null,null,null,{"$f":"_xlfn.IFNA((VLOOKUP($B506,Lists!$C$2:$D$13,2,FALSE)),\"\")","v":""}]
[null,null,null,null,null,null,null,null,null,null,{"$f":"_xlfn.IFNA((VLOOKUP($B507,Lists!$C$2:$D$13,2,FALSE)),\"\")","v":""}]
[null,null,null,null,null,null,null,null,null,null,{"$f":"_xlfn.IFNA((VLOOKUP($B508,Lists!$C$2:$D$13,2,FALSE)),\"\")","v":""}]
[null,null,null,null,null,null,null,null,null,null,{"$f":"_xlfn.IFNA((VLOOKUP($B509,Lists!$C$2:$D$13,2,FALSE)),\"\")","v":""}]
[null,null,null,null,null,null,null,null,null,null,{"$f":"_xlfn.IFNA((VLOOKUP($B510,Lists!$C$2:$D$13,2,FALSE)),\"\")","v":""}]
[null,null,null,null,null,null,null,null,null,null,{"$f":"_xlfn.IFNA((VLOOKUP($B511,Lists!$C$2:$D$13,2,FALSE)),\"\")","v":""}]
[null,null,null,null,null,null,null,null,null,null,{"$f":"_xlfn.IFNA((VLOOKUP($B512,Lists!$C$2:$D$13,2,FALSE)),\"\")","v":""}]
[null,null,null,null,null,null,null,null,null,null,{"$f":"_xlfn.IFNA((VLOOKUP($B513,Lists!$C$2:$D$13,2,FALSE)),\"\")","v":""}]
[null,null,null,null,null,null,null,null,null,null,{"$f":"_xlfn.IFNA((VLOOKUP($B514,Lists!$C$2:$D$13,2,FALSE)),\"\")","v":""}]
[null,null,null,null,null,null,null,null,null,null,{"$f":"_xlfn.IFNA((VLOOKUP($B515,Lists!$C$2:$D$13,2,FALSE)),\"\")","v":""}]
[null,null,null,null,null,null,null,null,null,null,{"$f":"_xlfn.IFNA((VLOOKUP($B516,Lists!$C$2:$D$13,2,FALSE)),\"\")","v":""}]
[null,null,null,null,null,null,null,null,null,null,{"$f":"_xlfn.IFNA((VLOOKUP($B517,Lists!$C$2:$D$13,2,FALSE)),\"\")","v":""}]
[null,null,null,null,null,null,null,null,null,null,{"$f":"_xlfn.IFNA((VLOOKUP($B518,Lists!$C$2:$D$13,2,FALSE)),\"\")","v":""}]
[null,null,null,null,null,null,null,null,null,null,{"$f":"_xlfn.IFNA((VLOOKUP($B519,Lists!$C$2:$D$13,2,FALSE)),\"\")","v":""}]
[null,null,null,null,null,null,null,null,null,null,{"$f":"_xlfn.IFNA((VLOOKUP($B520,Lists!$C$2:$D$13,2,FALSE)),\"\")","v":""}]
[null,null,null,null,null,null,null,null,null,null,{"$f":"_xlfn.IFNA((VLOOKUP($B521,Lists!$C$2:$D$13,2,FALSE)),\"\")","v":""}]
[null,null,null,null,null,null,null,null,null,null,{"$f":"_xlfn.IFNA((VLOOKUP($B522,Lists!$C$2:$D$13,2,FALSE)),\"\")","v":""}]
[null,null,null,null,null,null,null,null,null,null,{"$f":"_xlfn.IFNA((VLOOKUP($B523,Lists!$C$2:$D$13,2,FALSE)),\"\")","v":""}]
[null,null,null,null,null,null,null,null,null,null,{"$f":"_xlfn.IFNA((VLOOKUP($B524,Lists!$C$2:$D$13,2,FALSE)),\"\")","v":""}]
[null,null,null,null,null,null,null,null,null,null,{"$f":"_xlfn.IFNA((VLOOKUP($B525,Lists!$C$2:$D$13,2,FALSE)),\"\")","v":""}]
[null,null,null,null,null,null,null,null,null,null,{"$f":"_xlfn.IFNA((VLOOKUP($B526,Lists!$C$2:$D$13,2,FALSE)),\"\")","v":""}]
[null,null,null,null,null,null,null,null,null,null,{"$f":"_xlfn.IFNA((VLOOKUP($B527,Lists!$C$2:$D$13,2,FALSE)),\"\")","v":""}]
[null,null,null,null,null,null,null,null,null,null,{"$f":"_xlfn.IFNA((VLOOKUP($B528,Lists!$C$2:$D$13,2,FALSE)),\"\")","v":""}]
[null,null,null,null,null,null,null,null,null,null,{"$f":"_xlfn.IFNA((VLOOKUP($B529,Lists!$C$2:$D$13,2,FALSE)),\"\")","v":""}]
[null,null,null,null,null,null,null,null,null,null,{"$f":"_xlfn.IFNA((VLOOKUP($B530,Lists!$C$2:$D$13,2,FALSE)),\"\")","v":""}]
[null,null,null,null,null,null,null,null,null,null,{"$f":"_xlfn.IFNA((VLOOKUP($B531,Lists!$C$2:$D$13,2,FALSE)),\"\")","v":""}]
[null,null,null,null,null,null,null,null,null,null,{"$f":"_xlfn.IFNA((VLOOKUP($B532,Lists!$C$2:$D$13,2,FALSE)),\"\")","v":""}]
[null,null,null,null,null,null,null,null,null,null,{"$f":"_xlfn.IFNA((VLOOKUP($B533,Lists!$C$2:$D$13,2,FALSE)),\"\")","v":""}]
[null,null,null,null,null,null,null,null,null,null,{"$f":"_xlfn.IFNA((VLOOKUP($B534,Lists!$C$2:$D$13,2,FALSE)),\"\")","v":""}]
[null,null,null,null,null,null,null,null,null,null,{"$f":"_xlfn.IFNA((VLOOKUP($B535,Lists!$C$2:$D$13,2,FALSE)),\"\")","v":""}]
[null,null,null,null,null,null,null,null,null,null,{"$f":"_xlfn.IFNA((VLOOKUP($B536,Lists!$C$2:$D$13,2,FALSE)),\"\")","v":""}]
[null,null,null,null,null,null,null,null,null,null,{"$f":"_xlfn.IFNA((VLOOKUP($B537,Lists!$C$2:$D$13,2,FALSE)),\"\")","v":""}]
[null,null,null,null,null,null,null,null,null,null,{"$f":"_xlfn.IFNA((VLOOKUP($B538,Lists!$C$2:$D$13,2,FALSE)),\"\")","v":""}]
[null,null,null,null,null,null,null,null,null,null,{"$f":"_xlfn.IFNA((VLOOKUP($B539,Lists!$C$2:$D$13,2,FALSE)),\"\")","v":""}]
[null,null,null,null,null,null,null,null,null,null,{"$f":"_xlfn.IFNA((VLOOKUP($B540,Lists!$C$2:$D$13,2,FALSE)),\"\")","v":""}]
[null,null,null,null,null,null,null,null,null,null,{"$f":"_xlfn.IFNA((VLOOKUP($B541,Lists!$C$2:$D$13,2,FALSE)),\"\")","v":""}]
[null,null,null,null,null,null,null,null,null,null,{"$f":"_xlfn.IFNA((VLOOKUP($B542,Lists!$C$2:$D$13,2,FALSE)),\"\")","v":""}]
[null,null,null,null,null,null,null,null,null,null,{"$f":"_xlfn.IFNA((VLOOKUP($B543,Lists!$C$2:$D$13,2,FALSE)),\"\")","v":""}]
[null,null,null,null,null,null,null,null,null,null,{"$f":"_xlfn.IFNA((VLOOKUP($B544,Lists!$C$2:$D$13,2,FALSE)),\"\")","v":""}]
[null,null,null,null,null,null,null,null,null,null,{"$f":"_xlfn.IFNA((VLOOKUP($B545,Lists!$C$2:$D$13,2,FALSE)),\"\")","v":""}]
[null,null,null,null,null,null,null,null,null,null,{"$f":"_xlfn.IFNA((VLOOKUP($B546,Lists!$C$2:$D$13,2,FALSE)),\"\")","v":""}]
[null,null,null,null,null,null,null,null,null,null,{"$f":"_xlfn.IFNA((VLOOKUP($B547,Lists!$C$2:$D$13,2,FALSE)),\"\")","v":""}]
[null,null,null,null,null,null,null,null,null,null,{"$f":"_xlfn.IFNA((VLOOKUP($B548,Lists!$C$2:$D$13,2,FALSE)),\"\")","v":""}]
[null,null,null,null,null,null,null,null,null,null,{"$f":"_xlfn.IFNA((VLOOKUP($B549,Lists!$C$2:$D$13,2,FALSE)),\"\")","v":""}]
[null,null,null,null,null,null,null,null,null,null,{"$f":"_xlfn.IFNA((VLOOKUP($B550,Lists!$C$2:$D$13,2,FALSE)),\"\")","v":""}]
[null,null,null,null,null,null,null,null,null,null,{"$f":"_xlfn.IFNA((VLOOKUP($B551,Lists!$C$2:$D$13,2,FALSE)),\"\")","v":""}]
[null,null,null,null,null,null,null,null,null,null,{"$f":"_xlfn.IFNA((VLOOKUP($B552,Lists!$C$2:$D$13,2,FALSE)),\"\")","v":""}]
[null,null,null,null,null,null,null,null,null,null,{"$f":"_xlfn.IFNA((VLOOKUP($B553,Lists!$C$2:$D$13,2,FALSE)),\"\")","v":""}]
[null,null,null,null,null,null,null,null,null,null,{"$f":"_xlfn.IFNA((VLOOKUP($B554,Lists!$C$2:$D$13,2,FALSE)),\"\")","v":""}]
[null,null,null,null,null,null,null,null,null,null,{"$f":"_xlfn.IFNA((VLOOKUP($B555,Lists!$C$2:$D$13,2,FALSE)),\"\")","v":""}]
[null,null,null,null,null,null,null,null,null,null,{"$f":"_xlfn.IFNA((VLOOKUP($B556,Lists!$C$2:$D$13,2,FALSE)),\"\")","v":""}]
[null,null,null,null,null,null,null,null,null,null,{"$f":"_xlfn.IFNA((VLOOKUP($B557,Lists!$C$2:$D$13,2,FALSE)),\"\")","v":""}]
[null,null,null,null,null,null,null,null,null,null,{"$f":"_xlfn.IFNA((VLOOKUP($B558,Lists!$C$2:$D$13,2,FALSE)),\"\")","v":""}]
[null,null,null,null,null,null,null,null,null,null,{"$f":"_xlfn.IFNA((VLOOKUP($B559,Lists!$C$2:$D$13,2,FALSE)),\"\")","v":""}]
[null,null,null,null,null,null,null,null,null,null,{"$f":"_xlfn.IFNA((VLOOKUP($B560,Lists!$C$2:$D$13,2,FALSE)),\"\")","v":""}]
[null,null,null,null,null,null,null,null,null,null,{"$f":"_xlfn.IFNA((VLOOKUP($B561,Lists!$C$2:$D$13,2,FALSE)),\"\")","v":""}]
[null,null,null,null,null,null,null,null,null,null,{"$f":"_xlfn.IFNA((VLOOKUP($B562,Lists!$C$2:$D$13,2,FALSE)),\"\")","v":""}]
[null,null,null,null,null,null,null,null,null,null,{"$f":"_xlfn.IFNA((VLOOKUP($B563,Lists!$C$2:$D$13,2,FALSE)),\"\")","v":""}]
[null,null,null,null,null,null,null,null,null,null,{"$f":"_xlfn.IFNA((VLOOKUP($B564,Lists!$C$2:$D$13,2,FALSE)),\"\")","v":""}]
[null,null,null,null,null,null,null,null,null,null,{"$f":"_xlfn.IFNA((VLOOKUP($B565,Lists!$C$2:$D$13,2,FALSE)),\"\")","v":""}]
[null,null,null,null,null,null,null,null,null,null,{"$f":"_xlfn.IFNA((VLOOKUP($B566,Lists!$C$2:$D$13,2,FALSE)),\"\")","v":""}]
[null,null,null,null,null,null,null,null,null,null,{"$f":"_xlfn.IFNA((VLOOKUP($B567,Lists!$C$2:$D$13,2,FALSE)),\"\")","v":""}]
[null,null,null,null,null,null,null,null,null,null,{"$f":"_xlfn.IFNA((VLOOKUP($B568,Lists!$C$2:$D$13,2,FALSE)),\"\")","v":""}]
[null,null,null,null,null,null,null,null,null,null,{"$f":"_xlfn.IFNA((VLOOKUP($B569,Lists!$C$2:$D$13,2,FALSE)),\"\")","v":""}]
[null,null,null,null,null,null,null,null,null,null,{"$f":"_xlfn.IFNA((VLOOKUP($B570,Lists!$C$2:$D$13,2,FALSE)),\"\")","v":""}]
[null,null,null,null,null,null,null,null,null,null,{"$f":"_xlfn.IFNA((VLOOKUP($B571,Lists!$C$2:$D$13,2,FALSE)),\"\")","v":""}]
[null,null,null,null,null,null,null,null,null,null,{"$f":"_xlfn.IFNA((VLOOKUP($B572,Lists!$C$2:$D$13,2,FALSE)),\"\")","v":""}]
[null,null,null,null,null,null,null,null,null,null,{"$f":"_xlfn.IFNA((VLOOKUP($B573,Lists!$C$2:$D$13,2,FALSE)),\"\")","v":""}]
[null,null,null,null,null,null,null,null,null,null,{"$f":"_xlfn.IFNA((VLOOKUP($B574,Lists!$C$2:$D$13,2,FALSE)),\"\")","v":""}]
[null,null,null,null,null,null,null,null,null,null,{"$f":"_xlfn.IFNA((VLOOKUP($B575,Lists!$C$2:$D$13,2,FALSE)),\"\")","v":""}]
[null,null,null,null,null,null,null,null,null,null,{"$f":"_xlfn.IFNA((VLOOKUP($B576,Lists!$C$2:$D$13,2,FALSE)),\"\")","v":""}]
[null,null,null,null,null,null,null,null,null,null,{"$f":"_xlfn.IFNA((VLOOKUP($B577,Lists!$C$2:$D$13,2,FALSE)),\"\")","v":""}]
[null,null,null,null,null,null,null,null,null,null,{"$f":"_xlfn.IFNA((VLOOKUP($B578,Lists!$C$2:$D$13,2,FALSE)),\"\")","v":""}]
[null,null,null,null,null,null,null,null,null,null,{"$f":"_xlfn.IFNA((VLOOKUP($B579,Lists!$C$2:$D$13,2,FALSE)),\"\")","v":""}]
[null,null,null,null,null,null,null,null,null,null,{"$f":"_xlfn.IFNA((VLOOKUP($B580,Lists!$C$2:$D$13,2,FALSE)),\"\")","v":""}]
[null,null,null,null,null,null,null,null,null,null,{"$f":"_xlfn.IFNA((VLOOKUP($B581,Lists!$C$2:$D$13,2,FALSE)),\"\")","v":""}]
[null,null,null,null,null,null,null,null,null,null,{"$f":"_xlfn.IFNA((VLOOKUP($B582,Lists!$C$2:$D$13,2,FALSE)),\"\")","v":""}]
[null,null,null,null,null,null,null,null,null,null,{"$f":"_xlfn.IFNA((VLOOKUP($B583,Lists!$C$2:$D$13,2,FALSE)),\"\")","v":""}]
[null,null,null,null,null,null,null,null,null,null,{"$f":"_xlfn.IFNA((VLOOKUP($B584,Lists!$C$2:$D$13,2,FALSE)),\"\")","v":""}]
[null,null,null,null,null,null,null,null,null,null,{"$f":"_xlfn.IFNA((VLOOKUP($B585,Lists!$C$2:$D$13,2,FALSE)),\"\")","v":""}]
[null,null,null,null,null,null,null,null,null,null,{"$f":"_xlfn.IFNA((VLOOKUP($B586,Lists!$C$2:$D$13,2,FALSE)),\"\")","v":""}]
[null,null,null,null,null,null,null,null,null,null,{"$f":"_xlfn.IFNA((VLOOKUP($B587,Lists!$C$2:$D$13,2,FALSE)),\"\")","v":""}]
[null,null,null,null,null,null,null,null,null,null,{"$f":"_xlfn.IFNA((VLOOKUP($B588,Lists!$C$2:$D$13,2,FALSE)),\"\")","v":""}]
[null,null,null,null,null,null,null,null,null,null,{"$f":"_xlfn.IFNA((VLOOKUP($B589,Lists!$C$2:$D$13,2,FALSE)),\"\")","v":""}]
[null,null,null,null,null,null,null,null,null,null,{"$f":"_xlfn.IFNA((VLOOKUP($B590,Lists!$C$2:$D$13,2,FALSE)),\"\")","v":""}]
[null,null,null,null,null,null,null,null,null,null,{"$f":"_xlfn.IFNA((VLOOKUP($B591,Lists!$C$2:$D$13,2,FALSE)),\"\")","v":""}]
[null,null,null,null,null,null,null,null,null,null,{"$f":"_xlfn.IFNA((VLOOKUP($B592,Lists!$C$2:$D$13,2,FALSE)),\"\")","v":""}]
[null,null,null,null,null,null,null,null,null,null,{"$f":"_xlfn.IFNA((VLOOKUP($B593,Lists!$C$2:$D$13,2,FALSE)),\"\")","v":""}]
[null,null,null,null,null,null,null,null,null,null,{"$f":"_xlfn.IFNA((VLOOKUP($B594,Lists!$C$2:$D$13,2,FALSE)),\"\")","v":""}]
[null,null,null,null,null,null,null,null,null,null,{"$f":"_xlfn.IFNA((VLOOKUP($B595,Lists!$C$2:$D$13,2,FALSE)),\"\")","v":""}]
[null,null,null,null,null,null,null,null,null,null,{"$f":"_xlfn.IFNA((VLOOKUP($B596,Lists!$C$2:$D$13,2,FALSE)),\"\")","v":""}]
[null,null,null,null,null,null,null,null,null,null,{"$f":"_xlfn.IFNA((VLOOKUP($B597,Lists!$C$2:$D$13,2,FALSE)),\"\")","v":""}]
[null,null,null,null,null,null,null,null,null,null,{"$f":"_xlfn.IFNA((VLOOKUP($B598,Lists!$C$2:$D$13,2,FALSE)),\"\")","v":""}]
[null,null,null,null,null,null,null,null,null,null,{"$f":"_xlfn.IFNA((VLOOKUP($B599,Lists!$C$2:$D$13,2,FALSE)),\"\")","v":""}]
[null,null,null,null,null,null,null,null,null,null,{"$f":"_xlfn.IFNA((VLOOKUP($B600,Lists!$C$2:$D$13,2,FALSE)),\"\")","v":""}]
[null,null,null,null,null,null,null,null,null,null,{"$f":"_xlfn.IFNA((VLOOKUP($B601,Lists!$C$2:$D$13,2,FALSE)),\"\")","v":""}]
[null,null,null,null,null,null,null,null,null,null,{"$f":"_xlfn.IFNA((VLOOKUP($B602,Lists!$C$2:$D$13,2,FALSE)),\"\")","v":""}]
[null,null,null,null,null,null,null,null,null,null,{"$f":"_xlfn.IFNA((VLOOKUP($B603,Lists!$C$2:$D$13,2,FALSE)),\"\")","v":""}]
[null,null,null,null,null,null,null,null,null,null,{"$f":"_xlfn.IFNA((VLOOKUP($B604,Lists!$C$2:$D$13,2,FALSE)),\"\")","v":""}]
[null,null,null,null,null,null,null,null,null,null,{"$f":"_xlfn.IFNA((VLOOKUP($B605,Lists!$C$2:$D$13,2,FALSE)),\"\")","v":""}]
[null,null,null,null,null,null,null,null,null,null,{"$f":"_xlfn.IFNA((VLOOKUP($B606,Lists!$C$2:$D$13,2,FALSE)),\"\")","v":""}]
[null,null,null,null,null,null,null,null,null,null,{"$f":"_xlfn.IFNA((VLOOKUP($B607,Lists!$C$2:$D$13,2,FALSE)),\"\")","v":""}]
[null,null,null,null,null,null,null,null,null,null,{"$f":"_xlfn.IFNA((VLOOKUP($B608,Lists!$C$2:$D$13,2,FALSE)),\"\")","v":""}]
[null,null,null,null,null,null,null,null,null,null,{"$f":"_xlfn.IFNA((VLOOKUP($B609,Lists!$C$2:$D$13,2,FALSE)),\"\")","v":""}]
[null,null,null,null,null,null,null,null,null,null,{"$f":"_xlfn.IFNA((VLOOKUP($B610,Lists!$C$2:$D$13,2,FALSE)),\"\")","v":""}]
[null,null,null,null,null,null,null,null,null,null,{"$f":"_xlfn.IFNA((VLOOKUP($B611,Lists!$C$2:$D$13,2,FALSE)),\"\")","v":""}]
[null,null,null,null,null,null,null,null,null,null,{"$f":"_xlfn.IFNA((VLOOKUP($B612,Lists!$C$2:$D$13,2,FALSE)),\"\")","v":""}]
[null,null,null,null,null,null,null,null,null,null,{"$f":"_xlfn.IFNA((VLOOKUP($B613,Lists!$C$2:$D$13,2,FALSE)),\"\")","v":""}]
[null,null,null,null,null,null,null,null,null,null,{"$f":"_xlfn.IFNA((VLOOKUP($B614,Lists!$C$2:$D$13,2,FALSE)),\"\")","v":""}]
[null,null,null,null,null,null,null,null,null,null,{"$f":"_xlfn.IFNA((VLOOKUP($B615,Lists!$C$2:$D$13,2,FALSE)),\"\")","v":""}]
[null,null,null,null,null,null,null,null,null,null,{"$f":"_xlfn.IFNA((VLOOKUP($B616,Lists!$C$2:$D$13,2,FALSE)),\"\")","v":""}]
[null,null,null,null,null,null,null,null,null,null,{"$f":"_xlfn.IFNA((VLOOKUP($B617,Lists!$C$2:$D$13,2,FALSE)),\"\")","v":""}]
[null,null,null,null,null,null,null,null,null,null,{"$f":"_xlfn.IFNA((VLOOKUP($B618,Lists!$C$2:$D$13,2,FALSE)),\"\")","v":""}]
[null,null,null,null,null,null,null,null,null,null,{"$f":"_xlfn.IFNA((VLOOKUP($B619,Lists!$C$2:$D$13,2,FALSE)),\"\")","v":""}]
[null,null,null,null,null,null,null,null,null,null,{"$f":"_xlfn.IFNA((VLOOKUP($B620,Lists!$C$2:$D$13,2,FALSE)),\"\")","v":""}]
[null,null,null,null,null,null,null,null,null,null,{"$f":"_xlfn.IFNA((VLOOKUP($B621,Lists!$C$2:$D$13,2,FALSE)),\"\")","v":""}]
[null,null,null,null,null,null,null,null,null,null,{"$f":"_xlfn.IFNA((VLOOKUP($B622,Lists!$C$2:$D$13,2,FALSE)),\"\")","v":""}]
[null,null,null,null,null,null,null,null,null,null,{"$f":"_xlfn.IFNA((VLOOKUP($B623,Lists!$C$2:$D$13,2,FALSE)),\"\")","v":""}]
[null,null,null,null,null,null,null,null,null,null,{"$f":"_xlfn.IFNA((VLOOKUP($B624,Lists!$C$2:$D$13,2,FALSE)),\"\")","v":""}]
[null,null,null,null,null,null,null,null,null,null,{"$f":"_xlfn.IFNA((VLOOKUP($B625,Lists!$C$2:$D$13,2,FALSE)),\"\")","v":""}]
[null,null,null,null,null,null,null,null,null,null,{"$f":"_xlfn.IFNA((VLOOKUP($B626,Lists!$C$2:$D$13,2,FALSE)),\"\")","v":""}]
[null,null,null,null,null,null,null,null,null,null,{"$f":"_xlfn.IFNA((VLOOKUP($B627,Lists!$C$2:$D$13,2,FALSE)),\"\")","v":""}]
[null,null,null,null,null,null,null,null,null,null,{"$f":"_xlfn.IFNA((VLOOKUP($B628,Lists!$C$2:$D$13,2,FALSE)),\"\")","v":""}]
[null,null,null,null,null,null,null,null,null,null,{"$f":"_xlfn.IFNA((VLOOKUP($B629,Lists!$C$2:$D$13,2,FALSE)),\"\")","v":""}]
[null,null,null,null,null,null,null,null,null,null,{"$f":"_xlfn.IFNA((VLOOKUP($B630,Lists!$C$2:$D$13,2,FALSE)),\"\")","v":""}]
[null,null,null,null,null,null,null,null,null,null,{"$f":"_xlfn.IFNA((VLOOKUP($B631,Lists!$C$2:$D$13,2,FALSE)),\"\")","v":""}]
[null,null,null,null,null,null,null,null,null,null,{"$f":"_xlfn.IFNA((VLOOKUP($B632,Lists!$C$2:$D$13,2,FALSE)),\"\")","v":""}]
[null,null,null,null,null,null,null,null,null,null,{"$f":"_xlfn.IFNA((VLOOKUP($B633,Lists!$C$2:$D$13,2,FALSE)),\"\")","v":""}]
[null,null,null,null,null,null,null,null,null,null,{"$f":"_xlfn.IFNA((VLOOKUP($B634,Lists!$C$2:$D$13,2,FALSE)),\"\")","v":""}]
[null,null,null,null,null,null,null,null,null,null,{"$f":"_xlfn.IFNA((VLOOKUP($B635,Lists!$C$2:$D$13,2,FALSE)),\"\")","v":""}]
[null,null,null,null,null,null,null,null,null,null,{"$f":"_xlfn.IFNA((VLOOKUP($B636,Lists!$C$2:$D$13,2,FALSE)),\"\")","v":""}]
[null,null,null,null,null,null,null,null,null,null,{"$f":"_xlfn.IFNA((VLOOKUP($B637,Lists!$C$2:$D$13,2,FALSE)),\"\")","v":""}]
[null,null,null,null,null,null,null,null,null,null,{"$f":"_xlfn.IFNA((VLOOKUP($B638,Lists!$C$2:$D$13,2,FALSE)),\"\")","v":""}]
[null,null,null,null,null,null,null,null,null,null,{"$f":"_xlfn.IFNA((VLOOKUP($B639,Lists!$C$2:$D$13,2,FALSE)),\"\")","v":""}]
[null,null,null,null,null,null,null,null,null,null,{"$f":"_xlfn.IFNA((VLOOKUP($B640,Lists!$C$2:$D$13,2,FALSE)),\"\")","v":""}]
[null,null,null,null,null,null,null,null,null,null,{"$f":"_xlfn.IFNA((VLOOKUP($B641,Lists!$C$2:$D$13,2,FALSE)),\"\")","v":""}]
[null,null,null,null,null,null,null,null,null,null,{"$f":"_xlfn.IFNA((VLOOKUP($B642,Lists!$C$2:$D$13,2,FALSE)),\"\")","v":""}]
[null,null,null,null,null,null,null,null,null,null,{"$f":"_xlfn.IFNA((VLOOKUP($B643,Lists!$C$2:$D$13,2,FALSE)),\"\")","v":""}]
[null,null,null,null,null,null,null,null,null,null,{"$f":"_xlfn.IFNA((VLOOKUP($B644,Lists!$C$2:$D$13,2,FALSE)),\"\")","v":""}]
[null,null,null,null,null,null,null,null,null,null,{"$f":"_xlfn.IFNA((VLOOKUP($B645,Lists!$C$2:$D$13,2,FALSE)),\"\")","v":""}]
[null,null,null,null,null,null,null,null,null,null,{"$f":"_xlfn.IFNA((VLOOKUP($B646,Lists!$C$2:$D$13,2,FALSE)),\"\")","v":""}]
[null,null,null,null,null,null,null,null,null,null,{"$f":"_xlfn.IFNA((VLOOKUP($B647,Lists!$C$2:$D$13,2,FALSE)),\"\")","v":""}]
[null,null,null,null,null,null,null,null,null,null,{"$f":"_xlfn.IFNA((VLOOKUP($B648,Lists!$C$2:$D$13,2,FALSE)),\"\")","v":""}]
[null,null,null,null,null,null,null,null,null,null,{"$f":"_xlfn.IFNA((VLOOKUP($B649,Lists!$C$2:$D$13,2,FALSE)),\"\")","v":""}]
[null,null,null,null,null,null,null,null,null,null,{"$f":"_xlfn.IFNA((VLOOKUP($B650,Lists!$C$2:$D$13,2,FALSE)),\"\")","v":""}]
[null,null,null,null,null,null,null,null,null,null,{"$f":"_xlfn.IFNA((VLOOKUP($B651,Lists!$C$2:$D$13,2,FALSE)),\"\")","v":""}]
[null,null,null,null,null,null,null,null,null,null,{"$f":"_xlfn.IFNA((VLOOKUP($B652,Lists!$C$2:$D$13,2,FALSE)),\"\")","v":""}]
[null,null,null,null,null,null,null,null,null,null,{"$f":"_xlfn.IFNA((VLOOKUP($B653,Lists!$C$2:$D$13,2,FALSE)),\"\")","v":""}]
[null,null,null,null,null,null,null,null,null,null,{"$f":"_xlfn.IFNA((VLOOKUP($B654,Lists!$C$2:$D$13,2,FALSE)),\"\")","v":""}]
[null,null,null,null,null,null,null,null,null,null,{"$f":"_xlfn.IFNA((VLOOKUP($B655,Lists!$C$2:$D$13,2,FALSE)),\"\")","v":""}]
[null,null,null,null,null,null,null,null,null,null,{"$f":"_xlfn.IFNA((VLOOKUP($B656,Lists!$C$2:$D$13,2,FALSE)),\"\")","v":""}]
[null,null,null,null,null,null,null,null,null,null,{"$f":"_xlfn.IFNA((VLOOKUP($B657,Lists!$C$2:$D$13,2,FALSE)),\"\")","v":""}]
[null,null,null,null,null,null,null,null,null,null,{"$f":"_xlfn.IFNA((VLOOKUP($B658,Lists!$C$2:$D$13,2,FALSE)),\"\")","v":""}]
[null,null,null,null,null,null,null,null,null,null,{"$f":"_xlfn.IFNA((VLOOKUP($B659,Lists!$C$2:$D$13,2,FALSE)),\"\")","v":""}]
[null,null,null,null,null,null,null,null,null,null,{"$f":"_xlfn.IFNA((VLOOKUP($B660,Lists!$C$2:$D$13,2,FALSE)),\"\")","v":""}]
[null,null,null,null,null,null,null,null,null,null,{"$f":"_xlfn.IFNA((VLOOKUP($B661,Lists!$C$2:$D$13,2,FALSE)),\"\")","v":""}]
[null,null,null,null,null,null,null,null,null,null,{"$f":"_xlfn.IFNA((VLOOKUP($B662,Lists!$C$2:$D$13,2,FALSE)),\"\")","v":""}]
[null,null,null,null,null,null,null,null,null,null,{"$f":"_xlfn.IFNA((VLOOKUP($B663,Lists!$C$2:$D$13,2,FALSE)),\"\")","v":""}]
[null,null,null,null,null,null,null,null,null,null,{"$f":"_xlfn.IFNA((VLOOKUP($B664,Lists!$C$2:$D$13,2,FALSE)),\"\")","v":""}]
[null,null,null,null,null,null,null,null,null,null,{"$f":"_xlfn.IFNA((VLOOKUP($B665,Lists!$C$2:$D$13,2,FALSE)),\"\")","v":""}]
[null,null,null,null,null,null,null,null,null,null,{"$f":"_xlfn.IFNA((VLOOKUP($B666,Lists!$C$2:$D$13,2,FALSE)),\"\")","v":""}]
[null,null,null,null,null,null,null,null,null,null,{"$f":"_xlfn.IFNA((VLOOKUP($B667,Lists!$C$2:$D$13,2,FALSE)),\"\")","v":""}]
[null,null,null,null,null,null,null,null,null,null,{"$f":"_xlfn.IFNA((VLOOKUP($B668,Lists!$C$2:$D$13,2,FALSE)),\"\")","v":""}]
[null,null,null,null,null,null,null,null,null,null,{"$f":"_xlfn.IFNA((VLOOKUP($B669,Lists!$C$2:$D$13,2,FALSE)),\"\")","v":""}]
[null,null,null,null,null,null,null,null,null,null,{"$f":"_xlfn.IFNA((VLOOKUP($B670,Lists!$C$2:$D$13,2,FALSE)),\"\")","v":""}]
[null,null,null,null,null,null,null,null,null,null,{"$f":"_xlfn.IFNA((VLOOKUP($B671,Lists!$C$2:$D$13,2,FALSE)),\"\")","v":""}]
[null,null,null,null,null,null,null,null,null,null,{"$f":"_xlfn.IFNA((VLOOKUP($B672,Lists!$C$2:$D$13,2,FALSE)),\"\")","v":""}]
[null,null,null,null,null,null,null,null,null,null,{"$f":"_xlfn.IFNA((VLOOKUP($B673,Lists!$C$2:$D$13,2,FALSE)),\"\")","v":""}]
[null,null,null,null,null,null,null,null,null,null,{"$f":"_xlfn.IFNA((VLOOKUP($B674,Lists!$C$2:$D$13,2,FALSE)),\"\")","v":""}]
[null,null,null,null,null,null,null,null,null,null,{"$f":"_xlfn.IFNA((VLOOKUP($B675,Lists!$C$2:$D$13,2,FALSE)),\"\")","v":""}]
[null,null,null,null,null,null,null,null,null,null,{"$f":"_xlfn.IFNA((VLOOKUP($B676,Lists!$C$2:$D$13,2,FALSE)),\"\")","v":""}]
[null,null,null,null,null,null,null,null,null,null,{"$f":"_xlfn.IFNA((VLOOKUP($B677,Lists!$C$2:$D$13,2,FALSE)),\"\")","v":""}]
[null,null,null,null,null,null,null,null,null,null,{"$f":"_xlfn.IFNA((VLOOKUP($B678,Lists!$C$2:$D$13,2,FALSE)),\"\")","v":""}]
[null,null,null,null,null,null,null,null,null,null,{"$f":"_xlfn.IFNA((VLOOKUP($B679,Lists!$C$2:$D$13,2,FALSE)),\"\")","v":""}]
[null,null,null,null,null,null,null,null,null,null,{"$f":"_xlfn.IFNA((VLOOKUP($B680,Lists!$C$2:$D$13,2,FALSE)),\"\")","v":""}]
[null,null,null,null,null,null,null,null,null,null,{"$f":"_xlfn.IFNA((VLOOKUP($B681,Lists!$C$2:$D$13,2,FALSE)),\"\")","v":""}]
[null,null,null,null,null,null,null,null,null,null,{"$f":"_xlfn.IFNA((VLOOKUP($B682,Lists!$C$2:$D$13,2,FALSE)),\"\")","v":""}]
[null,null,null,null,null,null,null,null,null,null,{"$f":"_xlfn.IFNA((VLOOKUP($B683,Lists!$C$2:$D$13,2,FALSE)),\"\")","v":""}]
[null,null,null,null,null,null,null,null,null,null,{"$f":"_xlfn.IFNA((VLOOKUP($B684,Lists!$C$2:$D$13,2,FALSE)),\"\")","v":""}]
[null,null,null,null,null,null,null,null,null,null,{"$f":"_xlfn.IFNA((VLOOKUP($B685,Lists!$C$2:$D$13,2,FALSE)),\"\")","v":""}]
[null,null,null,null,null,null,null,null,null,null,{"$f":"_xlfn.IFNA((VLOOKUP($B686,Lists!$C$2:$D$13,2,FALSE)),\"\")","v":""}]
[null,null,null,null,null,null,null,null,null,null,{"$f":"_xlfn.IFNA((VLOOKUP($B687,Lists!$C$2:$D$13,2,FALSE)),\"\")","v":""}]
[null,null,null,null,null,null,null,null,null,null,{"$f":"_xlfn.IFNA((VLOOKUP($B688,Lists!$C$2:$D$13,2,FALSE)),\"\")","v":""}]
[null,null,null,null,null,null,null,null,null,null,{"$f":"_xlfn.IFNA((VLOOKUP($B689,Lists!$C$2:$D$13,2,FALSE)),\"\")","v":""}]
[null,null,null,null,null,null,null,null,null,null,{"$f":"_xlfn.IFNA((VLOOKUP($B690,Lists!$C$2:$D$13,2,FALSE)),\"\")","v":""}]
[null,null,null,null,null,null,null,null,null,null,{"$f":"_xlfn.IFNA((VLOOKUP($B691,Lists!$C$2:$D$13,2,FALSE)),\"\")","v":""}]
[null,null,null,null,null,null,null,null,null,null,{"$f":"_xlfn.IFNA((VLOOKUP($B692,Lists!$C$2:$D$13,2,FALSE)),\"\")","v":""}]
[null,null,null,null,null,null,null,null,null,null,{"$f":"_xlfn.IFNA((VLOOKUP($B693,Lists!$C$2:$D$13,2,FALSE)),\"\")","v":""}]
[null,null,null,null,null,null,null,null,null,null,{"$f":"_xlfn.IFNA((VLOOKUP($B694,Lists!$C$2:$D$13,2,FALSE)),\"\")","v":""}]
[null,null,null,null,null,null,null,null,null,null,{"$f":"_xlfn.IFNA((VLOOKUP($B695,Lists!$C$2:$D$13,2,FALSE)),\"\")","v":""}]
[null,null,null,null,null,null,null,null,null,null,{"$f":"_xlfn.IFNA((VLOOKUP($B696,Lists!$C$2:$D$13,2,FALSE)),\"\")","v":""}]
[null,null,null,null,null,null,null,null,null,null,{"$f":"_xlfn.IFNA((VLOOKUP($B697,Lists!$C$2:$D$13,2,FALSE)),\"\")","v":""}]
[null,null,null,null,null,null,null,null,null,null,{"$f":"_xlfn.IFNA((VLOOKUP($B698,Lists!$C$2:$D$13,2,FALSE)),\"\")","v":""}]
[null,null,null,null,null,null,null,null,null,null,{"$f":"_xlfn.IFNA((VLOOKUP($B699,Lists!$C$2:$D$13,2,FALSE)),\"\")","v":""}]
[null,null,null,null,null,null,null,null,null,null,{"$f":"_xlfn.IFNA((VLOOKUP($B700,Lists!$C$2:$D$13,2,FALSE)),\"\")","v":""}]
[null,null,null,null,null,null,null,null,null,null,{"$f":"_xlfn.IFNA((VLOOKUP($B701,Lists!$C$2:$D$13,2,FALSE)),\"\")","v":""}]
[null,null,null,null,null,null,null,null,null,null,{"$f":"_xlfn.IFNA((VLOOKUP($B702,Lists!$C$2:$D$13,2,FALSE)),\"\")","v":""}]
[null,null,null,null,null,null,null,null,null,null,{"$f":"_xlfn.IFNA((VLOOKUP($B703,Lists!$C$2:$D$13,2,FALSE)),\"\")","v":""}]
[null,null,null,null,null,null,null,null,null,null,{"$f":"_xlfn.IFNA((VLOOKUP($B704,Lists!$C$2:$D$13,2,FALSE)),\"\")","v":""}]
[null,null,null,null,null,null,null,null,null,null,{"$f":"_xlfn.IFNA((VLOOKUP($B705,Lists!$C$2:$D$13,2,FALSE)),\"\")","v":""}]
[null,null,null,null,null,null,null,null,null,null,{"$f":"_xlfn.IFNA((VLOOKUP($B706,Lists!$C$2:$D$13,2,FALSE)),\"\")","v":""}]
[null,null,null,null,null,null,null,null,null,null,{"$f":"_xlfn.IFNA((VLOOKUP($B707,Lists!$C$2:$D$13,2,FALSE)),\"\")","v":""}]
[null,null,null,null,null,null,null,null,null,null,{"$f":"_xlfn.IFNA((VLOOKUP($B708,Lists!$C$2:$D$13,2,FALSE)),\"\")","v":""}]
[null,null,null,null,null,null,null,null,null,null,{"$f":"_xlfn.IFNA((VLOOKUP($B709,Lists!$C$2:$D$13,2,FALSE)),\"\")","v":""}]
[null,null,null,null,null,null,null,null,null,null,{"$f":"_xlfn.IFNA((VLOOKUP($B710,Lists!$C$2:$D$13,2,FALSE)),\"\")","v":""}]
[null,null,null,null,null,null,null,null,null,null,{"$f":"_xlfn.IFNA((VLOOKUP($B711,Lists!$C$2:$D$13,2,FALSE)),\"\")","v":""}]
[null,null,null,null,null,null,null,null,null,null,{"$f":"_xlfn.IFNA((VLOOKUP($B712,Lists!$C$2:$D$13,2,FALSE)),\"\")","v":""}]
[null,null,null,null,null,null,null,null,null,null,{"$f":"_xlfn.IFNA((VLOOKUP($B713,Lists!$C$2:$D$13,2,FALSE)),\"\")","v":""}]
[null,null,null,null,null,null,null,null,null,null,{"$f":"_xlfn.IFNA((VLOOKUP($B714,Lists!$C$2:$D$13,2,FALSE)),\"\")","v":""}]
[null,null,null,null,null,null,null,null,null,null,{"$f":"_xlfn.IFNA((VLOOKUP($B715,Lists!$C$2:$D$13,2,FALSE)),\"\")","v":""}]
[null,null,null,null,null,null,null,null,null,null,{"$f":"_xlfn.IFNA((VLOOKUP($B716,Lists!$C$2:$D$13,2,FALSE)),\"\")","v":""}]
[null,null,null,null,null,null,null,null,null,null,{"$f":"_xlfn.IFNA((VLOOKUP($B717,Lists!$C$2:$D$13,2,FALSE)),\"\")","v":""}]
[null,null,null,null,null,null,null,null,null,null,{"$f":"_xlfn.IFNA((VLOOKUP($B718,Lists!$C$2:$D$13,2,FALSE)),\"\")","v":""}]
[null,null,null,null,null,null,null,null,null,null,{"$f":"_xlfn.IFNA((VLOOKUP($B719,Lists!$C$2:$D$13,2,FALSE)),\"\")","v":""}]
[null,null,null,null,null,null,null,null,null,null,{"$f":"_xlfn.IFNA((VLOOKUP($B720,Lists!$C$2:$D$13,2,FALSE)),\"\")","v":""}]
[null,null,null,null,null,null,null,null,null,null,{"$f":"_xlfn.IFNA((VLOOKUP($B721,Lists!$C$2:$D$13,2,FALSE)),\"\")","v":""}]
[null,null,null,null,null,null,null,null,null,null,{"$f":"_xlfn.IFNA((VLOOKUP($B722,Lists!$C$2:$D$13,2,FALSE)),\"\")","v":""}]
[null,null,null,null,null,null,null,null,null,null,{"$f":"_xlfn.IFNA((VLOOKUP($B723,Lists!$C$2:$D$13,2,FALSE)),\"\")","v":""}]
[null,null,null,null,null,null,null,null,null,null,{"$f":"_xlfn.IFNA((VLOOKUP($B724,Lists!$C$2:$D$13,2,FALSE)),\"\")","v":""}]
[null,null,null,null,null,null,null,null,null,null,{"$f":"_xlfn.IFNA((VLOOKUP($B725,Lists!$C$2:$D$13,2,FALSE)),\"\")","v":""}]
[null,null,null,null,null,null,null,null,null,null,{"$f":"_xlfn.IFNA((VLOOKUP($B726,Lists!$C$2:$D$13,2,FALSE)),\"\")","v":""}]
[null,null,null,null,null,null,null,null,null,null,{"$f":"_xlfn.IFNA((VLOOKUP($B727,Lists!$C$2:$D$13,2,FALSE)),\"\")","v":""}]
[null,null,null,null,null,null,null,null,null,null,{"$f":"_xlfn.IFNA((VLOOKUP($B728,Lists!$C$2:$D$13,2,FALSE)),\"\")","v":""}]
[null,null,null,null,null,null,null,null,null,null,{"$f":"_xlfn.IFNA((VLOOKUP($B729,Lists!$C$2:$D$13,2,FALSE)),\"\")","v":""}]
[null,null,null,null,null,null,null,null,null,null,{"$f":"_xlfn.IFNA((VLOOKUP($B730,Lists!$C$2:$D$13,2,FALSE)),\"\")","v":""}]
[null,null,null,null,null,null,null,null,null,null,{"$f":"_xlfn.IFNA((VLOOKUP($B731,Lists!$C$2:$D$13,2,FALSE)),\"\")","v":""}]
[null,null,null,null,null,null,null,null,null,null,{"$f":"_xlfn.IFNA((VLOOKUP($B732,Lists!$C$2:$D$13,2,FALSE)),\"\")","v":""}]
[null,null,null,null,null,null,null,null,null,null,{"$f":"_xlfn.IFNA((VLOOKUP($B733,Lists!$C$2:$D$13,2,FALSE)),\"\")","v":""}]
[null,null,null,null,null,null,null,null,null,null,{"$f":"_xlfn.IFNA((VLOOKUP($B734,Lists!$C$2:$D$13,2,FALSE)),\"\")","v":""}]
[null,null,null,null,null,null,null,null,null,null,{"$f":"_xlfn.IFNA((VLOOKUP($B735,Lists!$C$2:$D$13,2,FALSE)),\"\")","v":""}]
[null,null,null,null,null,null,null,null,null,null,{"$f":"_xlfn.IFNA((VLOOKUP($B736,Lists!$C$2:$D$13,2,FALSE)),\"\")","v":""}]
[null,null,null,null,null,null,null,null,null,null,{"$f":"_xlfn.IFNA((VLOOKUP($B737,Lists!$C$2:$D$13,2,FALSE)),\"\")","v":""}]
[null,null,null,null,null,null,null,null,null,null,{"$f":"_xlfn.IFNA((VLOOKUP($B738,Lists!$C$2:$D$13,2,FALSE)),\"\")","v":""}]
[null,null,null,null,null,null,null,null,null,null,{"$f":"_xlfn.IFNA((VLOOKUP($B739,Lists!$C$2:$D$13,2,FALSE)),\"\")","v":""}]
[null,null,null,null,null,null,null,null,null,null,{"$f":"_xlfn.IFNA((VLOOKUP($B740,Lists!$C$2:$D$13,2,FALSE)),\"\")","v":""}]
[null,null,null,null,null,null,null,null,null,null,{"$f":"_xlfn.IFNA((VLOOKUP($B741,Lists!$C$2:$D$13,2,FALSE)),\"\")","v":""}]
[null,null,null,null,null,null,null,null,null,null,{"$f":"_xlfn.IFNA((VLOOKUP($B742,Lists!$C$2:$D$13,2,FALSE)),\"\")","v":""}]
[null,null,null,null,null,null,null,null,null,null,{"$f":"_xlfn.IFNA((VLOOKUP($B743,Lists!$C$2:$D$13,2,FALSE)),\"\")","v":""}]
[null,null,null,null,null,null,null,null,null,null,{"$f":"_xlfn.IFNA((VLOOKUP($B744,Lists!$C$2:$D$13,2,FALSE)),\"\")","v":""}]
[null,null,null,null,null,null,null,null,null,null,{"$f":"_xlfn.IFNA((VLOOKUP($B745,Lists!$C$2:$D$13,2,FALSE)),\"\")","v":""}]
[null,null,null,null,null,null,null,null,null,null,{"$f":"_xlfn.IFNA((VLOOKUP($B746,Lists!$C$2:$D$13,2,FALSE)),\"\")","v":""}]
[null,null,null,null,null,null,null,null,null,null,{"$f":"_xlfn.IFNA((VLOOKUP($B747,Lists!$C$2:$D$13,2,FALSE)),\"\")","v":""}]
[null,null,null,null,null,null,null,null,null,null,{"$f":"_xlfn.IFNA((VLOOKUP($B748,Lists!$C$2:$D$13,2,FALSE)),\"\")","v":""}]
[null,null,null,null,null,null,null,null,null,null,{"$f":"_xlfn.IFNA((VLOOKUP($B749,Lists!$C$2:$D$13,2,FALSE)),\"\")","v":""}]
[null,null,null,null,null,null,null,null,null,null,{"$f":"_xlfn.IFNA((VLOOKUP($B750,Lists!$C$2:$D$13,2,FALSE)),\"\")","v":""}]
[null,null,null,null,null,null,null,null,null,null,{"$f":"_xlfn.IFNA((VLOOKUP($B751,Lists!$C$2:$D$13,2,FALSE)),\"\")","v":""}]
[null,null,null,null,null,null,null,null,null,null,{"$f":"_xlfn.IFNA((VLOOKUP($B752,Lists!$C$2:$D$13,2,FALSE)),\"\")","v":""}]
[null,null,null,null,null,null,null,null,null,null,{"$f":"_xlfn.IFNA((VLOOKUP($B753,Lists!$C$2:$D$13,2,FALSE)),\"\")","v":""}]
[null,null,null,null,null,null,null,null,null,null,{"$f":"_xlfn.IFNA((VLOOKUP($B754,Lists!$C$2:$D$13,2,FALSE)),\"\")","v":""}]
[null,null,null,null,null,null,null,null,null,null,{"$f":"_xlfn.IFNA((VLOOKUP($B755,Lists!$C$2:$D$13,2,FALSE)),\"\")","v":""}]
[null,null,null,null,null,null,null,null,null,null,{"$f":"_xlfn.IFNA((VLOOKUP($B756,Lists!$C$2:$D$13,2,FALSE)),\"\")","v":""}]
[null,null,null,null,null,null,null,null,null,null,{"$f":"_xlfn.IFNA((VLOOKUP($B757,Lists!$C$2:$D$13,2,FALSE)),\"\")","v":""}]
[null,null,null,null,null,null,null,null,null,null,{"$f":"_xlfn.IFNA((VLOOKUP($B758,Lists!$C$2:$D$13,2,FALSE)),\"\")","v":""}]
[null,null,null,null,null,null,null,null,null,null,{"$f":"_xlfn.IFNA((VLOOKUP($B759,Lists!$C$2:$D$13,2,FALSE)),\"\")","v":""}]
[null,null,null,null,null,null,null,null,null,null,{"$f":"_xlfn.IFNA((VLOOKUP($B760,Lists!$C$2:$D$13,2,FALSE)),\"\")","v":""}]
[null,null,null,null,null,null,null,null,null,null,{"$f":"_xlfn.IFNA((VLOOKUP($B761,Lists!$C$2:$D$13,2,FALSE)),\"\")","v":""}]
[null,null,null,null,null,null,null,null,null,null,{"$f":"_xlfn.IFNA((VLOOKUP($B762,Lists!$C$2:$D$13,2,FALSE)),\"\")","v":""}]
[null,null,null,null,null,null,null,null,null,null,{"$f":"_xlfn.IFNA((VLOOKUP($B763,Lists!$C$2:$D$13,2,FALSE)),\"\")","v":""}]
[null,null,null,null,null,null,null,null,null,null,{"$f":"_xlfn.IFNA((VLOOKUP($B764,Lists!$C$2:$D$13,2,FALSE)),\"\")","v":""}]
[null,null,null,null,null,null,null,null,null,null,{"$f":"_xlfn.IFNA((VLOOKUP($B765,Lists!$C$2:$D$13,2,FALSE)),\"\")","v":""}]
[null,null,null,null,null,null,null,null,null,null,{"$f":"_xlfn.IFNA((VLOOKUP($B766,Lists!$C$2:$D$13,2,FALSE)),\"\")","v":""}]
[null,null,null,null,null,null,null,null,null,null,{"$f":"_xlfn.IFNA((VLOOKUP($B767,Lists!$C$2:$D$13,2,FALSE)),\"\")","v":""}]
[null,null,null,null,null,null,null,null,null,null,{"$f":"_xlfn.IFNA((VLOOKUP($B768,Lists!$C$2:$D$13,2,FALSE)),\"\")","v":""}]
[null,null,null,null,null,null,null,null,null,null,{"$f":"_xlfn.IFNA((VLOOKUP($B769,Lists!$C$2:$D$13,2,FALSE)),\"\")","v":""}]
[null,null,null,null,null,null,null,null,null,null,{"$f":"_xlfn.IFNA((VLOOKUP($B770,Lists!$C$2:$D$13,2,FALSE)),\"\")","v":""}]
[null,null,null,null,null,null,null,null,null,null,{"$f":"_xlfn.IFNA((VLOOKUP($B771,Lists!$C$2:$D$13,2,FALSE)),\"\")","v":""}]
[null,null,null,null,null,null,null,null,null,null,{"$f":"_xlfn.IFNA((VLOOKUP($B772,Lists!$C$2:$D$13,2,FALSE)),\"\")","v":""}]
[null,null,null,null,null,null,null,null,null,null,{"$f":"_xlfn.IFNA((VLOOKUP($B773,Lists!$C$2:$D$13,2,FALSE)),\"\")","v":""}]
[null,null,null,null,null,null,null,null,null,null,{"$f":"_xlfn.IFNA((VLOOKUP($B774,Lists!$C$2:$D$13,2,FALSE)),\"\")","v":""}]
[null,null,null,null,null,null,null,null,null,null,{"$f":"_xlfn.IFNA((VLOOKUP($B775,Lists!$C$2:$D$13,2,FALSE)),\"\")","v":""}]
[null,null,null,null,null,null,null,null,null,null,{"$f":"_xlfn.IFNA((VLOOKUP($B776,Lists!$C$2:$D$13,2,FALSE)),\"\")","v":""}]
[null,null,null,null,null,null,null,null,null,null,{"$f":"_xlfn.IFNA((VLOOKUP($B777,Lists!$C$2:$D$13,2,FALSE)),\"\")","v":""}]
[null,null,null,null,null,null,null,null,null,null,{"$f":"_xlfn.IFNA((VLOOKUP($B778,Lists!$C$2:$D$13,2,FALSE)),\"\")","v":""}]
[null,null,null,null,null,null,null,null,null,null,{"$f":"_xlfn.IFNA((VLOOKUP($B779,Lists!$C$2:$D$13,2,FALSE)),\"\")","v":""}]
[null,null,null,null,null,null,null,null,null,null,{"$f":"_xlfn.IFNA((VLOOKUP($B780,Lists!$C$2:$D$13,2,FALSE)),\"\")","v":""}]
[null,null,null,null,null,null,null,null,null,null,{"$f":"_xlfn.IFNA((VLOOKUP($B781,Lists!$C$2:$D$13,2,FALSE)),\"\")","v":""}]
[null,null,null,null,null,null,null,null,null,null,{"$f":"_xlfn.IFNA((VLOOKUP($B782,Lists!$C$2:$D$13,2,FALSE)),\"\")","v":""}]
[null,null,null,null,null,null,null,null,null,null,{"$f":"_xlfn.IFNA((VLOOKUP($B783,Lists!$C$2:$D$13,2,FALSE)),\"\")","v":""}]
[null,null,null,null,null,null,null,null,null,null,{"$f":"_xlfn.IFNA((VLOOKUP($B784,Lists!$C$2:$D$13,2,FALSE)),\"\")","v":""}]
[null,null,null,null,null,null,null,null,null,null,{"$f":"_xlfn.IFNA((VLOOKUP($B785,Lists!$C$2:$D$13,2,FALSE)),\"\")","v":""}]
[null,null,null,null,null,null,null,null,null,null,{"$f":"_xlfn.IFNA((VLOOKUP($B786,Lists!$C$2:$D$13,2,FALSE)),\"\")","v":""}]
[null,null,null,null,null,null,null,null,null,null,{"$f":"_xlfn.IFNA((VLOOKUP($B787,Lists!$C$2:$D$13,2,FALSE)),\"\")","v":""}]
[null,null,null,null,null,null,null,null,null,null,{"$f":"_xlfn.IFNA((VLOOKUP($B788,Lists!$C$2:$D$13,2,FALSE)),\"\")","v":""}]
[null,null,null,null,null,null,null,null,null,null,{"$f":"_xlfn.IFNA((VLOOKUP($B789,Lists!$C$2:$D$13,2,FALSE)),\"\")","v":""}]
[null,null,null,null,null,null,null,null,null,null,{"$f":"_xlfn.IFNA((VLOOKUP($B790,Lists!$C$2:$D$13,2,FALSE)),\"\")","v":""}]
[null,null,null,null,null,null,null,null,null,null,{"$f":"_xlfn.IFNA((VLOOKUP($B791,Lists!$C$2:$D$13,2,FALSE)),\"\")","v":""}]
[null,null,null,null,null,null,null,null,null,null,{"$f":"_xlfn.IFNA((VLOOKUP($B792,Lists!$C$2:$D$13,2,FALSE)),\"\")","v":""}]
[null,null,null,null,null,null,null,null,null,null,{"$f":"_xlfn.IFNA((VLOOKUP($B793,Lists!$C$2:$D$13,2,FALSE)),\"\")","v":""}]
[null,null,null,null,null,null,null,null,null,null,{"$f":"_xlfn.IFNA((VLOOKUP($B794,Lists!$C$2:$D$13,2,FALSE)),\"\")","v":""}]
[null,null,null,null,null,null,null,null,null,null,{"$f":"_xlfn.IFNA((VLOOKUP($B795,Lists!$C$2:$D$13,2,FALSE)),\"\")","v":""}]
[null,null,null,null,null,null,null,null,null,null,{"$f":"_xlfn.IFNA((VLOOKUP($B796,Lists!$C$2:$D$13,2,FALSE)),\"\")","v":""}]
[null,null,null,null,null,null,null,null,null,null,{"$f":"_xlfn.IFNA((VLOOKUP($B797,Lists!$C$2:$D$13,2,FALSE)),\"\")","v":""}]
[null,null,null,null,null,null,null,null,null,null,{"$f":"_xlfn.IFNA((VLOOKUP($B798,Lists!$C$2:$D$13,2,FALSE)),\"\")","v":""}]
[null,null,null,null,null,null,null,null,null,null,{"$f":"_xlfn.IFNA((VLOOKUP($B799,Lists!$C$2:$D$13,2,FALSE)),\"\")","v":""}]
[null,null,null,null,null,null,null,null,null,null,{"$f":"_xlfn.IFNA((VLOOKUP($B800,Lists!$C$2:$D$13,2,FALSE)),\"\")","v":""}]
[null,null,null,null,null,null,null,null,null,null,{"$f":"_xlfn.IFNA((VLOOKUP($B801,Lists!$C$2:$D$13,2,FALSE)),\"\")","v":""}]
[null,null,null,null,null,null,null,null,null,null,{"$f":"_xlfn.IFNA((VLOOKUP($B802,Lists!$C$2:$D$13,2,FALSE)),\"\")","v":""}]
[null,null,null,null,null,null,null,null,null,null,{"$f":"_xlfn.IFNA((VLOOKUP($B803,Lists!$C$2:$D$13,2,FALSE)),\"\")","v":""}]
[null,null,null,null,null,null,null,null,null,null,{"$f":"_xlfn.IFNA((VLOOKUP($B804,Lists!$C$2:$D$13,2,FALSE)),\"\")","v":""}]
[null,null,null,null,null,null,null,null,null,null,{"$f":"_xlfn.IFNA((VLOOKUP($B805,Lists!$C$2:$D$13,2,FALSE)),\"\")","v":""}]
[null,null,null,null,null,null,null,null,null,null,{"$f":"_xlfn.IFNA((VLOOKUP($B806,Lists!$C$2:$D$13,2,FALSE)),\"\")","v":""}]
[null,null,null,null,null,null,null,null,null,null,{"$f":"_xlfn.IFNA((VLOOKUP($B807,Lists!$C$2:$D$13,2,FALSE)),\"\")","v":""}]
[null,null,null,null,null,null,null,null,null,null,{"$f":"_xlfn.IFNA((VLOOKUP($B808,Lists!$C$2:$D$13,2,FALSE)),\"\")","v":""}]
[null,null,null,null,null,null,null,null,null,null,{"$f":"_xlfn.IFNA((VLOOKUP($B809,Lists!$C$2:$D$13,2,FALSE)),\"\")","v":""}]
[null,null,null,null,null,null,null,null,null,null,{"$f":"_xlfn.IFNA((VLOOKUP($B810,Lists!$C$2:$D$13,2,FALSE)),\"\")","v":""}]
[null,null,null,null,null,null,null,null,null,null,{"$f":"_xlfn.IFNA((VLOOKUP($B811,Lists!$C$2:$D$13,2,FALSE)),\"\")","v":""}]
[null,null,null,null,null,null,null,null,null,null,{"$f":"_xlfn.IFNA((VLOOKUP($B812,Lists!$C$2:$D$13,2,FALSE)),\"\")","v":""}]
[null,null,null,null,null,null,null,null,null,null,{"$f":"_xlfn.IFNA((VLOOKUP($B813,Lists!$C$2:$D$13,2,FALSE)),\"\")","v":""}]
[null,null,null,null,null,null,null,null,null,null,{"$f":"_xlfn.IFNA((VLOOKUP($B814,Lists!$C$2:$D$13,2,FALSE)),\"\")","v":""}]
[null,null,null,null,null,null,null,null,null,null,{"$f":"_xlfn.IFNA((VLOOKUP($B815,Lists!$C$2:$D$13,2,FALSE)),\"\")","v":""}]
[null,null,null,null,null,null,null,null,null,null,{"$f":"_xlfn.IFNA((VLOOKUP($B816,Lists!$C$2:$D$13,2,FALSE)),\"\")","v":""}]
[null,null,null,null,null,null,null,null,null,null,{"$f":"_xlfn.IFNA((VLOOKUP($B817,Lists!$C$2:$D$13,2,FALSE)),\"\")","v":""}]
[null,null,null,null,null,null,null,null,null,null,{"$f":"_xlfn.IFNA((VLOOKUP($B818,Lists!$C$2:$D$13,2,FALSE)),\"\")","v":""}]
[null,null,null,null,null,null,null,null,null,null,{"$f":"_xlfn.IFNA((VLOOKUP($B819,Lists!$C$2:$D$13,2,FALSE)),\"\")","v":""}]
[null,null,null,null,null,null,null,null,null,null,{"$f":"_xlfn.IFNA((VLOOKUP($B820,Lists!$C$2:$D$13,2,FALSE)),\"\")","v":""}]
[null,null,null,null,null,null,null,null,null,null,{"$f":"_xlfn.IFNA((VLOOKUP($B821,Lists!$C$2:$D$13,2,FALSE)),\"\")","v":""}]
[null,null,null,null,null,null,null,null,null,null,{"$f":"_xlfn.IFNA((VLOOKUP($B822,Lists!$C$2:$D$13,2,FALSE)),\"\")","v":""}]
[null,null,null,null,null,null,null,null,null,null,{"$f":"_xlfn.IFNA((VLOOKUP($B823,Lists!$C$2:$D$13,2,FALSE)),\"\")","v":""}]
[null,null,null,null,null,null,null,null,null,null,{"$f":"_xlfn.IFNA((VLOOKUP($B824,Lists!$C$2:$D$13,2,FALSE)),\"\")","v":""}]
[null,null,null,null,null,null,null,null,null,null,{"$f":"_xlfn.IFNA((VLOOKUP($B825,Lists!$C$2:$D$13,2,FALSE)),\"\")","v":""}]
[null,null,null,null,null,null,null,null,null,null,{"$f":"_xlfn.IFNA((VLOOKUP($B826,Lists!$C$2:$D$13,2,FALSE)),\"\")","v":""}]
[null,null,null,null,null,null,null,null,null,null,{"$f":"_xlfn.IFNA((VLOOKUP($B827,Lists!$C$2:$D$13,2,FALSE)),\"\")","v":""}]
[null,null,null,null,null,null,null,null,null,null,{"$f":"_xlfn.IFNA((VLOOKUP($B828,Lists!$C$2:$D$13,2,FALSE)),\"\")","v":""}]
[null,null,null,null,null,null,null,null,null,null,{"$f":"_xlfn.IFNA((VLOOKUP($B829,Lists!$C$2:$D$13,2,FALSE)),\"\")","v":""}]
[null,null,null,null,null,null,null,null,null,null,{"$f":"_xlfn.IFNA((VLOOKUP($B830,Lists!$C$2:$D$13,2,FALSE)),\"\")","v":""}]
[null,null,null,null,null,null,null,null,null,null,{"$f":"_xlfn.IFNA((VLOOKUP($B831,Lists!$C$2:$D$13,2,FALSE)),\"\")","v":""}]
[null,null,null,null,null,null,null,null,null,null,{"$f":"_xlfn.IFNA((VLOOKUP($B832,Lists!$C$2:$D$13,2,FALSE)),\"\")","v":""}]
[null,null,null,null,null,null,null,null,null,null,{"$f":"_xlfn.IFNA((VLOOKUP($B833,Lists!$C$2:$D$13,2,FALSE)),\"\")","v":""}]
[null,null,null,null,null,null,null,null,null,null,{"$f":"_xlfn.IFNA((VLOOKUP($B834,Lists!$C$2:$D$13,2,FALSE)),\"\")","v":""}]
[null,null,null,null,null,null,null,null,null,null,{"$f":"_xlfn.IFNA((VLOOKUP($B835,Lists!$C$2:$D$13,2,FALSE)),\"\")","v":""}]
[null,null,null,null,null,null,null,null,null,null,{"$f":"_xlfn.IFNA((VLOOKUP($B836,Lists!$C$2:$D$13,2,FALSE)),\"\")","v":""}]
[null,null,null,null,null,null,null,null,null,null,{"$f":"_xlfn.IFNA((VLOOKUP($B837,Lists!$C$2:$D$13,2,FALSE)),\"\")","v":""}]
[null,null,null,null,null,null,null,null,null,null,{"$f":"_xlfn.IFNA((VLOOKUP($B838,Lists!$C$2:$D$13,2,FALSE)),\"\")","v":""}]
[null,null,null,null,null,null,null,null,null,null,{"$f":"_xlfn.IFNA((VLOOKUP($B839,Lists!$C$2:$D$13,2,FALSE)),\"\")","v":""}]
[null,null,null,null,null,null,null,null,null,null,{"$f":"_xlfn.IFNA((VLOOKUP($B840,Lists!$C$2:$D$13,2,FALSE)),\"\")","v":""}]
[null,null,null,null,null,null,null,null,null,null,{"$f":"_xlfn.IFNA((VLOOKUP($B841,Lists!$C$2:$D$13,2,FALSE)),\"\")","v":""}]
[null,null,null,null,null,null,null,null,null,null,{"$f":"_xlfn.IFNA((VLOOKUP($B842,Lists!$C$2:$D$13,2,FALSE)),\"\")","v":""}]
[null,null,null,null,null,null,null,null,null,null,{"$f":"_xlfn.IFNA((VLOOKUP($B843,Lists!$C$2:$D$13,2,FALSE)),\"\")","v":""}]
[null,null,null,null,null,null,null,null,null,null,{"$f":"_xlfn.IFNA((VLOOKUP($B844,Lists!$C$2:$D$13,2,FALSE)),\"\")","v":""}]
[null,null,null,null,null,null,null,null,null,null,{"$f":"_xlfn.IFNA((VLOOKUP($B845,Lists!$C$2:$D$13,2,FALSE)),\"\")","v":""}]
[null,null,null,null,null,null,null,null,null,null,{"$f":"_xlfn.IFNA((VLOOKUP($B846,Lists!$C$2:$D$13,2,FALSE)),\"\")","v":""}]
[null,null,null,null,null,null,null,null,null,null,{"$f":"_xlfn.IFNA((VLOOKUP($B847,Lists!$C$2:$D$13,2,FALSE)),\"\")","v":""}]
[null,null,null,null,null,null,null,null,null,null,{"$f":"_xlfn.IFNA((VLOOKUP($B848,Lists!$C$2:$D$13,2,FALSE)),\"\")","v":""}]
[null,null,null,null,null,null,null,null,null,null,{"$f":"_xlfn.IFNA((VLOOKUP($B849,Lists!$C$2:$D$13,2,FALSE)),\"\")","v":""}]
[null,null,null,null,null,null,null,null,null,null,{"$f":"_xlfn.IFNA((VLOOKUP($B850,Lists!$C$2:$D$13,2,FALSE)),\"\")","v":""}]
[null,null,null,null,null,null,null,null,null,null,{"$f":"_xlfn.IFNA((VLOOKUP($B851,Lists!$C$2:$D$13,2,FALSE)),\"\")","v":""}]
[null,null,null,null,null,null,null,null,null,null,{"$f":"_xlfn.IFNA((VLOOKUP($B852,Lists!$C$2:$D$13,2,FALSE)),\"\")","v":""}]
[null,null,null,null,null,null,null,null,null,null,{"$f":"_xlfn.IFNA((VLOOKUP($B853,Lists!$C$2:$D$13,2,FALSE)),\"\")","v":""}]
[null,null,null,null,null,null,null,null,null,null,{"$f":"_xlfn.IFNA((VLOOKUP($B854,Lists!$C$2:$D$13,2,FALSE)),\"\")","v":""}]
[null,null,null,null,null,null,null,null,null,null,{"$f":"_xlfn.IFNA((VLOOKUP($B855,Lists!$C$2:$D$13,2,FALSE)),\"\")","v":""}]
[null,null,null,null,null,null,null,null,null,null,{"$f":"_xlfn.IFNA((VLOOKUP($B856,Lists!$C$2:$D$13,2,FALSE)),\"\")","v":""}]
[null,null,null,null,null,null,null,null,null,null,{"$f":"_xlfn.IFNA((VLOOKUP($B857,Lists!$C$2:$D$13,2,FALSE)),\"\")","v":""}]
[null,null,null,null,null,null,null,null,null,null,{"$f":"_xlfn.IFNA((VLOOKUP($B858,Lists!$C$2:$D$13,2,FALSE)),\"\")","v":""}]
[null,null,null,null,null,null,null,null,null,null,{"$f":"_xlfn.IFNA((VLOOKUP($B859,Lists!$C$2:$D$13,2,FALSE)),\"\")","v":""}]
[null,null,null,null,null,null,null,null,null,null,{"$f":"_xlfn.IFNA((VLOOKUP($B860,Lists!$C$2:$D$13,2,FALSE)),\"\")","v":""}]
[null,null,null,null,null,null,null,null,null,null,{"$f":"_xlfn.IFNA((VLOOKUP($B861,Lists!$C$2:$D$13,2,FALSE)),\"\")","v":""}]
[null,null,null,null,null,null,null,null,null,null,{"$f":"_xlfn.IFNA((VLOOKUP($B862,Lists!$C$2:$D$13,2,FALSE)),\"\")","v":""}]
[null,null,null,null,null,null,null,null,null,null,{"$f":"_xlfn.IFNA((VLOOKUP($B863,Lists!$C$2:$D$13,2,FALSE)),\"\")","v":""}]
[null,null,null,null,null,null,null,null,null,null,{"$f":"_xlfn.IFNA((VLOOKUP($B864,Lists!$C$2:$D$13,2,FALSE)),\"\")","v":""}]
[null,null,null,null,null,null,null,null,null,null,{"$f":"_xlfn.IFNA((VLOOKUP($B865,Lists!$C$2:$D$13,2,FALSE)),\"\")","v":""}]
[null,null,null,null,null,null,null,null,null,null,{"$f":"_xlfn.IFNA((VLOOKUP($B866,Lists!$C$2:$D$13,2,FALSE)),\"\")","v":""}]
[null,null,null,null,null,null,null,null,null,null,{"$f":"_xlfn.IFNA((VLOOKUP($B867,Lists!$C$2:$D$13,2,FALSE)),\"\")","v":""}]
[null,null,null,null,null,null,null,null,null,null,{"$f":"_xlfn.IFNA((VLOOKUP($B868,Lists!$C$2:$D$13,2,FALSE)),\"\")","v":""}]
[null,null,null,null,null,null,null,null,null,null,{"$f":"_xlfn.IFNA((VLOOKUP($B869,Lists!$C$2:$D$13,2,FALSE)),\"\")","v":""}]
[null,null,null,null,null,null,null,null,null,null,{"$f":"_xlfn.IFNA((VLOOKUP($B870,Lists!$C$2:$D$13,2,FALSE)),\"\")","v":""}]
[null,null,null,null,null,null,null,null,null,null,{"$f":"_xlfn.IFNA((VLOOKUP($B871,Lists!$C$2:$D$13,2,FALSE)),\"\")","v":""}]
[null,null,null,null,null,null,null,null,null,null,{"$f":"_xlfn.IFNA((VLOOKUP($B872,Lists!$C$2:$D$13,2,FALSE)),\"\")","v":""}]
[null,null,null,null,null,null,null,null,null,null,{"$f":"_xlfn.IFNA((VLOOKUP($B873,Lists!$C$2:$D$13,2,FALSE)),\"\")","v":""}]
[null,null,null,null,null,null,null,null,null,null,{"$f":"_xlfn.IFNA((VLOOKUP($B874,Lists!$C$2:$D$13,2,FALSE)),\"\")","v":""}]
[null,null,null,null,null,null,null,null,null,null,{"$f":"_xlfn.IFNA((VLOOKUP($B875,Lists!$C$2:$D$13,2,FALSE)),\"\")","v":""}]
[null,null,null,null,null,null,null,null,null,null,{"$f":"_xlfn.IFNA((VLOOKUP($B876,Lists!$C$2:$D$13,2,FALSE)),\"\")","v":""}]
[null,null,null,null,null,null,null,null,null,null,{"$f":"_xlfn.IFNA((VLOOKUP($B877,Lists!$C$2:$D$13,2,FALSE)),\"\")","v":""}]
[null,null,null,null,null,null,null,null,null,null,{"$f":"_xlfn.IFNA((VLOOKUP($B878,Lists!$C$2:$D$13,2,FALSE)),\"\")","v":""}]
[null,null,null,null,null,null,null,null,null,null,{"$f":"_xlfn.IFNA((VLOOKUP($B879,Lists!$C$2:$D$13,2,FALSE)),\"\")","v":""}]
[null,null,null,null,null,null,null,null,null,null,{"$f":"_xlfn.IFNA((VLOOKUP($B880,Lists!$C$2:$D$13,2,FALSE)),\"\")","v":""}]
[null,null,null,null,null,null,null,null,null,null,{"$f":"_xlfn.IFNA((VLOOKUP($B881,Lists!$C$2:$D$13,2,FALSE)),\"\")","v":""}]
[null,null,null,null,null,null,null,null,null,null,{"$f":"_xlfn.IFNA((VLOOKUP($B882,Lists!$C$2:$D$13,2,FALSE)),\"\")","v":""}]
[null,null,null,null,null,null,null,null,null,null,{"$f":"_xlfn.IFNA((VLOOKUP($B883,Lists!$C$2:$D$13,2,FALSE)),\"\")","v":""}]
[null,null,null,null,null,null,null,null,null,null,{"$f":"_xlfn.IFNA((VLOOKUP($B884,Lists!$C$2:$D$13,2,FALSE)),\"\")","v":""}]
[null,null,null,null,null,null,null,null,null,null,{"$f":"_xlfn.IFNA((VLOOKUP($B885,Lists!$C$2:$D$13,2,FALSE)),\"\")","v":""}]
[null,null,null,null,null,null,null,null,null,null,{"$f":"_xlfn.IFNA((VLOOKUP($B886,Lists!$C$2:$D$13,2,FALSE)),\"\")","v":""}]
[null,null,null,null,null,null,null,null,null,null,{"$f":"_xlfn.IFNA((VLOOKUP($B887,Lists!$C$2:$D$13,2,FALSE)),\"\")","v":""}]
[null,null,null,null,null,null,null,null,null,null,{"$f":"_xlfn.IFNA((VLOOKUP($B888,Lists!$C$2:$D$13,2,FALSE)),\"\")","v":""}]
[null,null,null,null,null,null,null,null,null,null,{"$f":"_xlfn.IFNA((VLOOKUP($B889,Lists!$C$2:$D$13,2,FALSE)),\"\")","v":""}]
[null,null,null,null,null,null,null,null,null,null,{"$f":"_xlfn.IFNA((VLOOKUP($B890,Lists!$C$2:$D$13,2,FALSE)),\"\")","v":""}]
[null,null,null,null,null,null,null,null,null,null,{"$f":"_xlfn.IFNA((VLOOKUP($B891,Lists!$C$2:$D$13,2,FALSE)),\"\")","v":""}]
[null,null,null,null,null,null,null,null,null,null,{"$f":"_xlfn.IFNA((VLOOKUP($B892,Lists!$C$2:$D$13,2,FALSE)),\"\")","v":""}]
[null,null,null,null,null,null,null,null,null,null,{"$f":"_xlfn.IFNA((VLOOKUP($B893,Lists!$C$2:$D$13,2,FALSE)),\"\")","v":""}]
[null,null,null,null,null,null,null,null,null,null,{"$f":"_xlfn.IFNA((VLOOKUP($B894,Lists!$C$2:$D$13,2,FALSE)),\"\")","v":""}]
[null,null,null,null,null,null,null,null,null,null,{"$f":"_xlfn.IFNA((VLOOKUP($B895,Lists!$C$2:$D$13,2,FALSE)),\"\")","v":""}]
[null,null,null,null,null,null,null,null,null,null,{"$f":"_xlfn.IFNA((VLOOKUP($B896,Lists!$C$2:$D$13,2,FALSE)),\"\")","v":""}]
[null,null,null,null,null,null,null,null,null,null,{"$f":"_xlfn.IFNA((VLOOKUP($B897,Lists!$C$2:$D$13,2,FALSE)),\"\")","v":""}]
[null,null,null,null,null,null,null,null,null,null,{"$f":"_xlfn.IFNA((VLOOKUP($B898,Lists!$C$2:$D$13,2,FALSE)),\"\")","v":""}]
[null,null,null,null,null,null,null,null,null,null,{"$f":"_xlfn.IFNA((VLOOKUP($B899,Lists!$C$2:$D$13,2,FALSE)),\"\")","v":""}]
[null,null,null,null,null,null,null,null,null,null,{"$f":"_xlfn.IFNA((VLOOKUP($B900,Lists!$C$2:$D$13,2,FALSE)),\"\")","v":""}]
[null,null,null,null,null,null,null,null,null,null,{"$f":"_xlfn.IFNA((VLOOKUP($B901,Lists!$C$2:$D$13,2,FALSE)),\"\")","v":""}]
[null,null,null,null,null,null,null,null,null,null,{"$f":"_xlfn.IFNA((VLOOKUP($B902,Lists!$C$2:$D$13,2,FALSE)),\"\")","v":""}]
[null,null,null,null,null,null,null,null,null,null,{"$f":"_xlfn.IFNA((VLOOKUP($B903,Lists!$C$2:$D$13,2,FALSE)),\"\")","v":""}]
[null,null,null,null,null,null,null,null,null,null,{"$f":"_xlfn.IFNA((VLOOKUP($B904,Lists!$C$2:$D$13,2,FALSE)),\"\")","v":""}]
[null,null,null,null,null,null,null,null,null,null,{"$f":"_xlfn.IFNA((VLOOKUP($B905,Lists!$C$2:$D$13,2,FALSE)),\"\")","v":""}]
[null,null,null,null,null,null,null,null,null,null,{"$f":"_xlfn.IFNA((VLOOKUP($B906,Lists!$C$2:$D$13,2,FALSE)),\"\")","v":""}]
[null,null,null,null,null,null,null,null,null,null,{"$f":"_xlfn.IFNA((VLOOKUP($B907,Lists!$C$2:$D$13,2,FALSE)),\"\")","v":""}]
[null,null,null,null,null,null,null,null,null,null,{"$f":"_xlfn.IFNA((VLOOKUP($B908,Lists!$C$2:$D$13,2,FALSE)),\"\")","v":""}]
[null,null,null,null,null,null,null,null,null,null,{"$f":"_xlfn.IFNA((VLOOKUP($B909,Lists!$C$2:$D$13,2,FALSE)),\"\")","v":""}]
[null,null,null,null,null,null,null,null,null,null,{"$f":"_xlfn.IFNA((VLOOKUP($B910,Lists!$C$2:$D$13,2,FALSE)),\"\")","v":""}]
[null,null,null,null,null,null,null,null,null,null,{"$f":"_xlfn.IFNA((VLOOKUP($B911,Lists!$C$2:$D$13,2,FALSE)),\"\")","v":""}]
[null,null,null,null,null,null,null,null,null,null,{"$f":"_xlfn.IFNA((VLOOKUP($B912,Lists!$C$2:$D$13,2,FALSE)),\"\")","v":""}]
[null,null,null,null,null,null,null,null,null,null,{"$f":"_xlfn.IFNA((VLOOKUP($B913,Lists!$C$2:$D$13,2,FALSE)),\"\")","v":""}]
[null,null,null,null,null,null,null,null,null,null,{"$f":"_xlfn.IFNA((VLOOKUP($B914,Lists!$C$2:$D$13,2,FALSE)),\"\")","v":""}]
[null,null,null,null,null,null,null,null,null,null,{"$f":"_xlfn.IFNA((VLOOKUP($B915,Lists!$C$2:$D$13,2,FALSE)),\"\")","v":""}]
[null,null,null,null,null,null,null,null,null,null,{"$f":"_xlfn.IFNA((VLOOKUP($B916,Lists!$C$2:$D$13,2,FALSE)),\"\")","v":""}]
[null,null,null,null,null,null,null,null,null,null,{"$f":"_xlfn.IFNA((VLOOKUP($B917,Lists!$C$2:$D$13,2,FALSE)),\"\")","v":""}]
[null,null,null,null,null,null,null,null,null,null,{"$f":"_xlfn.IFNA((VLOOKUP($B918,Lists!$C$2:$D$13,2,FALSE)),\"\")","v":""}]
[null,null,null,null,null,null,null,null,null,null,{"$f":"_xlfn.IFNA((VLOOKUP($B919,Lists!$C$2:$D$13,2,FALSE)),\"\")","v":""}]
[null,null,null,null,null,null,null,null,null,null,{"$f":"_xlfn.IFNA((VLOOKUP($B920,Lists!$C$2:$D$13,2,FALSE)),\"\")","v":""}]
[null,null,null,null,null,null,null,null,null,null,{"$f":"_xlfn.IFNA((VLOOKUP($B921,Lists!$C$2:$D$13,2,FALSE)),\"\")","v":""}]
[null,null,null,null,null,null,null,null,null,null,{"$f":"_xlfn.IFNA((VLOOKUP($B922,Lists!$C$2:$D$13,2,FALSE)),\"\")","v":""}]
[null,null,null,null,null,null,null,null,null,null,{"$f":"_xlfn.IFNA((VLOOKUP($B923,Lists!$C$2:$D$13,2,FALSE)),\"\")","v":""}]
[null,null,null,null,null,null,null,null,null,null,{"$f":"_xlfn.IFNA((VLOOKUP($B924,Lists!$C$2:$D$13,2,FALSE)),\"\")","v":""}]
[null,null,null,null,null,null,null,null,null,null,{"$f":"_xlfn.IFNA((VLOOKUP($B925,Lists!$C$2:$D$13,2,FALSE)),\"\")","v":""}]
[null,null,null,null,null,null,null,null,null,null,{"$f":"_xlfn.IFNA((VLOOKUP($B926,Lists!$C$2:$D$13,2,FALSE)),\"\")","v":""}]
[null,null,null,null,null,null,null,null,null,null,{"$f":"_xlfn.IFNA((VLOOKUP($B927,Lists!$C$2:$D$13,2,FALSE)),\"\")","v":""}]
[null,null,null,null,null,null,null,null,null,null,{"$f":"_xlfn.IFNA((VLOOKUP($B928,Lists!$C$2:$D$13,2,FALSE)),\"\")","v":""}]
[null,null,null,null,null,null,null,null,null,null,{"$f":"_xlfn.IFNA((VLOOKUP($B929,Lists!$C$2:$D$13,2,FALSE)),\"\")","v":""}]
[null,null,null,null,null,null,null,null,null,null,{"$f":"_xlfn.IFNA((VLOOKUP($B930,Lists!$C$2:$D$13,2,FALSE)),\"\")","v":""}]
[null,null,null,null,null,null,null,null,null,null,{"$f":"_xlfn.IFNA((VLOOKUP($B931,Lists!$C$2:$D$13,2,FALSE)),\"\")","v":""}]
[null,null,null,null,null,null,null,null,null,null,{"$f":"_xlfn.IFNA((VLOOKUP($B932,Lists!$C$2:$D$13,2,FALSE)),\"\")","v":""}]
[null,null,null,null,null,null,null,null,null,null,{"$f":"_xlfn.IFNA((VLOOKUP($B933,Lists!$C$2:$D$13,2,FALSE)),\"\")","v":""}]
[null,null,null,null,null,null,null,null,null,null,{"$f":"_xlfn.IFNA((VLOOKUP($B934,Lists!$C$2:$D$13,2,FALSE)),\"\")","v":""}]
[null,null,null,null,null,null,null,null,null,null,{"$f":"_xlfn.IFNA((VLOOKUP($B935,Lists!$C$2:$D$13,2,FALSE)),\"\")","v":""}]
[null,null,null,null,null,null,null,null,null,null,{"$f":"_xlfn.IFNA((VLOOKUP($B936,Lists!$C$2:$D$13,2,FALSE)),\"\")","v":""}]
[null,null,null,null,null,null,null,null,null,null,{"$f":"_xlfn.IFNA((VLOOKUP($B937,Lists!$C$2:$D$13,2,FALSE)),\"\")","v":""}]
[null,null,null,null,null,null,null,null,null,null,{"$f":"_xlfn.IFNA((VLOOKUP($B938,Lists!$C$2:$D$13,2,FALSE)),\"\")","v":""}]
[null,null,null,null,null,null,null,null,null,null,{"$f":"_xlfn.IFNA((VLOOKUP($B939,Lists!$C$2:$D$13,2,FALSE)),\"\")","v":""}]
[null,null,null,null,null,null,null,null,null,null,{"$f":"_xlfn.IFNA((VLOOKUP($B940,Lists!$C$2:$D$13,2,FALSE)),\"\")","v":""}]
[null,null,null,null,null,null,null,null,null,null,{"$f":"_xlfn.IFNA((VLOOKUP($B941,Lists!$C$2:$D$13,2,FALSE)),\"\")","v":""}]
[null,null,null,null,null,null,null,null,null,null,{"$f":"_xlfn.IFNA((VLOOKUP($B942,Lists!$C$2:$D$13,2,FALSE)),\"\")","v":""}]
[null,null,null,null,null,null,null,null,null,null,{"$f":"_xlfn.IFNA((VLOOKUP($B943,Lists!$C$2:$D$13,2,FALSE)),\"\")","v":""}]
[null,null,null,null,null,null,null,null,null,null,{"$f":"_xlfn.IFNA((VLOOKUP($B944,Lists!$C$2:$D$13,2,FALSE)),\"\")","v":""}]
[null,null,null,null,null,null,null,null,null,null,{"$f":"_xlfn.IFNA((VLOOKUP($B945,Lists!$C$2:$D$13,2,FALSE)),\"\")","v":""}]
[null,null,null,null,null,null,null,null,null,null,{"$f":"_xlfn.IFNA((VLOOKUP($B946,Lists!$C$2:$D$13,2,FALSE)),\"\")","v":""}]
[null,null,null,null,null,null,null,null,null,null,{"$f":"_xlfn.IFNA((VLOOKUP($B947,Lists!$C$2:$D$13,2,FALSE)),\"\")","v":""}]
[null,null,null,null,null,null,null,null,null,null,{"$f":"_xlfn.IFNA((VLOOKUP($B948,Lists!$C$2:$D$13,2,FALSE)),\"\")","v":""}]
[null,null,null,null,null,null,null,null,null,null,{"$f":"_xlfn.IFNA((VLOOKUP($B949,Lists!$C$2:$D$13,2,FALSE)),\"\")","v":""}]
[null,null,null,null,null,null,null,null,null,null,{"$f":"_xlfn.IFNA((VLOOKUP($B950,Lists!$C$2:$D$13,2,FALSE)),\"\")","v":""}]
[null,null,null,null,null,null,null,null,null,null,{"$f":"_xlfn.IFNA((VLOOKUP($B951,Lists!$C$2:$D$13,2,FALSE)),\"\")","v":""}]
[null,null,null,null,null,null,null,null,null,null,{"$f":"_xlfn.IFNA((VLOOKUP($B952,Lists!$C$2:$D$13,2,FALSE)),\"\")","v":""}]
[null,null,null,null,null,null,null,null,null,null,{"$f":"_xlfn.IFNA((VLOOKUP($B953,Lists!$C$2:$D$13,2,FALSE)),\"\")","v":""}]
[null,null,null,null,null,null,null,null,null,null,{"$f":"_xlfn.IFNA((VLOOKUP($B954,Lists!$C$2:$D$13,2,FALSE)),\"\")","v":""}]
[null,null,null,null,null,null,null,null,null,null,{"$f":"_xlfn.IFNA((VLOOKUP($B955,Lists!$C$2:$D$13,2,FALSE)),\"\")","v":""}]
[null,null,null,null,null,null,null,null,null,null,{"$f":"_xlfn.IFNA((VLOOKUP($B956,Lists!$C$2:$D$13,2,FALSE)),\"\")","v":""}]
[null,null,null,null,null,null,null,null,null,null,{"$f":"_xlfn.IFNA((VLOOKUP($B957,Lists!$C$2:$D$13,2,FALSE)),\"\")","v":""}]
[null,null,null,null,null,null,null,null,null,null,{"$f":"_xlfn.IFNA((VLOOKUP($B958,Lists!$C$2:$D$13,2,FALSE)),\"\")","v":""}]
[null,null,null,null,null,null,null,null,null,null,{"$f":"_xlfn.IFNA((VLOOKUP($B959,Lists!$C$2:$D$13,2,FALSE)),\"\")","v":""}]
[null,null,null,null,null,null,null,null,null,null,{"$f":"_xlfn.IFNA((VLOOKUP($B960,Lists!$C$2:$D$13,2,FALSE)),\"\")","v":""}]
[null,null,null,null,null,null,null,null,null,null,{"$f":"_xlfn.IFNA((VLOOKUP($B961,Lists!$C$2:$D$13,2,FALSE)),\"\")","v":""}]
[null,null,null,null,null,null,null,null,null,null,{"$f":"_xlfn.IFNA((VLOOKUP($B962,Lists!$C$2:$D$13,2,FALSE)),\"\")","v":""}]
[null,null,null,null,null,null,null,null,null,null,{"$f":"_xlfn.IFNA((VLOOKUP($B963,Lists!$C$2:$D$13,2,FALSE)),\"\")","v":""}]
[null,null,null,null,null,null,null,null,null,null,{"$f":"_xlfn.IFNA((VLOOKUP($B964,Lists!$C$2:$D$13,2,FALSE)),\"\")","v":""}]
[null,null,null,null,null,null,null,null,null,null,{"$f":"_xlfn.IFNA((VLOOKUP($B965,Lists!$C$2:$D$13,2,FALSE)),\"\")","v":""}]
[null,null,null,null,null,null,null,null,null,null,{"$f":"_xlfn.IFNA((VLOOKUP($B966,Lists!$C$2:$D$13,2,FALSE)),\"\")","v":""}]
[null,null,null,null,null,null,null,null,null,null,{"$f":"_xlfn.IFNA((VLOOKUP($B967,Lists!$C$2:$D$13,2,FALSE)),\"\")","v":""}]
[null,null,null,null,null,null,null,null,null,null,{"$f":"_xlfn.IFNA((VLOOKUP($B968,Lists!$C$2:$D$13,2,FALSE)),\"\")","v":""}]
[null,null,null,null,null,null,null,null,null,null,{"$f":"_xlfn.IFNA((VLOOKUP($B969,Lists!$C$2:$D$13,2,FALSE)),\"\")","v":""}]
[null,null,null,null,null,null,null,null,null,null,{"$f":"_xlfn.IFNA((VLOOKUP($B970,Lists!$C$2:$D$13,2,FALSE)),\"\")","v":""}]
[null,null,null,null,null,null,null,null,null,null,{"$f":"_xlfn.IFNA((VLOOKUP($B971,Lists!$C$2:$D$13,2,FALSE)),\"\")","v":""}]
[null,null,null,null,null,null,null,null,null,null,{"$f":"_xlfn.IFNA((VLOOKUP($B972,Lists!$C$2:$D$13,2,FALSE)),\"\")","v":""}]
[null,null,null,null,null,null,null,null,null,null,{"$f":"_xlfn.IFNA((VLOOKUP($B973,Lists!$C$2:$D$13,2,FALSE)),\"\")","v":""}]
[null,null,null,null,null,null,null,null,null,null,{"$f":"_xlfn.IFNA((VLOOKUP($B974,Lists!$C$2:$D$13,2,FALSE)),\"\")","v":""}]
[null,null,null,null,null,null,null,null,null,null,{"$f":"_xlfn.IFNA((VLOOKUP($B975,Lists!$C$2:$D$13,2,FALSE)),\"\")","v":""}]
[null,null,null,null,null,null,null,null,null,null,{"$f":"_xlfn.IFNA((VLOOKUP($B976,Lists!$C$2:$D$13,2,FALSE)),\"\")","v":""}]
[null,null,null,null,null,null,null,null,null,null,{"$f":"_xlfn.IFNA((VLOOKUP($B977,Lists!$C$2:$D$13,2,FALSE)),\"\")","v":""}]
[null,null,null,null,null,null,null,null,null,null,{"$f":"_xlfn.IFNA((VLOOKUP($B978,Lists!$C$2:$D$13,2,FALSE)),\"\")","v":""}]
[null,null,null,null,null,null,null,null,null,null,{"$f":"_xlfn.IFNA((VLOOKUP($B979,Lists!$C$2:$D$13,2,FALSE)),\"\")","v":""}]
[null,null,null,null,null,null,null,null,null,null,{"$f":"_xlfn.IFNA((VLOOKUP($B980,Lists!$C$2:$D$13,2,FALSE)),\"\")","v":""}]
[null,null,null,null,null,null,null,null,null,null,{"$f":"_xlfn.IFNA((VLOOKUP($B981,Lists!$C$2:$D$13,2,FALSE)),\"\")","v":""}]
[null,null,null,null,null,null,null,null,null,null,{"$f":"_xlfn.IFNA((VLOOKUP($B982,Lists!$C$2:$D$13,2,FALSE)),\"\")","v":""}]
[null,null,null,null,null,null,null,null,null,null,{"$f":"_xlfn.IFNA((VLOOKUP($B983,Lists!$C$2:$D$13,2,FALSE)),\"\")","v":""}]
[null,null,null,null,null,null,null,null,null,null,{"$f":"_xlfn.IFNA((VLOOKUP($B984,Lists!$C$2:$D$13,2,FALSE)),\"\")","v":""}]
[null,null,null,null,null,null,null,null,null,null,{"$f":"_xlfn.IFNA((VLOOKUP($B985,Lists!$C$2:$D$13,2,FALSE)),\"\")","v":""}]
[null,null,null,null,null,null,null,null,null,null,{"$f":"_xlfn.IFNA((VLOOKUP($B986,Lists!$C$2:$D$13,2,FALSE)),\"\")","v":""}]
[null,null,null,null,null,null,null,null,null,null,{"$f":"_xlfn.IFNA((VLOOKUP($B987,Lists!$C$2:$D$13,2,FALSE)),\"\")","v":""}]
[null,null,null,null,null,null,null,null,null,null,{"$f":"_xlfn.IFNA((VLOOKUP($B988,Lists!$C$2:$D$13,2,FALSE)),\"\")","v":""}]
[null,null,null,null,null,null,null,null,null,null,{"$f":"_xlfn.IFNA((VLOOKUP($B989,Lists!$C$2:$D$13,2,FALSE)),\"\")","v":""}]
[null,null,null,null,null,null,null,null,null,null,{"$f":"_xlfn.IFNA((VLOOKUP($B990,Lists!$C$2:$D$13,2,FALSE)),\"\")","v":""}]
[null,null,null,null,null,null,null,null,null,null,{"$f":"_xlfn.IFNA((VLOOKUP($B991,Lists!$C$2:$D$13,2,FALSE)),\"\")","v":""}]
[null,null,null,null,null,null,null,null,null,null,{"$f":"_xlfn.IFNA((VLOOKUP($B992,Lists!$C$2:$D$13,2,FALSE)),\"\")","v":""}]
[null,null,null,null,null,null,null,null,null,null,{"$f":"_xlfn.IFNA((VLOOKUP($B993,Lists!$C$2:$D$13,2,FALSE)),\"\")","v":""}]
[null,null,null,null,null,null,null,null,null,null,{"$f":"_xlfn.IFNA((VLOOKUP($B994,Lists!$C$2:$D$13,2,FALSE)),\"\")","v":""}]
[null,null,null,null,null,null,null,null,null,null,{"$f":"_xlfn.IFNA((VLOOKUP($B995,Lists!$C$2:$D$13,2,FALSE)),\"\")","v":""}]
[null,null,null,null,null,null,null,null,null,null,{"$f":"_xlfn.IFNA((VLOOKUP($B996,Lists!$C$2:$D$13,2,FALSE)),\"\")","v":""}]
[null,null,null,null,null,null,null,null,null,null,{"$f":"_xlfn.IFNA((VLOOKUP($B997,Lists!$C$2:$D$13,2,FALSE)),\"\")","v":""}]
[null,null,null,null,null,null,null,null,null,null,{"$f":"_xlfn.IFNA((VLOOKUP($B998,Lists!$C$2:$D$13,2,FALSE)),\"\")","v":""}]
[null,null,null,null,null,null,null,null,null,null,{"$f":"_xlfn.IFNA((VLOOKUP($B999,Lists!$C$2:$D$13,2,FALSE)),\"\")","v":""}]
[null,null,null,null,null,null,null,null,null,null,{"$f":"_xlfn.IFNA((VLOOKUP($B1000,Lists!$C$2:$D$13,2,FALSE)),\"\")","v":""}]
[null,null,null,null,null,null,null,null,null,null,{"$f":"_xlfn.IFNA((VLOOKUP($B1001,Lists!$C$2:$D$13,2,FALSE)),\"\")","v":""}]
[null,null,null,null,null,null,null,null,null,null,{"$f":"_xlfn.IFNA((VLOOKUP($B1002,Lists!$C$2:$D$13,2,FALSE)),\"\")","v":""}]
[null,null,null,null,null,null,null,null,null,null,{"$f":"_xlfn.IFNA((VLOOKUP($B1003,Lists!$C$2:$D$13,2,FALSE)),\"\")","v":""}]
[null,null,null,null,null,null,null,null,null,null,{"$f":"_xlfn.IFNA((VLOOKUP($B1004,Lists!$C$2:$D$13,2,FALSE)),\"\")","v":""}]
[null,null,null,null,null,null,null,null,null,null,{"$f":"_xlfn.IFNA((VLOOKUP($B1005,Lists!$C$2:$D$13,2,FALSE)),\"\")","v":""}]
[null,null,null,null,null,null,null,null,null,null,{"$f":"_xlfn.IFNA((VLOOKUP($B1006,Lists!$C$2:$D$13,2,FALSE)),\"\")","v":""}]
[null,null,null,null,null,null,null,null,null,null,{"$f":"_xlfn.IFNA((VLOOKUP($B1007,Lists!$C$2:$D$13,2,FALSE)),\"\")","v":""}]
[null,null,null,null,null,null,null,null,null,null,{"$f":"_xlfn.IFNA((VLOOKUP($B1008,Lists!$C$2:$D$13,2,FALSE)),\"\")","v":""}]
[null,null,null,null,null,null,null,null,null,null,{"$f":"_xlfn.IFNA((VLOOKUP($B1009,Lists!$C$2:$D$13,2,FALSE)),\"\")","v":""}]
[null,null,null,null,null,null,null,null,null,null,{"$f":"_xlfn.IFNA((VLOOKUP($B1010,Lists!$C$2:$D$13,2,FALSE)),\"\")","v":""}]
[null,null,null,null,null,null,null,null,null,null,{"$f":"_xlfn.IFNA((VLOOKUP($B1011,Lists!$C$2:$D$13,2,FALSE)),\"\")","v":""}]
[null,null,null,null,null,null,null,null,null,null,{"$f":"_xlfn.IFNA((VLOOKUP($B1012,Lists!$C$2:$D$13,2,FALSE)),\"\")","v":""}]
[null,null,null,null,null,null,null,null,null,null,{"$f":"_xlfn.IFNA((VLOOKUP($B1013,Lists!$C$2:$D$13,2,FALSE)),\"\")","v":""}]
[null,null,null,null,null,null,null,null,null,null,{"$f":"_xlfn.IFNA((VLOOKUP($B1014,Lists!$C$2:$D$13,2,FALSE)),\"\")","v":""}]
[null,null,null,null,null,null,null,null,null,null,{"$f":"_xlfn.IFNA((VLOOKUP($B1015,Lists!$C$2:$D$13,2,FALSE)),\"\")","v":""}]
[null,null,null,null,null,null,null,null,null,null,{"$f":"_xlfn.IFNA((VLOOKUP($B1016,Lists!$C$2:$D$13,2,FALSE)),\"\")","v":""}]
[null,null,null,null,null,null,null,null,null,null,{"$f":"_xlfn.IFNA((VLOOKUP($B1017,Lists!$C$2:$D$13,2,FALSE)),\"\")","v":""}]
[null,null,null,null,null,null,null,null,null,null,{"$f":"_xlfn.IFNA((VLOOKUP($B1018,Lists!$C$2:$D$13,2,FALSE)),\"\")","v":""}]
[null,null,null,null,null,null,null,null,null,null,{"$f":"_xlfn.IFNA((VLOOKUP($B1019,Lists!$C$2:$D$13,2,FALSE)),\"\")","v":""}]
[null,null,null,null,null,null,null,null,null,null,{"$f":"_xlfn.IFNA((VLOOKUP($B1020,Lists!$C$2:$D$13,2,FALSE)),\"\")","v":""}]
[null,null,null,null,null,null,null,null,null,null,{"$f":"_xlfn.IFNA((VLOOKUP($B1021,Lists!$C$2:$D$13,2,FALSE)),\"\")","v":""}]
[null,null,null,null,null,null,null,null,null,null,{"$f":"_xlfn.IFNA((VLOOKUP($B1022,Lists!$C$2:$D$13,2,FALSE)),\"\")","v":""}]
[null,null,null,null,null,null,null,null,null,null,{"$f":"_xlfn.IFNA((VLOOKUP($B1023,Lists!$C$2:$D$13,2,FALSE)),\"\")","v":""}]
[null,null,null,null,null,null,null,null,null,null,{"$f":"_xlfn.IFNA((VLOOKUP($B1024,Lists!$C$2:$D$13,2,FALSE)),\"\")","v":""}]
[null,null,null,null,null,null,null,null,null,null,{"$f":"_xlfn.IFNA((VLOOKUP($B1025,Lists!$C$2:$D$13,2,FALSE)),\"\")","v":""}]
[null,null,null,null,null,null,null,null,null,null,{"$f":"_xlfn.IFNA((VLOOKUP($B1026,Lists!$C$2:$D$13,2,FALSE)),\"\")","v":""}]
[null,null,null,null,null,null,null,null,null,null,{"$f":"_xlfn.IFNA((VLOOKUP($B1027,Lists!$C$2:$D$13,2,FALSE)),\"\")","v":""}]
[null,null,null,null,null,null,null,null,null,null,{"$f":"_xlfn.IFNA((VLOOKUP($B1028,Lists!$C$2:$D$13,2,FALSE)),\"\")","v":""}]
[null,null,null,null,null,null,null,null,null,null,{"$f":"_xlfn.IFNA((VLOOKUP($B1029,Lists!$C$2:$D$13,2,FALSE)),\"\")","v":""}]
[null,null,null,null,null,null,null,null,null,null,{"$f":"_xlfn.IFNA((VLOOKUP($B1030,Lists!$C$2:$D$13,2,FALSE)),\"\")","v":""}]
[null,null,null,null,null,null,null,null,null,null,{"$f":"_xlfn.IFNA((VLOOKUP($B1031,Lists!$C$2:$D$13,2,FALSE)),\"\")","v":""}]
[null,null,null,null,null,null,null,null,null,null,{"$f":"_xlfn.IFNA((VLOOKUP($B1032,Lists!$C$2:$D$13,2,FALSE)),\"\")","v":""}]
[null,null,null,null,null,null,null,null,null,null,{"$f":"_xlfn.IFNA((VLOOKUP($B1033,Lists!$C$2:$D$13,2,FALSE)),\"\")","v":""}]
[null,null,null,null,null,null,null,null,null,null,{"$f":"_xlfn.IFNA((VLOOKUP($B1034,Lists!$C$2:$D$13,2,FALSE)),\"\")","v":""}]
[null,null,null,null,null,null,null,null,null,null,{"$f":"_xlfn.IFNA((VLOOKUP($B1035,Lists!$C$2:$D$13,2,FALSE)),\"\")","v":""}]
[null,null,null,null,null,null,null,null,null,null,{"$f":"_xlfn.IFNA((VLOOKUP($B1036,Lists!$C$2:$D$13,2,FALSE)),\"\")","v":""}]
[null,null,null,null,null,null,null,null,null,null,{"$f":"_xlfn.IFNA((VLOOKUP($B1037,Lists!$C$2:$D$13,2,FALSE)),\"\")","v":""}]
[null,null,null,null,null,null,null,null,null,null,{"$f":"_xlfn.IFNA((VLOOKUP($B1038,Lists!$C$2:$D$13,2,FALSE)),\"\")","v":""}]
[null,null,null,null,null,null,null,null,null,null,{"$f":"_xlfn.IFNA((VLOOKUP($B1039,Lists!$C$2:$D$13,2,FALSE)),\"\")","v":""}]
[null,null,null,null,null,null,null,null,null,null,{"$f":"_xlfn.IFNA((VLOOKUP($B1040,Lists!$C$2:$D$13,2,FALSE)),\"\")","v":""}]
[null,null,null,null,null,null,null,null,null,null,{"$f":"_xlfn.IFNA((VLOOKUP($B1041,Lists!$C$2:$D$13,2,FALSE)),\"\")","v":""}]
[null,null,null,null,null,null,null,null,null,null,{"$f":"_xlfn.IFNA((VLOOKUP($B1042,Lists!$C$2:$D$13,2,FALSE)),\"\")","v":""}]
[null,null,null,null,null,null,null,null,null,null,{"$f":"_xlfn.IFNA((VLOOKUP($B1043,Lists!$C$2:$D$13,2,FALSE)),\"\")","v":""}]
[null,null,null,null,null,null,null,null,null,null,{"$f":"_xlfn.IFNA((VLOOKUP($B1044,Lists!$C$2:$D$13,2,FALSE)),\"\")","v":""}]
[null,null,null,null,null,null,null,null,null,null,{"$f":"_xlfn.IFNA((VLOOKUP($B1045,Lists!$C$2:$D$13,2,FALSE)),\"\")","v":""}]
[null,null,null,null,null,null,null,null,null,null,{"$f":"_xlfn.IFNA((VLOOKUP($B1046,Lists!$C$2:$D$13,2,FALSE)),\"\")","v":""}]
[null,null,null,null,null,null,null,null,null,null,{"$f":"_xlfn.IFNA((VLOOKUP($B1047,Lists!$C$2:$D$13,2,FALSE)),\"\")","v":""}]
[null,null,null,null,null,null,null,null,null,null,{"$f":"_xlfn.IFNA((VLOOKUP($B1048,Lists!$C$2:$D$13,2,FALSE)),\"\")","v":""}]
[null,null,null,null,null,null,null,null,null,null,{"$f":"_xlfn.IFNA((VLOOKUP($B1049,Lists!$C$2:$D$13,2,FALSE)),\"\")","v":""}]
[null,null,null,null,null,null,null,null,null,null,{"$f":"_xlfn.IFNA((VLOOKUP($B1050,Lists!$C$2:$D$13,2,FALSE)),\"\")","v":""}]
[null,null,null,null,null,null,null,null,null,null,{"$f":"_xlfn.IFNA((VLOOKUP($B1051,Lists!$C$2:$D$13,2,FALSE)),\"\")","v":""}]
[null,null,null,null,null,null,null,null,null,null,{"$f":"_xlfn.IFNA((VLOOKUP($B1052,Lists!$C$2:$D$13,2,FALSE)),\"\")","v":""}]
[null,null,null,null,null,null,null,null,null,null,{"$f":"_xlfn.IFNA((VLOOKUP($B1053,Lists!$C$2:$D$13,2,FALSE)),\"\")","v":""}]
[null,null,null,null,null,null,null,null,null,null,{"$f":"_xlfn.IFNA((VLOOKUP($B1054,Lists!$C$2:$D$13,2,FALSE)),\"\")","v":""}]
[null,null,null,null,null,null,null,null,null,null,{"$f":"_xlfn.IFNA((VLOOKUP($B1055,Lists!$C$2:$D$13,2,FALSE)),\"\")","v":""}]
[null,null,null,null,null,null,null,null,null,null,{"$f":"_xlfn.IFNA((VLOOKUP($B1056,Lists!$C$2:$D$13,2,FALSE)),\"\")","v":""}]
[null,null,null,null,null,null,null,null,null,null,{"$f":"_xlfn.IFNA((VLOOKUP($B1057,Lists!$C$2:$D$13,2,FALSE)),\"\")","v":""}]
[null,null,null,null,null,null,null,null,null,null,{"$f":"_xlfn.IFNA((VLOOKUP($B1058,Lists!$C$2:$D$13,2,FALSE)),\"\")","v":""}]
[null,null,null,null,null,null,null,null,null,null,{"$f":"_xlfn.IFNA((VLOOKUP($B1059,Lists!$C$2:$D$13,2,FALSE)),\"\")","v":""}]
[null,null,null,null,null,null,null,null,null,null,{"$f":"_xlfn.IFNA((VLOOKUP($B1060,Lists!$C$2:$D$13,2,FALSE)),\"\")","v":""}]
[null,null,null,null,null,null,null,null,null,null,{"$f":"_xlfn.IFNA((VLOOKUP($B1061,Lists!$C$2:$D$13,2,FALSE)),\"\")","v":""}]
[null,null,null,null,null,null,null,null,null,null,{"$f":"_xlfn.IFNA((VLOOKUP($B1062,Lists!$C$2:$D$13,2,FALSE)),\"\")","v":""}]
[null,null,null,null,null,null,null,null,null,null,{"$f":"_xlfn.IFNA((VLOOKUP($B1063,Lists!$C$2:$D$13,2,FALSE)),\"\")","v":""}]
[null,null,null,null,null,null,null,null,null,null,{"$f":"_xlfn.IFNA((VLOOKUP($B1064,Lists!$C$2:$D$13,2,FALSE)),\"\")","v":""}]
[null,null,null,null,null,null,null,null,null,null,{"$f":"_xlfn.IFNA((VLOOKUP($B1065,Lists!$C$2:$D$13,2,FALSE)),\"\")","v":""}]
[null,null,null,null,null,null,null,null,null,null,{"$f":"_xlfn.IFNA((VLOOKUP($B1066,Lists!$C$2:$D$13,2,FALSE)),\"\")","v":""}]
[null,null,null,null,null,null,null,null,null,null,{"$f":"_xlfn.IFNA((VLOOKUP($B1067,Lists!$C$2:$D$13,2,FALSE)),\"\")","v":""}]
[null,null,null,null,null,null,null,null,null,null,{"$f":"_xlfn.IFNA((VLOOKUP($B1068,Lists!$C$2:$D$13,2,FALSE)),\"\")","v":""}]
[null,null,null,null,null,null,null,null,null,null,{"$f":"_xlfn.IFNA((VLOOKUP($B1069,Lists!$C$2:$D$13,2,FALSE)),\"\")","v":""}]
[null,null,null,null,null,null,null,null,null,null,{"$f":"_xlfn.IFNA((VLOOKUP($B1070,Lists!$C$2:$D$13,2,FALSE)),\"\")","v":""}]
[null,null,null,null,null,null,null,null,null,null,{"$f":"_xlfn.IFNA((VLOOKUP($B1071,Lists!$C$2:$D$13,2,FALSE)),\"\")","v":""}]
[null,null,null,null,null,null,null,null,null,null,{"$f":"_xlfn.IFNA((VLOOKUP($B1072,Lists!$C$2:$D$13,2,FALSE)),\"\")","v":""}]
[null,null,null,null,null,null,null,null,null,null,{"$f":"_xlfn.IFNA((VLOOKUP($B1073,Lists!$C$2:$D$13,2,FALSE)),\"\")","v":""}]
[null,null,null,null,null,null,null,null,null,null,{"$f":"_xlfn.IFNA((VLOOKUP($B1074,Lists!$C$2:$D$13,2,FALSE)),\"\")","v":""}]
[null,null,null,null,null,null,null,null,null,null,{"$f":"_xlfn.IFNA((VLOOKUP($B1075,Lists!$C$2:$D$13,2,FALSE)),\"\")","v":""}]
[null,null,null,null,null,null,null,null,null,null,{"$f":"_xlfn.IFNA((VLOOKUP($B1076,Lists!$C$2:$D$13,2,FALSE)),\"\")","v":""}]
[null,null,null,null,null,null,null,null,null,null,{"$f":"_xlfn.IFNA((VLOOKUP($B1077,Lists!$C$2:$D$13,2,FALSE)),\"\")","v":""}]
[null,null,null,null,null,null,null,null,null,null,{"$f":"_xlfn.IFNA((VLOOKUP($B1078,Lists!$C$2:$D$13,2,FALSE)),\"\")","v":""}]
[null,null,null,null,null,null,null,null,null,null,{"$f":"_xlfn.IFNA((VLOOKUP($B1079,Lists!$C$2:$D$13,2,FALSE)),\"\")","v":""}]
[null,null,null,null,null,null,null,null,null,null,{"$f":"_xlfn.IFNA((VLOOKUP($B1080,Lists!$C$2:$D$13,2,FALSE)),\"\")","v":""}]
[null,null,null,null,null,null,null,null,null,null,{"$f":"_xlfn.IFNA((VLOOKUP($B1081,Lists!$C$2:$D$13,2,FALSE)),\"\")","v":""}]
[null,null,null,null,null,null,null,null,null,null,{"$f":"_xlfn.IFNA((VLOOKUP($B1082,Lists!$C$2:$D$13,2,FALSE)),\"\")","v":""}]
[null,null,null,null,null,null,null,null,null,null,{"$f":"_xlfn.IFNA((VLOOKUP($B1083,Lists!$C$2:$D$13,2,FALSE)),\"\")","v":""}]
[null,null,null,null,null,null,null,null,null,null,{"$f":"_xlfn.IFNA((VLOOKUP($B1084,Lists!$C$2:$D$13,2,FALSE)),\"\")","v":""}]
[null,null,null,null,null,null,null,null,null,null,{"$f":"_xlfn.IFNA((VLOOKUP($B1085,Lists!$C$2:$D$13,2,FALSE)),\"\")","v":""}]
[null,null,null,null,null,null,null,null,null,null,{"$f":"_xlfn.IFNA((VLOOKUP($B1086,Lists!$C$2:$D$13,2,FALSE)),\"\")","v":""}]
[null,null,null,null,null,null,null,null,null,null,{"$f":"_xlfn.IFNA((VLOOKUP($B1087,Lists!$C$2:$D$13,2,FALSE)),\"\")","v":""}]
[null,null,null,null,null,null,null,null,null,null,{"$f":"_xlfn.IFNA((VLOOKUP($B1088,Lists!$C$2:$D$13,2,FALSE)),\"\")","v":""}]
[null,null,null,null,null,null,null,null,null,null,{"$f":"_xlfn.IFNA((VLOOKUP($B1089,Lists!$C$2:$D$13,2,FALSE)),\"\")","v":""}]
[null,null,null,null,null,null,null,null,null,null,{"$f":"_xlfn.IFNA((VLOOKUP($B1090,Lists!$C$2:$D$13,2,FALSE)),\"\")","v":""}]
[null,null,null,null,null,null,null,null,null,null,{"$f":"_xlfn.IFNA((VLOOKUP($B1091,Lists!$C$2:$D$13,2,FALSE)),\"\")","v":""}]
[null,null,null,null,null,null,null,null,null,null,{"$f":"_xlfn.IFNA((VLOOKUP($B1092,Lists!$C$2:$D$13,2,FALSE)),\"\")","v":""}]
[null,null,null,null,null,null,null,null,null,null,{"$f":"_xlfn.IFNA((VLOOKUP($B1093,Lists!$C$2:$D$13,2,FALSE)),\"\")","v":""}]
[null,null,null,null,null,null,null,null,null,null,{"$f":"_xlfn.IFNA((VLOOKUP($B1094,Lists!$C$2:$D$13,2,FALSE)),\"\")","v":""}]
[null,null,null,null,null,null,null,null,null,null,{"$f":"_xlfn.IFNA((VLOOKUP($B1095,Lists!$C$2:$D$13,2,FALSE)),\"\")","v":""}]
[null,null,null,null,null,null,null,null,null,null,{"$f":"_xlfn.IFNA((VLOOKUP($B1096,Lists!$C$2:$D$13,2,FALSE)),\"\")","v":""}]
[null,null,null,null,null,null,null,null,null,null,{"$f":"_xlfn.IFNA((VLOOKUP($B1097,Lists!$C$2:$D$13,2,FALSE)),\"\")","v":""}]
[null,null,null,null,null,null,null,null,null,null,{"$f":"_xlfn.IFNA((VLOOKUP($B1098,Lists!$C$2:$D$13,2,FALSE)),\"\")","v":""}]
[null,null,null,null,null,null,null,null,null,null,{"$f":"_xlfn.IFNA((VLOOKUP($B1099,Lists!$C$2:$D$13,2,FALSE)),\"\")","v":""}]
[null,null,null,null,null,null,null,null,null,null,{"$f":"_xlfn.IFNA((VLOOKUP($B1100,Lists!$C$2:$D$13,2,FALSE)),\"\")","v":""}]
[null,null,null,null,null,null,null,null,null,null,{"$f":"_xlfn.IFNA((VLOOKUP($B1101,Lists!$C$2:$D$13,2,FALSE)),\"\")","v":""}]
[null,null,null,null,null,null,null,null,null,null,{"$f":"_xlfn.IFNA((VLOOKUP($B1102,Lists!$C$2:$D$13,2,FALSE)),\"\")","v":""}]
[null,null,null,null,null,null,null,null,null,null,{"$f":"_xlfn.IFNA((VLOOKUP($B1103,Lists!$C$2:$D$13,2,FALSE)),\"\")","v":""}]
[null,null,null,null,null,null,null,null,null,null,{"$f":"_xlfn.IFNA((VLOOKUP($B1104,Lists!$C$2:$D$13,2,FALSE)),\"\")","v":""}]
[null,null,null,null,null,null,null,null,null,null,{"$f":"_xlfn.IFNA((VLOOKUP($B1105,Lists!$C$2:$D$13,2,FALSE)),\"\")","v":""}]
[null,null,null,null,null,null,null,null,null,null,{"$f":"_xlfn.IFNA((VLOOKUP($B1106,Lists!$C$2:$D$13,2,FALSE)),\"\")","v":""}]
[null,null,null,null,null,null,null,null,null,null,{"$f":"_xlfn.IFNA((VLOOKUP($B1107,Lists!$C$2:$D$13,2,FALSE)),\"\")","v":""}]
[null,null,null,null,null,null,null,null,null,null,{"$f":"_xlfn.IFNA((VLOOKUP($B1108,Lists!$C$2:$D$13,2,FALSE)),\"\")","v":""}]
[null,null,null,null,null,null,null,null,null,null,{"$f":"_xlfn.IFNA((VLOOKUP($B1109,Lists!$C$2:$D$13,2,FALSE)),\"\")","v":""}]
[null,null,null,null,null,null,null,null,null,null,{"$f":"_xlfn.IFNA((VLOOKUP($B1110,Lists!$C$2:$D$13,2,FALSE)),\"\")","v":""}]
[null,null,null,null,null,null,null,null,null,null,{"$f":"_xlfn.IFNA((VLOOKUP($B1111,Lists!$C$2:$D$13,2,FALSE)),\"\")","v":""}]
[null,null,null,null,null,null,null,null,null,null,{"$f":"_xlfn.IFNA((VLOOKUP($B1112,Lists!$C$2:$D$13,2,FALSE)),\"\")","v":""}]
[null,null,null,null,null,null,null,null,null,null,{"$f":"_xlfn.IFNA((VLOOKUP($B1113,Lists!$C$2:$D$13,2,FALSE)),\"\")","v":""}]
[null,null,null,null,null,null,null,null,null,null,{"$f":"_xlfn.IFNA((VLOOKUP($B1114,Lists!$C$2:$D$13,2,FALSE)),\"\")","v":""}]
[null,null,null,null,null,null,null,null,null,null,{"$f":"_xlfn.IFNA((VLOOKUP($B1115,Lists!$C$2:$D$13,2,FALSE)),\"\")","v":""}]
[null,null,null,null,null,null,null,null,null,null,{"$f":"_xlfn.IFNA((VLOOKUP($B1116,Lists!$C$2:$D$13,2,FALSE)),\"\")","v":""}]
[null,null,null,null,null,null,null,null,null,null,{"$f":"_xlfn.IFNA((VLOOKUP($B1117,Lists!$C$2:$D$13,2,FALSE)),\"\")","v":""}]
[null,null,null,null,null,null,null,null,null,null,{"$f":"_xlfn.IFNA((VLOOKUP($B1118,Lists!$C$2:$D$13,2,FALSE)),\"\")","v":""}]
[null,null,null,null,null,null,null,null,null,null,{"$f":"_xlfn.IFNA((VLOOKUP($B1119,Lists!$C$2:$D$13,2,FALSE)),\"\")","v":""}]
[null,null,null,null,null,null,null,null,null,null,{"$f":"_xlfn.IFNA((VLOOKUP($B1120,Lists!$C$2:$D$13,2,FALSE)),\"\")","v":""}]
[null,null,null,null,null,null,null,null,null,null,{"$f":"_xlfn.IFNA((VLOOKUP($B1121,Lists!$C$2:$D$13,2,FALSE)),\"\")","v":""}]
[null,null,null,null,null,null,null,null,null,null,{"$f":"_xlfn.IFNA((VLOOKUP($B1122,Lists!$C$2:$D$13,2,FALSE)),\"\")","v":""}]
[null,null,null,null,null,null,null,null,null,null,{"$f":"_xlfn.IFNA((VLOOKUP($B1123,Lists!$C$2:$D$13,2,FALSE)),\"\")","v":""}]
[null,null,null,null,null,null,null,null,null,null,{"$f":"_xlfn.IFNA((VLOOKUP($B1124,Lists!$C$2:$D$13,2,FALSE)),\"\")","v":""}]
[null,null,null,null,null,null,null,null,null,null,{"$f":"_xlfn.IFNA((VLOOKUP($B1125,Lists!$C$2:$D$13,2,FALSE)),\"\")","v":""}]
[null,null,null,null,null,null,null,null,null,null,{"$f":"_xlfn.IFNA((VLOOKUP($B1126,Lists!$C$2:$D$13,2,FALSE)),\"\")","v":""}]
[null,null,null,null,null,null,null,null,null,null,{"$f":"_xlfn.IFNA((VLOOKUP($B1127,Lists!$C$2:$D$13,2,FALSE)),\"\")","v":""}]
[null,null,null,null,null,null,null,null,null,null,{"$f":"_xlfn.IFNA((VLOOKUP($B1128,Lists!$C$2:$D$13,2,FALSE)),\"\")","v":""}]
[null,null,null,null,null,null,null,null,null,null,{"$f":"_xlfn.IFNA((VLOOKUP($B1129,Lists!$C$2:$D$13,2,FALSE)),\"\")","v":""}]
[null,null,null,null,null,null,null,null,null,null,{"$f":"_xlfn.IFNA((VLOOKUP($B1130,Lists!$C$2:$D$13,2,FALSE)),\"\")","v":""}]
[null,null,null,null,null,null,null,null,null,null,{"$f":"_xlfn.IFNA((VLOOKUP($B1131,Lists!$C$2:$D$13,2,FALSE)),\"\")","v":""}]
[null,null,null,null,null,null,null,null,null,null,{"$f":"_xlfn.IFNA((VLOOKUP($B1132,Lists!$C$2:$D$13,2,FALSE)),\"\")","v":""}]
[null,null,null,null,null,null,null,null,null,null,{"$f":"_xlfn.IFNA((VLOOKUP($B1133,Lists!$C$2:$D$13,2,FALSE)),\"\")","v":""}]
[null,null,null,null,null,null,null,null,null,null,{"$f":"_xlfn.IFNA((VLOOKUP($B1134,Lists!$C$2:$D$13,2,FALSE)),\"\")","v":""}]
[null,null,null,null,null,null,null,null,null,null,{"$f":"_xlfn.IFNA((VLOOKUP($B1135,Lists!$C$2:$D$13,2,FALSE)),\"\")","v":""}]
[null,null,null,null,null,null,null,null,null,null,{"$f":"_xlfn.IFNA((VLOOKUP($B1136,Lists!$C$2:$D$13,2,FALSE)),\"\")","v":""}]
[null,null,null,null,null,null,null,null,null,null,{"$f":"_xlfn.IFNA((VLOOKUP($B1137,Lists!$C$2:$D$13,2,FALSE)),\"\")","v":""}]
[null,null,null,null,null,null,null,null,null,null,{"$f":"_xlfn.IFNA((VLOOKUP($B1138,Lists!$C$2:$D$13,2,FALSE)),\"\")","v":""}]
[null,null,null,null,null,null,null,null,null,null,{"$f":"_xlfn.IFNA((VLOOKUP($B1139,Lists!$C$2:$D$13,2,FALSE)),\"\")","v":""}]
[null,null,null,null,null,null,null,null,null,null,{"$f":"_xlfn.IFNA((VLOOKUP($B1140,Lists!$C$2:$D$13,2,FALSE)),\"\")","v":""}]
[null,null,null,null,null,null,null,null,null,null,{"$f":"_xlfn.IFNA((VLOOKUP($B1141,Lists!$C$2:$D$13,2,FALSE)),\"\")","v":""}]
[null,null,null,null,null,null,null,null,null,null,{"$f":"_xlfn.IFNA((VLOOKUP($B1142,Lists!$C$2:$D$13,2,FALSE)),\"\")","v":""}]
[null,null,null,null,null,null,null,null,null,null,{"$f":"_xlfn.IFNA((VLOOKUP($B1143,Lists!$C$2:$D$13,2,FALSE)),\"\")","v":""}]
[null,null,null,null,null,null,null,null,null,null,{"$f":"_xlfn.IFNA((VLOOKUP($B1144,Lists!$C$2:$D$13,2,FALSE)),\"\")","v":""}]
[null,null,null,null,null,null,null,null,null,null,{"$f":"_xlfn.IFNA((VLOOKUP($B1145,Lists!$C$2:$D$13,2,FALSE)),\"\")","v":""}]
[null,null,null,null,null,null,null,null,null,null,{"$f":"_xlfn.IFNA((VLOOKUP($B1146,Lists!$C$2:$D$13,2,FALSE)),\"\")","v":""}]
[null,null,null,null,null,null,null,null,null,null,{"$f":"_xlfn.IFNA((VLOOKUP($B1147,Lists!$C$2:$D$13,2,FALSE)),\"\")","v":""}]
[null,null,null,null,null,null,null,null,null,null,{"$f":"_xlfn.IFNA((VLOOKUP($B1148,Lists!$C$2:$D$13,2,FALSE)),\"\")","v":""}]
[null,null,null,null,null,null,null,null,null,null,{"$f":"_xlfn.IFNA((VLOOKUP($B1149,Lists!$C$2:$D$13,2,FALSE)),\"\")","v":""}]
[null,null,null,null,null,null,null,null,null,null,{"$f":"_xlfn.IFNA((VLOOKUP($B1150,Lists!$C$2:$D$13,2,FALSE)),\"\")","v":""}]
[null,null,null,null,null,null,null,null,null,null,{"$f":"_xlfn.IFNA((VLOOKUP($B1151,Lists!$C$2:$D$13,2,FALSE)),\"\")","v":""}]
[null,null,null,null,null,null,null,null,null,null,{"$f":"_xlfn.IFNA((VLOOKUP($B1152,Lists!$C$2:$D$13,2,FALSE)),\"\")","v":""}]
[null,null,null,null,null,null,null,null,null,null,{"$f":"_xlfn.IFNA((VLOOKUP($B1153,Lists!$C$2:$D$13,2,FALSE)),\"\")","v":""}]
[null,null,null,null,null,null,null,null,null,null,{"$f":"_xlfn.IFNA((VLOOKUP($B1154,Lists!$C$2:$D$13,2,FALSE)),\"\")","v":""}]
[null,null,null,null,null,null,null,null,null,null,{"$f":"_xlfn.IFNA((VLOOKUP($B1155,Lists!$C$2:$D$13,2,FALSE)),\"\")","v":""}]
[null,null,null,null,null,null,null,null,null,null,{"$f":"_xlfn.IFNA((VLOOKUP($B1156,Lists!$C$2:$D$13,2,FALSE)),\"\")","v":""}]
[null,null,null,null,null,null,null,null,null,null,{"$f":"_xlfn.IFNA((VLOOKUP($B1157,Lists!$C$2:$D$13,2,FALSE)),\"\")","v":""}]
[null,null,null,null,null,null,null,null,null,null,{"$f":"_xlfn.IFNA((VLOOKUP($B1158,Lists!$C$2:$D$13,2,FALSE)),\"\")","v":""}]
[null,null,null,null,null,null,null,null,null,null,{"$f":"_xlfn.IFNA((VLOOKUP($B1159,Lists!$C$2:$D$13,2,FALSE)),\"\")","v":""}]
[null,null,null,null,null,null,null,null,null,null,{"$f":"_xlfn.IFNA((VLOOKUP($B1160,Lists!$C$2:$D$13,2,FALSE)),\"\")","v":""}]
[null,null,null,null,null,null,null,null,null,null,{"$f":"_xlfn.IFNA((VLOOKUP($B1161,Lists!$C$2:$D$13,2,FALSE)),\"\")","v":""}]
[null,null,null,null,null,null,null,null,null,null,{"$f":"_xlfn.IFNA((VLOOKUP($B1162,Lists!$C$2:$D$13,2,FALSE)),\"\")","v":""}]
[null,null,null,null,null,null,null,null,null,null,{"$f":"_xlfn.IFNA((VLOOKUP($B1163,Lists!$C$2:$D$13,2,FALSE)),\"\")","v":""}]
[null,null,null,null,null,null,null,null,null,null,{"$f":"_xlfn.IFNA((VLOOKUP($B1164,Lists!$C$2:$D$13,2,FALSE)),\"\")","v":""}]
[null,null,null,null,null,null,null,null,null,null,{"$f":"_xlfn.IFNA((VLOOKUP($B1165,Lists!$C$2:$D$13,2,FALSE)),\"\")","v":""}]
[null,null,null,null,null,null,null,null,null,null,{"$f":"_xlfn.IFNA((VLOOKUP($B1166,Lists!$C$2:$D$13,2,FALSE)),\"\")","v":""}]
[null,null,null,null,null,null,null,null,null,null,{"$f":"_xlfn.IFNA((VLOOKUP($B1167,Lists!$C$2:$D$13,2,FALSE)),\"\")","v":""}]
[null,null,null,null,null,null,null,null,null,null,{"$f":"_xlfn.IFNA((VLOOKUP($B1168,Lists!$C$2:$D$13,2,FALSE)),\"\")","v":""}]
[null,null,null,null,null,null,null,null,null,null,{"$f":"_xlfn.IFNA((VLOOKUP($B1169,Lists!$C$2:$D$13,2,FALSE)),\"\")","v":""}]
[null,null,null,null,null,null,null,null,null,null,{"$f":"_xlfn.IFNA((VLOOKUP($B1170,Lists!$C$2:$D$13,2,FALSE)),\"\")","v":""}]
[null,null,null,null,null,null,null,null,null,null,{"$f":"_xlfn.IFNA((VLOOKUP($B1171,Lists!$C$2:$D$13,2,FALSE)),\"\")","v":""}]
[null,null,null,null,null,null,null,null,null,null,{"$f":"_xlfn.IFNA((VLOOKUP($B1172,Lists!$C$2:$D$13,2,FALSE)),\"\")","v":""}]
[null,null,null,null,null,null,null,null,null,null,{"$f":"_xlfn.IFNA((VLOOKUP($B1173,Lists!$C$2:$D$13,2,FALSE)),\"\")","v":""}]
[null,null,null,null,null,null,null,null,null,null,{"$f":"_xlfn.IFNA((VLOOKUP($B1174,Lists!$C$2:$D$13,2,FALSE)),\"\")","v":""}]
[null,null,null,null,null,null,null,null,null,null,{"$f":"_xlfn.IFNA((VLOOKUP($B1175,Lists!$C$2:$D$13,2,FALSE)),\"\")","v":""}]
[null,null,null,null,null,null,null,null,null,null,{"$f":"_xlfn.IFNA((VLOOKUP($B1176,Lists!$C$2:$D$13,2,FALSE)),\"\")","v":""}]
[null,null,null,null,null,null,null,null,null,null,{"$f":"_xlfn.IFNA((VLOOKUP($B1177,Lists!$C$2:$D$13,2,FALSE)),\"\")","v":""}]
[null,null,null,null,null,null,null,null,null,null,{"$f":"_xlfn.IFNA((VLOOKUP($B1178,Lists!$C$2:$D$13,2,FALSE)),\"\")","v":""}]
[null,null,null,null,null,null,null,null,null,null,{"$f":"_xlfn.IFNA((VLOOKUP($B1179,Lists!$C$2:$D$13,2,FALSE)),\"\")","v":""}]
[null,null,null,null,null,null,null,null,null,null,{"$f":"_xlfn.IFNA((VLOOKUP($B1180,Lists!$C$2:$D$13,2,FALSE)),\"\")","v":""}]
[null,null,null,null,null,null,null,null,null,null,{"$f":"_xlfn.IFNA((VLOOKUP($B1181,Lists!$C$2:$D$13,2,FALSE)),\"\")","v":""}]
[null,null,null,null,null,null,null,null,null,null,{"$f":"_xlfn.IFNA((VLOOKUP($B1182,Lists!$C$2:$D$13,2,FALSE)),\"\")","v":""}]
[null,null,null,null,null,null,null,null,null,null,{"$f":"_xlfn.IFNA((VLOOKUP($B1183,Lists!$C$2:$D$13,2,FALSE)),\"\")","v":""}]
[null,null,null,null,null,null,null,null,null,null,{"$f":"_xlfn.IFNA((VLOOKUP($B1184,Lists!$C$2:$D$13,2,FALSE)),\"\")","v":""}]
[null,null,null,null,null,null,null,null,null,null,{"$f":"_xlfn.IFNA((VLOOKUP($B1185,Lists!$C$2:$D$13,2,FALSE)),\"\")","v":""}]
[null,null,null,null,null,null,null,null,null,null,{"$f":"_xlfn.IFNA((VLOOKUP($B1186,Lists!$C$2:$D$13,2,FALSE)),\"\")","v":""}]
[null,null,null,null,null,null,null,null,null,null,{"$f":"_xlfn.IFNA((VLOOKUP($B1187,Lists!$C$2:$D$13,2,FALSE)),\"\")","v":""}]
[null,null,null,null,null,null,null,null,null,null,{"$f":"_xlfn.IFNA((VLOOKUP($B1188,Lists!$C$2:$D$13,2,FALSE)),\"\")","v":""}]
[null,null,null,null,null,null,null,null,null,null,{"$f":"_xlfn.IFNA((VLOOKUP($B1189,Lists!$C$2:$D$13,2,FALSE)),\"\")","v":""}]
[null,null,null,null,null,null,null,null,null,null,{"$f":"_xlfn.IFNA((VLOOKUP($B1190,Lists!$C$2:$D$13,2,FALSE)),\"\")","v":""}]
[null,null,null,null,null,null,null,null,null,null,{"$f":"_xlfn.IFNA((VLOOKUP($B1191,Lists!$C$2:$D$13,2,FALSE)),\"\")","v":""}]
[null,null,null,null,null,null,null,null,null,null,{"$f":"_xlfn.IFNA((VLOOKUP($B1192,Lists!$C$2:$D$13,2,FALSE)),\"\")","v":""}]
[null,null,null,null,null,null,null,null,null,null,{"$f":"_xlfn.IFNA((VLOOKUP($B1193,Lists!$C$2:$D$13,2,FALSE)),\"\")","v":""}]
[null,null,null,null,null,null,null,null,null,null,{"$f":"_xlfn.IFNA((VLOOKUP($B1194,Lists!$C$2:$D$13,2,FALSE)),\"\")","v":""}]
[null,null,null,null,null,null,null,null,null,null,{"$f":"_xlfn.IFNA((VLOOKUP($B1195,Lists!$C$2:$D$13,2,FALSE)),\"\")","v":""}]
[null,null,null,null,null,null,null,null,null,null,{"$f":"_xlfn.IFNA((VLOOKUP($B1196,Lists!$C$2:$D$13,2,FALSE)),\"\")","v":""}]
[null,null,null,null,null,null,null,null,null,null,{"$f":"_xlfn.IFNA((VLOOKUP($B1197,Lists!$C$2:$D$13,2,FALSE)),\"\")","v":""}]
[null,null,null,null,null,null,null,null,null,null,{"$f":"_xlfn.IFNA((VLOOKUP($B1198,Lists!$C$2:$D$13,2,FALSE)),\"\")","v":""}]
[null,null,null,null,null,null,null,null,null,null,{"$f":"_xlfn.IFNA((VLOOKUP($B1199,Lists!$C$2:$D$13,2,FALSE)),\"\")","v":""}]
[null,null,null,null,null,null,null,null,null,null,{"$f":"_xlfn.IFNA((VLOOKUP($B1200,Lists!$C$2:$D$13,2,FALSE)),\"\")","v":""}]
[null,null,null,null,null,null,null,null,null,null,{"$f":"_xlfn.IFNA((VLOOKUP($B1201,Lists!$C$2:$D$13,2,FALSE)),\"\")","v":""}]
[null,null,null,null,null,null,null,null,null,null,{"$f":"_xlfn.IFNA((VLOOKUP($B1202,Lists!$C$2:$D$13,2,FALSE)),\"\")","v":""}]
[null,null,null,null,null,null,null,null,null,null,{"$f":"_xlfn.IFNA((VLOOKUP($B1203,Lists!$C$2:$D$13,2,FALSE)),\"\")","v":""}]
[null,null,null,null,null,null,null,null,null,null,{"$f":"_xlfn.IFNA((VLOOKUP($B1204,Lists!$C$2:$D$13,2,FALSE)),\"\")","v":""}]
[null,null,null,null,null,null,null,null,null,null,{"$f":"_xlfn.IFNA((VLOOKUP($B1205,Lists!$C$2:$D$13,2,FALSE)),\"\")","v":""}]
[null,null,null,null,null,null,null,null,null,null,{"$f":"_xlfn.IFNA((VLOOKUP($B1206,Lists!$C$2:$D$13,2,FALSE)),\"\")","v":""}]
[null,null,null,null,null,null,null,null,null,null,{"$f":"_xlfn.IFNA((VLOOKUP($B1207,Lists!$C$2:$D$13,2,FALSE)),\"\")","v":""}]
[null,null,null,null,null,null,null,null,null,null,{"$f":"_xlfn.IFNA((VLOOKUP($B1208,Lists!$C$2:$D$13,2,FALSE)),\"\")","v":""}]
[null,null,null,null,null,null,null,null,null,null,{"$f":"_xlfn.IFNA((VLOOKUP($B1209,Lists!$C$2:$D$13,2,FALSE)),\"\")","v":""}]
[null,null,null,null,null,null,null,null,null,null,{"$f":"_xlfn.IFNA((VLOOKUP($B1210,Lists!$C$2:$D$13,2,FALSE)),\"\")","v":""}]
[null,null,null,null,null,null,null,null,null,null,{"$f":"_xlfn.IFNA((VLOOKUP($B1211,Lists!$C$2:$D$13,2,FALSE)),\"\")","v":""}]
[null,null,null,null,null,null,null,null,null,null,{"$f":"_xlfn.IFNA((VLOOKUP($B1212,Lists!$C$2:$D$13,2,FALSE)),\"\")","v":""}]
[null,null,null,null,null,null,null,null,null,null,{"$f":"_xlfn.IFNA((VLOOKUP($B1213,Lists!$C$2:$D$13,2,FALSE)),\"\")","v":""}]
[null,null,null,null,null,null,null,null,null,null,{"$f":"_xlfn.IFNA((VLOOKUP($B1214,Lists!$C$2:$D$13,2,FALSE)),\"\")","v":""}]
[null,null,null,null,null,null,null,null,null,null,{"$f":"_xlfn.IFNA((VLOOKUP($B1215,Lists!$C$2:$D$13,2,FALSE)),\"\")","v":""}]
[null,null,null,null,null,null,null,null,null,null,{"$f":"_xlfn.IFNA((VLOOKUP($B1216,Lists!$C$2:$D$13,2,FALSE)),\"\")","v":""}]
[null,null,null,null,null,null,null,null,null,null,{"$f":"_xlfn.IFNA((VLOOKUP($B1217,Lists!$C$2:$D$13,2,FALSE)),\"\")","v":""}]
[null,null,null,null,null,null,null,null,null,null,{"$f":"_xlfn.IFNA((VLOOKUP($B1218,Lists!$C$2:$D$13,2,FALSE)),\"\")","v":""}]
[null,null,null,null,null,null,null,null,null,null,{"$f":"_xlfn.IFNA((VLOOKUP($B1219,Lists!$C$2:$D$13,2,FALSE)),\"\")","v":""}]
[null,null,null,null,null,null,null,null,null,null,{"$f":"_xlfn.IFNA((VLOOKUP($B1220,Lists!$C$2:$D$13,2,FALSE)),\"\")","v":""}]
[null,null,null,null,null,null,null,null,null,null,{"$f":"_xlfn.IFNA((VLOOKUP($B1221,Lists!$C$2:$D$13,2,FALSE)),\"\")","v":""}]
[null,null,null,null,null,null,null,null,null,null,{"$f":"_xlfn.IFNA((VLOOKUP($B1222,Lists!$C$2:$D$13,2,FALSE)),\"\")","v":""}]
[null,null,null,null,null,null,null,null,null,null,{"$f":"_xlfn.IFNA((VLOOKUP($B1223,Lists!$C$2:$D$13,2,FALSE)),\"\")","v":""}]
[null,null,null,null,null,null,null,null,null,null,{"$f":"_xlfn.IFNA((VLOOKUP($B1224,Lists!$C$2:$D$13,2,FALSE)),\"\")","v":""}]
[null,null,null,null,null,null,null,null,null,null,{"$f":"_xlfn.IFNA((VLOOKUP($B1225,Lists!$C$2:$D$13,2,FALSE)),\"\")","v":""}]
[null,null,null,null,null,null,null,null,null,null,{"$f":"_xlfn.IFNA((VLOOKUP($B1226,Lists!$C$2:$D$13,2,FALSE)),\"\")","v":""}]
[null,null,null,null,null,null,null,null,null,null,{"$f":"_xlfn.IFNA((VLOOKUP($B1227,Lists!$C$2:$D$13,2,FALSE)),\"\")","v":""}]
[null,null,null,null,null,null,null,null,null,null,{"$f":"_xlfn.IFNA((VLOOKUP($B1228,Lists!$C$2:$D$13,2,FALSE)),\"\")","v":""}]
[null,null,null,null,null,null,null,null,null,null,{"$f":"_xlfn.IFNA((VLOOKUP($B1229,Lists!$C$2:$D$13,2,FALSE)),\"\")","v":""}]
[null,null,null,null,null,null,null,null,null,null,{"$f":"_xlfn.IFNA((VLOOKUP($B1230,Lists!$C$2:$D$13,2,FALSE)),\"\")","v":""}]
[null,null,null,null,null,null,null,null,null,null,{"$f":"_xlfn.IFNA((VLOOKUP($B1231,Lists!$C$2:$D$13,2,FALSE)),\"\")","v":""}]
[null,null,null,null,null,null,null,null,null,null,{"$f":"_xlfn.IFNA((VLOOKUP($B1232,Lists!$C$2:$D$13,2,FALSE)),\"\")","v":""}]
[null,null,null,null,null,null,null,null,null,null,{"$f":"_xlfn.IFNA((VLOOKUP($B1233,Lists!$C$2:$D$13,2,FALSE)),\"\")","v":""}]
[null,null,null,null,null,null,null,null,null,null,{"$f":"_xlfn.IFNA((VLOOKUP($B1234,Lists!$C$2:$D$13,2,FALSE)),\"\")","v":""}]
[null,null,null,null,null,null,null,null,null,null,{"$f":"_xlfn.IFNA((VLOOKUP($B1235,Lists!$C$2:$D$13,2,FALSE)),\"\")","v":""}]
[null,null,null,null,null,null,null,null,null,null,{"$f":"_xlfn.IFNA((VLOOKUP($B1236,Lists!$C$2:$D$13,2,FALSE)),\"\")","v":""}]
[null,null,null,null,null,null,null,null,null,null,{"$f":"_xlfn.IFNA((VLOOKUP($B1237,Lists!$C$2:$D$13,2,FALSE)),\"\")","v":""}]
[null,null,null,null,null,null,null,null,null,null,{"$f":"_xlfn.IFNA((VLOOKUP($B1238,Lists!$C$2:$D$13,2,FALSE)),\"\")","v":""}]
[null,null,null,null,null,null,null,null,null,null,{"$f":"_xlfn.IFNA((VLOOKUP($B1239,Lists!$C$2:$D$13,2,FALSE)),\"\")","v":""}]
[null,null,null,null,null,null,null,null,null,null,{"$f":"_xlfn.IFNA((VLOOKUP($B1240,Lists!$C$2:$D$13,2,FALSE)),\"\")","v":""}]
[null,null,null,null,null,null,null,null,null,null,{"$f":"_xlfn.IFNA((VLOOKUP($B1241,Lists!$C$2:$D$13,2,FALSE)),\"\")","v":""}]
[null,null,null,null,null,null,null,null,null,null,{"$f":"_xlfn.IFNA((VLOOKUP($B1242,Lists!$C$2:$D$13,2,FALSE)),\"\")","v":""}]
[null,null,null,null,null,null,null,null,null,null,{"$f":"_xlfn.IFNA((VLOOKUP($B1243,Lists!$C$2:$D$13,2,FALSE)),\"\")","v":""}]
[null,null,null,null,null,null,null,null,null,null,{"$f":"_xlfn.IFNA((VLOOKUP($B1244,Lists!$C$2:$D$13,2,FALSE)),\"\")","v":""}]
[null,null,null,null,null,null,null,null,null,null,{"$f":"_xlfn.IFNA((VLOOKUP($B1245,Lists!$C$2:$D$13,2,FALSE)),\"\")","v":""}]
[null,null,null,null,null,null,null,null,null,null,{"$f":"_xlfn.IFNA((VLOOKUP($B1246,Lists!$C$2:$D$13,2,FALSE)),\"\")","v":""}]
[null,null,null,null,null,null,null,null,null,null,{"$f":"_xlfn.IFNA((VLOOKUP($B1247,Lists!$C$2:$D$13,2,FALSE)),\"\")","v":""}]
[null,null,null,null,null,null,null,null,null,null,{"$f":"_xlfn.IFNA((VLOOKUP($B1248,Lists!$C$2:$D$13,2,FALSE)),\"\")","v":""}]
[null,null,null,null,null,null,null,null,null,null,{"$f":"_xlfn.IFNA((VLOOKUP($B1249,Lists!$C$2:$D$13,2,FALSE)),\"\")","v":""}]
[null,null,null,null,null,null,null,null,null,null,{"$f":"_xlfn.IFNA((VLOOKUP($B1250,Lists!$C$2:$D$13,2,FALSE)),\"\")","v":""}]
[null,null,null,null,null,null,null,null,null,null,{"$f":"_xlfn.IFNA((VLOOKUP($B1251,Lists!$C$2:$D$13,2,FALSE)),\"\")","v":""}]
[null,null,null,null,null,null,null,null,null,null,{"$f":"_xlfn.IFNA((VLOOKUP($B1252,Lists!$C$2:$D$13,2,FALSE)),\"\")","v":""}]
[null,null,null,null,null,null,null,null,null,null,{"$f":"_xlfn.IFNA((VLOOKUP($B1253,Lists!$C$2:$D$13,2,FALSE)),\"\")","v":""}]
[null,null,null,null,null,null,null,null,null,null,{"$f":"_xlfn.IFNA((VLOOKUP($B1254,Lists!$C$2:$D$13,2,FALSE)),\"\")","v":""}]
[null,null,null,null,null,null,null,null,null,null,{"$f":"_xlfn.IFNA((VLOOKUP($B1255,Lists!$C$2:$D$13,2,FALSE)),\"\")","v":""}]
[null,null,null,null,null,null,null,null,null,null,{"$f":"_xlfn.IFNA((VLOOKUP($B1256,Lists!$C$2:$D$13,2,FALSE)),\"\")","v":""}]
[null,null,null,null,null,null,null,null,null,null,{"$f":"_xlfn.IFNA((VLOOKUP($B1257,Lists!$C$2:$D$13,2,FALSE)),\"\")","v":""}]
[null,null,null,null,null,null,null,null,null,null,{"$f":"_xlfn.IFNA((VLOOKUP($B1258,Lists!$C$2:$D$13,2,FALSE)),\"\")","v":""}]
[null,null,null,null,null,null,null,null,null,null,{"$f":"_xlfn.IFNA((VLOOKUP($B1259,Lists!$C$2:$D$13,2,FALSE)),\"\")","v":""}]
[null,null,null,null,null,null,null,null,null,null,{"$f":"_xlfn.IFNA((VLOOKUP($B1260,Lists!$C$2:$D$13,2,FALSE)),\"\")","v":""}]
[null,null,null,null,null,null,null,null,null,null,{"$f":"_xlfn.IFNA((VLOOKUP($B1261,Lists!$C$2:$D$13,2,FALSE)),\"\")","v":""}]
[null,null,null,null,null,null,null,null,null,null,{"$f":"_xlfn.IFNA((VLOOKUP($B1262,Lists!$C$2:$D$13,2,FALSE)),\"\")","v":""}]
[null,null,null,null,null,null,null,null,null,null,{"$f":"_xlfn.IFNA((VLOOKUP($B1263,Lists!$C$2:$D$13,2,FALSE)),\"\")","v":""}]
[null,null,null,null,null,null,null,null,null,null,{"$f":"_xlfn.IFNA((VLOOKUP($B1264,Lists!$C$2:$D$13,2,FALSE)),\"\")","v":""}]
[null,null,null,null,null,null,null,null,null,null,{"$f":"_xlfn.IFNA((VLOOKUP($B1265,Lists!$C$2:$D$13,2,FALSE)),\"\")","v":""}]
[null,null,null,null,null,null,null,null,null,null,{"$f":"_xlfn.IFNA((VLOOKUP($B1266,Lists!$C$2:$D$13,2,FALSE)),\"\")","v":""}]
[null,null,null,null,null,null,null,null,null,null,{"$f":"_xlfn.IFNA((VLOOKUP($B1267,Lists!$C$2:$D$13,2,FALSE)),\"\")","v":""}]
[null,null,null,null,null,null,null,null,null,null,{"$f":"_xlfn.IFNA((VLOOKUP($B1268,Lists!$C$2:$D$13,2,FALSE)),\"\")","v":""}]
[null,null,null,null,null,null,null,null,null,null,{"$f":"_xlfn.IFNA((VLOOKUP($B1269,Lists!$C$2:$D$13,2,FALSE)),\"\")","v":""}]
[null,null,null,null,null,null,null,null,null,null,{"$f":"_xlfn.IFNA((VLOOKUP($B1270,Lists!$C$2:$D$13,2,FALSE)),\"\")","v":""}]
[null,null,null,null,null,null,null,null,null,null,{"$f":"_xlfn.IFNA((VLOOKUP($B1271,Lists!$C$2:$D$13,2,FALSE)),\"\")","v":""}]
[null,null,null,null,null,null,null,null,null,null,{"$f":"_xlfn.IFNA((VLOOKUP($B1272,Lists!$C$2:$D$13,2,FALSE)),\"\")","v":""}]
[null,null,null,null,null,null,null,null,null,null,{"$f":"_xlfn.IFNA((VLOOKUP($B1273,Lists!$C$2:$D$13,2,FALSE)),\"\")","v":""}]
[null,null,null,null,null,null,null,null,null,null,{"$f":"_xlfn.IFNA((VLOOKUP($B1274,Lists!$C$2:$D$13,2,FALSE)),\"\")","v":""}]
[null,null,null,null,null,null,null,null,null,null,{"$f":"_xlfn.IFNA((VLOOKUP($B1275,Lists!$C$2:$D$13,2,FALSE)),\"\")","v":""}]
[null,null,null,null,null,null,null,null,null,null,{"$f":"_xlfn.IFNA((VLOOKUP($B1276,Lists!$C$2:$D$13,2,FALSE)),\"\")","v":""}]
[null,null,null,null,null,null,null,null,null,null,{"$f":"_xlfn.IFNA((VLOOKUP($B1277,Lists!$C$2:$D$13,2,FALSE)),\"\")","v":""}]
[null,null,null,null,null,null,null,null,null,null,{"$f":"_xlfn.IFNA((VLOOKUP($B1278,Lists!$C$2:$D$13,2,FALSE)),\"\")","v":""}]
[null,null,null,null,null,null,null,null,null,null,{"$f":"_xlfn.IFNA((VLOOKUP($B1279,Lists!$C$2:$D$13,2,FALSE)),\"\")","v":""}]
[null,null,null,null,null,null,null,null,null,null,{"$f":"_xlfn.IFNA((VLOOKUP($B1280,Lists!$C$2:$D$13,2,FALSE)),\"\")","v":""}]
[null,null,null,null,null,null,null,null,null,null,{"$f":"_xlfn.IFNA((VLOOKUP($B1281,Lists!$C$2:$D$13,2,FALSE)),\"\")","v":""}]
[null,null,null,null,null,null,null,null,null,null,{"$f":"_xlfn.IFNA((VLOOKUP($B1282,Lists!$C$2:$D$13,2,FALSE)),\"\")","v":""}]
[null,null,null,null,null,null,null,null,null,null,{"$f":"_xlfn.IFNA((VLOOKUP($B1283,Lists!$C$2:$D$13,2,FALSE)),\"\")","v":""}]
[null,null,null,null,null,null,null,null,null,null,{"$f":"_xlfn.IFNA((VLOOKUP($B1284,Lists!$C$2:$D$13,2,FALSE)),\"\")","v":""}]
[null,null,null,null,null,null,null,null,null,null,{"$f":"_xlfn.IFNA((VLOOKUP($B1285,Lists!$C$2:$D$13,2,FALSE)),\"\")","v":""}]
[null,null,null,null,null,null,null,null,null,null,{"$f":"_xlfn.IFNA((VLOOKUP($B1286,Lists!$C$2:$D$13,2,FALSE)),\"\")","v":""}]
[null,null,null,null,null,null,null,null,null,null,{"$f":"_xlfn.IFNA((VLOOKUP($B1287,Lists!$C$2:$D$13,2,FALSE)),\"\")","v":""}]
[null,null,null,null,null,null,null,null,null,null,{"$f":"_xlfn.IFNA((VLOOKUP($B1288,Lists!$C$2:$D$13,2,FALSE)),\"\")","v":""}]
[null,null,null,null,null,null,null,null,null,null,{"$f":"_xlfn.IFNA((VLOOKUP($B1289,Lists!$C$2:$D$13,2,FALSE)),\"\")","v":""}]
[null,null,null,null,null,null,null,null,null,null,{"$f":"_xlfn.IFNA((VLOOKUP($B1290,Lists!$C$2:$D$13,2,FALSE)),\"\")","v":""}]
[null,null,null,null,null,null,null,null,null,null,{"$f":"_xlfn.IFNA((VLOOKUP($B1291,Lists!$C$2:$D$13,2,FALSE)),\"\")","v":""}]
[null,null,null,null,null,null,null,null,null,null,{"$f":"_xlfn.IFNA((VLOOKUP($B1292,Lists!$C$2:$D$13,2,FALSE)),\"\")","v":""}]
[null,null,null,null,null,null,null,null,null,null,{"$f":"_xlfn.IFNA((VLOOKUP($B1293,Lists!$C$2:$D$13,2,FALSE)),\"\")","v":""}]
[null,null,null,null,null,null,null,null,null,null,{"$f":"_xlfn.IFNA((VLOOKUP($B1294,Lists!$C$2:$D$13,2,FALSE)),\"\")","v":""}]
[null,null,null,null,null,null,null,null,null,null,{"$f":"_xlfn.IFNA((VLOOKUP($B1295,Lists!$C$2:$D$13,2,FALSE)),\"\")","v":""}]
[null,null,null,null,null,null,null,null,null,null,{"$f":"_xlfn.IFNA((VLOOKUP($B1296,Lists!$C$2:$D$13,2,FALSE)),\"\")","v":""}]
[null,null,null,null,null,null,null,null,null,null,{"$f":"_xlfn.IFNA((VLOOKUP($B1297,Lists!$C$2:$D$13,2,FALSE)),\"\")","v":""}]
[null,null,null,null,null,null,null,null,null,null,{"$f":"_xlfn.IFNA((VLOOKUP($B1298,Lists!$C$2:$D$13,2,FALSE)),\"\")","v":""}]
[null,null,null,null,null,null,null,null,null,null,{"$f":"_xlfn.IFNA((VLOOKUP($B1299,Lists!$C$2:$D$13,2,FALSE)),\"\")","v":""}]
[null,null,null,null,null,null,null,null,null,null,{"$f":"_xlfn.IFNA((VLOOKUP($B1300,Lists!$C$2:$D$13,2,FALSE)),\"\")","v":""}]
[null,null,null,null,null,null,null,null,null,null,{"$f":"_xlfn.IFNA((VLOOKUP($B1301,Lists!$C$2:$D$13,2,FALSE)),\"\")","v":""}]
[null,null,null,null,null,null,null,null,null,null,{"$f":"_xlfn.IFNA((VLOOKUP($B1302,Lists!$C$2:$D$13,2,FALSE)),\"\")","v":""}]
[null,null,null,null,null,null,null,null,null,null,{"$f":"_xlfn.IFNA((VLOOKUP($B1303,Lists!$C$2:$D$13,2,FALSE)),\"\")","v":""}]
[null,null,null,null,null,null,null,null,null,null,{"$f":"_xlfn.IFNA((VLOOKUP($B1304,Lists!$C$2:$D$13,2,FALSE)),\"\")","v":""}]
[null,null,null,null,null,null,null,null,null,null,{"$f":"_xlfn.IFNA((VLOOKUP($B1305,Lists!$C$2:$D$13,2,FALSE)),\"\")","v":""}]
[null,null,null,null,null,null,null,null,null,null,{"$f":"_xlfn.IFNA((VLOOKUP($B1306,Lists!$C$2:$D$13,2,FALSE)),\"\")","v":""}]
[null,null,null,null,null,null,null,null,null,null,{"$f":"_xlfn.IFNA((VLOOKUP($B1307,Lists!$C$2:$D$13,2,FALSE)),\"\")","v":""}]
[null,null,null,null,null,null,null,null,null,null,{"$f":"_xlfn.IFNA((VLOOKUP($B1308,Lists!$C$2:$D$13,2,FALSE)),\"\")","v":""}]
[null,null,null,null,null,null,null,null,null,null,{"$f":"_xlfn.IFNA((VLOOKUP($B1309,Lists!$C$2:$D$13,2,FALSE)),\"\")","v":""}]
[null,null,null,null,null,null,null,null,null,null,{"$f":"_xlfn.IFNA((VLOOKUP($B1310,Lists!$C$2:$D$13,2,FALSE)),\"\")","v":""}]
[null,null,null,null,null,null,null,null,null,null,{"$f":"_xlfn.IFNA((VLOOKUP($B1311,Lists!$C$2:$D$13,2,FALSE)),\"\")","v":""}]
[null,null,null,null,null,null,null,null,null,null,{"$f":"_xlfn.IFNA((VLOOKUP($B1312,Lists!$C$2:$D$13,2,FALSE)),\"\")","v":""}]
[null,null,null,null,null,null,null,null,null,null,{"$f":"_xlfn.IFNA((VLOOKUP($B1313,Lists!$C$2:$D$13,2,FALSE)),\"\")","v":""}]
[null,null,null,null,null,null,null,null,null,null,{"$f":"_xlfn.IFNA((VLOOKUP($B1314,Lists!$C$2:$D$13,2,FALSE)),\"\")","v":""}]
[null,null,null,null,null,null,null,null,null,null,{"$f":"_xlfn.IFNA((VLOOKUP($B1315,Lists!$C$2:$D$13,2,FALSE)),\"\")","v":""}]
[null,null,null,null,null,null,null,null,null,null,{"$f":"_xlfn.IFNA((VLOOKUP($B1316,Lists!$C$2:$D$13,2,FALSE)),\"\")","v":""}]
[null,null,null,null,null,null,null,null,null,null,{"$f":"_xlfn.IFNA((VLOOKUP($B1317,Lists!$C$2:$D$13,2,FALSE)),\"\")","v":""}]
[null,null,null,null,null,null,null,null,null,null,{"$f":"_xlfn.IFNA((VLOOKUP($B1318,Lists!$C$2:$D$13,2,FALSE)),\"\")","v":""}]
[null,null,null,null,null,null,null,null,null,null,{"$f":"_xlfn.IFNA((VLOOKUP($B1319,Lists!$C$2:$D$13,2,FALSE)),\"\")","v":""}]
[null,null,null,null,null,null,null,null,null,null,{"$f":"_xlfn.IFNA((VLOOKUP($B1320,Lists!$C$2:$D$13,2,FALSE)),\"\")","v":""}]
[null,null,null,null,null,null,null,null,null,null,{"$f":"_xlfn.IFNA((VLOOKUP($B1321,Lists!$C$2:$D$13,2,FALSE)),\"\")","v":""}]
[null,null,null,null,null,null,null,null,null,null,{"$f":"_xlfn.IFNA((VLOOKUP($B1322,Lists!$C$2:$D$13,2,FALSE)),\"\")","v":""}]
[null,null,null,null,null,null,null,null,null,null,{"$f":"_xlfn.IFNA((VLOOKUP($B1323,Lists!$C$2:$D$13,2,FALSE)),\"\")","v":""}]
[null,null,null,null,null,null,null,null,null,null,{"$f":"_xlfn.IFNA((VLOOKUP($B1324,Lists!$C$2:$D$13,2,FALSE)),\"\")","v":""}]
[null,null,null,null,null,null,null,null,null,null,{"$f":"_xlfn.IFNA((VLOOKUP($B1325,Lists!$C$2:$D$13,2,FALSE)),\"\")","v":""}]
[null,null,null,null,null,null,null,null,null,null,{"$f":"_xlfn.IFNA((VLOOKUP($B1326,Lists!$C$2:$D$13,2,FALSE)),\"\")","v":""}]
[null,null,null,null,null,null,null,null,null,null,{"$f":"_xlfn.IFNA((VLOOKUP($B1327,Lists!$C$2:$D$13,2,FALSE)),\"\")","v":""}]
[null,null,null,null,null,null,null,null,null,null,{"$f":"_xlfn.IFNA((VLOOKUP($B1328,Lists!$C$2:$D$13,2,FALSE)),\"\")","v":""}]
[null,null,null,null,null,null,null,null,null,null,{"$f":"_xlfn.IFNA((VLOOKUP($B1329,Lists!$C$2:$D$13,2,FALSE)),\"\")","v":""}]
[null,null,null,null,null,null,null,null,null,null,{"$f":"_xlfn.IFNA((VLOOKUP($B1330,Lists!$C$2:$D$13,2,FALSE)),\"\")","v":""}]
[null,null,null,null,null,null,null,null,null,null,{"$f":"_xlfn.IFNA((VLOOKUP($B1331,Lists!$C$2:$D$13,2,FALSE)),\"\")","v":""}]
[null,null,null,null,null,null,null,null,null,null,{"$f":"_xlfn.IFNA((VLOOKUP($B1332,Lists!$C$2:$D$13,2,FALSE)),\"\")","v":""}]
[null,null,null,null,null,null,null,null,null,null,{"$f":"_xlfn.IFNA((VLOOKUP($B1333,Lists!$C$2:$D$13,2,FALSE)),\"\")","v":""}]
[null,null,null,null,null,null,null,null,null,null,{"$f":"_xlfn.IFNA((VLOOKUP($B1334,Lists!$C$2:$D$13,2,FALSE)),\"\")","v":""}]
[null,null,null,null,null,null,null,null,null,null,{"$f":"_xlfn.IFNA((VLOOKUP($B1335,Lists!$C$2:$D$13,2,FALSE)),\"\")","v":""}]
[null,null,null,null,null,null,null,null,null,null,{"$f":"_xlfn.IFNA((VLOOKUP($B1336,Lists!$C$2:$D$13,2,FALSE)),\"\")","v":""}]
[null,null,null,null,null,null,null,null,null,null,{"$f":"_xlfn.IFNA((VLOOKUP($B1337,Lists!$C$2:$D$13,2,FALSE)),\"\")","v":""}]
[null,null,null,null,null,null,null,null,null,null,{"$f":"_xlfn.IFNA((VLOOKUP($B1338,Lists!$C$2:$D$13,2,FALSE)),\"\")","v":""}]
[null,null,null,null,null,null,null,null,null,null,{"$f":"_xlfn.IFNA((VLOOKUP($B1339,Lists!$C$2:$D$13,2,FALSE)),\"\")","v":""}]
[null,null,null,null,null,null,null,null,null,null,{"$f":"_xlfn.IFNA((VLOOKUP($B1340,Lists!$C$2:$D$13,2,FALSE)),\"\")","v":""}]
[null,null,null,null,null,null,null,null,null,null,{"$f":"_xlfn.IFNA((VLOOKUP($B1341,Lists!$C$2:$D$13,2,FALSE)),\"\")","v":""}]
[null,null,null,null,null,null,null,null,null,null,{"$f":"_xlfn.IFNA((VLOOKUP($B1342,Lists!$C$2:$D$13,2,FALSE)),\"\")","v":""}]
[null,null,null,null,null,null,null,null,null,null,{"$f":"_xlfn.IFNA((VLOOKUP($B1343,Lists!$C$2:$D$13,2,FALSE)),\"\")","v":""}]
[null,null,null,null,null,null,null,null,null,null,{"$f":"_xlfn.IFNA((VLOOKUP($B1344,Lists!$C$2:$D$13,2,FALSE)),\"\")","v":""}]
[null,null,null,null,null,null,null,null,null,null,{"$f":"_xlfn.IFNA((VLOOKUP($B1345,Lists!$C$2:$D$13,2,FALSE)),\"\")","v":""}]
[null,null,null,null,null,null,null,null,null,null,{"$f":"_xlfn.IFNA((VLOOKUP($B1346,Lists!$C$2:$D$13,2,FALSE)),\"\")","v":""}]
[null,null,null,null,null,null,null,null,null,null,{"$f":"_xlfn.IFNA((VLOOKUP($B1347,Lists!$C$2:$D$13,2,FALSE)),\"\")","v":""}]
[null,null,null,null,null,null,null,null,null,null,{"$f":"_xlfn.IFNA((VLOOKUP($B1348,Lists!$C$2:$D$13,2,FALSE)),\"\")","v":""}]
[null,null,null,null,null,null,null,null,null,null,{"$f":"_xlfn.IFNA((VLOOKUP($B1349,Lists!$C$2:$D$13,2,FALSE)),\"\")","v":""}]
[null,null,null,null,null,null,null,null,null,null,{"$f":"_xlfn.IFNA((VLOOKUP($B1350,Lists!$C$2:$D$13,2,FALSE)),\"\")","v":""}]
[null,null,null,null,null,null,null,null,null,null,{"$f":"_xlfn.IFNA((VLOOKUP($B1351,Lists!$C$2:$D$13,2,FALSE)),\"\")","v":""}]
[null,null,null,null,null,null,null,null,null,null,{"$f":"_xlfn.IFNA((VLOOKUP($B1352,Lists!$C$2:$D$13,2,FALSE)),\"\")","v":""}]
[null,null,null,null,null,null,null,null,null,null,{"$f":"_xlfn.IFNA((VLOOKUP($B1353,Lists!$C$2:$D$13,2,FALSE)),\"\")","v":""}]
[null,null,null,null,null,null,null,null,null,null,{"$f":"_xlfn.IFNA((VLOOKUP($B1354,Lists!$C$2:$D$13,2,FALSE)),\"\")","v":""}]
[null,null,null,null,null,null,null,null,null,null,{"$f":"_xlfn.IFNA((VLOOKUP($B1355,Lists!$C$2:$D$13,2,FALSE)),\"\")","v":""}]
[null,null,null,null,null,null,null,null,null,null,{"$f":"_xlfn.IFNA((VLOOKUP($B1356,Lists!$C$2:$D$13,2,FALSE)),\"\")","v":""}]
[null,null,null,null,null,null,null,null,null,null,{"$f":"_xlfn.IFNA((VLOOKUP($B1357,Lists!$C$2:$D$13,2,FALSE)),\"\")","v":""}]
[null,null,null,null,null,null,null,null,null,null,{"$f":"_xlfn.IFNA((VLOOKUP($B1358,Lists!$C$2:$D$13,2,FALSE)),\"\")","v":""}]
[null,null,null,null,null,null,null,null,null,null,{"$f":"_xlfn.IFNA((VLOOKUP($B1359,Lists!$C$2:$D$13,2,FALSE)),\"\")","v":""}]
[null,null,null,null,null,null,null,null,null,null,{"$f":"_xlfn.IFNA((VLOOKUP($B1360,Lists!$C$2:$D$13,2,FALSE)),\"\")","v":""}]
[null,null,null,null,null,null,null,null,null,null,{"$f":"_xlfn.IFNA((VLOOKUP($B1361,Lists!$C$2:$D$13,2,FALSE)),\"\")","v":""}]
[null,null,null,null,null,null,null,null,null,null,{"$f":"_xlfn.IFNA((VLOOKUP($B1362,Lists!$C$2:$D$13,2,FALSE)),\"\")","v":""}]
[null,null,null,null,null,null,null,null,null,null,{"$f":"_xlfn.IFNA((VLOOKUP($B1363,Lists!$C$2:$D$13,2,FALSE)),\"\")","v":""}]
[null,null,null,null,null,null,null,null,null,null,{"$f":"_xlfn.IFNA((VLOOKUP($B1364,Lists!$C$2:$D$13,2,FALSE)),\"\")","v":""}]
[null,null,null,null,null,null,null,null,null,null,{"$f":"_xlfn.IFNA((VLOOKUP($B1365,Lists!$C$2:$D$13,2,FALSE)),\"\")","v":""}]
[null,null,null,null,null,null,null,null,null,null,{"$f":"_xlfn.IFNA((VLOOKUP($B1366,Lists!$C$2:$D$13,2,FALSE)),\"\")","v":""}]
[null,null,null,null,null,null,null,null,null,null,{"$f":"_xlfn.IFNA((VLOOKUP($B1367,Lists!$C$2:$D$13,2,FALSE)),\"\")","v":""}]
[null,null,null,null,null,null,null,null,null,null,{"$f":"_xlfn.IFNA((VLOOKUP($B1368,Lists!$C$2:$D$13,2,FALSE)),\"\")","v":""}]
[null,null,null,null,null,null,null,null,null,null,{"$f":"_xlfn.IFNA((VLOOKUP($B1369,Lists!$C$2:$D$13,2,FALSE)),\"\")","v":""}]
[null,null,null,null,null,null,null,null,null,null,{"$f":"_xlfn.IFNA((VLOOKUP($B1370,Lists!$C$2:$D$13,2,FALSE)),\"\")","v":""}]
[null,null,null,null,null,null,null,null,null,null,{"$f":"_xlfn.IFNA((VLOOKUP($B1371,Lists!$C$2:$D$13,2,FALSE)),\"\")","v":""}]
[null,null,null,null,null,null,null,null,null,null,{"$f":"_xlfn.IFNA((VLOOKUP($B1372,Lists!$C$2:$D$13,2,FALSE)),\"\")","v":""}]
[null,null,null,null,null,null,null,null,null,null,{"$f":"_xlfn.IFNA((VLOOKUP($B1373,Lists!$C$2:$D$13,2,FALSE)),\"\")","v":""}]
[null,null,null,null,null,null,null,null,null,null,{"$f":"_xlfn.IFNA((VLOOKUP($B1374,Lists!$C$2:$D$13,2,FALSE)),\"\")","v":""}]
[null,null,null,null,null,null,null,null,null,null,{"$f":"_xlfn.IFNA((VLOOKUP($B1375,Lists!$C$2:$D$13,2,FALSE)),\"\")","v":""}]
[null,null,null,null,null,null,null,null,null,null,{"$f":"_xlfn.IFNA((VLOOKUP($B1376,Lists!$C$2:$D$13,2,FALSE)),\"\")","v":""}]
[null,null,null,null,null,null,null,null,null,null,{"$f":"_xlfn.IFNA((VLOOKUP($B1377,Lists!$C$2:$D$13,2,FALSE)),\"\")","v":""}]
[null,null,null,null,null,null,null,null,null,null,{"$f":"_xlfn.IFNA((VLOOKUP($B1378,Lists!$C$2:$D$13,2,FALSE)),\"\")","v":""}]
[null,null,null,null,null,null,null,null,null,null,{"$f":"_xlfn.IFNA((VLOOKUP($B1379,Lists!$C$2:$D$13,2,FALSE)),\"\")","v":""}]
[null,null,null,null,null,null,null,null,null,null,{"$f":"_xlfn.IFNA((VLOOKUP($B1380,Lists!$C$2:$D$13,2,FALSE)),\"\")","v":""}]
[null,null,null,null,null,null,null,null,null,null,{"$f":"_xlfn.IFNA((VLOOKUP($B1381,Lists!$C$2:$D$13,2,FALSE)),\"\")","v":""}]
[null,null,null,null,null,null,null,null,null,null,{"$f":"_xlfn.IFNA((VLOOKUP($B1382,Lists!$C$2:$D$13,2,FALSE)),\"\")","v":""}]
[null,null,null,null,null,null,null,null,null,null,{"$f":"_xlfn.IFNA((VLOOKUP($B1383,Lists!$C$2:$D$13,2,FALSE)),\"\")","v":""}]
[null,null,null,null,null,null,null,null,null,null,{"$f":"_xlfn.IFNA((VLOOKUP($B1384,Lists!$C$2:$D$13,2,FALSE)),\"\")","v":""}]
[null,null,null,null,null,null,null,null,null,null,{"$f":"_xlfn.IFNA((VLOOKUP($B1385,Lists!$C$2:$D$13,2,FALSE)),\"\")","v":""}]
[null,null,null,null,null,null,null,null,null,null,{"$f":"_xlfn.IFNA((VLOOKUP($B1386,Lists!$C$2:$D$13,2,FALSE)),\"\")","v":""}]
[null,null,null,null,null,null,null,null,null,null,{"$f":"_xlfn.IFNA((VLOOKUP($B1387,Lists!$C$2:$D$13,2,FALSE)),\"\")","v":""}]
[null,null,null,null,null,null,null,null,null,null,{"$f":"_xlfn.IFNA((VLOOKUP($B1388,Lists!$C$2:$D$13,2,FALSE)),\"\")","v":""}]
[null,null,null,null,null,null,null,null,null,null,{"$f":"_xlfn.IFNA((VLOOKUP($B1389,Lists!$C$2:$D$13,2,FALSE)),\"\")","v":""}]
[null,null,null,null,null,null,null,null,null,null,{"$f":"_xlfn.IFNA((VLOOKUP($B1390,Lists!$C$2:$D$13,2,FALSE)),\"\")","v":""}]
[null,null,null,null,null,null,null,null,null,null,{"$f":"_xlfn.IFNA((VLOOKUP($B1391,Lists!$C$2:$D$13,2,FALSE)),\"\")","v":""}]
[null,null,null,null,null,null,null,null,null,null,{"$f":"_xlfn.IFNA((VLOOKUP($B1392,Lists!$C$2:$D$13,2,FALSE)),\"\")","v":""}]
[null,null,null,null,null,null,null,null,null,null,{"$f":"_xlfn.IFNA((VLOOKUP($B1393,Lists!$C$2:$D$13,2,FALSE)),\"\")","v":""}]
[null,null,null,null,null,null,null,null,null,null,{"$f":"_xlfn.IFNA((VLOOKUP($B1394,Lists!$C$2:$D$13,2,FALSE)),\"\")","v":""}]
[null,null,null,null,null,null,null,null,null,null,{"$f":"_xlfn.IFNA((VLOOKUP($B1395,Lists!$C$2:$D$13,2,FALSE)),\"\")","v":""}]
[null,null,null,null,null,null,null,null,null,null,{"$f":"_xlfn.IFNA((VLOOKUP($B1396,Lists!$C$2:$D$13,2,FALSE)),\"\")","v":""}]
[null,null,null,null,null,null,null,null,null,null,{"$f":"_xlfn.IFNA((VLOOKUP($B1397,Lists!$C$2:$D$13,2,FALSE)),\"\")","v":""}]
[null,null,null,null,null,null,null,null,null,null,{"$f":"_xlfn.IFNA((VLOOKUP($B1398,Lists!$C$2:$D$13,2,FALSE)),\"\")","v":""}]
[null,null,null,null,null,null,null,null,null,null,{"$f":"_xlfn.IFNA((VLOOKUP($B1399,Lists!$C$2:$D$13,2,FALSE)),\"\")","v":""}]
[null,null,null,null,null,null,null,null,null,null,{"$f":"_xlfn.IFNA((VLOOKUP($B1400,Lists!$C$2:$D$13,2,FALSE)),\"\")","v":""}]
[null,null,null,null,null,null,null,null,null,null,{"$f":"_xlfn.IFNA((VLOOKUP($B1401,Lists!$C$2:$D$13,2,FALSE)),\"\")","v":""}]
[null,null,null,null,null,null,null,null,null,null,{"$f":"_xlfn.IFNA((VLOOKUP($B1402,Lists!$C$2:$D$13,2,FALSE)),\"\")","v":""}]
[null,null,null,null,null,null,null,null,null,null,{"$f":"_xlfn.IFNA((VLOOKUP($B1403,Lists!$C$2:$D$13,2,FALSE)),\"\")","v":""}]
[null,null,null,null,null,null,null,null,null,null,{"$f":"_xlfn.IFNA((VLOOKUP($B1404,Lists!$C$2:$D$13,2,FALSE)),\"\")","v":""}]
[null,null,null,null,null,null,null,null,null,null,{"$f":"_xlfn.IFNA((VLOOKUP($B1405,Lists!$C$2:$D$13,2,FALSE)),\"\")","v":""}]
[null,null,null,null,null,null,null,null,null,null,{"$f":"_xlfn.IFNA((VLOOKUP($B1406,Lists!$C$2:$D$13,2,FALSE)),\"\")","v":""}]
[null,null,null,null,null,null,null,null,null,null,{"$f":"_xlfn.IFNA((VLOOKUP($B1407,Lists!$C$2:$D$13,2,FALSE)),\"\")","v":""}]
[null,null,null,null,null,null,null,null,null,null,{"$f":"_xlfn.IFNA((VLOOKUP($B1408,Lists!$C$2:$D$13,2,FALSE)),\"\")","v":""}]
[null,null,null,null,null,null,null,null,null,null,{"$f":"_xlfn.IFNA((VLOOKUP($B1409,Lists!$C$2:$D$13,2,FALSE)),\"\")","v":""}]
[null,null,null,null,null,null,null,null,null,null,{"$f":"_xlfn.IFNA((VLOOKUP($B1410,Lists!$C$2:$D$13,2,FALSE)),\"\")","v":""}]
[null,null,null,null,null,null,null,null,null,null,{"$f":"_xlfn.IFNA((VLOOKUP($B1411,Lists!$C$2:$D$13,2,FALSE)),\"\")","v":""}]
[null,null,null,null,null,null,null,null,null,null,{"$f":"_xlfn.IFNA((VLOOKUP($B1412,Lists!$C$2:$D$13,2,FALSE)),\"\")","v":""}]
[null,null,null,null,null,null,null,null,null,null,{"$f":"_xlfn.IFNA((VLOOKUP($B1413,Lists!$C$2:$D$13,2,FALSE)),\"\")","v":""}]
[null,null,null,null,null,null,null,null,null,null,{"$f":"_xlfn.IFNA((VLOOKUP($B1414,Lists!$C$2:$D$13,2,FALSE)),\"\")","v":""}]
[null,null,null,null,null,null,null,null,null,null,{"$f":"_xlfn.IFNA((VLOOKUP($B1415,Lists!$C$2:$D$13,2,FALSE)),\"\")","v":""}]
[null,null,null,null,null,null,null,null,null,null,{"$f":"_xlfn.IFNA((VLOOKUP($B1416,Lists!$C$2:$D$13,2,FALSE)),\"\")","v":""}]
[null,null,null,null,null,null,null,null,null,null,{"$f":"_xlfn.IFNA((VLOOKUP($B1417,Lists!$C$2:$D$13,2,FALSE)),\"\")","v":""}]
[null,null,null,null,null,null,null,null,null,null,{"$f":"_xlfn.IFNA((VLOOKUP($B1418,Lists!$C$2:$D$13,2,FALSE)),\"\")","v":""}]
[null,null,null,null,null,null,null,null,null,null,{"$f":"_xlfn.IFNA((VLOOKUP($B1419,Lists!$C$2:$D$13,2,FALSE)),\"\")","v":""}]
[null,null,null,null,null,null,null,null,null,null,{"$f":"_xlfn.IFNA((VLOOKUP($B1420,Lists!$C$2:$D$13,2,FALSE)),\"\")","v":""}]
[null,null,null,null,null,null,null,null,null,null,{"$f":"_xlfn.IFNA((VLOOKUP($B1421,Lists!$C$2:$D$13,2,FALSE)),\"\")","v":""}]
[null,null,null,null,null,null,null,null,null,null,{"$f":"_xlfn.IFNA((VLOOKUP($B1422,Lists!$C$2:$D$13,2,FALSE)),\"\")","v":""}]
[null,null,null,null,null,null,null,null,null,null,{"$f":"_xlfn.IFNA((VLOOKUP($B1423,Lists!$C$2:$D$13,2,FALSE)),\"\")","v":""}]
[null,null,null,null,null,null,null,null,null,null,{"$f":"_xlfn.IFNA((VLOOKUP($B1424,Lists!$C$2:$D$13,2,FALSE)),\"\")","v":""}]
[null,null,null,null,null,null,null,null,null,null,{"$f":"_xlfn.IFNA((VLOOKUP($B1425,Lists!$C$2:$D$13,2,FALSE)),\"\")","v":""}]
[null,null,null,null,null,null,null,null,null,null,{"$f":"_xlfn.IFNA((VLOOKUP($B1426,Lists!$C$2:$D$13,2,FALSE)),\"\")","v":""}]
[null,null,null,null,null,null,null,null,null,null,{"$f":"_xlfn.IFNA((VLOOKUP($B1427,Lists!$C$2:$D$13,2,FALSE)),\"\")","v":""}]
[null,null,null,null,null,null,null,null,null,null,{"$f":"_xlfn.IFNA((VLOOKUP($B1428,Lists!$C$2:$D$13,2,FALSE)),\"\")","v":""}]
[null,null,null,null,null,null,null,null,null,null,{"$f":"_xlfn.IFNA((VLOOKUP($B1429,Lists!$C$2:$D$13,2,FALSE)),\"\")","v":""}]
[null,null,null,null,null,null,null,null,null,null,{"$f":"_xlfn.IFNA((VLOOKUP($B1430,Lists!$C$2:$D$13,2,FALSE)),\"\")","v":""}]
[null,null,null,null,null,null,null,null,null,null,{"$f":"_xlfn.IFNA((VLOOKUP($B1431,Lists!$C$2:$D$13,2,FALSE)),\"\")","v":""}]
[null,null,null,null,null,null,null,null,null,null,{"$f":"_xlfn.IFNA((VLOOKUP($B1432,Lists!$C$2:$D$13,2,FALSE)),\"\")","v":""}]
[null,null,null,null,null,null,null,null,null,null,{"$f":"_xlfn.IFNA((VLOOKUP($B1433,Lists!$C$2:$D$13,2,FALSE)),\"\")","v":""}]
[null,null,null,null,null,null,null,null,null,null,{"$f":"_xlfn.IFNA((VLOOKUP($B1434,Lists!$C$2:$D$13,2,FALSE)),\"\")","v":""}]
[null,null,null,null,null,null,null,null,null,null,{"$f":"_xlfn.IFNA((VLOOKUP($B1435,Lists!$C$2:$D$13,2,FALSE)),\"\")","v":""}]
[null,null,null,null,null,null,null,null,null,null,{"$f":"_xlfn.IFNA((VLOOKUP($B1436,Lists!$C$2:$D$13,2,FALSE)),\"\")","v":""}]
[null,null,null,null,null,null,null,null,null,null,{"$f":"_xlfn.IFNA((VLOOKUP($B1437,Lists!$C$2:$D$13,2,FALSE)),\"\")","v":""}]
[null,null,null,null,null,null,null,null,null,null,{"$f":"_xlfn.IFNA((VLOOKUP($B1438,Lists!$C$2:$D$13,2,FALSE)),\"\")","v":""}]
[null,null,null,null,null,null,null,null,null,null,{"$f":"_xlfn.IFNA((VLOOKUP($B1439,Lists!$C$2:$D$13,2,FALSE)),\"\")","v":""}]
[null,null,null,null,null,null,null,null,null,null,{"$f":"_xlfn.IFNA((VLOOKUP($B1440,Lists!$C$2:$D$13,2,FALSE)),\"\")","v":""}]
[null,null,null,null,null,null,null,null,null,null,{"$f":"_xlfn.IFNA((VLOOKUP($B1441,Lists!$C$2:$D$13,2,FALSE)),\"\")","v":""}]
[null,null,null,null,null,null,null,null,null,null,{"$f":"_xlfn.IFNA((VLOOKUP($B1442,Lists!$C$2:$D$13,2,FALSE)),\"\")","v":""}]
[null,null,null,null,null,null,null,null,null,null,{"$f":"_xlfn.IFNA((VLOOKUP($B1443,Lists!$C$2:$D$13,2,FALSE)),\"\")","v":""}]
[null,null,null,null,null,null,null,null,null,null,{"$f":"_xlfn.IFNA((VLOOKUP($B1444,Lists!$C$2:$D$13,2,FALSE)),\"\")","v":""}]
[null,null,null,null,null,null,null,null,null,null,{"$f":"_xlfn.IFNA((VLOOKUP($B1445,Lists!$C$2:$D$13,2,FALSE)),\"\")","v":""}]
[null,null,null,null,null,null,null,null,null,null,{"$f":"_xlfn.IFNA((VLOOKUP($B1446,Lists!$C$2:$D$13,2,FALSE)),\"\")","v":""}]
[null,null,null,null,null,null,null,null,null,null,{"$f":"_xlfn.IFNA((VLOOKUP($B1447,Lists!$C$2:$D$13,2,FALSE)),\"\")","v":""}]
[null,null,null,null,null,null,null,null,null,null,{"$f":"_xlfn.IFNA((VLOOKUP($B1448,Lists!$C$2:$D$13,2,FALSE)),\"\")","v":""}]
[null,null,null,null,null,null,null,null,null,null,{"$f":"_xlfn.IFNA((VLOOKUP($B1449,Lists!$C$2:$D$13,2,FALSE)),\"\")","v":""}]
[null,null,null,null,null,null,null,null,null,null,{"$f":"_xlfn.IFNA((VLOOKUP($B1450,Lists!$C$2:$D$13,2,FALSE)),\"\")","v":""}]
[null,null,null,null,null,null,null,null,null,null,{"$f":"_xlfn.IFNA((VLOOKUP($B1451,Lists!$C$2:$D$13,2,FALSE)),\"\")","v":""}]
[null,null,null,null,null,null,null,null,null,null,{"$f":"_xlfn.IFNA((VLOOKUP($B1452,Lists!$C$2:$D$13,2,FALSE)),\"\")","v":""}]
[null,null,null,null,null,null,null,null,null,null,{"$f":"_xlfn.IFNA((VLOOKUP($B1453,Lists!$C$2:$D$13,2,FALSE)),\"\")","v":""}]
[null,null,null,null,null,null,null,null,null,null,{"$f":"_xlfn.IFNA((VLOOKUP($B1454,Lists!$C$2:$D$13,2,FALSE)),\"\")","v":""}]
[null,null,null,null,null,null,null,null,null,null,{"$f":"_xlfn.IFNA((VLOOKUP($B1455,Lists!$C$2:$D$13,2,FALSE)),\"\")","v":""}]
[null,null,null,null,null,null,null,null,null,null,{"$f":"_xlfn.IFNA((VLOOKUP($B1456,Lists!$C$2:$D$13,2,FALSE)),\"\")","v":""}]
[null,null,null,null,null,null,null,null,null,null,{"$f":"_xlfn.IFNA((VLOOKUP($B1457,Lists!$C$2:$D$13,2,FALSE)),\"\")","v":""}]
[null,null,null,null,null,null,null,null,null,null,{"$f":"_xlfn.IFNA((VLOOKUP($B1458,Lists!$C$2:$D$13,2,FALSE)),\"\")","v":""}]
[null,null,null,null,null,null,null,null,null,null,{"$f":"_xlfn.IFNA((VLOOKUP($B1459,Lists!$C$2:$D$13,2,FALSE)),\"\")","v":""}]
[null,null,null,null,null,null,null,null,null,null,{"$f":"_xlfn.IFNA((VLOOKUP($B1460,Lists!$C$2:$D$13,2,FALSE)),\"\")","v":""}]
[null,null,null,null,null,null,null,null,null,null,{"$f":"_xlfn.IFNA((VLOOKUP($B1461,Lists!$C$2:$D$13,2,FALSE)),\"\")","v":""}]
[null,null,null,null,null,null,null,null,null,null,{"$f":"_xlfn.IFNA((VLOOKUP($B1462,Lists!$C$2:$D$13,2,FALSE)),\"\")","v":""}]
[null,null,null,null,null,null,null,null,null,null,{"$f":"_xlfn.IFNA((VLOOKUP($B1463,Lists!$C$2:$D$13,2,FALSE)),\"\")","v":""}]
[null,null,null,null,null,null,null,null,null,null,{"$f":"_xlfn.IFNA((VLOOKUP($B1464,Lists!$C$2:$D$13,2,FALSE)),\"\")","v":""}]
[null,null,null,null,null,null,null,null,null,null,{"$f":"_xlfn.IFNA((VLOOKUP($B1465,Lists!$C$2:$D$13,2,FALSE)),\"\")","v":""}]
[null,null,null,null,null,null,null,null,null,null,{"$f":"_xlfn.IFNA((VLOOKUP($B1466,Lists!$C$2:$D$13,2,FALSE)),\"\")","v":""}]
[null,null,null,null,null,null,null,null,null,null,{"$f":"_xlfn.IFNA((VLOOKUP($B1467,Lists!$C$2:$D$13,2,FALSE)),\"\")","v":""}]
[null,null,null,null,null,null,null,null,null,null,{"$f":"_xlfn.IFNA((VLOOKUP($B1468,Lists!$C$2:$D$13,2,FALSE)),\"\")","v":""}]
[null,null,null,null,null,null,null,null,null,null,{"$f":"_xlfn.IFNA((VLOOKUP($B1469,Lists!$C$2:$D$13,2,FALSE)),\"\")","v":""}]
[null,null,null,null,null,null,null,null,null,null,{"$f":"_xlfn.IFNA((VLOOKUP($B1470,Lists!$C$2:$D$13,2,FALSE)),\"\")","v":""}]
[null,null,null,null,null,null,null,null,null,null,{"$f":"_xlfn.IFNA((VLOOKUP($B1471,Lists!$C$2:$D$13,2,FALSE)),\"\")","v":""}]
[null,null,null,null,null,null,null,null,null,null,{"$f":"_xlfn.IFNA((VLOOKUP($B1472,Lists!$C$2:$D$13,2,FALSE)),\"\")","v":""}]
[null,null,null,null,null,null,null,null,null,null,{"$f":"_xlfn.IFNA((VLOOKUP($B1473,Lists!$C$2:$D$13,2,FALSE)),\"\")","v":""}]
[null,null,null,null,null,null,null,null,null,null,{"$f":"_xlfn.IFNA((VLOOKUP($B1474,Lists!$C$2:$D$13,2,FALSE)),\"\")","v":""}]
[null,null,null,null,null,null,null,null,null,null,{"$f":"_xlfn.IFNA((VLOOKUP($B1475,Lists!$C$2:$D$13,2,FALSE)),\"\")","v":""}]
[null,null,null,null,null,null,null,null,null,null,{"$f":"_xlfn.IFNA((VLOOKUP($B1476,Lists!$C$2:$D$13,2,FALSE)),\"\")","v":""}]
[null,null,null,null,null,null,null,null,null,null,{"$f":"_xlfn.IFNA((VLOOKUP($B1477,Lists!$C$2:$D$13,2,FALSE)),\"\")","v":""}]
[null,null,null,null,null,null,null,null,null,null,{"$f":"_xlfn.IFNA((VLOOKUP($B1478,Lists!$C$2:$D$13,2,FALSE)),\"\")","v":""}]
[null,null,null,null,null,null,null,null,null,null,{"$f":"_xlfn.IFNA((VLOOKUP($B1479,Lists!$C$2:$D$13,2,FALSE)),\"\")","v":""}]
[null,null,null,null,null,null,null,null,null,null,{"$f":"_xlfn.IFNA((VLOOKUP($B1480,Lists!$C$2:$D$13,2,FALSE)),\"\")","v":""}]
[null,null,null,null,null,null,null,null,null,null,{"$f":"_xlfn.IFNA((VLOOKUP($B1481,Lists!$C$2:$D$13,2,FALSE)),\"\")","v":""}]
[null,null,null,null,null,null,null,null,null,null,{"$f":"_xlfn.IFNA((VLOOKUP($B1482,Lists!$C$2:$D$13,2,FALSE)),\"\")","v":""}]
[null,null,null,null,null,null,null,null,null,null,{"$f":"_xlfn.IFNA((VLOOKUP($B1483,Lists!$C$2:$D$13,2,FALSE)),\"\")","v":""}]
[null,null,null,null,null,null,null,null,null,null,{"$f":"_xlfn.IFNA((VLOOKUP($B1484,Lists!$C$2:$D$13,2,FALSE)),\"\")","v":""}]
[null,null,null,null,null,null,null,null,null,null,{"$f":"_xlfn.IFNA((VLOOKUP($B1485,Lists!$C$2:$D$13,2,FALSE)),\"\")","v":""}]
[null,null,null,null,null,null,null,null,null,null,{"$f":"_xlfn.IFNA((VLOOKUP($B1486,Lists!$C$2:$D$13,2,FALSE)),\"\")","v":""}]
[null,null,null,null,null,null,null,null,null,null,{"$f":"_xlfn.IFNA((VLOOKUP($B1487,Lists!$C$2:$D$13,2,FALSE)),\"\")","v":""}]
[null,null,null,null,null,null,null,null,null,null,{"$f":"_xlfn.IFNA((VLOOKUP($B1488,Lists!$C$2:$D$13,2,FALSE)),\"\")","v":""}]
[null,null,null,null,null,null,null,null,null,null,{"$f":"_xlfn.IFNA((VLOOKUP($B1489,Lists!$C$2:$D$13,2,FALSE)),\"\")","v":""}]
[null,null,null,null,null,null,null,null,null,null,{"$f":"_xlfn.IFNA((VLOOKUP($B1490,Lists!$C$2:$D$13,2,FALSE)),\"\")","v":""}]
[null,null,null,null,null,null,null,null,null,null,{"$f":"_xlfn.IFNA((VLOOKUP($B1491,Lists!$C$2:$D$13,2,FALSE)),\"\")","v":""}]
[null,null,null,null,null,null,null,null,null,null,{"$f":"_xlfn.IFNA((VLOOKUP($B1492,Lists!$C$2:$D$13,2,FALSE)),\"\")","v":""}]
[null,null,null,null,null,null,null,null,null,null,{"$f":"_xlfn.IFNA((VLOOKUP($B1493,Lists!$C$2:$D$13,2,FALSE)),\"\")","v":""}]
[null,null,null,null,null,null,null,null,null,null,{"$f":"_xlfn.IFNA((VLOOKUP($B1494,Lists!$C$2:$D$13,2,FALSE)),\"\")","v":""}]
[null,null,null,null,null,null,null,null,null,null,{"$f":"_xlfn.IFNA((VLOOKUP($B1495,Lists!$C$2:$D$13,2,FALSE)),\"\")","v":""}]
[null,null,null,null,null,null,null,null,null,null,{"$f":"_xlfn.IFNA((VLOOKUP($B1496,Lists!$C$2:$D$13,2,FALSE)),\"\")","v":""}]
[null,null,null,null,null,null,null,null,null,null,{"$f":"_xlfn.IFNA((VLOOKUP($B1497,Lists!$C$2:$D$13,2,FALSE)),\"\")","v":""}]
[null,null,null,null,null,null,null,null,null,null,{"$f":"_xlfn.IFNA((VLOOKUP($B1498,Lists!$C$2:$D$13,2,FALSE)),\"\")","v":""}]
[null,null,null,null,null,null,null,null,null,null,{"$f":"_xlfn.IFNA((VLOOKUP($B1499,Lists!$C$2:$D$13,2,FALSE)),\"\")","v":""}]
[null,null,null,null,null,null,null,null,null,null,{"$f":"_xlfn.IFNA((VLOOKUP($B1500,Lists!$C$2:$D$13,2,FALSE)),\"\")","v":""}]
[null,null,null,null,null,null,null,null,null,null,{"$f":"_xlfn.IFNA((VLOOKUP($B1501,Lists!$C$2:$D$13,2,FALSE)),\"\")","v":""}]
[null,null,null,null,null,null,null,null,null,null,{"$f":"_xlfn.IFNA((VLOOKUP($B1502,Lists!$C$2:$D$13,2,FALSE)),\"\")","v":""}]
[null,null,null,null,null,null,null,null,null,null,{"$f":"_xlfn.IFNA((VLOOKUP($B1503,Lists!$C$2:$D$13,2,FALSE)),\"\")","v":""}]
[null,null,null,null,null,null,null,null,null,null,{"$f":"_xlfn.IFNA((VLOOKUP($B1504,Lists!$C$2:$D$13,2,FALSE)),\"\")","v":""}]
[null,null,null,null,null,null,null,null,null,null,{"$f":"_xlfn.IFNA((VLOOKUP($B1505,Lists!$C$2:$D$13,2,FALSE)),\"\")","v":""}]
[null,null,null,null,null,null,null,null,null,null,{"$f":"_xlfn.IFNA((VLOOKUP($B1506,Lists!$C$2:$D$13,2,FALSE)),\"\")","v":""}]
[null,null,null,null,null,null,null,null,null,null,{"$f":"_xlfn.IFNA((VLOOKUP($B1507,Lists!$C$2:$D$13,2,FALSE)),\"\")","v":""}]
[null,null,null,null,null,null,null,null,null,null,{"$f":"_xlfn.IFNA((VLOOKUP($B1508,Lists!$C$2:$D$13,2,FALSE)),\"\")","v":""}]
[null,null,null,null,null,null,null,null,null,null,{"$f":"_xlfn.IFNA((VLOOKUP($B1509,Lists!$C$2:$D$13,2,FALSE)),\"\")","v":""}]
[null,null,null,null,null,null,null,null,null,null,{"$f":"_xlfn.IFNA((VLOOKUP($B1510,Lists!$C$2:$D$13,2,FALSE)),\"\")","v":""}]
[null,null,null,null,null,null,null,null,null,null,{"$f":"_xlfn.IFNA((VLOOKUP($B1511,Lists!$C$2:$D$13,2,FALSE)),\"\")","v":""}]
[null,null,null,null,null,null,null,null,null,null,{"$f":"_xlfn.IFNA((VLOOKUP($B1512,Lists!$C$2:$D$13,2,FALSE)),\"\")","v":""}]
[null,null,null,null,null,null,null,null,null,null,{"$f":"_xlfn.IFNA((VLOOKUP($B1513,Lists!$C$2:$D$13,2,FALSE)),\"\")","v":""}]
[null,null,null,null,null,null,null,null,null,null,{"$f":"_xlfn.IFNA((VLOOKUP($B1514,Lists!$C$2:$D$13,2,FALSE)),\"\")","v":""}]
[null,null,null,null,null,null,null,null,null,null,{"$f":"_xlfn.IFNA((VLOOKUP($B1515,Lists!$C$2:$D$13,2,FALSE)),\"\")","v":""}]
[null,null,null,null,null,null,null,null,null,null,{"$f":"_xlfn.IFNA((VLOOKUP($B1516,Lists!$C$2:$D$13,2,FALSE)),\"\")","v":""}]
[null,null,null,null,null,null,null,null,null,null,{"$f":"_xlfn.IFNA((VLOOKUP($B1517,Lists!$C$2:$D$13,2,FALSE)),\"\")","v":""}]
[null,null,null,null,null,null,null,null,null,null,{"$f":"_xlfn.IFNA((VLOOKUP($B1518,Lists!$C$2:$D$13,2,FALSE)),\"\")","v":""}]
[null,null,null,null,null,null,null,null,null,null,{"$f":"_xlfn.IFNA((VLOOKUP($B1519,Lists!$C$2:$D$13,2,FALSE)),\"\")","v":""}]
[null,null,null,null,null,null,null,null,null,null,{"$f":"_xlfn.IFNA((VLOOKUP($B1520,Lists!$C$2:$D$13,2,FALSE)),\"\")","v":""}]
[null,null,null,null,null,null,null,null,null,null,{"$f":"_xlfn.IFNA((VLOOKUP($B1521,Lists!$C$2:$D$13,2,FALSE)),\"\")","v":""}]
[null,null,null,null,null,null,null,null,null,null,{"$f":"_xlfn.IFNA((VLOOKUP($B1522,Lists!$C$2:$D$13,2,FALSE)),\"\")","v":""}]
[null,null,null,null,null,null,null,null,null,null,{"$f":"_xlfn.IFNA((VLOOKUP($B1523,Lists!$C$2:$D$13,2,FALSE)),\"\")","v":""}]
[null,null,null,null,null,null,null,null,null,null,{"$f":"_xlfn.IFNA((VLOOKUP($B1524,Lists!$C$2:$D$13,2,FALSE)),\"\")","v":""}]
[null,null,null,null,null,null,null,null,null,null,{"$f":"_xlfn.IFNA((VLOOKUP($B1525,Lists!$C$2:$D$13,2,FALSE)),\"\")","v":""}]
[null,null,null,null,null,null,null,null,null,null,{"$f":"_xlfn.IFNA((VLOOKUP($B1526,Lists!$C$2:$D$13,2,FALSE)),\"\")","v":""}]
[null,null,null,null,null,null,null,null,null,null,{"$f":"_xlfn.IFNA((VLOOKUP($B1527,Lists!$C$2:$D$13,2,FALSE)),\"\")","v":""}]
[null,null,null,null,null,null,null,null,null,null,{"$f":"_xlfn.IFNA((VLOOKUP($B1528,Lists!$C$2:$D$13,2,FALSE)),\"\")","v":""}]
[null,null,null,null,null,null,null,null,null,null,{"$f":"_xlfn.IFNA((VLOOKUP($B1529,Lists!$C$2:$D$13,2,FALSE)),\"\")","v":""}]
[null,null,null,null,null,null,null,null,null,null,{"$f":"_xlfn.IFNA((VLOOKUP($B1530,Lists!$C$2:$D$13,2,FALSE)),\"\")","v":""}]
[null,null,null,null,null,null,null,null,null,null,{"$f":"_xlfn.IFNA((VLOOKUP($B1531,Lists!$C$2:$D$13,2,FALSE)),\"\")","v":""}]
[null,null,null,null,null,null,null,null,null,null,{"$f":"_xlfn.IFNA((VLOOKUP($B1532,Lists!$C$2:$D$13,2,FALSE)),\"\")","v":""}]
[null,null,null,null,null,null,null,null,null,null,{"$f":"_xlfn.IFNA((VLOOKUP($B1533,Lists!$C$2:$D$13,2,FALSE)),\"\")","v":""}]
[null,null,null,null,null,null,null,null,null,null,{"$f":"_xlfn.IFNA((VLOOKUP($B1534,Lists!$C$2:$D$13,2,FALSE)),\"\")","v":""}]
[null,null,null,null,null,null,null,null,null,null,{"$f":"_xlfn.IFNA((VLOOKUP($B1535,Lists!$C$2:$D$13,2,FALSE)),\"\")","v":""}]
[null,null,null,null,null,null,null,null,null,null,{"$f":"_xlfn.IFNA((VLOOKUP($B1536,Lists!$C$2:$D$13,2,FALSE)),\"\")","v":""}]
[null,null,null,null,null,null,null,null,null,null,{"$f":"_xlfn.IFNA((VLOOKUP($B1537,Lists!$C$2:$D$13,2,FALSE)),\"\")","v":""}]
[null,null,null,null,null,null,null,null,null,null,{"$f":"_xlfn.IFNA((VLOOKUP($B1538,Lists!$C$2:$D$13,2,FALSE)),\"\")","v":""}]
[null,null,null,null,null,null,null,null,null,null,{"$f":"_xlfn.IFNA((VLOOKUP($B1539,Lists!$C$2:$D$13,2,FALSE)),\"\")","v":""}]
[null,null,null,null,null,null,null,null,null,null,{"$f":"_xlfn.IFNA((VLOOKUP($B1540,Lists!$C$2:$D$13,2,FALSE)),\"\")","v":""}]
[null,null,null,null,null,null,null,null,null,null,{"$f":"_xlfn.IFNA((VLOOKUP($B1541,Lists!$C$2:$D$13,2,FALSE)),\"\")","v":""}]
[null,null,null,null,null,null,null,null,null,null,{"$f":"_xlfn.IFNA((VLOOKUP($B1542,Lists!$C$2:$D$13,2,FALSE)),\"\")","v":""}]
[null,null,null,null,null,null,null,null,null,null,{"$f":"_xlfn.IFNA((VLOOKUP($B1543,Lists!$C$2:$D$13,2,FALSE)),\"\")","v":""}]
[null,null,null,null,null,null,null,null,null,null,{"$f":"_xlfn.IFNA((VLOOKUP($B1544,Lists!$C$2:$D$13,2,FALSE)),\"\")","v":""}]
[null,null,null,null,null,null,null,null,null,null,{"$f":"_xlfn.IFNA((VLOOKUP($B1545,Lists!$C$2:$D$13,2,FALSE)),\"\")","v":""}]
[null,null,null,null,null,null,null,null,null,null,{"$f":"_xlfn.IFNA((VLOOKUP($B1546,Lists!$C$2:$D$13,2,FALSE)),\"\")","v":""}]
[null,null,null,null,null,null,null,null,null,null,{"$f":"_xlfn.IFNA((VLOOKUP($B1547,Lists!$C$2:$D$13,2,FALSE)),\"\")","v":""}]
[null,null,null,null,null,null,null,null,null,null,{"$f":"_xlfn.IFNA((VLOOKUP($B1548,Lists!$C$2:$D$13,2,FALSE)),\"\")","v":""}]
[null,null,null,null,null,null,null,null,null,null,{"$f":"_xlfn.IFNA((VLOOKUP($B1549,Lists!$C$2:$D$13,2,FALSE)),\"\")","v":""}]
[null,null,null,null,null,null,null,null,null,null,{"$f":"_xlfn.IFNA((VLOOKUP($B1550,Lists!$C$2:$D$13,2,FALSE)),\"\")","v":""}]
[null,null,null,null,null,null,null,null,null,null,{"$f":"_xlfn.IFNA((VLOOKUP($B1551,Lists!$C$2:$D$13,2,FALSE)),\"\")","v":""}]
[null,null,null,null,null,null,null,null,null,null,{"$f":"_xlfn.IFNA((VLOOKUP($B1552,Lists!$C$2:$D$13,2,FALSE)),\"\")","v":""}]
[null,null,null,null,null,null,null,null,null,null,{"$f":"_xlfn.IFNA((VLOOKUP($B1553,Lists!$C$2:$D$13,2,FALSE)),\"\")","v":""}]
[null,null,null,null,null,null,null,null,null,null,{"$f":"_xlfn.IFNA((VLOOKUP($B1554,Lists!$C$2:$D$13,2,FALSE)),\"\")","v":""}]
[null,null,null,null,null,null,null,null,null,null,{"$f":"_xlfn.IFNA((VLOOKUP($B1555,Lists!$C$2:$D$13,2,FALSE)),\"\")","v":""}]
[null,null,null,null,null,null,null,null,null,null,{"$f":"_xlfn.IFNA((VLOOKUP($B1556,Lists!$C$2:$D$13,2,FALSE)),\"\")","v":""}]
[null,null,null,null,null,null,null,null,null,null,{"$f":"_xlfn.IFNA((VLOOKUP($B1557,Lists!$C$2:$D$13,2,FALSE)),\"\")","v":""}]
[null,null,null,null,null,null,null,null,null,null,{"$f":"_xlfn.IFNA((VLOOKUP($B1558,Lists!$C$2:$D$13,2,FALSE)),\"\")","v":""}]
[null,null,null,null,null,null,null,null,null,null,{"$f":"_xlfn.IFNA((VLOOKUP($B1559,Lists!$C$2:$D$13,2,FALSE)),\"\")","v":""}]
[null,null,null,null,null,null,null,null,null,null,{"$f":"_xlfn.IFNA((VLOOKUP($B1560,Lists!$C$2:$D$13,2,FALSE)),\"\")","v":""}]
[null,null,null,null,null,null,null,null,null,null,{"$f":"_xlfn.IFNA((VLOOKUP($B1561,Lists!$C$2:$D$13,2,FALSE)),\"\")","v":""}]
[null,null,null,null,null,null,null,null,null,null,{"$f":"_xlfn.IFNA((VLOOKUP($B1562,Lists!$C$2:$D$13,2,FALSE)),\"\")","v":""}]
[null,null,null,null,null,null,null,null,null,null,{"$f":"_xlfn.IFNA((VLOOKUP($B1563,Lists!$C$2:$D$13,2,FALSE)),\"\")","v":""}]
[null,null,null,null,null,null,null,null,null,null,{"$f":"_xlfn.IFNA((VLOOKUP($B1564,Lists!$C$2:$D$13,2,FALSE)),\"\")","v":""}]
[null,null,null,null,null,null,null,null,null,null,{"$f":"_xlfn.IFNA((VLOOKUP($B1565,Lists!$C$2:$D$13,2,FALSE)),\"\")","v":""}]
[null,null,null,null,null,null,null,null,null,null,{"$f":"_xlfn.IFNA((VLOOKUP($B1566,Lists!$C$2:$D$13,2,FALSE)),\"\")","v":""}]
[null,null,null,null,null,null,null,null,null,null,{"$f":"_xlfn.IFNA((VLOOKUP($B1567,Lists!$C$2:$D$13,2,FALSE)),\"\")","v":""}]
[null,null,null,null,null,null,null,null,null,null,{"$f":"_xlfn.IFNA((VLOOKUP($B1568,Lists!$C$2:$D$13,2,FALSE)),\"\")","v":""}]
[null,null,null,null,null,null,null,null,null,null,{"$f":"_xlfn.IFNA((VLOOKUP($B1569,Lists!$C$2:$D$13,2,FALSE)),\"\")","v":""}]
[null,null,null,null,null,null,null,null,null,null,{"$f":"_xlfn.IFNA((VLOOKUP($B1570,Lists!$C$2:$D$13,2,FALSE)),\"\")","v":""}]
[null,null,null,null,null,null,null,null,null,null,{"$f":"_xlfn.IFNA((VLOOKUP($B1571,Lists!$C$2:$D$13,2,FALSE)),\"\")","v":""}]
[null,null,null,null,null,null,null,null,null,null,{"$f":"_xlfn.IFNA((VLOOKUP($B1572,Lists!$C$2:$D$13,2,FALSE)),\"\")","v":""}]
[null,null,null,null,null,null,null,null,null,null,{"$f":"_xlfn.IFNA((VLOOKUP($B1573,Lists!$C$2:$D$13,2,FALSE)),\"\")","v":""}]
[null,null,null,null,null,null,null,null,null,null,{"$f":"_xlfn.IFNA((VLOOKUP($B1574,Lists!$C$2:$D$13,2,FALSE)),\"\")","v":""}]
[null,null,null,null,null,null,null,null,null,null,{"$f":"_xlfn.IFNA((VLOOKUP($B1575,Lists!$C$2:$D$13,2,FALSE)),\"\")","v":""}]
[null,null,null,null,null,null,null,null,null,null,{"$f":"_xlfn.IFNA((VLOOKUP($B1576,Lists!$C$2:$D$13,2,FALSE)),\"\")","v":""}]
[null,null,null,null,null,null,null,null,null,null,{"$f":"_xlfn.IFNA((VLOOKUP($B1577,Lists!$C$2:$D$13,2,FALSE)),\"\")","v":""}]
[null,null,null,null,null,null,null,null,null,null,{"$f":"_xlfn.IFNA((VLOOKUP($B1578,Lists!$C$2:$D$13,2,FALSE)),\"\")","v":""}]
[null,null,null,null,null,null,null,null,null,null,{"$f":"_xlfn.IFNA((VLOOKUP($B1579,Lists!$C$2:$D$13,2,FALSE)),\"\")","v":""}]
[null,null,null,null,null,null,null,null,null,null,{"$f":"_xlfn.IFNA((VLOOKUP($B1580,Lists!$C$2:$D$13,2,FALSE)),\"\")","v":""}]
[null,null,null,null,null,null,null,null,null,null,{"$f":"_xlfn.IFNA((VLOOKUP($B1581,Lists!$C$2:$D$13,2,FALSE)),\"\")","v":""}]
[null,null,null,null,null,null,null,null,null,null,{"$f":"_xlfn.IFNA((VLOOKUP($B1582,Lists!$C$2:$D$13,2,FALSE)),\"\")","v":""}]
[null,null,null,null,null,null,null,null,null,null,{"$f":"_xlfn.IFNA((VLOOKUP($B1583,Lists!$C$2:$D$13,2,FALSE)),\"\")","v":""}]
[null,null,null,null,null,null,null,null,null,null,{"$f":"_xlfn.IFNA((VLOOKUP($B1584,Lists!$C$2:$D$13,2,FALSE)),\"\")","v":""}]
[null,null,null,null,null,null,null,null,null,null,{"$f":"_xlfn.IFNA((VLOOKUP($B1585,Lists!$C$2:$D$13,2,FALSE)),\"\")","v":""}]
[null,null,null,null,null,null,null,null,null,null,{"$f":"_xlfn.IFNA((VLOOKUP($B1586,Lists!$C$2:$D$13,2,FALSE)),\"\")","v":""}]
[null,null,null,null,null,null,null,null,null,null,{"$f":"_xlfn.IFNA((VLOOKUP($B1587,Lists!$C$2:$D$13,2,FALSE)),\"\")","v":""}]
[null,null,null,null,null,null,null,null,null,null,{"$f":"_xlfn.IFNA((VLOOKUP($B1588,Lists!$C$2:$D$13,2,FALSE)),\"\")","v":""}]
[null,null,null,null,null,null,null,null,null,null,{"$f":"_xlfn.IFNA((VLOOKUP($B1589,Lists!$C$2:$D$13,2,FALSE)),\"\")","v":""}]
[null,null,null,null,null,null,null,null,null,null,{"$f":"_xlfn.IFNA((VLOOKUP($B1590,Lists!$C$2:$D$13,2,FALSE)),\"\")","v":""}]
[null,null,null,null,null,null,null,null,null,null,{"$f":"_xlfn.IFNA((VLOOKUP($B1591,Lists!$C$2:$D$13,2,FALSE)),\"\")","v":""}]
[null,null,null,null,null,null,null,null,null,null,{"$f":"_xlfn.IFNA((VLOOKUP($B1592,Lists!$C$2:$D$13,2,FALSE)),\"\")","v":""}]
[null,null,null,null,null,null,null,null,null,null,{"$f":"_xlfn.IFNA((VLOOKUP($B1593,Lists!$C$2:$D$13,2,FALSE)),\"\")","v":""}]
[null,null,null,null,null,null,null,null,null,null,{"$f":"_xlfn.IFNA((VLOOKUP($B1594,Lists!$C$2:$D$13,2,FALSE)),\"\")","v":""}]
[null,null,null,null,null,null,null,null,null,null,{"$f":"_xlfn.IFNA((VLOOKUP($B1595,Lists!$C$2:$D$13,2,FALSE)),\"\")","v":""}]
[null,null,null,null,null,null,null,null,null,null,{"$f":"_xlfn.IFNA((VLOOKUP($B1596,Lists!$C$2:$D$13,2,FALSE)),\"\")","v":""}]
[null,null,null,null,null,null,null,null,null,null,{"$f":"_xlfn.IFNA((VLOOKUP($B1597,Lists!$C$2:$D$13,2,FALSE)),\"\")","v":""}]
[null,null,null,null,null,null,null,null,null,null,{"$f":"_xlfn.IFNA((VLOOKUP($B1598,Lists!$C$2:$D$13,2,FALSE)),\"\")","v":""}]
[null,null,null,null,null,null,null,null,null,null,{"$f":"_xlfn.IFNA((VLOOKUP($B1599,Lists!$C$2:$D$13,2,FALSE)),\"\")","v":""}]
[null,null,null,null,null,null,null,null,null,null,{"$f":"_xlfn.IFNA((VLOOKUP($B1600,Lists!$C$2:$D$13,2,FALSE)),\"\")","v":""}]
[null,null,null,null,null,null,null,null,null,null,{"$f":"_xlfn.IFNA((VLOOKUP($B1601,Lists!$C$2:$D$13,2,FALSE)),\"\")","v":""}]
[null,null,null,null,null,null,null,null,null,null,{"$f":"_xlfn.IFNA((VLOOKUP($B1602,Lists!$C$2:$D$13,2,FALSE)),\"\")","v":""}]
[null,null,null,null,null,null,null,null,null,null,{"$f":"_xlfn.IFNA((VLOOKUP($B1603,Lists!$C$2:$D$13,2,FALSE)),\"\")","v":""}]
[null,null,null,null,null,null,null,null,null,null,{"$f":"_xlfn.IFNA((VLOOKUP($B1604,Lists!$C$2:$D$13,2,FALSE)),\"\")","v":""}]
[null,null,null,null,null,null,null,null,null,null,{"$f":"_xlfn.IFNA((VLOOKUP($B1605,Lists!$C$2:$D$13,2,FALSE)),\"\")","v":""}]
[null,null,null,null,null,null,null,null,null,null,{"$f":"_xlfn.IFNA((VLOOKUP($B1606,Lists!$C$2:$D$13,2,FALSE)),\"\")","v":""}]
[null,null,null,null,null,null,null,null,null,null,{"$f":"_xlfn.IFNA((VLOOKUP($B1607,Lists!$C$2:$D$13,2,FALSE)),\"\")","v":""}]
[null,null,null,null,null,null,null,null,null,null,{"$f":"_xlfn.IFNA((VLOOKUP($B1608,Lists!$C$2:$D$13,2,FALSE)),\"\")","v":""}]
[null,null,null,null,null,null,null,null,null,null,{"$f":"_xlfn.IFNA((VLOOKUP($B1609,Lists!$C$2:$D$13,2,FALSE)),\"\")","v":""}]
[null,null,null,null,null,null,null,null,null,null,{"$f":"_xlfn.IFNA((VLOOKUP($B1610,Lists!$C$2:$D$13,2,FALSE)),\"\")","v":""}]
[null,null,null,null,null,null,null,null,null,null,{"$f":"_xlfn.IFNA((VLOOKUP($B1611,Lists!$C$2:$D$13,2,FALSE)),\"\")","v":""}]
[null,null,null,null,null,null,null,null,null,null,{"$f":"_xlfn.IFNA((VLOOKUP($B1612,Lists!$C$2:$D$13,2,FALSE)),\"\")","v":""}]
[null,null,null,null,null,null,null,null,null,null,{"$f":"_xlfn.IFNA((VLOOKUP($B1613,Lists!$C$2:$D$13,2,FALSE)),\"\")","v":""}]
[null,null,null,null,null,null,null,null,null,null,{"$f":"_xlfn.IFNA((VLOOKUP($B1614,Lists!$C$2:$D$13,2,FALSE)),\"\")","v":""}]
[null,null,null,null,null,null,null,null,null,null,{"$f":"_xlfn.IFNA((VLOOKUP($B1615,Lists!$C$2:$D$13,2,FALSE)),\"\")","v":""}]
[null,null,null,null,null,null,null,null,null,null,{"$f":"_xlfn.IFNA((VLOOKUP($B1616,Lists!$C$2:$D$13,2,FALSE)),\"\")","v":""}]
[null,null,null,null,null,null,null,null,null,null,{"$f":"_xlfn.IFNA((VLOOKUP($B1617,Lists!$C$2:$D$13,2,FALSE)),\"\")","v":""}]
[null,null,null,null,null,null,null,null,null,null,{"$f":"_xlfn.IFNA((VLOOKUP($B1618,Lists!$C$2:$D$13,2,FALSE)),\"\")","v":""}]
[null,null,null,null,null,null,null,null,null,null,{"$f":"_xlfn.IFNA((VLOOKUP($B1619,Lists!$C$2:$D$13,2,FALSE)),\"\")","v":""}]
[null,null,null,null,null,null,null,null,null,null,{"$f":"_xlfn.IFNA((VLOOKUP($B1620,Lists!$C$2:$D$13,2,FALSE)),\"\")","v":""}]
[null,null,null,null,null,null,null,null,null,null,{"$f":"_xlfn.IFNA((VLOOKUP($B1621,Lists!$C$2:$D$13,2,FALSE)),\"\")","v":""}]
[null,null,null,null,null,null,null,null,null,null,{"$f":"_xlfn.IFNA((VLOOKUP($B1622,Lists!$C$2:$D$13,2,FALSE)),\"\")","v":""}]
[null,null,null,null,null,null,null,null,null,null,{"$f":"_xlfn.IFNA((VLOOKUP($B1623,Lists!$C$2:$D$13,2,FALSE)),\"\")","v":""}]
[null,null,null,null,null,null,null,null,null,null,{"$f":"_xlfn.IFNA((VLOOKUP($B1624,Lists!$C$2:$D$13,2,FALSE)),\"\")","v":""}]
[null,null,null,null,null,null,null,null,null,null,{"$f":"_xlfn.IFNA((VLOOKUP($B1625,Lists!$C$2:$D$13,2,FALSE)),\"\")","v":""}]
[null,null,null,null,null,null,null,null,null,null,{"$f":"_xlfn.IFNA((VLOOKUP($B1626,Lists!$C$2:$D$13,2,FALSE)),\"\")","v":""}]
[null,null,null,null,null,null,null,null,null,null,{"$f":"_xlfn.IFNA((VLOOKUP($B1627,Lists!$C$2:$D$13,2,FALSE)),\"\")","v":""}]
[null,null,null,null,null,null,null,null,null,null,{"$f":"_xlfn.IFNA((VLOOKUP($B1628,Lists!$C$2:$D$13,2,FALSE)),\"\")","v":""}]
[null,null,null,null,null,null,null,null,null,null,{"$f":"_xlfn.IFNA((VLOOKUP($B1629,Lists!$C$2:$D$13,2,FALSE)),\"\")","v":""}]
[null,null,null,null,null,null,null,null,null,null,{"$f":"_xlfn.IFNA((VLOOKUP($B1630,Lists!$C$2:$D$13,2,FALSE)),\"\")","v":""}]
[null,null,null,null,null,null,null,null,null,null,{"$f":"_xlfn.IFNA((VLOOKUP($B1631,Lists!$C$2:$D$13,2,FALSE)),\"\")","v":""}]
[null,null,null,null,null,null,null,null,null,null,{"$f":"_xlfn.IFNA((VLOOKUP($B1632,Lists!$C$2:$D$13,2,FALSE)),\"\")","v":""}]
[null,null,null,null,null,null,null,null,null,null,{"$f":"_xlfn.IFNA((VLOOKUP($B1633,Lists!$C$2:$D$13,2,FALSE)),\"\")","v":""}]
[null,null,null,null,null,null,null,null,null,null,{"$f":"_xlfn.IFNA((VLOOKUP($B1634,Lists!$C$2:$D$13,2,FALSE)),\"\")","v":""}]
[null,null,null,null,null,null,null,null,null,null,{"$f":"_xlfn.IFNA((VLOOKUP($B1635,Lists!$C$2:$D$13,2,FALSE)),\"\")","v":""}]
[null,null,null,null,null,null,null,null,null,null,{"$f":"_xlfn.IFNA((VLOOKUP($B1636,Lists!$C$2:$D$13,2,FALSE)),\"\")","v":""}]
[null,null,null,null,null,null,null,null,null,null,{"$f":"_xlfn.IFNA((VLOOKUP($B1637,Lists!$C$2:$D$13,2,FALSE)),\"\")","v":""}]
[null,null,null,null,null,null,null,null,null,null,{"$f":"_xlfn.IFNA((VLOOKUP($B1638,Lists!$C$2:$D$13,2,FALSE)),\"\")","v":""}]
[null,null,null,null,null,null,null,null,null,null,{"$f":"_xlfn.IFNA((VLOOKUP($B1639,Lists!$C$2:$D$13,2,FALSE)),\"\")","v":""}]
[null,null,null,null,null,null,null,null,null,null,{"$f":"_xlfn.IFNA((VLOOKUP($B1640,Lists!$C$2:$D$13,2,FALSE)),\"\")","v":""}]
[null,null,null,null,null,null,null,null,null,null,{"$f":"_xlfn.IFNA((VLOOKUP($B1641,Lists!$C$2:$D$13,2,FALSE)),\"\")","v":""}]
[null,null,null,null,null,null,null,null,null,null,{"$f":"_xlfn.IFNA((VLOOKUP($B1642,Lists!$C$2:$D$13,2,FALSE)),\"\")","v":""}]
[null,null,null,null,null,null,null,null,null,null,{"$f":"_xlfn.IFNA((VLOOKUP($B1643,Lists!$C$2:$D$13,2,FALSE)),\"\")","v":""}]
[null,null,null,null,null,null,null,null,null,null,{"$f":"_xlfn.IFNA((VLOOKUP($B1644,Lists!$C$2:$D$13,2,FALSE)),\"\")","v":""}]
[null,null,null,null,null,null,null,null,null,null,{"$f":"_xlfn.IFNA((VLOOKUP($B1645,Lists!$C$2:$D$13,2,FALSE)),\"\")","v":""}]
[null,null,null,null,null,null,null,null,null,null,{"$f":"_xlfn.IFNA((VLOOKUP($B1646,Lists!$C$2:$D$13,2,FALSE)),\"\")","v":""}]
[null,null,null,null,null,null,null,null,null,null,{"$f":"_xlfn.IFNA((VLOOKUP($B1647,Lists!$C$2:$D$13,2,FALSE)),\"\")","v":""}]
[null,null,null,null,null,null,null,null,null,null,{"$f":"_xlfn.IFNA((VLOOKUP($B1648,Lists!$C$2:$D$13,2,FALSE)),\"\")","v":""}]
[null,null,null,null,null,null,null,null,null,null,{"$f":"_xlfn.IFNA((VLOOKUP($B1649,Lists!$C$2:$D$13,2,FALSE)),\"\")","v":""}]
[null,null,null,null,null,null,null,null,null,null,{"$f":"_xlfn.IFNA((VLOOKUP($B1650,Lists!$C$2:$D$13,2,FALSE)),\"\")","v":""}]
[null,null,null,null,null,null,null,null,null,null,{"$f":"_xlfn.IFNA((VLOOKUP($B1651,Lists!$C$2:$D$13,2,FALSE)),\"\")","v":""}]
[null,null,null,null,null,null,null,null,null,null,{"$f":"_xlfn.IFNA((VLOOKUP($B1652,Lists!$C$2:$D$13,2,FALSE)),\"\")","v":""}]
[null,null,null,null,null,null,null,null,null,null,{"$f":"_xlfn.IFNA((VLOOKUP($B1653,Lists!$C$2:$D$13,2,FALSE)),\"\")","v":""}]
[null,null,null,null,null,null,null,null,null,null,{"$f":"_xlfn.IFNA((VLOOKUP($B1654,Lists!$C$2:$D$13,2,FALSE)),\"\")","v":""}]
[null,null,null,null,null,null,null,null,null,null,{"$f":"_xlfn.IFNA((VLOOKUP($B1655,Lists!$C$2:$D$13,2,FALSE)),\"\")","v":""}]
[null,null,null,null,null,null,null,null,null,null,{"$f":"_xlfn.IFNA((VLOOKUP($B1656,Lists!$C$2:$D$13,2,FALSE)),\"\")","v":""}]
[null,null,null,null,null,null,null,null,null,null,{"$f":"_xlfn.IFNA((VLOOKUP($B1657,Lists!$C$2:$D$13,2,FALSE)),\"\")","v":""}]
[null,null,null,null,null,null,null,null,null,null,{"$f":"_xlfn.IFNA((VLOOKUP($B1658,Lists!$C$2:$D$13,2,FALSE)),\"\")","v":""}]
[null,null,null,null,null,null,null,null,null,null,{"$f":"_xlfn.IFNA((VLOOKUP($B1659,Lists!$C$2:$D$13,2,FALSE)),\"\")","v":""}]
[null,null,null,null,null,null,null,null,null,null,{"$f":"_xlfn.IFNA((VLOOKUP($B1660,Lists!$C$2:$D$13,2,FALSE)),\"\")","v":""}]
[null,null,null,null,null,null,null,null,null,null,{"$f":"_xlfn.IFNA((VLOOKUP($B1661,Lists!$C$2:$D$13,2,FALSE)),\"\")","v":""}]
[null,null,null,null,null,null,null,null,null,null,{"$f":"_xlfn.IFNA((VLOOKUP($B1662,Lists!$C$2:$D$13,2,FALSE)),\"\")","v":""}]
[null,null,null,null,null,null,null,null,null,null,{"$f":"_xlfn.IFNA((VLOOKUP($B1663,Lists!$C$2:$D$13,2,FALSE)),\"\")","v":""}]
[null,null,null,null,null,null,null,null,null,null,{"$f":"_xlfn.IFNA((VLOOKUP($B1664,Lists!$C$2:$D$13,2,FALSE)),\"\")","v":""}]
[null,null,null,null,null,null,null,null,null,null,{"$f":"_xlfn.IFNA((VLOOKUP($B1665,Lists!$C$2:$D$13,2,FALSE)),\"\")","v":""}]
[null,null,null,null,null,null,null,null,null,null,{"$f":"_xlfn.IFNA((VLOOKUP($B1666,Lists!$C$2:$D$13,2,FALSE)),\"\")","v":""}]
[null,null,null,null,null,null,null,null,null,null,{"$f":"_xlfn.IFNA((VLOOKUP($B1667,Lists!$C$2:$D$13,2,FALSE)),\"\")","v":""}]
[null,null,null,null,null,null,null,null,null,null,{"$f":"_xlfn.IFNA((VLOOKUP($B1668,Lists!$C$2:$D$13,2,FALSE)),\"\")","v":""}]
[null,null,null,null,null,null,null,null,null,null,{"$f":"_xlfn.IFNA((VLOOKUP($B1669,Lists!$C$2:$D$13,2,FALSE)),\"\")","v":""}]
[null,null,null,null,null,null,null,null,null,null,{"$f":"_xlfn.IFNA((VLOOKUP($B1670,Lists!$C$2:$D$13,2,FALSE)),\"\")","v":""}]
[null,null,null,null,null,null,null,null,null,null,{"$f":"_xlfn.IFNA((VLOOKUP($B1671,Lists!$C$2:$D$13,2,FALSE)),\"\")","v":""}]
[null,null,null,null,null,null,null,null,null,null,{"$f":"_xlfn.IFNA((VLOOKUP($B1672,Lists!$C$2:$D$13,2,FALSE)),\"\")","v":""}]
[null,null,null,null,null,null,null,null,null,null,{"$f":"_xlfn.IFNA((VLOOKUP($B1673,Lists!$C$2:$D$13,2,FALSE)),\"\")","v":""}]
[null,null,null,null,null,null,null,null,null,null,{"$f":"_xlfn.IFNA((VLOOKUP($B1674,Lists!$C$2:$D$13,2,FALSE)),\"\")","v":""}]
[null,null,null,null,null,null,null,null,null,null,{"$f":"_xlfn.IFNA((VLOOKUP($B1675,Lists!$C$2:$D$13,2,FALSE)),\"\")","v":""}]
[null,null,null,null,null,null,null,null,null,null,{"$f":"_xlfn.IFNA((VLOOKUP($B1676,Lists!$C$2:$D$13,2,FALSE)),\"\")","v":""}]
[null,null,null,null,null,null,null,null,null,null,{"$f":"_xlfn.IFNA((VLOOKUP($B1677,Lists!$C$2:$D$13,2,FALSE)),\"\")","v":""}]
[null,null,null,null,null,null,null,null,null,null,{"$f":"_xlfn.IFNA((VLOOKUP($B1678,Lists!$C$2:$D$13,2,FALSE)),\"\")","v":""}]
[null,null,null,null,null,null,null,null,null,null,{"$f":"_xlfn.IFNA((VLOOKUP($B1679,Lists!$C$2:$D$13,2,FALSE)),\"\")","v":""}]
[null,null,null,null,null,null,null,null,null,null,{"$f":"_xlfn.IFNA((VLOOKUP($B1680,Lists!$C$2:$D$13,2,FALSE)),\"\")","v":""}]
[null,null,null,null,null,null,null,null,null,null,{"$f":"_xlfn.IFNA((VLOOKUP($B1681,Lists!$C$2:$D$13,2,FALSE)),\"\")","v":""}]
[null,null,null,null,null,null,null,null,null,null,{"$f":"_xlfn.IFNA((VLOOKUP($B1682,Lists!$C$2:$D$13,2,FALSE)),\"\")","v":""}]
[null,null,null,null,null,null,null,null,null,null,{"$f":"_xlfn.IFNA((VLOOKUP($B1683,Lists!$C$2:$D$13,2,FALSE)),\"\")","v":""}]
[null,null,null,null,null,null,null,null,null,null,{"$f":"_xlfn.IFNA((VLOOKUP($B1684,Lists!$C$2:$D$13,2,FALSE)),\"\")","v":""}]
[null,null,null,null,null,null,null,null,null,null,{"$f":"_xlfn.IFNA((VLOOKUP($B1685,Lists!$C$2:$D$13,2,FALSE)),\"\")","v":""}]
[null,null,null,null,null,null,null,null,null,null,{"$f":"_xlfn.IFNA((VLOOKUP($B1686,Lists!$C$2:$D$13,2,FALSE)),\"\")","v":""}]
[null,null,null,null,null,null,null,null,null,null,{"$f":"_xlfn.IFNA((VLOOKUP($B1687,Lists!$C$2:$D$13,2,FALSE)),\"\")","v":""}]
[null,null,null,null,null,null,null,null,null,null,{"$f":"_xlfn.IFNA((VLOOKUP($B1688,Lists!$C$2:$D$13,2,FALSE)),\"\")","v":""}]
[null,null,null,null,null,null,null,null,null,null,{"$f":"_xlfn.IFNA((VLOOKUP($B1689,Lists!$C$2:$D$13,2,FALSE)),\"\")","v":""}]
[null,null,null,null,null,null,null,null,null,null,{"$f":"_xlfn.IFNA((VLOOKUP($B1690,Lists!$C$2:$D$13,2,FALSE)),\"\")","v":""}]
[null,null,null,null,null,null,null,null,null,null,{"$f":"_xlfn.IFNA((VLOOKUP($B1691,Lists!$C$2:$D$13,2,FALSE)),\"\")","v":""}]
[null,null,null,null,null,null,null,null,null,null,{"$f":"_xlfn.IFNA((VLOOKUP($B1692,Lists!$C$2:$D$13,2,FALSE)),\"\")","v":""}]
[null,null,null,null,null,null,null,null,null,null,{"$f":"_xlfn.IFNA((VLOOKUP($B1693,Lists!$C$2:$D$13,2,FALSE)),\"\")","v":""}]
[null,null,null,null,null,null,null,null,null,null,{"$f":"_xlfn.IFNA((VLOOKUP($B1694,Lists!$C$2:$D$13,2,FALSE)),\"\")","v":""}]
[null,null,null,null,null,null,null,null,null,null,{"$f":"_xlfn.IFNA((VLOOKUP($B1695,Lists!$C$2:$D$13,2,FALSE)),\"\")","v":""}]
[null,null,null,null,null,null,null,null,null,null,{"$f":"_xlfn.IFNA((VLOOKUP($B1696,Lists!$C$2:$D$13,2,FALSE)),\"\")","v":""}]
[null,null,null,null,null,null,null,null,null,null,{"$f":"_xlfn.IFNA((VLOOKUP($B1697,Lists!$C$2:$D$13,2,FALSE)),\"\")","v":""}]
[null,null,null,null,null,null,null,null,null,null,{"$f":"_xlfn.IFNA((VLOOKUP($B1698,Lists!$C$2:$D$13,2,FALSE)),\"\")","v":""}]
[null,null,null,null,null,null,null,null,null,null,{"$f":"_xlfn.IFNA((VLOOKUP($B1699,Lists!$C$2:$D$13,2,FALSE)),\"\")","v":""}]
[null,null,null,null,null,null,null,null,null,null,{"$f":"_xlfn.IFNA((VLOOKUP($B1700,Lists!$C$2:$D$13,2,FALSE)),\"\")","v":""}]
[null,null,null,null,null,null,null,null,null,null,{"$f":"_xlfn.IFNA((VLOOKUP($B1701,Lists!$C$2:$D$13,2,FALSE)),\"\")","v":""}]
[null,null,null,null,null,null,null,null,null,null,{"$f":"_xlfn.IFNA((VLOOKUP($B1702,Lists!$C$2:$D$13,2,FALSE)),\"\")","v":""}]
[null,null,null,null,null,null,null,null,null,null,{"$f":"_xlfn.IFNA((VLOOKUP($B1703,Lists!$C$2:$D$13,2,FALSE)),\"\")","v":""}]
[null,null,null,null,null,null,null,null,null,null,{"$f":"_xlfn.IFNA((VLOOKUP($B1704,Lists!$C$2:$D$13,2,FALSE)),\"\")","v":""}]
[null,null,null,null,null,null,null,null,null,null,{"$f":"_xlfn.IFNA((VLOOKUP($B1705,Lists!$C$2:$D$13,2,FALSE)),\"\")","v":""}]
[null,null,null,null,null,null,null,null,null,null,{"$f":"_xlfn.IFNA((VLOOKUP($B1706,Lists!$C$2:$D$13,2,FALSE)),\"\")","v":""}]
[null,null,null,null,null,null,null,null,null,null,{"$f":"_xlfn.IFNA((VLOOKUP($B1707,Lists!$C$2:$D$13,2,FALSE)),\"\")","v":""}]
[null,null,null,null,null,null,null,null,null,null,{"$f":"_xlfn.IFNA((VLOOKUP($B1708,Lists!$C$2:$D$13,2,FALSE)),\"\")","v":""}]
[null,null,null,null,null,null,null,null,null,null,{"$f":"_xlfn.IFNA((VLOOKUP($B1709,Lists!$C$2:$D$13,2,FALSE)),\"\")","v":""}]
[null,null,null,null,null,null,null,null,null,null,{"$f":"_xlfn.IFNA((VLOOKUP($B1710,Lists!$C$2:$D$13,2,FALSE)),\"\")","v":""}]
[null,null,null,null,null,null,null,null,null,null,{"$f":"_xlfn.IFNA((VLOOKUP($B1711,Lists!$C$2:$D$13,2,FALSE)),\"\")","v":""}]
[null,null,null,null,null,null,null,null,null,null,{"$f":"_xlfn.IFNA((VLOOKUP($B1712,Lists!$C$2:$D$13,2,FALSE)),\"\")","v":""}]
[null,null,null,null,null,null,null,null,null,null,{"$f":"_xlfn.IFNA((VLOOKUP($B1713,Lists!$C$2:$D$13,2,FALSE)),\"\")","v":""}]
[null,null,null,null,null,null,null,null,null,null,{"$f":"_xlfn.IFNA((VLOOKUP($B1714,Lists!$C$2:$D$13,2,FALSE)),\"\")","v":""}]
[null,null,null,null,null,null,null,null,null,null,{"$f":"_xlfn.IFNA((VLOOKUP($B1715,Lists!$C$2:$D$13,2,FALSE)),\"\")","v":""}]
[null,null,null,null,null,null,null,null,null,null,{"$f":"_xlfn.IFNA((VLOOKUP($B1716,Lists!$C$2:$D$13,2,FALSE)),\"\")","v":""}]
[null,null,null,null,null,null,null,null,null,null,{"$f":"_xlfn.IFNA((VLOOKUP($B1717,Lists!$C$2:$D$13,2,FALSE)),\"\")","v":""}]
[null,null,null,null,null,null,null,null,null,null,{"$f":"_xlfn.IFNA((VLOOKUP($B1718,Lists!$C$2:$D$13,2,FALSE)),\"\")","v":""}]
[null,null,null,null,null,null,null,null,null,null,{"$f":"_xlfn.IFNA((VLOOKUP($B1719,Lists!$C$2:$D$13,2,FALSE)),\"\")","v":""}]
[null,null,null,null,null,null,null,null,null,null,{"$f":"_xlfn.IFNA((VLOOKUP($B1720,Lists!$C$2:$D$13,2,FALSE)),\"\")","v":""}]
[null,null,null,null,null,null,null,null,null,null,{"$f":"_xlfn.IFNA((VLOOKUP($B1721,Lists!$C$2:$D$13,2,FALSE)),\"\")","v":""}]
[null,null,null,null,null,null,null,null,null,null,{"$f":"_xlfn.IFNA((VLOOKUP($B1722,Lists!$C$2:$D$13,2,FALSE)),\"\")","v":""}]
[null,null,null,null,null,null,null,null,null,null,{"$f":"_xlfn.IFNA((VLOOKUP($B1723,Lists!$C$2:$D$13,2,FALSE)),\"\")","v":""}]
[null,null,null,null,null,null,null,null,null,null,{"$f":"_xlfn.IFNA((VLOOKUP($B1724,Lists!$C$2:$D$13,2,FALSE)),\"\")","v":""}]
[null,null,null,null,null,null,null,null,null,null,{"$f":"_xlfn.IFNA((VLOOKUP($B1725,Lists!$C$2:$D$13,2,FALSE)),\"\")","v":""}]
[null,null,null,null,null,null,null,null,null,null,{"$f":"_xlfn.IFNA((VLOOKUP($B1726,Lists!$C$2:$D$13,2,FALSE)),\"\")","v":""}]
[null,null,null,null,null,null,null,null,null,null,{"$f":"_xlfn.IFNA((VLOOKUP($B1727,Lists!$C$2:$D$13,2,FALSE)),\"\")","v":""}]
[null,null,null,null,null,null,null,null,null,null,{"$f":"_xlfn.IFNA((VLOOKUP($B1728,Lists!$C$2:$D$13,2,FALSE)),\"\")","v":""}]
[null,null,null,null,null,null,null,null,null,null,{"$f":"_xlfn.IFNA((VLOOKUP($B1729,Lists!$C$2:$D$13,2,FALSE)),\"\")","v":""}]
[null,null,null,null,null,null,null,null,null,null,{"$f":"_xlfn.IFNA((VLOOKUP($B1730,Lists!$C$2:$D$13,2,FALSE)),\"\")","v":""}]
[null,null,null,null,null,null,null,null,null,null,{"$f":"_xlfn.IFNA((VLOOKUP($B1731,Lists!$C$2:$D$13,2,FALSE)),\"\")","v":""}]
[null,null,null,null,null,null,null,null,null,null,{"$f":"_xlfn.IFNA((VLOOKUP($B1732,Lists!$C$2:$D$13,2,FALSE)),\"\")","v":""}]
[null,null,null,null,null,null,null,null,null,null,{"$f":"_xlfn.IFNA((VLOOKUP($B1733,Lists!$C$2:$D$13,2,FALSE)),\"\")","v":""}]
[null,null,null,null,null,null,null,null,null,null,{"$f":"_xlfn.IFNA((VLOOKUP($B1734,Lists!$C$2:$D$13,2,FALSE)),\"\")","v":""}]
[null,null,null,null,null,null,null,null,null,null,{"$f":"_xlfn.IFNA((VLOOKUP($B1735,Lists!$C$2:$D$13,2,FALSE)),\"\")","v":""}]
[null,null,null,null,null,null,null,null,null,null,{"$f":"_xlfn.IFNA((VLOOKUP($B1736,Lists!$C$2:$D$13,2,FALSE)),\"\")","v":""}]
[null,null,null,null,null,null,null,null,null,null,{"$f":"_xlfn.IFNA((VLOOKUP($B1737,Lists!$C$2:$D$13,2,FALSE)),\"\")","v":""}]
[null,null,null,null,null,null,null,null,null,null,{"$f":"_xlfn.IFNA((VLOOKUP($B1738,Lists!$C$2:$D$13,2,FALSE)),\"\")","v":""}]
[null,null,null,null,null,null,null,null,null,null,{"$f":"_xlfn.IFNA((VLOOKUP($B1739,Lists!$C$2:$D$13,2,FALSE)),\"\")","v":""}]
[null,null,null,null,null,null,null,null,null,null,{"$f":"_xlfn.IFNA((VLOOKUP($B1740,Lists!$C$2:$D$13,2,FALSE)),\"\")","v":""}]
[null,null,null,null,null,null,null,null,null,null,{"$f":"_xlfn.IFNA((VLOOKUP($B1741,Lists!$C$2:$D$13,2,FALSE)),\"\")","v":""}]
[null,null,null,null,null,null,null,null,null,null,{"$f":"_xlfn.IFNA((VLOOKUP($B1742,Lists!$C$2:$D$13,2,FALSE)),\"\")","v":""}]
[null,null,null,null,null,null,null,null,null,null,{"$f":"_xlfn.IFNA((VLOOKUP($B1743,Lists!$C$2:$D$13,2,FALSE)),\"\")","v":""}]
[null,null,null,null,null,null,null,null,null,null,{"$f":"_xlfn.IFNA((VLOOKUP($B1744,Lists!$C$2:$D$13,2,FALSE)),\"\")","v":""}]
[null,null,null,null,null,null,null,null,null,null,{"$f":"_xlfn.IFNA((VLOOKUP($B1745,Lists!$C$2:$D$13,2,FALSE)),\"\")","v":""}]
[null,null,null,null,null,null,null,null,null,null,{"$f":"_xlfn.IFNA((VLOOKUP($B1746,Lists!$C$2:$D$13,2,FALSE)),\"\")","v":""}]
[null,null,null,null,null,null,null,null,null,null,{"$f":"_xlfn.IFNA((VLOOKUP($B1747,Lists!$C$2:$D$13,2,FALSE)),\"\")","v":""}]
[null,null,null,null,null,null,null,null,null,null,{"$f":"_xlfn.IFNA((VLOOKUP($B1748,Lists!$C$2:$D$13,2,FALSE)),\"\")","v":""}]
[null,null,null,null,null,null,null,null,null,null,{"$f":"_xlfn.IFNA((VLOOKUP($B1749,Lists!$C$2:$D$13,2,FALSE)),\"\")","v":""}]
[null,null,null,null,null,null,null,null,null,null,{"$f":"_xlfn.IFNA((VLOOKUP($B1750,Lists!$C$2:$D$13,2,FALSE)),\"\")","v":""}]
[null,null,null,null,null,null,null,null,null,null,{"$f":"_xlfn.IFNA((VLOOKUP($B1751,Lists!$C$2:$D$13,2,FALSE)),\"\")","v":""}]
[null,null,null,null,null,null,null,null,null,null,{"$f":"_xlfn.IFNA((VLOOKUP($B1752,Lists!$C$2:$D$13,2,FALSE)),\"\")","v":""}]
[null,null,null,null,null,null,null,null,null,null,{"$f":"_xlfn.IFNA((VLOOKUP($B1753,Lists!$C$2:$D$13,2,FALSE)),\"\")","v":""}]
[null,null,null,null,null,null,null,null,null,null,{"$f":"_xlfn.IFNA((VLOOKUP($B1754,Lists!$C$2:$D$13,2,FALSE)),\"\")","v":""}]
[null,null,null,null,null,null,null,null,null,null,{"$f":"_xlfn.IFNA((VLOOKUP($B1755,Lists!$C$2:$D$13,2,FALSE)),\"\")","v":""}]
[null,null,null,null,null,null,null,null,null,null,{"$f":"_xlfn.IFNA((VLOOKUP($B1756,Lists!$C$2:$D$13,2,FALSE)),\"\")","v":""}]
[null,null,null,null,null,null,null,null,null,null,{"$f":"_xlfn.IFNA((VLOOKUP($B1757,Lists!$C$2:$D$13,2,FALSE)),\"\")","v":""}]
[null,null,null,null,null,null,null,null,null,null,{"$f":"_xlfn.IFNA((VLOOKUP($B1758,Lists!$C$2:$D$13,2,FALSE)),\"\")","v":""}]
[null,null,null,null,null,null,null,null,null,null,{"$f":"_xlfn.IFNA((VLOOKUP($B1759,Lists!$C$2:$D$13,2,FALSE)),\"\")","v":""}]
[null,null,null,null,null,null,null,null,null,null,{"$f":"_xlfn.IFNA((VLOOKUP($B1760,Lists!$C$2:$D$13,2,FALSE)),\"\")","v":""}]
[null,null,null,null,null,null,null,null,null,null,{"$f":"_xlfn.IFNA((VLOOKUP($B1761,Lists!$C$2:$D$13,2,FALSE)),\"\")","v":""}]
[null,null,null,null,null,null,null,null,null,null,{"$f":"_xlfn.IFNA((VLOOKUP($B1762,Lists!$C$2:$D$13,2,FALSE)),\"\")","v":""}]
[null,null,null,null,null,null,null,null,null,null,{"$f":"_xlfn.IFNA((VLOOKUP($B1763,Lists!$C$2:$D$13,2,FALSE)),\"\")","v":""}]
[null,null,null,null,null,null,null,null,null,null,{"$f":"_xlfn.IFNA((VLOOKUP($B1764,Lists!$C$2:$D$13,2,FALSE)),\"\")","v":""}]
[null,null,null,null,null,null,null,null,null,null,{"$f":"_xlfn.IFNA((VLOOKUP($B1765,Lists!$C$2:$D$13,2,FALSE)),\"\")","v":""}]
[null,null,null,null,null,null,null,null,null,null,{"$f":"_xlfn.IFNA((VLOOKUP($B1766,Lists!$C$2:$D$13,2,FALSE)),\"\")","v":""}]
[null,null,null,null,null,null,null,null,null,null,{"$f":"_xlfn.IFNA((VLOOKUP($B1767,Lists!$C$2:$D$13,2,FALSE)),\"\")","v":""}]
[null,null,null,null,null,null,null,null,null,null,{"$f":"_xlfn.IFNA((VLOOKUP($B1768,Lists!$C$2:$D$13,2,FALSE)),\"\")","v":""}]
[null,null,null,null,null,null,null,null,null,null,{"$f":"_xlfn.IFNA((VLOOKUP($B1769,Lists!$C$2:$D$13,2,FALSE)),\"\")","v":""}]
[null,null,null,null,null,null,null,null,null,null,{"$f":"_xlfn.IFNA((VLOOKUP($B1770,Lists!$C$2:$D$13,2,FALSE)),\"\")","v":""}]
[null,null,null,null,null,null,null,null,null,null,{"$f":"_xlfn.IFNA((VLOOKUP($B1771,Lists!$C$2:$D$13,2,FALSE)),\"\")","v":""}]
[null,null,null,null,null,null,null,null,null,null,{"$f":"_xlfn.IFNA((VLOOKUP($B1772,Lists!$C$2:$D$13,2,FALSE)),\"\")","v":""}]
[null,null,null,null,null,null,null,null,null,null,{"$f":"_xlfn.IFNA((VLOOKUP($B1773,Lists!$C$2:$D$13,2,FALSE)),\"\")","v":""}]
[null,null,null,null,null,null,null,null,null,null,{"$f":"_xlfn.IFNA((VLOOKUP($B1774,Lists!$C$2:$D$13,2,FALSE)),\"\")","v":""}]
[null,null,null,null,null,null,null,null,null,null,{"$f":"_xlfn.IFNA((VLOOKUP($B1775,Lists!$C$2:$D$13,2,FALSE)),\"\")","v":""}]
[null,null,null,null,null,null,null,null,null,null,{"$f":"_xlfn.IFNA((VLOOKUP($B1776,Lists!$C$2:$D$13,2,FALSE)),\"\")","v":""}]
[null,null,null,null,null,null,null,null,null,null,{"$f":"_xlfn.IFNA((VLOOKUP($B1777,Lists!$C$2:$D$13,2,FALSE)),\"\")","v":""}]
[null,null,null,null,null,null,null,null,null,null,{"$f":"_xlfn.IFNA((VLOOKUP($B1778,Lists!$C$2:$D$13,2,FALSE)),\"\")","v":""}]
[null,null,null,null,null,null,null,null,null,null,{"$f":"_xlfn.IFNA((VLOOKUP($B1779,Lists!$C$2:$D$13,2,FALSE)),\"\")","v":""}]
[null,null,null,null,null,null,null,null,null,null,{"$f":"_xlfn.IFNA((VLOOKUP($B1780,Lists!$C$2:$D$13,2,FALSE)),\"\")","v":""}]
[null,null,null,null,null,null,null,null,null,null,{"$f":"_xlfn.IFNA((VLOOKUP($B1781,Lists!$C$2:$D$13,2,FALSE)),\"\")","v":""}]
[null,null,null,null,null,null,null,null,null,null,{"$f":"_xlfn.IFNA((VLOOKUP($B1782,Lists!$C$2:$D$13,2,FALSE)),\"\")","v":""}]
[null,null,null,null,null,null,null,null,null,null,{"$f":"_xlfn.IFNA((VLOOKUP($B1783,Lists!$C$2:$D$13,2,FALSE)),\"\")","v":""}]
[null,null,null,null,null,null,null,null,null,null,{"$f":"_xlfn.IFNA((VLOOKUP($B1784,Lists!$C$2:$D$13,2,FALSE)),\"\")","v":""}]
[null,null,null,null,null,null,null,null,null,null,{"$f":"_xlfn.IFNA((VLOOKUP($B1785,Lists!$C$2:$D$13,2,FALSE)),\"\")","v":""}]
[null,null,null,null,null,null,null,null,null,null,{"$f":"_xlfn.IFNA((VLOOKUP($B1786,Lists!$C$2:$D$13,2,FALSE)),\"\")","v":""}]
[null,null,null,null,null,null,null,null,null,null,{"$f":"_xlfn.IFNA((VLOOKUP($B1787,Lists!$C$2:$D$13,2,FALSE)),\"\")","v":""}]
[null,null,null,null,null,null,null,null,null,null,{"$f":"_xlfn.IFNA((VLOOKUP($B1788,Lists!$C$2:$D$13,2,FALSE)),\"\")","v":""}]
[null,null,null,null,null,null,null,null,null,null,{"$f":"_xlfn.IFNA((VLOOKUP($B1789,Lists!$C$2:$D$13,2,FALSE)),\"\")","v":""}]
[null,null,null,null,null,null,null,null,null,null,{"$f":"_xlfn.IFNA((VLOOKUP($B1790,Lists!$C$2:$D$13,2,FALSE)),\"\")","v":""}]
[null,null,null,null,null,null,null,null,null,null,{"$f":"_xlfn.IFNA((VLOOKUP($B1791,Lists!$C$2:$D$13,2,FALSE)),\"\")","v":""}]
[null,null,null,null,null,null,null,null,null,null,{"$f":"_xlfn.IFNA((VLOOKUP($B1792,Lists!$C$2:$D$13,2,FALSE)),\"\")","v":""}]
[null,null,null,null,null,null,null,null,null,null,{"$f":"_xlfn.IFNA((VLOOKUP($B1793,Lists!$C$2:$D$13,2,FALSE)),\"\")","v":""}]
[null,null,null,null,null,null,null,null,null,null,{"$f":"_xlfn.IFNA((VLOOKUP($B1794,Lists!$C$2:$D$13,2,FALSE)),\"\")","v":""}]
[null,null,null,null,null,null,null,null,null,null,{"$f":"_xlfn.IFNA((VLOOKUP($B1795,Lists!$C$2:$D$13,2,FALSE)),\"\")","v":""}]
[null,null,null,null,null,null,null,null,null,null,{"$f":"_xlfn.IFNA((VLOOKUP($B1796,Lists!$C$2:$D$13,2,FALSE)),\"\")","v":""}]
[null,null,null,null,null,null,null,null,null,null,{"$f":"_xlfn.IFNA((VLOOKUP($B1797,Lists!$C$2:$D$13,2,FALSE)),\"\")","v":""}]
[null,null,null,null,null,null,null,null,null,null,{"$f":"_xlfn.IFNA((VLOOKUP($B1798,Lists!$C$2:$D$13,2,FALSE)),\"\")","v":""}]
[null,null,null,null,null,null,null,null,null,null,{"$f":"_xlfn.IFNA((VLOOKUP($B1799,Lists!$C$2:$D$13,2,FALSE)),\"\")","v":""}]
[null,null,null,null,null,null,null,null,null,null,{"$f":"_xlfn.IFNA((VLOOKUP($B1800,Lists!$C$2:$D$13,2,FALSE)),\"\")","v":""}]
[null,null,null,null,null,null,null,null,null,null,{"$f":"_xlfn.IFNA((VLOOKUP($B1801,Lists!$C$2:$D$13,2,FALSE)),\"\")","v":""}]
[null,null,null,null,null,null,null,null,null,null,{"$f":"_xlfn.IFNA((VLOOKUP($B1802,Lists!$C$2:$D$13,2,FALSE)),\"\")","v":""}]
[null,null,null,null,null,null,null,null,null,null,{"$f":"_xlfn.IFNA((VLOOKUP($B1803,Lists!$C$2:$D$13,2,FALSE)),\"\")","v":""}]
[null,null,null,null,null,null,null,null,null,null,{"$f":"_xlfn.IFNA((VLOOKUP($B1804,Lists!$C$2:$D$13,2,FALSE)),\"\")","v":""}]
[null,null,null,null,null,null,null,null,null,null,{"$f":"_xlfn.IFNA((VLOOKUP($B1805,Lists!$C$2:$D$13,2,FALSE)),\"\")","v":""}]
[null,null,null,null,null,null,null,null,null,null,{"$f":"_xlfn.IFNA((VLOOKUP($B1806,Lists!$C$2:$D$13,2,FALSE)),\"\")","v":""}]
[null,null,null,null,null,null,null,null,null,null,{"$f":"_xlfn.IFNA((VLOOKUP($B1807,Lists!$C$2:$D$13,2,FALSE)),\"\")","v":""}]
[null,null,null,null,null,null,null,null,null,null,{"$f":"_xlfn.IFNA((VLOOKUP($B1808,Lists!$C$2:$D$13,2,FALSE)),\"\")","v":""}]
[null,null,null,null,null,null,null,null,null,null,{"$f":"_xlfn.IFNA((VLOOKUP($B1809,Lists!$C$2:$D$13,2,FALSE)),\"\")","v":""}]
[null,null,null,null,null,null,null,null,null,null,{"$f":"_xlfn.IFNA((VLOOKUP($B1810,Lists!$C$2:$D$13,2,FALSE)),\"\")","v":""}]
[null,null,null,null,null,null,null,null,null,null,{"$f":"_xlfn.IFNA((VLOOKUP($B1811,Lists!$C$2:$D$13,2,FALSE)),\"\")","v":""}]
[null,null,null,null,null,null,null,null,null,null,{"$f":"_xlfn.IFNA((VLOOKUP($B1812,Lists!$C$2:$D$13,2,FALSE)),\"\")","v":""}]
[null,null,null,null,null,null,null,null,null,null,{"$f":"_xlfn.IFNA((VLOOKUP($B1813,Lists!$C$2:$D$13,2,FALSE)),\"\")","v":""}]
[null,null,null,null,null,null,null,null,null,null,{"$f":"_xlfn.IFNA((VLOOKUP($B1814,Lists!$C$2:$D$13,2,FALSE)),\"\")","v":""}]
[null,null,null,null,null,null,null,null,null,null,{"$f":"_xlfn.IFNA((VLOOKUP($B1815,Lists!$C$2:$D$13,2,FALSE)),\"\")","v":""}]
[null,null,null,null,null,null,null,null,null,null,{"$f":"_xlfn.IFNA((VLOOKUP($B1816,Lists!$C$2:$D$13,2,FALSE)),\"\")","v":""}]
[null,null,null,null,null,null,null,null,null,null,{"$f":"_xlfn.IFNA((VLOOKUP($B1817,Lists!$C$2:$D$13,2,FALSE)),\"\")","v":""}]
[null,null,null,null,null,null,null,null,null,null,{"$f":"_xlfn.IFNA((VLOOKUP($B1818,Lists!$C$2:$D$13,2,FALSE)),\"\")","v":""}]
[null,null,null,null,null,null,null,null,null,null,{"$f":"_xlfn.IFNA((VLOOKUP($B1819,Lists!$C$2:$D$13,2,FALSE)),\"\")","v":""}]
[null,null,null,null,null,null,null,null,null,null,{"$f":"_xlfn.IFNA((VLOOKUP($B1820,Lists!$C$2:$D$13,2,FALSE)),\"\")","v":""}]
[null,null,null,null,null,null,null,null,null,null,{"$f":"_xlfn.IFNA((VLOOKUP($B1821,Lists!$C$2:$D$13,2,FALSE)),\"\")","v":""}]
[null,null,null,null,null,null,null,null,null,null,{"$f":"_xlfn.IFNA((VLOOKUP($B1822,Lists!$C$2:$D$13,2,FALSE)),\"\")","v":""}]
[null,null,null,null,null,null,null,null,null,null,{"$f":"_xlfn.IFNA((VLOOKUP($B1823,Lists!$C$2:$D$13,2,FALSE)),\"\")","v":""}]
[null,null,null,null,null,null,null,null,null,null,{"$f":"_xlfn.IFNA((VLOOKUP($B1824,Lists!$C$2:$D$13,2,FALSE)),\"\")","v":""}]
[null,null,null,null,null,null,null,null,null,null,{"$f":"_xlfn.IFNA((VLOOKUP($B1825,Lists!$C$2:$D$13,2,FALSE)),\"\")","v":""}]
[null,null,null,null,null,null,null,null,null,null,{"$f":"_xlfn.IFNA((VLOOKUP($B1826,Lists!$C$2:$D$13,2,FALSE)),\"\")","v":""}]
[null,null,null,null,null,null,null,null,null,null,{"$f":"_xlfn.IFNA((VLOOKUP($B1827,Lists!$C$2:$D$13,2,FALSE)),\"\")","v":""}]
[null,null,null,null,null,null,null,null,null,null,{"$f":"_xlfn.IFNA((VLOOKUP($B1828,Lists!$C$2:$D$13,2,FALSE)),\"\")","v":""}]
[null,null,null,null,null,null,null,null,null,null,{"$f":"_xlfn.IFNA((VLOOKUP($B1829,Lists!$C$2:$D$13,2,FALSE)),\"\")","v":""}]
[null,null,null,null,null,null,null,null,null,null,{"$f":"_xlfn.IFNA((VLOOKUP($B1830,Lists!$C$2:$D$13,2,FALSE)),\"\")","v":""}]
[null,null,null,null,null,null,null,null,null,null,{"$f":"_xlfn.IFNA((VLOOKUP($B1831,Lists!$C$2:$D$13,2,FALSE)),\"\")","v":""}]
[null,null,null,null,null,null,null,null,null,null,{"$f":"_xlfn.IFNA((VLOOKUP($B1832,Lists!$C$2:$D$13,2,FALSE)),\"\")","v":""}]
[null,null,null,null,null,null,null,null,null,null,{"$f":"_xlfn.IFNA((VLOOKUP($B1833,Lists!$C$2:$D$13,2,FALSE)),\"\")","v":""}]
[null,null,null,null,null,null,null,null,null,null,{"$f":"_xlfn.IFNA((VLOOKUP($B1834,Lists!$C$2:$D$13,2,FALSE)),\"\")","v":""}]
[null,null,null,null,null,null,null,null,null,null,{"$f":"_xlfn.IFNA((VLOOKUP($B1835,Lists!$C$2:$D$13,2,FALSE)),\"\")","v":""}]
[null,null,null,null,null,null,null,null,null,null,{"$f":"_xlfn.IFNA((VLOOKUP($B1836,Lists!$C$2:$D$13,2,FALSE)),\"\")","v":""}]
[null,null,null,null,null,null,null,null,null,null,{"$f":"_xlfn.IFNA((VLOOKUP($B1837,Lists!$C$2:$D$13,2,FALSE)),\"\")","v":""}]
[null,null,null,null,null,null,null,null,null,null,{"$f":"_xlfn.IFNA((VLOOKUP($B1838,Lists!$C$2:$D$13,2,FALSE)),\"\")","v":""}]
[null,null,null,null,null,null,null,null,null,null,{"$f":"_xlfn.IFNA((VLOOKUP($B1839,Lists!$C$2:$D$13,2,FALSE)),\"\")","v":""}]
[null,null,null,null,null,null,null,null,null,null,{"$f":"_xlfn.IFNA((VLOOKUP($B1840,Lists!$C$2:$D$13,2,FALSE)),\"\")","v":""}]
[null,null,null,null,null,null,null,null,null,null,{"$f":"_xlfn.IFNA((VLOOKUP($B1841,Lists!$C$2:$D$13,2,FALSE)),\"\")","v":""}]
[null,null,null,null,null,null,null,null,null,null,{"$f":"_xlfn.IFNA((VLOOKUP($B1842,Lists!$C$2:$D$13,2,FALSE)),\"\")","v":""}]
[null,null,null,null,null,null,null,null,null,null,{"$f":"_xlfn.IFNA((VLOOKUP($B1843,Lists!$C$2:$D$13,2,FALSE)),\"\")","v":""}]
[null,null,null,null,null,null,null,null,null,null,{"$f":"_xlfn.IFNA((VLOOKUP($B1844,Lists!$C$2:$D$13,2,FALSE)),\"\")","v":""}]
[null,null,null,null,null,null,null,null,null,null,{"$f":"_xlfn.IFNA((VLOOKUP($B1845,Lists!$C$2:$D$13,2,FALSE)),\"\")","v":""}]
[null,null,null,null,null,null,null,null,null,null,{"$f":"_xlfn.IFNA((VLOOKUP($B1846,Lists!$C$2:$D$13,2,FALSE)),\"\")","v":""}]
[null,null,null,null,null,null,null,null,null,null,{"$f":"_xlfn.IFNA((VLOOKUP($B1847,Lists!$C$2:$D$13,2,FALSE)),\"\")","v":""}]
[null,null,null,null,null,null,null,null,null,null,{"$f":"_xlfn.IFNA((VLOOKUP($B1848,Lists!$C$2:$D$13,2,FALSE)),\"\")","v":""}]
[null,null,null,null,null,null,null,null,null,null,{"$f":"_xlfn.IFNA((VLOOKUP($B1849,Lists!$C$2:$D$13,2,FALSE)),\"\")","v":""}]
[null,null,null,null,null,null,null,null,null,null,{"$f":"_xlfn.IFNA((VLOOKUP($B1850,Lists!$C$2:$D$13,2,FALSE)),\"\")","v":""}]
[null,null,null,null,null,null,null,null,null,null,{"$f":"_xlfn.IFNA((VLOOKUP($B1851,Lists!$C$2:$D$13,2,FALSE)),\"\")","v":""}]
[null,null,null,null,null,null,null,null,null,null,{"$f":"_xlfn.IFNA((VLOOKUP($B1852,Lists!$C$2:$D$13,2,FALSE)),\"\")","v":""}]
[null,null,null,null,null,null,null,null,null,null,{"$f":"_xlfn.IFNA((VLOOKUP($B1853,Lists!$C$2:$D$13,2,FALSE)),\"\")","v":""}]
[null,null,null,null,null,null,null,null,null,null,{"$f":"_xlfn.IFNA((VLOOKUP($B1854,Lists!$C$2:$D$13,2,FALSE)),\"\")","v":""}]
[null,null,null,null,null,null,null,null,null,null,{"$f":"_xlfn.IFNA((VLOOKUP($B1855,Lists!$C$2:$D$13,2,FALSE)),\"\")","v":""}]
[null,null,null,null,null,null,null,null,null,null,{"$f":"_xlfn.IFNA((VLOOKUP($B1856,Lists!$C$2:$D$13,2,FALSE)),\"\")","v":""}]
[null,null,null,null,null,null,null,null,null,null,{"$f":"_xlfn.IFNA((VLOOKUP($B1857,Lists!$C$2:$D$13,2,FALSE)),\"\")","v":""}]
[null,null,null,null,null,null,null,null,null,null,{"$f":"_xlfn.IFNA((VLOOKUP($B1858,Lists!$C$2:$D$13,2,FALSE)),\"\")","v":""}]
[null,null,null,null,null,null,null,null,null,null,{"$f":"_xlfn.IFNA((VLOOKUP($B1859,Lists!$C$2:$D$13,2,FALSE)),\"\")","v":""}]
[null,null,null,null,null,null,null,null,null,null,{"$f":"_xlfn.IFNA((VLOOKUP($B1860,Lists!$C$2:$D$13,2,FALSE)),\"\")","v":""}]
[null,null,null,null,null,null,null,null,null,null,{"$f":"_xlfn.IFNA((VLOOKUP($B1861,Lists!$C$2:$D$13,2,FALSE)),\"\")","v":""}]
[null,null,null,null,null,null,null,null,null,null,{"$f":"_xlfn.IFNA((VLOOKUP($B1862,Lists!$C$2:$D$13,2,FALSE)),\"\")","v":""}]
[null,null,null,null,null,null,null,null,null,null,{"$f":"_xlfn.IFNA((VLOOKUP($B1863,Lists!$C$2:$D$13,2,FALSE)),\"\")","v":""}]
[null,null,null,null,null,null,null,null,null,null,{"$f":"_xlfn.IFNA((VLOOKUP($B1864,Lists!$C$2:$D$13,2,FALSE)),\"\")","v":""}]
[null,null,null,null,null,null,null,null,null,null,{"$f":"_xlfn.IFNA((VLOOKUP($B1865,Lists!$C$2:$D$13,2,FALSE)),\"\")","v":""}]
[null,null,null,null,null,null,null,null,null,null,{"$f":"_xlfn.IFNA((VLOOKUP($B1866,Lists!$C$2:$D$13,2,FALSE)),\"\")","v":""}]
[null,null,null,null,null,null,null,null,null,null,{"$f":"_xlfn.IFNA((VLOOKUP($B1867,Lists!$C$2:$D$13,2,FALSE)),\"\")","v":""}]
[null,null,null,null,null,null,null,null,null,null,{"$f":"_xlfn.IFNA((VLOOKUP($B1868,Lists!$C$2:$D$13,2,FALSE)),\"\")","v":""}]
[null,null,null,null,null,null,null,null,null,null,{"$f":"_xlfn.IFNA((VLOOKUP($B1869,Lists!$C$2:$D$13,2,FALSE)),\"\")","v":""}]
[null,null,null,null,null,null,null,null,null,null,{"$f":"_xlfn.IFNA((VLOOKUP($B1870,Lists!$C$2:$D$13,2,FALSE)),\"\")","v":""}]
[null,null,null,null,null,null,null,null,null,null,{"$f":"_xlfn.IFNA((VLOOKUP($B1871,Lists!$C$2:$D$13,2,FALSE)),\"\")","v":""}]
[null,null,null,null,null,null,null,null,null,null,{"$f":"_xlfn.IFNA((VLOOKUP($B1872,Lists!$C$2:$D$13,2,FALSE)),\"\")","v":""}]
[null,null,null,null,null,null,null,null,null,null,{"$f":"_xlfn.IFNA((VLOOKUP($B1873,Lists!$C$2:$D$13,2,FALSE)),\"\")","v":""}]
[null,null,null,null,null,null,null,null,null,null,{"$f":"_xlfn.IFNA((VLOOKUP($B1874,Lists!$C$2:$D$13,2,FALSE)),\"\")","v":""}]
[null,null,null,null,null,null,null,null,null,null,{"$f":"_xlfn.IFNA((VLOOKUP($B1875,Lists!$C$2:$D$13,2,FALSE)),\"\")","v":""}]
[null,null,null,null,null,null,null,null,null,null,{"$f":"_xlfn.IFNA((VLOOKUP($B1876,Lists!$C$2:$D$13,2,FALSE)),\"\")","v":""}]
[null,null,null,null,null,null,null,null,null,null,{"$f":"_xlfn.IFNA((VLOOKUP($B1877,Lists!$C$2:$D$13,2,FALSE)),\"\")","v":""}]
[null,null,null,null,null,null,null,null,null,null,{"$f":"_xlfn.IFNA((VLOOKUP($B1878,Lists!$C$2:$D$13,2,FALSE)),\"\")","v":""}]
[null,null,null,null,null,null,null,null,null,null,{"$f":"_xlfn.IFNA((VLOOKUP($B1879,Lists!$C$2:$D$13,2,FALSE)),\"\")","v":""}]
[null,null,null,null,null,null,null,null,null,null,{"$f":"_xlfn.IFNA((VLOOKUP($B1880,Lists!$C$2:$D$13,2,FALSE)),\"\")","v":""}]
[null,null,null,null,null,null,null,null,null,null,{"$f":"_xlfn.IFNA((VLOOKUP($B1881,Lists!$C$2:$D$13,2,FALSE)),\"\")","v":""}]
[null,null,null,null,null,null,null,null,null,null,{"$f":"_xlfn.IFNA((VLOOKUP($B1882,Lists!$C$2:$D$13,2,FALSE)),\"\")","v":""}]
[null,null,null,null,null,null,null,null,null,null,{"$f":"_xlfn.IFNA((VLOOKUP($B1883,Lists!$C$2:$D$13,2,FALSE)),\"\")","v":""}]
[null,null,null,null,null,null,null,null,null,null,{"$f":"_xlfn.IFNA((VLOOKUP($B1884,Lists!$C$2:$D$13,2,FALSE)),\"\")","v":""}]
[null,null,null,null,null,null,null,null,null,null,{"$f":"_xlfn.IFNA((VLOOKUP($B1885,Lists!$C$2:$D$13,2,FALSE)),\"\")","v":""}]
[null,null,null,null,null,null,null,null,null,null,{"$f":"_xlfn.IFNA((VLOOKUP($B1886,Lists!$C$2:$D$13,2,FALSE)),\"\")","v":""}]
[null,null,null,null,null,null,null,null,null,null,{"$f":"_xlfn.IFNA((VLOOKUP($B1887,Lists!$C$2:$D$13,2,FALSE)),\"\")","v":""}]
[null,null,null,null,null,null,null,null,null,null,{"$f":"_xlfn.IFNA((VLOOKUP($B1888,Lists!$C$2:$D$13,2,FALSE)),\"\")","v":""}]
[null,null,null,null,null,null,null,null,null,null,{"$f":"_xlfn.IFNA((VLOOKUP($B1889,Lists!$C$2:$D$13,2,FALSE)),\"\")","v":""}]
[null,null,null,null,null,null,null,null,null,null,{"$f":"_xlfn.IFNA((VLOOKUP($B1890,Lists!$C$2:$D$13,2,FALSE)),\"\")","v":""}]
[null,null,null,null,null,null,null,null,null,null,{"$f":"_xlfn.IFNA((VLOOKUP($B1891,Lists!$C$2:$D$13,2,FALSE)),\"\")","v":""}]
[null,null,null,null,null,null,null,null,null,null,{"$f":"_xlfn.IFNA((VLOOKUP($B1892,Lists!$C$2:$D$13,2,FALSE)),\"\")","v":""}]
[null,null,null,null,null,null,null,null,null,null,{"$f":"_xlfn.IFNA((VLOOKUP($B1893,Lists!$C$2:$D$13,2,FALSE)),\"\")","v":""}]
[null,null,null,null,null,null,null,null,null,null,{"$f":"_xlfn.IFNA((VLOOKUP($B1894,Lists!$C$2:$D$13,2,FALSE)),\"\")","v":""}]
[null,null,null,null,null,null,null,null,null,null,{"$f":"_xlfn.IFNA((VLOOKUP($B1895,Lists!$C$2:$D$13,2,FALSE)),\"\")","v":""}]
[null,null,null,null,null,null,null,null,null,null,{"$f":"_xlfn.IFNA((VLOOKUP($B1896,Lists!$C$2:$D$13,2,FALSE)),\"\")","v":""}]
[null,null,null,null,null,null,null,null,null,null,{"$f":"_xlfn.IFNA((VLOOKUP($B1897,Lists!$C$2:$D$13,2,FALSE)),\"\")","v":""}]
[null,null,null,null,null,null,null,null,null,null,{"$f":"_xlfn.IFNA((VLOOKUP($B1898,Lists!$C$2:$D$13,2,FALSE)),\"\")","v":""}]
[null,null,null,null,null,null,null,null,null,null,{"$f":"_xlfn.IFNA((VLOOKUP($B1899,Lists!$C$2:$D$13,2,FALSE)),\"\")","v":""}]
[null,null,null,null,null,null,null,null,null,null,{"$f":"_xlfn.IFNA((VLOOKUP($B1900,Lists!$C$2:$D$13,2,FALSE)),\"\")","v":""}]
[null,null,null,null,null,null,null,null,null,null,{"$f":"_xlfn.IFNA((VLOOKUP($B1901,Lists!$C$2:$D$13,2,FALSE)),\"\")","v":""}]
[null,null,null,null,null,null,null,null,null,null,{"$f":"_xlfn.IFNA((VLOOKUP($B1902,Lists!$C$2:$D$13,2,FALSE)),\"\")","v":""}]
[null,null,null,null,null,null,null,null,null,null,{"$f":"_xlfn.IFNA((VLOOKUP($B1903,Lists!$C$2:$D$13,2,FALSE)),\"\")","v":""}]
[null,null,null,null,null,null,null,null,null,null,{"$f":"_xlfn.IFNA((VLOOKUP($B1904,Lists!$C$2:$D$13,2,FALSE)),\"\")","v":""}]
[null,null,null,null,null,null,null,null,null,null,{"$f":"_xlfn.IFNA((VLOOKUP($B1905,Lists!$C$2:$D$13,2,FALSE)),\"\")","v":""}]
[null,null,null,null,null,null,null,null,null,null,{"$f":"_xlfn.IFNA((VLOOKUP($B1906,Lists!$C$2:$D$13,2,FALSE)),\"\")","v":""}]
[null,null,null,null,null,null,null,null,null,null,{"$f":"_xlfn.IFNA((VLOOKUP($B1907,Lists!$C$2:$D$13,2,FALSE)),\"\")","v":""}]
[null,null,null,null,null,null,null,null,null,null,{"$f":"_xlfn.IFNA((VLOOKUP($B1908,Lists!$C$2:$D$13,2,FALSE)),\"\")","v":""}]
[null,null,null,null,null,null,null,null,null,null,{"$f":"_xlfn.IFNA((VLOOKUP($B1909,Lists!$C$2:$D$13,2,FALSE)),\"\")","v":""}]
[null,null,null,null,null,null,null,null,null,null,{"$f":"_xlfn.IFNA((VLOOKUP($B1910,Lists!$C$2:$D$13,2,FALSE)),\"\")","v":""}]
[null,null,null,null,null,null,null,null,null,null,{"$f":"_xlfn.IFNA((VLOOKUP($B1911,Lists!$C$2:$D$13,2,FALSE)),\"\")","v":""}]
[null,null,null,null,null,null,null,null,null,null,{"$f":"_xlfn.IFNA((VLOOKUP($B1912,Lists!$C$2:$D$13,2,FALSE)),\"\")","v":""}]
[null,null,null,null,null,null,null,null,null,null,{"$f":"_xlfn.IFNA((VLOOKUP($B1913,Lists!$C$2:$D$13,2,FALSE)),\"\")","v":""}]
[null,null,null,null,null,null,null,null,null,null,{"$f":"_xlfn.IFNA((VLOOKUP($B1914,Lists!$C$2:$D$13,2,FALSE)),\"\")","v":""}]
[null,null,null,null,null,null,null,null,null,null,{"$f":"_xlfn.IFNA((VLOOKUP($B1915,Lists!$C$2:$D$13,2,FALSE)),\"\")","v":""}]
[null,null,null,null,null,null,null,null,null,null,{"$f":"_xlfn.IFNA((VLOOKUP($B1916,Lists!$C$2:$D$13,2,FALSE)),\"\")","v":""}]
[null,null,null,null,null,null,null,null,null,null,{"$f":"_xlfn.IFNA((VLOOKUP($B1917,Lists!$C$2:$D$13,2,FALSE)),\"\")","v":""}]
[null,null,null,null,null,null,null,null,null,null,{"$f":"_xlfn.IFNA((VLOOKUP($B1918,Lists!$C$2:$D$13,2,FALSE)),\"\")","v":""}]
[null,null,null,null,null,null,null,null,null,null,{"$f":"_xlfn.IFNA((VLOOKUP($B1919,Lists!$C$2:$D$13,2,FALSE)),\"\")","v":""}]
[null,null,null,null,null,null,null,null,null,null,{"$f":"_xlfn.IFNA((VLOOKUP($B1920,Lists!$C$2:$D$13,2,FALSE)),\"\")","v":""}]
[null,null,null,null,null,null,null,null,null,null,{"$f":"_xlfn.IFNA((VLOOKUP($B1921,Lists!$C$2:$D$13,2,FALSE)),\"\")","v":""}]
[null,null,null,null,null,null,null,null,null,null,{"$f":"_xlfn.IFNA((VLOOKUP($B1922,Lists!$C$2:$D$13,2,FALSE)),\"\")","v":""}]
[null,null,null,null,null,null,null,null,null,null,{"$f":"_xlfn.IFNA((VLOOKUP($B1923,Lists!$C$2:$D$13,2,FALSE)),\"\")","v":""}]
[null,null,null,null,null,null,null,null,null,null,{"$f":"_xlfn.IFNA((VLOOKUP($B1924,Lists!$C$2:$D$13,2,FALSE)),\"\")","v":""}]
[null,null,null,null,null,null,null,null,null,null,{"$f":"_xlfn.IFNA((VLOOKUP($B1925,Lists!$C$2:$D$13,2,FALSE)),\"\")","v":""}]
[null,null,null,null,null,null,null,null,null,null,{"$f":"_xlfn.IFNA((VLOOKUP($B1926,Lists!$C$2:$D$13,2,FALSE)),\"\")","v":""}]
[null,null,null,null,null,null,null,null,null,null,{"$f":"_xlfn.IFNA((VLOOKUP($B1927,Lists!$C$2:$D$13,2,FALSE)),\"\")","v":""}]
[null,null,null,null,null,null,null,null,null,null,{"$f":"_xlfn.IFNA((VLOOKUP($B1928,Lists!$C$2:$D$13,2,FALSE)),\"\")","v":""}]
[null,null,null,null,null,null,null,null,null,null,{"$f":"_xlfn.IFNA((VLOOKUP($B1929,Lists!$C$2:$D$13,2,FALSE)),\"\")","v":""}]
[null,null,null,null,null,null,null,null,null,null,{"$f":"_xlfn.IFNA((VLOOKUP($B1930,Lists!$C$2:$D$13,2,FALSE)),\"\")","v":""}]
[null,null,null,null,null,null,null,null,null,null,{"$f":"_xlfn.IFNA((VLOOKUP($B1931,Lists!$C$2:$D$13,2,FALSE)),\"\")","v":""}]
[null,null,null,null,null,null,null,null,null,null,{"$f":"_xlfn.IFNA((VLOOKUP($B1932,Lists!$C$2:$D$13,2,FALSE)),\"\")","v":""}]
[null,null,null,null,null,null,null,null,null,null,{"$f":"_xlfn.IFNA((VLOOKUP($B1933,Lists!$C$2:$D$13,2,FALSE)),\"\")","v":""}]
[null,null,null,null,null,null,null,null,null,null,{"$f":"_xlfn.IFNA((VLOOKUP($B1934,Lists!$C$2:$D$13,2,FALSE)),\"\")","v":""}]
[null,null,null,null,null,null,null,null,null,null,{"$f":"_xlfn.IFNA((VLOOKUP($B1935,Lists!$C$2:$D$13,2,FALSE)),\"\")","v":""}]
[null,null,null,null,null,null,null,null,null,null,{"$f":"_xlfn.IFNA((VLOOKUP($B1936,Lists!$C$2:$D$13,2,FALSE)),\"\")","v":""}]
[null,null,null,null,null,null,null,null,null,null,{"$f":"_xlfn.IFNA((VLOOKUP($B1937,Lists!$C$2:$D$13,2,FALSE)),\"\")","v":""}]
[null,null,null,null,null,null,null,null,null,null,{"$f":"_xlfn.IFNA((VLOOKUP($B1938,Lists!$C$2:$D$13,2,FALSE)),\"\")","v":""}]
[null,null,null,null,null,null,null,null,null,null,{"$f":"_xlfn.IFNA((VLOOKUP($B1939,Lists!$C$2:$D$13,2,FALSE)),\"\")","v":""}]
[null,null,null,null,null,null,null,null,null,null,{"$f":"_xlfn.IFNA((VLOOKUP($B1940,Lists!$C$2:$D$13,2,FALSE)),\"\")","v":""}]
[null,null,null,null,null,null,null,null,null,null,{"$f":"_xlfn.IFNA((VLOOKUP($B1941,Lists!$C$2:$D$13,2,FALSE)),\"\")","v":""}]
[null,null,null,null,null,null,null,null,null,null,{"$f":"_xlfn.IFNA((VLOOKUP($B1942,Lists!$C$2:$D$13,2,FALSE)),\"\")","v":""}]
[null,null,null,null,null,null,null,null,null,null,{"$f":"_xlfn.IFNA((VLOOKUP($B1943,Lists!$C$2:$D$13,2,FALSE)),\"\")","v":""}]
[null,null,null,null,null,null,null,null,null,null,{"$f":"_xlfn.IFNA((VLOOKUP($B1944,Lists!$C$2:$D$13,2,FALSE)),\"\")","v":""}]
[null,null,null,null,null,null,null,null,null,null,{"$f":"_xlfn.IFNA((VLOOKUP($B1945,Lists!$C$2:$D$13,2,FALSE)),\"\")","v":""}]
[null,null,null,null,null,null,null,null,null,null,{"$f":"_xlfn.IFNA((VLOOKUP($B1946,Lists!$C$2:$D$13,2,FALSE)),\"\")","v":""}]
[null,null,null,null,null,null,null,null,null,null,{"$f":"_xlfn.IFNA((VLOOKUP($B1947,Lists!$C$2:$D$13,2,FALSE)),\"\")","v":""}]
[null,null,null,null,null,null,null,null,null,null,{"$f":"_xlfn.IFNA((VLOOKUP($B1948,Lists!$C$2:$D$13,2,FALSE)),\"\")","v":""}]
[null,null,null,null,null,null,null,null,null,null,{"$f":"_xlfn.IFNA((VLOOKUP($B1949,Lists!$C$2:$D$13,2,FALSE)),\"\")","v":""}]
[null,null,null,null,null,null,null,null,null,null,{"$f":"_xlfn.IFNA((VLOOKUP($B1950,Lists!$C$2:$D$13,2,FALSE)),\"\")","v":""}]
[null,null,null,null,null,null,null,null,null,null,{"$f":"_xlfn.IFNA((VLOOKUP($B1951,Lists!$C$2:$D$13,2,FALSE)),\"\")","v":""}]
[null,null,null,null,null,null,null,null,null,null,{"$f":"_xlfn.IFNA((VLOOKUP($B1952,Lists!$C$2:$D$13,2,FALSE)),\"\")","v":""}]
[null,null,null,null,null,null,null,null,null,null,{"$f":"_xlfn.IFNA((VLOOKUP($B1953,Lists!$C$2:$D$13,2,FALSE)),\"\")","v":""}]
[null,null,null,null,null,null,null,null,null,null,{"$f":"_xlfn.IFNA((VLOOKUP($B1954,Lists!$C$2:$D$13,2,FALSE)),\"\")","v":""}]
[null,null,null,null,null,null,null,null,null,null,{"$f":"_xlfn.IFNA((VLOOKUP($B1955,Lists!$C$2:$D$13,2,FALSE)),\"\")","v":""}]
[null,null,null,null,null,null,null,null,null,null,{"$f":"_xlfn.IFNA((VLOOKUP($B1956,Lists!$C$2:$D$13,2,FALSE)),\"\")","v":""}]
[null,null,null,null,null,null,null,null,null,null,{"$f":"_xlfn.IFNA((VLOOKUP($B1957,Lists!$C$2:$D$13,2,FALSE)),\"\")","v":""}]
[null,null,null,null,null,null,null,null,null,null,{"$f":"_xlfn.IFNA((VLOOKUP($B1958,Lists!$C$2:$D$13,2,FALSE)),\"\")","v":""}]
[null,null,null,null,null,null,null,null,null,null,{"$f":"_xlfn.IFNA((VLOOKUP($B1959,Lists!$C$2:$D$13,2,FALSE)),\"\")","v":""}]
[null,null,null,null,null,null,null,null,null,null,{"$f":"_xlfn.IFNA((VLOOKUP($B1960,Lists!$C$2:$D$13,2,FALSE)),\"\")","v":""}]
[null,null,null,null,null,null,null,null,null,null,{"$f":"_xlfn.IFNA((VLOOKUP($B1961,Lists!$C$2:$D$13,2,FALSE)),\"\")","v":""}]
[null,null,null,null,null,null,null,null,null,null,{"$f":"_xlfn.IFNA((VLOOKUP($B1962,Lists!$C$2:$D$13,2,FALSE)),\"\")","v":""}]
[null,null,null,null,null,null,null,null,null,null,{"$f":"_xlfn.IFNA((VLOOKUP($B1963,Lists!$C$2:$D$13,2,FALSE)),\"\")","v":""}]
[null,null,null,null,null,null,null,null,null,null,{"$f":"_xlfn.IFNA((VLOOKUP($B1964,Lists!$C$2:$D$13,2,FALSE)),\"\")","v":""}]
[null,null,null,null,null,null,null,null,null,null,{"$f":"_xlfn.IFNA((VLOOKUP($B1965,Lists!$C$2:$D$13,2,FALSE)),\"\")","v":""}]
[null,null,null,null,null,null,null,null,null,null,{"$f":"_xlfn.IFNA((VLOOKUP($B1966,Lists!$C$2:$D$13,2,FALSE)),\"\")","v":""}]
[null,null,null,null,null,null,null,null,null,null,{"$f":"_xlfn.IFNA((VLOOKUP($B1967,Lists!$C$2:$D$13,2,FALSE)),\"\")","v":""}]
[null,null,null,null,null,null,null,null,null,null,{"$f":"_xlfn.IFNA((VLOOKUP($B1968,Lists!$C$2:$D$13,2,FALSE)),\"\")","v":""}]
[null,null,null,null,null,null,null,null,null,null,{"$f":"_xlfn.IFNA((VLOOKUP($B1969,Lists!$C$2:$D$13,2,FALSE)),\"\")","v":""}]
[null,null,null,null,null,null,null,null,null,null,{"$f":"_xlfn.IFNA((VLOOKUP($B1970,Lists!$C$2:$D$13,2,FALSE)),\"\")","v":""}]
[null,null,null,null,null,null,null,null,null,null,{"$f":"_xlfn.IFNA((VLOOKUP($B1971,Lists!$C$2:$D$13,2,FALSE)),\"\")","v":""}]
[null,null,null,null,null,null,null,null,null,null,{"$f":"_xlfn.IFNA((VLOOKUP($B1972,Lists!$C$2:$D$13,2,FALSE)),\"\")","v":""}]
[null,null,null,null,null,null,null,null,null,null,{"$f":"_xlfn.IFNA((VLOOKUP($B1973,Lists!$C$2:$D$13,2,FALSE)),\"\")","v":""}]
[null,null,null,null,null,null,null,null,null,null,{"$f":"_xlfn.IFNA((VLOOKUP($B1974,Lists!$C$2:$D$13,2,FALSE)),\"\")","v":""}]
[null,null,null,null,null,null,null,null,null,null,{"$f":"_xlfn.IFNA((VLOOKUP($B1975,Lists!$C$2:$D$13,2,FALSE)),\"\")","v":""}]
[null,null,null,null,null,null,null,null,null,null,{"$f":"_xlfn.IFNA((VLOOKUP($B1976,Lists!$C$2:$D$13,2,FALSE)),\"\")","v":""}]
[null,null,null,null,null,null,null,null,null,null,{"$f":"_xlfn.IFNA((VLOOKUP($B1977,Lists!$C$2:$D$13,2,FALSE)),\"\")","v":""}]
[null,null,null,null,null,null,null,null,null,null,{"$f":"_xlfn.IFNA((VLOOKUP($B1978,Lists!$C$2:$D$13,2,FALSE)),\"\")","v":""}]
[null,null,null,null,null,null,null,null,null,null,{"$f":"_xlfn.IFNA((VLOOKUP($B1979,Lists!$C$2:$D$13,2,FALSE)),\"\")","v":""}]
[null,null,null,null,null,null,null,null,null,null,{"$f":"_xlfn.IFNA((VLOOKUP($B1980,Lists!$C$2:$D$13,2,FALSE)),\"\")","v":""}]
[null,null,null,null,null,null,null,null,null,null,{"$f":"_xlfn.IFNA((VLOOKUP($B1981,Lists!$C$2:$D$13,2,FALSE)),\"\")","v":""}]
[null,null,null,null,null,null,null,null,null,null,{"$f":"_xlfn.IFNA((VLOOKUP($B1982,Lists!$C$2:$D$13,2,FALSE)),\"\")","v":""}]
[null,null,null,null,null,null,null,null,null,null,{"$f":"_xlfn.IFNA((VLOOKUP($B1983,Lists!$C$2:$D$13,2,FALSE)),\"\")","v":""}]
[null,null,null,null,null,null,null,null,null,null,{"$f":"_xlfn.IFNA((VLOOKUP($B1984,Lists!$C$2:$D$13,2,FALSE)),\"\")","v":""}]
[null,null,null,null,null,null,null,null,null,null,{"$f":"_xlfn.IFNA((VLOOKUP($B1985,Lists!$C$2:$D$13,2,FALSE)),\"\")","v":""}]
[null,null,null,null,null,null,null,null,null,null,{"$f":"_xlfn.IFNA((VLOOKUP($B1986,Lists!$C$2:$D$13,2,FALSE)),\"\")","v":""}]
[null,null,null,null,null,null,null,null,null,null,{"$f":"_xlfn.IFNA((VLOOKUP($B1987,Lists!$C$2:$D$13,2,FALSE)),\"\")","v":""}]
[null,null,null,null,null,null,null,null,null,null,{"$f":"_xlfn.IFNA((VLOOKUP($B1988,Lists!$C$2:$D$13,2,FALSE)),\"\")","v":""}]
[null,null,null,null,null,null,null,null,null,null,{"$f":"_xlfn.IFNA((VLOOKUP($B1989,Lists!$C$2:$D$13,2,FALSE)),\"\")","v":""}]
[null,null,null,null,null,null,null,null,null,null,{"$f":"_xlfn.IFNA((VLOOKUP($B1990,Lists!$C$2:$D$13,2,FALSE)),\"\")","v":""}]
[null,null,null,null,null,null,null,null,null,null,{"$f":"_xlfn.IFNA((VLOOKUP($B1991,Lists!$C$2:$D$13,2,FALSE)),\"\")","v":""}]
[null,null,null,null,null,null,null,null,null,null,{"$f":"_xlfn.IFNA((VLOOKUP($B1992,Lists!$C$2:$D$13,2,FALSE)),\"\")","v":""}]
[null,null,null,null,null,null,null,null,null,null,{"$f":"_xlfn.IFNA((VLOOKUP($B1993,Lists!$C$2:$D$13,2,FALSE)),\"\")","v":""}]
[null,null,null,null,null,null,null,null,null,null,{"$f":"_xlfn.IFNA((VLOOKUP($B1994,Lists!$C$2:$D$13,2,FALSE)),\"\")","v":""}]
[null,null,null,null,null,null,null,null,null,null,{"$f":"_xlfn.IFNA((VLOOKUP($B1995,Lists!$C$2:$D$13,2,FALSE)),\"\")","v":""}]
[null,null,null,null,null,null,null,null,null,null,{"$f":"_xlfn.IFNA((VLOOKUP($B1996,Lists!$C$2:$D$13,2,FALSE)),\"\")","v":""}]
[null,null,null,null,null,null,null,null,null,null,{"$f":"_xlfn.IFNA((VLOOKUP($B1997,Lists!$C$2:$D$13,2,FALSE)),\"\")","v":""}]
[null,null,null,null,null,null,null,null,null,null,{"$f":"_xlfn.IFNA((VLOOKUP($B1998,Lists!$C$2:$D$13,2,FALSE)),\"\")","v":""}]
[null,null,null,null,null,null,null,null,null,null,{"$f":"_xlfn.IFNA((VLOOKUP($B1999,Lists!$C$2:$D$13,2,FALSE)),\"\")","v":""}]
[null,null,null,null,null,null,null,null,null,null,{"$f":"_xlfn.IFNA((VLOOKUP($B2000,Lists!$C$2:$D$13,2,FALSE)),\"\")","v":""}]
[null,null,null,null,null,null,null,null,null,null,{"$f":"_xlfn.IFNA((VLOOKUP($B2001,Lists!$C$2:$D$13,2,FALSE)),\"\")","v":""}]
[null,null,null,null,null,null,null,null,null,null,{"$f":"_xlfn.IFNA((VLOOKUP($B2002,Lists!$C$2:$D$13,2,FALSE)),\"\")","v":""}]
[null,null,null,null,null,null,null,null,null,null,{"$f":"_xlfn.IFNA((VLOOKUP($B2003,Lists!$C$2:$D$13,2,FALSE)),\"\")","v":""}]
[null,null,null,null,null,null,null,null,null,null,{"$f":"_xlfn.IFNA((VLOOKUP($B2004,Lists!$C$2:$D$13,2,FALSE)),\"\")","v":""}]
[null,null,null,null,null,null,null,null,null,null,{"$f":"_xlfn.IFNA((VLOOKUP($B2005,Lists!$C$2:$D$13,2,FALSE)),\"\")","v":""}]
[null,null,null,null,null,null,null,null,null,null,{"$f":"_xlfn.IFNA((VLOOKUP($B2006,Lists!$C$2:$D$13,2,FALSE)),\"\")","v":""}]
[null,null,null,null,null,null,null,null,null,null,{"$f":"_xlfn.IFNA((VLOOKUP($B2007,Lists!$C$2:$D$13,2,FALSE)),\"\")","v":""}]
[null,null,null,null,null,null,null,null,null,null,{"$f":"_xlfn.IFNA((VLOOKUP($B2008,Lists!$C$2:$D$13,2,FALSE)),\"\")","v":""}]
[null,null,null,null,null,null,null,null,null,null,{"$f":"_xlfn.IFNA((VLOOKUP($B2009,Lists!$C$2:$D$13,2,FALSE)),\"\")","v":""}]
[null,null,null,null,null,null,null,null,null,null,{"$f":"_xlfn.IFNA((VLOOKUP($B2010,Lists!$C$2:$D$13,2,FALSE)),\"\")","v":""}]
[null,null,null,null,null,null,null,null,null,null,{"$f":"_xlfn.IFNA((VLOOKUP($B2011,Lists!$C$2:$D$13,2,FALSE)),\"\")","v":""}]
[null,null,null,null,null,null,null,null,null,null,{"$f":"_xlfn.IFNA((VLOOKUP($B2012,Lists!$C$2:$D$13,2,FALSE)),\"\")","v":""}]
[null,null,null,null,null,null,null,null,null,null,{"$f":"_xlfn.IFNA((VLOOKUP($B2013,Lists!$C$2:$D$13,2,FALSE)),\"\")","v":""}]
[null,null,null,null,null,null,null,null,null,null,{"$f":"_xlfn.IFNA((VLOOKUP($B2014,Lists!$C$2:$D$13,2,FALSE)),\"\")","v":""}]
[null,null,null,null,null,null,null,null,null,null,{"$f":"_xlfn.IFNA((VLOOKUP($B2015,Lists!$C$2:$D$13,2,FALSE)),\"\")","v":""}]
[null,null,null,null,null,null,null,null,null,null,{"$f":"_xlfn.IFNA((VLOOKUP($B2016,Lists!$C$2:$D$13,2,FALSE)),\"\")","v":""}]
[null,null,null,null,null,null,null,null,null,null,{"$f":"_xlfn.IFNA((VLOOKUP($B2017,Lists!$C$2:$D$13,2,FALSE)),\"\")","v":""}]
[null,null,null,null,null,null,null,null,null,null,{"$f":"_xlfn.IFNA((VLOOKUP($B2018,Lists!$C$2:$D$13,2,FALSE)),\"\")","v":""}]
[null,null,null,null,null,null,null,null,null,null,{"$f":"_xlfn.IFNA((VLOOKUP($B2019,Lists!$C$2:$D$13,2,FALSE)),\"\")","v":""}]
[null,null,null,null,null,null,null,null,null,null,{"$f":"_xlfn.IFNA((VLOOKUP($B2020,Lists!$C$2:$D$13,2,FALSE)),\"\")","v":""}]
[null,null,null,null,null,null,null,null,null,null,{"$f":"_xlfn.IFNA((VLOOKUP($B2021,Lists!$C$2:$D$13,2,FALSE)),\"\")","v":""}]
[null,null,null,null,null,null,null,null,null,null,{"$f":"_xlfn.IFNA((VLOOKUP($B2022,Lists!$C$2:$D$13,2,FALSE)),\"\")","v":""}]
[null,null,null,null,null,null,null,null,null,null,{"$f":"_xlfn.IFNA((VLOOKUP($B2023,Lists!$C$2:$D$13,2,FALSE)),\"\")","v":""}]
[null,null,null,null,null,null,null,null,null,null,{"$f":"_xlfn.IFNA((VLOOKUP($B2024,Lists!$C$2:$D$13,2,FALSE)),\"\")","v":""}]
[null,null,null,null,null,null,null,null,null,null,{"$f":"_xlfn.IFNA((VLOOKUP($B2025,Lists!$C$2:$D$13,2,FALSE)),\"\")","v":""}]
[null,null,null,null,null,null,null,null,null,null,{"$f":"_xlfn.IFNA((VLOOKUP($B2026,Lists!$C$2:$D$13,2,FALSE)),\"\")","v":""}]
[null,null,null,null,null,null,null,null,null,null,{"$f":"_xlfn.IFNA((VLOOKUP($B2027,Lists!$C$2:$D$13,2,FALSE)),\"\")","v":""}]
[null,null,null,null,null,null,null,null,null,null,{"$f":"_xlfn.IFNA((VLOOKUP($B2028,Lists!$C$2:$D$13,2,FALSE)),\"\")","v":""}]
[null,null,null,null,null,null,null,null,null,null,{"$f":"_xlfn.IFNA((VLOOKUP($B2029,Lists!$C$2:$D$13,2,FALSE)),\"\")","v":""}]
[null,null,null,null,null,null,null,null,null,null,{"$f":"_xlfn.IFNA((VLOOKUP($B2030,Lists!$C$2:$D$13,2,FALSE)),\"\")","v":""}]
[null,null,null,null,null,null,null,null,null,null,{"$f":"_xlfn.IFNA((VLOOKUP($B2031,Lists!$C$2:$D$13,2,FALSE)),\"\")","v":""}]
[null,null,null,null,null,null,null,null,null,null,{"$f":"_xlfn.IFNA((VLOOKUP($B2032,Lists!$C$2:$D$13,2,FALSE)),\"\")","v":""}]
[null,null,null,null,null,null,null,null,null,null,{"$f":"_xlfn.IFNA((VLOOKUP($B2033,Lists!$C$2:$D$13,2,FALSE)),\"\")","v":""}]
[null,null,null,null,null,null,null,null,null,null,{"$f":"_xlfn.IFNA((VLOOKUP($B2034,Lists!$C$2:$D$13,2,FALSE)),\"\")","v":""}]
[null,null,null,null,null,null,null,null,null,null,{"$f":"_xlfn.IFNA((VLOOKUP($B2035,Lists!$C$2:$D$13,2,FALSE)),\"\")","v":""}]
[null,null,null,null,null,null,null,null,null,null,{"$f":"_xlfn.IFNA((VLOOKUP($B2036,Lists!$C$2:$D$13,2,FALSE)),\"\")","v":""}]
[null,null,null,null,null,null,null,null,null,null,{"$f":"_xlfn.IFNA((VLOOKUP($B2037,Lists!$C$2:$D$13,2,FALSE)),\"\")","v":""}]
[null,null,null,null,null,null,null,null,null,null,{"$f":"_xlfn.IFNA((VLOOKUP($B2038,Lists!$C$2:$D$13,2,FALSE)),\"\")","v":""}]
[null,null,null,null,null,null,null,null,null,null,{"$f":"_xlfn.IFNA((VLOOKUP($B2039,Lists!$C$2:$D$13,2,FALSE)),\"\")","v":""}]
[null,null,null,null,null,null,null,null,null,null,{"$f":"_xlfn.IFNA((VLOOKUP($B2040,Lists!$C$2:$D$13,2,FALSE)),\"\")","v":""}]
[null,null,null,null,null,null,null,null,null,null,{"$f":"_xlfn.IFNA((VLOOKUP($B2041,Lists!$C$2:$D$13,2,FALSE)),\"\")","v":""}]
[null,null,null,null,null,null,null,null,null,null,{"$f":"_xlfn.IFNA((VLOOKUP($B2042,Lists!$C$2:$D$13,2,FALSE)),\"\")","v":""}]
[null,null,null,null,null,null,null,null,null,null,{"$f":"_xlfn.IFNA((VLOOKUP($B2043,Lists!$C$2:$D$13,2,FALSE)),\"\")","v":""}]
[null,null,null,null,null,null,null,null,null,null,{"$f":"_xlfn.IFNA((VLOOKUP($B2044,Lists!$C$2:$D$13,2,FALSE)),\"\")","v":""}]
[null,null,null,null,null,null,null,null,null,null,{"$f":"_xlfn.IFNA((VLOOKUP($B2045,Lists!$C$2:$D$13,2,FALSE)),\"\")","v":""}]
[null,null,null,null,null,null,null,null,null,null,{"$f":"_xlfn.IFNA((VLOOKUP($B2046,Lists!$C$2:$D$13,2,FALSE)),\"\")","v":""}]
[null,null,null,null,null,null,null,null,null,null,{"$f":"_xlfn.IFNA((VLOOKUP($B2047,Lists!$C$2:$D$13,2,FALSE)),\"\")","v":""}]
[null,null,null,null,null,null,null,null,null,null,{"$f":"_xlfn.IFNA((VLOOKUP($B2048,Lists!$C$2:$D$13,2,FALSE)),\"\")","v":""}]
[null,null,null,null,null,null,null,null,null,null,{"$f":"_xlfn.IFNA((VLOOKUP($B2049,Lists!$C$2:$D$13,2,FALSE)),\"\")","v":""}]
[null,null,null,null,null,null,null,null,null,null,{"$f":"_xlfn.IFNA((VLOOKUP($B2050,Lists!$C$2:$D$13,2,FALSE)),\"\")","v":""}]
[null,null,null,null,null,null,null,null,null,null,{"$f":"_xlfn.IFNA((VLOOKUP($B2051,Lists!$C$2:$D$13,2,FALSE)),\"\")","v":""}]
[null,null,null,null,null,null,null,null,null,null,{"$f":"_xlfn.IFNA((VLOOKUP($B2052,Lists!$C$2:$D$13,2,FALSE)),\"\")","v":""}]
[null,null,null,null,null,null,null,null,null,null,{"$f":"_xlfn.IFNA((VLOOKUP($B2053,Lists!$C$2:$D$13,2,FALSE)),\"\")","v":""}]
[null,null,null,null,null,null,null,null,null,null,{"$f":"_xlfn.IFNA((VLOOKUP($B2054,Lists!$C$2:$D$13,2,FALSE)),\"\")","v":""}]
[null,null,null,null,null,null,null,null,null,null,{"$f":"_xlfn.IFNA((VLOOKUP($B2055,Lists!$C$2:$D$13,2,FALSE)),\"\")","v":""}]
[null,null,null,null,null,null,null,null,null,null,{"$f":"_xlfn.IFNA((VLOOKUP($B2056,Lists!$C$2:$D$13,2,FALSE)),\"\")","v":""}]
[null,null,null,null,null,null,null,null,null,null,{"$f":"_xlfn.IFNA((VLOOKUP($B2057,Lists!$C$2:$D$13,2,FALSE)),\"\")","v":""}]
[null,null,null,null,null,null,null,null,null,null,{"$f":"_xlfn.IFNA((VLOOKUP($B2058,Lists!$C$2:$D$13,2,FALSE)),\"\")","v":""}]
[null,null,null,null,null,null,null,null,null,null,{"$f":"_xlfn.IFNA((VLOOKUP($B2059,Lists!$C$2:$D$13,2,FALSE)),\"\")","v":""}]
[null,null,null,null,null,null,null,null,null,null,{"$f":"_xlfn.IFNA((VLOOKUP($B2060,Lists!$C$2:$D$13,2,FALSE)),\"\")","v":""}]
[null,null,null,null,null,null,null,null,null,null,{"$f":"_xlfn.IFNA((VLOOKUP($B2061,Lists!$C$2:$D$13,2,FALSE)),\"\")","v":""}]
[null,null,null,null,null,null,null,null,null,null,{"$f":"_xlfn.IFNA((VLOOKUP($B2062,Lists!$C$2:$D$13,2,FALSE)),\"\")","v":""}]
[null,null,null,null,null,null,null,null,null,null,{"$f":"_xlfn.IFNA((VLOOKUP($B2063,Lists!$C$2:$D$13,2,FALSE)),\"\")","v":""}]
[null,null,null,null,null,null,null,null,null,null,{"$f":"_xlfn.IFNA((VLOOKUP($B2064,Lists!$C$2:$D$13,2,FALSE)),\"\")","v":""}]
[null,null,null,null,null,null,null,null,null,null,{"$f":"_xlfn.IFNA((VLOOKUP($B2065,Lists!$C$2:$D$13,2,FALSE)),\"\")","v":""}]
[null,null,null,null,null,null,null,null,null,null,{"$f":"_xlfn.IFNA((VLOOKUP($B2066,Lists!$C$2:$D$13,2,FALSE)),\"\")","v":""}]
[null,null,null,null,null,null,null,null,null,null,{"$f":"_xlfn.IFNA((VLOOKUP($B2067,Lists!$C$2:$D$13,2,FALSE)),\"\")","v":""}]
[null,null,null,null,null,null,null,null,null,null,{"$f":"_xlfn.IFNA((VLOOKUP($B2068,Lists!$C$2:$D$13,2,FALSE)),\"\")","v":""}]
[null,null,null,null,null,null,null,null,null,null,{"$f":"_xlfn.IFNA((VLOOKUP($B2069,Lists!$C$2:$D$13,2,FALSE)),\"\")","v":""}]
[null,null,null,null,null,null,null,null,null,null,{"$f":"_xlfn.IFNA((VLOOKUP($B2070,Lists!$C$2:$D$13,2,FALSE)),\"\")","v":""}]
[null,null,null,null,null,null,null,null,null,null,{"$f":"_xlfn.IFNA((VLOOKUP($B2071,Lists!$C$2:$D$13,2,FALSE)),\"\")","v":""}]
[null,null,null,null,null,null,null,null,null,null,{"$f":"_xlfn.IFNA((VLOOKUP($B2072,Lists!$C$2:$D$13,2,FALSE)),\"\")","v":""}]
[null,null,null,null,null,null,null,null,null,null,{"$f":"_xlfn.IFNA((VLOOKUP($B2073,Lists!$C$2:$D$13,2,FALSE)),\"\")","v":""}]
[null,null,null,null,null,null,null,null,null,null,{"$f":"_xlfn.IFNA((VLOOKUP($B2074,Lists!$C$2:$D$13,2,FALSE)),\"\")","v":""}]
[null,null,null,null,null,null,null,null,null,null,{"$f":"_xlfn.IFNA((VLOOKUP($B2075,Lists!$C$2:$D$13,2,FALSE)),\"\")","v":""}]
[null,null,null,null,null,null,null,null,null,null,{"$f":"_xlfn.IFNA((VLOOKUP($B2076,Lists!$C$2:$D$13,2,FALSE)),\"\")","v":""}]
[null,null,null,null,null,null,null,null,null,null,{"$f":"_xlfn.IFNA((VLOOKUP($B2077,Lists!$C$2:$D$13,2,FALSE)),\"\")","v":""}]
[null,null,null,null,null,null,null,null,null,null,{"$f":"_xlfn.IFNA((VLOOKUP($B2078,Lists!$C$2:$D$13,2,FALSE)),\"\")","v":""}]
[null,null,null,null,null,null,null,null,null,null,{"$f":"_xlfn.IFNA((VLOOKUP($B2079,Lists!$C$2:$D$13,2,FALSE)),\"\")","v":""}]
[null,null,null,null,null,null,null,null,null,null,{"$f":"_xlfn.IFNA((VLOOKUP($B2080,Lists!$C$2:$D$13,2,FALSE)),\"\")","v":""}]
[null,null,null,null,null,null,null,null,null,null,{"$f":"_xlfn.IFNA((VLOOKUP($B2081,Lists!$C$2:$D$13,2,FALSE)),\"\")","v":""}]
[null,null,null,null,null,null,null,null,null,null,{"$f":"_xlfn.IFNA((VLOOKUP($B2082,Lists!$C$2:$D$13,2,FALSE)),\"\")","v":""}]
[null,null,null,null,null,null,null,null,null,null,{"$f":"_xlfn.IFNA((VLOOKUP($B2083,Lists!$C$2:$D$13,2,FALSE)),\"\")","v":""}]
[null,null,null,null,null,null,null,null,null,null,{"$f":"_xlfn.IFNA((VLOOKUP($B2084,Lists!$C$2:$D$13,2,FALSE)),\"\")","v":""}]
[null,null,null,null,null,null,null,null,null,null,{"$f":"_xlfn.IFNA((VLOOKUP($B2085,Lists!$C$2:$D$13,2,FALSE)),\"\")","v":""}]
[null,null,null,null,null,null,null,null,null,null,{"$f":"_xlfn.IFNA((VLOOKUP($B2086,Lists!$C$2:$D$13,2,FALSE)),\"\")","v":""}]
[null,null,null,null,null,null,null,null,null,null,{"$f":"_xlfn.IFNA((VLOOKUP($B2087,Lists!$C$2:$D$13,2,FALSE)),\"\")","v":""}]
[null,null,null,null,null,null,null,null,null,null,{"$f":"_xlfn.IFNA((VLOOKUP($B2088,Lists!$C$2:$D$13,2,FALSE)),\"\")","v":""}]
[null,null,null,null,null,null,null,null,null,null,{"$f":"_xlfn.IFNA((VLOOKUP($B2089,Lists!$C$2:$D$13,2,FALSE)),\"\")","v":""}]
[null,null,null,null,null,null,null,null,null,null,{"$f":"_xlfn.IFNA((VLOOKUP($B2090,Lists!$C$2:$D$13,2,FALSE)),\"\")","v":""}]
[null,null,null,null,null,null,null,null,null,null,{"$f":"_xlfn.IFNA((VLOOKUP($B2091,Lists!$C$2:$D$13,2,FALSE)),\"\")","v":""}]
[null,null,null,null,null,null,null,null,null,null,{"$f":"_xlfn.IFNA((VLOOKUP($B2092,Lists!$C$2:$D$13,2,FALSE)),\"\")","v":""}]
[null,null,null,null,null,null,null,null,null,null,{"$f":"_xlfn.IFNA((VLOOKUP($B2093,Lists!$C$2:$D$13,2,FALSE)),\"\")","v":""}]
[null,null,null,null,null,null,null,null,null,null,{"$f":"_xlfn.IFNA((VLOOKUP($B2094,Lists!$C$2:$D$13,2,FALSE)),\"\")","v":""}]
[null,null,null,null,null,null,null,null,null,null,{"$f":"_xlfn.IFNA((VLOOKUP($B2095,Lists!$C$2:$D$13,2,FALSE)),\"\")","v":""}]
[null,null,null,null,null,null,null,null,null,null,{"$f":"_xlfn.IFNA((VLOOKUP($B2096,Lists!$C$2:$D$13,2,FALSE)),\"\")","v":""}]
[null,null,null,null,null,null,null,null,null,null,{"$f":"_xlfn.IFNA((VLOOKUP($B2097,Lists!$C$2:$D$13,2,FALSE)),\"\")","v":""}]
[null,null,null,null,null,null,null,null,null,null,{"$f":"_xlfn.IFNA((VLOOKUP($B2098,Lists!$C$2:$D$13,2,FALSE)),\"\")","v":""}]
[null,null,null,null,null,null,null,null,null,null,{"$f":"_xlfn.IFNA((VLOOKUP($B2099,Lists!$C$2:$D$13,2,FALSE)),\"\")","v":""}]
[null,null,null,null,null,null,null,null,null,null,{"$f":"_xlfn.IFNA((VLOOKUP($B2100,Lists!$C$2:$D$13,2,FALSE)),\"\")","v":""}]
[null,null,null,null,null,null,null,null,null,null,{"$f":"_xlfn.IFNA((VLOOKUP($B2101,Lists!$C$2:$D$13,2,FALSE)),\"\")","v":""}]
[null,null,null,null,null,null,null,null,null,null,{"$f":"_xlfn.IFNA((VLOOKUP($B2102,Lists!$C$2:$D$13,2,FALSE)),\"\")","v":""}]
[null,null,null,null,null,null,null,null,null,null,{"$f":"_xlfn.IFNA((VLOOKUP($B2103,Lists!$C$2:$D$13,2,FALSE)),\"\")","v":""}]
[null,null,null,null,null,null,null,null,null,null,{"$f":"_xlfn.IFNA((VLOOKUP($B2104,Lists!$C$2:$D$13,2,FALSE)),\"\")","v":""}]
[null,null,null,null,null,null,null,null,null,null,{"$f":"_xlfn.IFNA((VLOOKUP($B2105,Lists!$C$2:$D$13,2,FALSE)),\"\")","v":""}]
[null,null,null,null,null,null,null,null,null,null,{"$f":"_xlfn.IFNA((VLOOKUP($B2106,Lists!$C$2:$D$13,2,FALSE)),\"\")","v":""}]
[null,null,null,null,null,null,null,null,null,null,{"$f":"_xlfn.IFNA((VLOOKUP($B2107,Lists!$C$2:$D$13,2,FALSE)),\"\")","v":""}]
[null,null,null,null,null,null,null,null,null,null,{"$f":"_xlfn.IFNA((VLOOKUP($B2108,Lists!$C$2:$D$13,2,FALSE)),\"\")","v":""}]
[null,null,null,null,null,null,null,null,null,null,{"$f":"_xlfn.IFNA((VLOOKUP($B2109,Lists!$C$2:$D$13,2,FALSE)),\"\")","v":""}]
[null,null,null,null,null,null,null,null,null,null,{"$f":"_xlfn.IFNA((VLOOKUP($B2110,Lists!$C$2:$D$13,2,FALSE)),\"\")","v":""}]
[null,null,null,null,null,null,null,null,null,null,{"$f":"_xlfn.IFNA((VLOOKUP($B2111,Lists!$C$2:$D$13,2,FALSE)),\"\")","v":""}]
[null,null,null,null,null,null,null,null,null,null,{"$f":"_xlfn.IFNA((VLOOKUP($B2112,Lists!$C$2:$D$13,2,FALSE)),\"\")","v":""}]
[null,null,null,null,null,null,null,null,null,null,{"$f":"_xlfn.IFNA((VLOOKUP($B2113,Lists!$C$2:$D$13,2,FALSE)),\"\")","v":""}]
[null,null,null,null,null,null,null,null,null,null,{"$f":"_xlfn.IFNA((VLOOKUP($B2114,Lists!$C$2:$D$13,2,FALSE)),\"\")","v":""}]
[null,null,null,null,null,null,null,null,null,null,{"$f":"_xlfn.IFNA((VLOOKUP($B2115,Lists!$C$2:$D$13,2,FALSE)),\"\")","v":""}]
[null,null,null,null,null,null,null,null,null,null,{"$f":"_xlfn.IFNA((VLOOKUP($B2116,Lists!$C$2:$D$13,2,FALSE)),\"\")","v":""}]
[null,null,null,null,null,null,null,null,null,null,{"$f":"_xlfn.IFNA((VLOOKUP($B2117,Lists!$C$2:$D$13,2,FALSE)),\"\")","v":""}]
[null,null,null,null,null,null,null,null,null,null,{"$f":"_xlfn.IFNA((VLOOKUP($B2118,Lists!$C$2:$D$13,2,FALSE)),\"\")","v":""}]
[null,null,null,null,null,null,null,null,null,null,{"$f":"_xlfn.IFNA((VLOOKUP($B2119,Lists!$C$2:$D$13,2,FALSE)),\"\")","v":""}]
[null,null,null,null,null,null,null,null,null,null,{"$f":"_xlfn.IFNA((VLOOKUP($B2120,Lists!$C$2:$D$13,2,FALSE)),\"\")","v":""}]
[null,null,null,null,null,null,null,null,null,null,{"$f":"_xlfn.IFNA((VLOOKUP($B2121,Lists!$C$2:$D$13,2,FALSE)),\"\")","v":""}]
[null,null,null,null,null,null,null,null,null,null,{"$f":"_xlfn.IFNA((VLOOKUP($B2122,Lists!$C$2:$D$13,2,FALSE)),\"\")","v":""}]
[null,null,null,null,null,null,null,null,null,null,{"$f":"_xlfn.IFNA((VLOOKUP($B2123,Lists!$C$2:$D$13,2,FALSE)),\"\")","v":""}]
[null,null,null,null,null,null,null,null,null,null,{"$f":"_xlfn.IFNA((VLOOKUP($B2124,Lists!$C$2:$D$13,2,FALSE)),\"\")","v":""}]
[null,null,null,null,null,null,null,null,null,null,{"$f":"_xlfn.IFNA((VLOOKUP($B2125,Lists!$C$2:$D$13,2,FALSE)),\"\")","v":""}]
[null,null,null,null,null,null,null,null,null,null,{"$f":"_xlfn.IFNA((VLOOKUP($B2126,Lists!$C$2:$D$13,2,FALSE)),\"\")","v":""}]
[null,null,null,null,null,null,null,null,null,null,{"$f":"_xlfn.IFNA((VLOOKUP($B2127,Lists!$C$2:$D$13,2,FALSE)),\"\")","v":""}]
[null,null,null,null,null,null,null,null,null,null,{"$f":"_xlfn.IFNA((VLOOKUP($B2128,Lists!$C$2:$D$13,2,FALSE)),\"\")","v":""}]
[null,null,null,null,null,null,null,null,null,null,{"$f":"_xlfn.IFNA((VLOOKUP($B2129,Lists!$C$2:$D$13,2,FALSE)),\"\")","v":""}]
[null,null,null,null,null,null,null,null,null,null,{"$f":"_xlfn.IFNA((VLOOKUP($B2130,Lists!$C$2:$D$13,2,FALSE)),\"\")","v":""}]
[null,null,null,null,null,null,null,null,null,null,{"$f":"_xlfn.IFNA((VLOOKUP($B2131,Lists!$C$2:$D$13,2,FALSE)),\"\")","v":""}]
[null,null,null,null,null,null,null,null,null,null,{"$f":"_xlfn.IFNA((VLOOKUP($B2132,Lists!$C$2:$D$13,2,FALSE)),\"\")","v":""}]
[null,null,null,null,null,null,null,null,null,null,{"$f":"_xlfn.IFNA((VLOOKUP($B2133,Lists!$C$2:$D$13,2,FALSE)),\"\")","v":""}]
[null,null,null,null,null,null,null,null,null,null,{"$f":"_xlfn.IFNA((VLOOKUP($B2134,Lists!$C$2:$D$13,2,FALSE)),\"\")","v":""}]
[null,null,null,null,null,null,null,null,null,null,{"$f":"_xlfn.IFNA((VLOOKUP($B2135,Lists!$C$2:$D$13,2,FALSE)),\"\")","v":""}]
[null,null,null,null,null,null,null,null,null,null,{"$f":"_xlfn.IFNA((VLOOKUP($B2136,Lists!$C$2:$D$13,2,FALSE)),\"\")","v":""}]
[null,null,null,null,null,null,null,null,null,null,{"$f":"_xlfn.IFNA((VLOOKUP($B2137,Lists!$C$2:$D$13,2,FALSE)),\"\")","v":""}]
[null,null,null,null,null,null,null,null,null,null,{"$f":"_xlfn.IFNA((VLOOKUP($B2138,Lists!$C$2:$D$13,2,FALSE)),\"\")","v":""}]
[null,null,null,null,null,null,null,null,null,null,{"$f":"_xlfn.IFNA((VLOOKUP($B2139,Lists!$C$2:$D$13,2,FALSE)),\"\")","v":""}]
[null,null,null,null,null,null,null,null,null,null,{"$f":"_xlfn.IFNA((VLOOKUP($B2140,Lists!$C$2:$D$13,2,FALSE)),\"\")","v":""}]
[null,null,null,null,null,null,null,null,null,null,{"$f":"_xlfn.IFNA((VLOOKUP($B2141,Lists!$C$2:$D$13,2,FALSE)),\"\")","v":""}]
[null,null,null,null,null,null,null,null,null,null,{"$f":"_xlfn.IFNA((VLOOKUP($B2142,Lists!$C$2:$D$13,2,FALSE)),\"\")","v":""}]
[null,null,null,null,null,null,null,null,null,null,{"$f":"_xlfn.IFNA((VLOOKUP($B2143,Lists!$C$2:$D$13,2,FALSE)),\"\")","v":""}]
[null,null,null,null,null,null,null,null,null,null,{"$f":"_xlfn.IFNA((VLOOKUP($B2144,Lists!$C$2:$D$13,2,FALSE)),\"\")","v":""}]
[null,null,null,null,null,null,null,null,null,null,{"$f":"_xlfn.IFNA((VLOOKUP($B2145,Lists!$C$2:$D$13,2,FALSE)),\"\")","v":""}]
[null,null,null,null,null,null,null,null,null,null,{"$f":"_xlfn.IFNA((VLOOKUP($B2146,Lists!$C$2:$D$13,2,FALSE)),\"\")","v":""}]
[null,null,null,null,null,null,null,null,null,null,{"$f":"_xlfn.IFNA((VLOOKUP($B2147,Lists!$C$2:$D$13,2,FALSE)),\"\")","v":""}]
[null,null,null,null,null,null,null,null,null,null,{"$f":"_xlfn.IFNA((VLOOKUP($B2148,Lists!$C$2:$D$13,2,FALSE)),\"\")","v":""}]
[null,null,null,null,null,null,null,null,null,null,{"$f":"_xlfn.IFNA((VLOOKUP($B2149,Lists!$C$2:$D$13,2,FALSE)),\"\")","v":""}]
[null,null,null,null,null,null,null,null,null,null,{"$f":"_xlfn.IFNA((VLOOKUP($B2150,Lists!$C$2:$D$13,2,FALSE)),\"\")","v":""}]
[null,null,null,null,null,null,null,null,null,null,{"$f":"_xlfn.IFNA((VLOOKUP($B2151,Lists!$C$2:$D$13,2,FALSE)),\"\")","v":""}]
[null,null,null,null,null,null,null,null,null,null,{"$f":"_xlfn.IFNA((VLOOKUP($B2152,Lists!$C$2:$D$13,2,FALSE)),\"\")","v":""}]
[null,null,null,null,null,null,null,null,null,null,{"$f":"_xlfn.IFNA((VLOOKUP($B2153,Lists!$C$2:$D$13,2,FALSE)),\"\")","v":""}]
[null,null,null,null,null,null,null,null,null,null,{"$f":"_xlfn.IFNA((VLOOKUP($B2154,Lists!$C$2:$D$13,2,FALSE)),\"\")","v":""}]
[null,null,null,null,null,null,null,null,null,null,{"$f":"_xlfn.IFNA((VLOOKUP($B2155,Lists!$C$2:$D$13,2,FALSE)),\"\")","v":""}]
[null,null,null,null,null,null,null,null,null,null,{"$f":"_xlfn.IFNA((VLOOKUP($B2156,Lists!$C$2:$D$13,2,FALSE)),\"\")","v":""}]
[null,null,null,null,null,null,null,null,null,null,{"$f":"_xlfn.IFNA((VLOOKUP($B2157,Lists!$C$2:$D$13,2,FALSE)),\"\")","v":""}]
[null,null,null,null,null,null,null,null,null,null,{"$f":"_xlfn.IFNA((VLOOKUP($B2158,Lists!$C$2:$D$13,2,FALSE)),\"\")","v":""}]
[null,null,null,null,null,null,null,null,null,null,{"$f":"_xlfn.IFNA((VLOOKUP($B2159,Lists!$C$2:$D$13,2,FALSE)),\"\")","v":""}]
[null,null,null,null,null,null,null,null,null,null,{"$f":"_xlfn.IFNA((VLOOKUP($B2160,Lists!$C$2:$D$13,2,FALSE)),\"\")","v":""}]
[null,null,null,null,null,null,null,null,null,null,{"$f":"_xlfn.IFNA((VLOOKUP($B2161,Lists!$C$2:$D$13,2,FALSE)),\"\")","v":""}]
[null,null,null,null,null,null,null,null,null,null,{"$f":"_xlfn.IFNA((VLOOKUP($B2162,Lists!$C$2:$D$13,2,FALSE)),\"\")","v":""}]
[null,null,null,null,null,null,null,null,null,null,{"$f":"_xlfn.IFNA((VLOOKUP($B2163,Lists!$C$2:$D$13,2,FALSE)),\"\")","v":""}]
[null,null,null,null,null,null,null,null,null,null,{"$f":"_xlfn.IFNA((VLOOKUP($B2164,Lists!$C$2:$D$13,2,FALSE)),\"\")","v":""}]
[null,null,null,null,null,null,null,null,null,null,{"$f":"_xlfn.IFNA((VLOOKUP($B2165,Lists!$C$2:$D$13,2,FALSE)),\"\")","v":""}]
[null,null,null,null,null,null,null,null,null,null,{"$f":"_xlfn.IFNA((VLOOKUP($B2166,Lists!$C$2:$D$13,2,FALSE)),\"\")","v":""}]
[null,null,null,null,null,null,null,null,null,null,{"$f":"_xlfn.IFNA((VLOOKUP($B2167,Lists!$C$2:$D$13,2,FALSE)),\"\")","v":""}]
[null,null,null,null,null,null,null,null,null,null,{"$f":"_xlfn.IFNA((VLOOKUP($B2168,Lists!$C$2:$D$13,2,FALSE)),\"\")","v":""}]
[null,null,null,null,null,null,null,null,null,null,{"$f":"_xlfn.IFNA((VLOOKUP($B2169,Lists!$C$2:$D$13,2,FALSE)),\"\")","v":""}]
[null,null,null,null,null,null,null,null,null,null,{"$f":"_xlfn.IFNA((VLOOKUP($B2170,Lists!$C$2:$D$13,2,FALSE)),\"\")","v":""}]
[null,null,null,null,null,null,null,null,null,null,{"$f":"_xlfn.IFNA((VLOOKUP($B2171,Lists!$C$2:$D$13,2,FALSE)),\"\")","v":""}]
[null,null,null,null,null,null,null,null,null,null,{"$f":"_xlfn.IFNA((VLOOKUP($B2172,Lists!$C$2:$D$13,2,FALSE)),\"\")","v":""}]
[null,null,null,null,null,null,null,null,null,null,{"$f":"_xlfn.IFNA((VLOOKUP($B2173,Lists!$C$2:$D$13,2,FALSE)),\"\")","v":""}]
[null,null,null,null,null,null,null,null,null,null,{"$f":"_xlfn.IFNA((VLOOKUP($B2174,Lists!$C$2:$D$13,2,FALSE)),\"\")","v":""}]
[null,null,null,null,null,null,null,null,null,null,{"$f":"_xlfn.IFNA((VLOOKUP($B2175,Lists!$C$2:$D$13,2,FALSE)),\"\")","v":""}]
[null,null,null,null,null,null,null,null,null,null,{"$f":"_xlfn.IFNA((VLOOKUP($B2176,Lists!$C$2:$D$13,2,FALSE)),\"\")","v":""}]
[null,null,null,null,null,null,null,null,null,null,{"$f":"_xlfn.IFNA((VLOOKUP($B2177,Lists!$C$2:$D$13,2,FALSE)),\"\")","v":""}]
[null,null,null,null,null,null,null,null,null,null,{"$f":"_xlfn.IFNA((VLOOKUP($B2178,Lists!$C$2:$D$13,2,FALSE)),\"\")","v":""}]
[null,null,null,null,null,null,null,null,null,null,{"$f":"_xlfn.IFNA((VLOOKUP($B2179,Lists!$C$2:$D$13,2,FALSE)),\"\")","v":""}]
[null,null,null,null,null,null,null,null,null,null,{"$f":"_xlfn.IFNA((VLOOKUP($B2180,Lists!$C$2:$D$13,2,FALSE)),\"\")","v":""}]
[null,null,null,null,null,null,null,null,null,null,{"$f":"_xlfn.IFNA((VLOOKUP($B2181,Lists!$C$2:$D$13,2,FALSE)),\"\")","v":""}]
[null,null,null,null,null,null,null,null,null,null,{"$f":"_xlfn.IFNA((VLOOKUP($B2182,Lists!$C$2:$D$13,2,FALSE)),\"\")","v":""}]
[null,null,null,null,null,null,null,null,null,null,{"$f":"_xlfn.IFNA((VLOOKUP($B2183,Lists!$C$2:$D$13,2,FALSE)),\"\")","v":""}]
[null,null,null,null,null,null,null,null,null,null,{"$f":"_xlfn.IFNA((VLOOKUP($B2184,Lists!$C$2:$D$13,2,FALSE)),\"\")","v":""}]
[null,null,null,null,null,null,null,null,null,null,{"$f":"_xlfn.IFNA((VLOOKUP($B2185,Lists!$C$2:$D$13,2,FALSE)),\"\")","v":""}]
[null,null,null,null,null,null,null,null,null,null,{"$f":"_xlfn.IFNA((VLOOKUP($B2186,Lists!$C$2:$D$13,2,FALSE)),\"\")","v":""}]
[null,null,null,null,null,null,null,null,null,null,{"$f":"_xlfn.IFNA((VLOOKUP($B2187,Lists!$C$2:$D$13,2,FALSE)),\"\")","v":""}]
[null,null,null,null,null,null,null,null,null,null,{"$f":"_xlfn.IFNA((VLOOKUP($B2188,Lists!$C$2:$D$13,2,FALSE)),\"\")","v":""}]
[null,null,null,null,null,null,null,null,null,null,{"$f":"_xlfn.IFNA((VLOOKUP($B2189,Lists!$C$2:$D$13,2,FALSE)),\"\")","v":""}]
[null,null,null,null,null,null,null,null,null,null,{"$f":"_xlfn.IFNA((VLOOKUP($B2190,Lists!$C$2:$D$13,2,FALSE)),\"\")","v":""}]
[null,null,null,null,null,null,null,null,null,null,{"$f":"_xlfn.IFNA((VLOOKUP($B2191,Lists!$C$2:$D$13,2,FALSE)),\"\")","v":""}]
[null,null,null,null,null,null,null,null,null,null,{"$f":"_xlfn.IFNA((VLOOKUP($B2192,Lists!$C$2:$D$13,2,FALSE)),\"\")","v":""}]
[null,null,null,null,null,null,null,null,null,null,{"$f":"_xlfn.IFNA((VLOOKUP($B2193,Lists!$C$2:$D$13,2,FALSE)),\"\")","v":""}]
[null,null,null,null,null,null,null,null,null,null,{"$f":"_xlfn.IFNA((VLOOKUP($B2194,Lists!$C$2:$D$13,2,FALSE)),\"\")","v":""}]
[null,null,null,null,null,null,null,null,null,null,{"$f":"_xlfn.IFNA((VLOOKUP($B2195,Lists!$C$2:$D$13,2,FALSE)),\"\")","v":""}]
[null,null,null,null,null,null,null,null,null,null,{"$f":"_xlfn.IFNA((VLOOKUP($B2196,Lists!$C$2:$D$13,2,FALSE)),\"\")","v":""}]
[null,null,null,null,null,null,null,null,null,null,{"$f":"_xlfn.IFNA((VLOOKUP($B2197,Lists!$C$2:$D$13,2,FALSE)),\"\")","v":""}]
[null,null,null,null,null,null,null,null,null,null,{"$f":"_xlfn.IFNA((VLOOKUP($B2198,Lists!$C$2:$D$13,2,FALSE)),\"\")","v":""}]
[null,null,null,null,null,null,null,null,null,null,{"$f":"_xlfn.IFNA((VLOOKUP($B2199,Lists!$C$2:$D$13,2,FALSE)),\"\")","v":""}]
[null,null,null,null,null,null,null,null,null,null,{"$f":"_xlfn.IFNA((VLOOKUP($B2200,Lists!$C$2:$D$13,2,FALSE)),\"\")","v":""}]
[null,null,null,null,null,null,null,null,null,null,{"$f":"_xlfn.IFNA((VLOOKUP($B2201,Lists!$C$2:$D$13,2,FALSE)),\"\")","v":""}]
[null,null,null,null,null,null,null,null,null,null,{"$f":"_xlfn.IFNA((VLOOKUP($B2202,Lists!$C$2:$D$13,2,FALSE)),\"\")","v":""}]
[null,null,null,null,null,null,null,null,null,null,{"$f":"_xlfn.IFNA((VLOOKUP($B2203,Lists!$C$2:$D$13,2,FALSE)),\"\")","v":""}]
[null,null,null,null,null,null,null,null,null,null,{"$f":"_xlfn.IFNA((VLOOKUP($B2204,Lists!$C$2:$D$13,2,FALSE)),\"\")","v":""}]
[null,null,null,null,null,null,null,null,null,null,{"$f":"_xlfn.IFNA((VLOOKUP($B2205,Lists!$C$2:$D$13,2,FALSE)),\"\")","v":""}]
[null,null,null,null,null,null,null,null,null,null,{"$f":"_xlfn.IFNA((VLOOKUP($B2206,Lists!$C$2:$D$13,2,FALSE)),\"\")","v":""}]
[null,null,null,null,null,null,null,null,null,null,{"$f":"_xlfn.IFNA((VLOOKUP($B2207,Lists!$C$2:$D$13,2,FALSE)),\"\")","v":""}]
[null,null,null,null,null,null,null,null,null,null,{"$f":"_xlfn.IFNA((VLOOKUP($B2208,Lists!$C$2:$D$13,2,FALSE)),\"\")","v":""}]
[null,null,null,null,null,null,null,null,null,null,{"$f":"_xlfn.IFNA((VLOOKUP($B2209,Lists!$C$2:$D$13,2,FALSE)),\"\")","v":""}]
[null,null,null,null,null,null,null,null,null,null,{"$f":"_xlfn.IFNA((VLOOKUP($B2210,Lists!$C$2:$D$13,2,FALSE)),\"\")","v":""}]
[null,null,null,null,null,null,null,null,null,null,{"$f":"_xlfn.IFNA((VLOOKUP($B2211,Lists!$C$2:$D$13,2,FALSE)),\"\")","v":""}]
[null,null,null,null,null,null,null,null,null,null,{"$f":"_xlfn.IFNA((VLOOKUP($B2212,Lists!$C$2:$D$13,2,FALSE)),\"\")","v":""}]
[null,null,null,null,null,null,null,null,null,null,{"$f":"_xlfn.IFNA((VLOOKUP($B2213,Lists!$C$2:$D$13,2,FALSE)),\"\")","v":""}]
[null,null,null,null,null,null,null,null,null,null,{"$f":"_xlfn.IFNA((VLOOKUP($B2214,Lists!$C$2:$D$13,2,FALSE)),\"\")","v":""}]
[null,null,null,null,null,null,null,null,null,null,{"$f":"_xlfn.IFNA((VLOOKUP($B2215,Lists!$C$2:$D$13,2,FALSE)),\"\")","v":""}]
[null,null,null,null,null,null,null,null,null,null,{"$f":"_xlfn.IFNA((VLOOKUP($B2216,Lists!$C$2:$D$13,2,FALSE)),\"\")","v":""}]
[null,null,null,null,null,null,null,null,null,null,{"$f":"_xlfn.IFNA((VLOOKUP($B2217,Lists!$C$2:$D$13,2,FALSE)),\"\")","v":""}]
[null,null,null,null,null,null,null,null,null,null,{"$f":"_xlfn.IFNA((VLOOKUP($B2218,Lists!$C$2:$D$13,2,FALSE)),\"\")","v":""}]
[null,null,null,null,null,null,null,null,null,null,{"$f":"_xlfn.IFNA((VLOOKUP($B2219,Lists!$C$2:$D$13,2,FALSE)),\"\")","v":""}]
[null,null,null,null,null,null,null,null,null,null,{"$f":"_xlfn.IFNA((VLOOKUP($B2220,Lists!$C$2:$D$13,2,FALSE)),\"\")","v":""}]
[null,null,null,null,null,null,null,null,null,null,{"$f":"_xlfn.IFNA((VLOOKUP($B2221,Lists!$C$2:$D$13,2,FALSE)),\"\")","v":""}]
[null,null,null,null,null,null,null,null,null,null,{"$f":"_xlfn.IFNA((VLOOKUP($B2222,Lists!$C$2:$D$13,2,FALSE)),\"\")","v":""}]
[null,null,null,null,null,null,null,null,null,null,{"$f":"_xlfn.IFNA((VLOOKUP($B2223,Lists!$C$2:$D$13,2,FALSE)),\"\")","v":""}]
[null,null,null,null,null,null,null,null,null,null,{"$f":"_xlfn.IFNA((VLOOKUP($B2224,Lists!$C$2:$D$13,2,FALSE)),\"\")","v":""}]
[null,null,null,null,null,null,null,null,null,null,{"$f":"_xlfn.IFNA((VLOOKUP($B2225,Lists!$C$2:$D$13,2,FALSE)),\"\")","v":""}]
[null,null,null,null,null,null,null,null,null,null,{"$f":"_xlfn.IFNA((VLOOKUP($B2226,Lists!$C$2:$D$13,2,FALSE)),\"\")","v":""}]
[null,null,null,null,null,null,null,null,null,null,{"$f":"_xlfn.IFNA((VLOOKUP($B2227,Lists!$C$2:$D$13,2,FALSE)),\"\")","v":""}]
[null,null,null,null,null,null,null,null,null,null,{"$f":"_xlfn.IFNA((VLOOKUP($B2228,Lists!$C$2:$D$13,2,FALSE)),\"\")","v":""}]
[null,null,null,null,null,null,null,null,null,null,{"$f":"_xlfn.IFNA((VLOOKUP($B2229,Lists!$C$2:$D$13,2,FALSE)),\"\")","v":""}]
[null,null,null,null,null,null,null,null,null,null,{"$f":"_xlfn.IFNA((VLOOKUP($B2230,Lists!$C$2:$D$13,2,FALSE)),\"\")","v":""}]
[null,null,null,null,null,null,null,null,null,null,{"$f":"_xlfn.IFNA((VLOOKUP($B2231,Lists!$C$2:$D$13,2,FALSE)),\"\")","v":""}]
[null,null,null,null,null,null,null,null,null,null,{"$f":"_xlfn.IFNA((VLOOKUP($B2232,Lists!$C$2:$D$13,2,FALSE)),\"\")","v":""}]
[null,null,null,null,null,null,null,null,null,null,{"$f":"_xlfn.IFNA((VLOOKUP($B2233,Lists!$C$2:$D$13,2,FALSE)),\"\")","v":""}]
[null,null,null,null,null,null,null,null,null,null,{"$f":"_xlfn.IFNA((VLOOKUP($B2234,Lists!$C$2:$D$13,2,FALSE)),\"\")","v":""}]
[null,null,null,null,null,null,null,null,null,null,{"$f":"_xlfn.IFNA((VLOOKUP($B2235,Lists!$C$2:$D$13,2,FALSE)),\"\")","v":""}]
[null,null,null,null,null,null,null,null,null,null,{"$f":"_xlfn.IFNA((VLOOKUP($B2236,Lists!$C$2:$D$13,2,FALSE)),\"\")","v":""}]
[null,null,null,null,null,null,null,null,null,null,{"$f":"_xlfn.IFNA((VLOOKUP($B2237,Lists!$C$2:$D$13,2,FALSE)),\"\")","v":""}]
[null,null,null,null,null,null,null,null,null,null,{"$f":"_xlfn.IFNA((VLOOKUP($B2238,Lists!$C$2:$D$13,2,FALSE)),\"\")","v":""}]
[null,null,null,null,null,null,null,null,null,null,{"$f":"_xlfn.IFNA((VLOOKUP($B2239,Lists!$C$2:$D$13,2,FALSE)),\"\")","v":""}]
[null,null,null,null,null,null,null,null,null,null,{"$f":"_xlfn.IFNA((VLOOKUP($B2240,Lists!$C$2:$D$13,2,FALSE)),\"\")","v":""}]
[null,null,null,null,null,null,null,null,null,null,{"$f":"_xlfn.IFNA((VLOOKUP($B2241,Lists!$C$2:$D$13,2,FALSE)),\"\")","v":""}]
[null,null,null,null,null,null,null,null,null,null,{"$f":"_xlfn.IFNA((VLOOKUP($B2242,Lists!$C$2:$D$13,2,FALSE)),\"\")","v":""}]
[null,null,null,null,null,null,null,null,null,null,{"$f":"_xlfn.IFNA((VLOOKUP($B2243,Lists!$C$2:$D$13,2,FALSE)),\"\")","v":""}]
[null,null,null,null,null,null,null,null,null,null,{"$f":"_xlfn.IFNA((VLOOKUP($B2244,Lists!$C$2:$D$13,2,FALSE)),\"\")","v":""}]
[null,null,null,null,null,null,null,null,null,null,{"$f":"_xlfn.IFNA((VLOOKUP($B2245,Lists!$C$2:$D$13,2,FALSE)),\"\")","v":""}]
[null,null,null,null,null,null,null,null,null,null,{"$f":"_xlfn.IFNA((VLOOKUP($B2246,Lists!$C$2:$D$13,2,FALSE)),\"\")","v":""}]
[null,null,null,null,null,null,null,null,null,null,{"$f":"_xlfn.IFNA((VLOOKUP($B2247,Lists!$C$2:$D$13,2,FALSE)),\"\")","v":""}]
[null,null,null,null,null,null,null,null,null,null,{"$f":"_xlfn.IFNA((VLOOKUP($B2248,Lists!$C$2:$D$13,2,FALSE)),\"\")","v":""}]
[null,null,null,null,null,null,null,null,null,null,{"$f":"_xlfn.IFNA((VLOOKUP($B2249,Lists!$C$2:$D$13,2,FALSE)),\"\")","v":""}]
[null,null,null,null,null,null,null,null,null,null,{"$f":"_xlfn.IFNA((VLOOKUP($B2250,Lists!$C$2:$D$13,2,FALSE)),\"\")","v":""}]
[null,null,null,null,null,null,null,null,null,null,{"$f":"_xlfn.IFNA((VLOOKUP($B2251,Lists!$C$2:$D$13,2,FALSE)),\"\")","v":""}]
[null,null,null,null,null,null,null,null,null,null,{"$f":"_xlfn.IFNA((VLOOKUP($B2252,Lists!$C$2:$D$13,2,FALSE)),\"\")","v":""}]
[null,null,null,null,null,null,null,null,null,null,{"$f":"_xlfn.IFNA((VLOOKUP($B2253,Lists!$C$2:$D$13,2,FALSE)),\"\")","v":""}]
[null,null,null,null,null,null,null,null,null,null,{"$f":"_xlfn.IFNA((VLOOKUP($B2254,Lists!$C$2:$D$13,2,FALSE)),\"\")","v":""}]
[null,null,null,null,null,null,null,null,null,null,{"$f":"_xlfn.IFNA((VLOOKUP($B2255,Lists!$C$2:$D$13,2,FALSE)),\"\")","v":""}]
[null,null,null,null,null,null,null,null,null,null,{"$f":"_xlfn.IFNA((VLOOKUP($B2256,Lists!$C$2:$D$13,2,FALSE)),\"\")","v":""}]
[null,null,null,null,null,null,null,null,null,null,{"$f":"_xlfn.IFNA((VLOOKUP($B2257,Lists!$C$2:$D$13,2,FALSE)),\"\")","v":""}]
[null,null,null,null,null,null,null,null,null,null,{"$f":"_xlfn.IFNA((VLOOKUP($B2258,Lists!$C$2:$D$13,2,FALSE)),\"\")","v":""}]
[null,null,null,null,null,null,null,null,null,null,{"$f":"_xlfn.IFNA((VLOOKUP($B2259,Lists!$C$2:$D$13,2,FALSE)),\"\")","v":""}]
[null,null,null,null,null,null,null,null,null,null,{"$f":"_xlfn.IFNA((VLOOKUP($B2260,Lists!$C$2:$D$13,2,FALSE)),\"\")","v":""}]
[null,null,null,null,null,null,null,null,null,null,{"$f":"_xlfn.IFNA((VLOOKUP($B2261,Lists!$C$2:$D$13,2,FALSE)),\"\")","v":""}]
[null,null,null,null,null,null,null,null,null,null,{"$f":"_xlfn.IFNA((VLOOKUP($B2262,Lists!$C$2:$D$13,2,FALSE)),\"\")","v":""}]
[null,null,null,null,null,null,null,null,null,null,{"$f":"_xlfn.IFNA((VLOOKUP($B2263,Lists!$C$2:$D$13,2,FALSE)),\"\")","v":""}]
[null,null,null,null,null,null,null,null,null,null,{"$f":"_xlfn.IFNA((VLOOKUP($B2264,Lists!$C$2:$D$13,2,FALSE)),\"\")","v":""}]
[null,null,null,null,null,null,null,null,null,null,{"$f":"_xlfn.IFNA((VLOOKUP($B2265,Lists!$C$2:$D$13,2,FALSE)),\"\")","v":""}]
[null,null,null,null,null,null,null,null,null,null,{"$f":"_xlfn.IFNA((VLOOKUP($B2266,Lists!$C$2:$D$13,2,FALSE)),\"\")","v":""}]
[null,null,null,null,null,null,null,null,null,null,{"$f":"_xlfn.IFNA((VLOOKUP($B2267,Lists!$C$2:$D$13,2,FALSE)),\"\")","v":""}]
[null,null,null,null,null,null,null,null,null,null,{"$f":"_xlfn.IFNA((VLOOKUP($B2268,Lists!$C$2:$D$13,2,FALSE)),\"\")","v":""}]
[null,null,null,null,null,null,null,null,null,null,{"$f":"_xlfn.IFNA((VLOOKUP($B2269,Lists!$C$2:$D$13,2,FALSE)),\"\")","v":""}]
[null,null,null,null,null,null,null,null,null,null,{"$f":"_xlfn.IFNA((VLOOKUP($B2270,Lists!$C$2:$D$13,2,FALSE)),\"\")","v":""}]
[null,null,null,null,null,null,null,null,null,null,{"$f":"_xlfn.IFNA((VLOOKUP($B2271,Lists!$C$2:$D$13,2,FALSE)),\"\")","v":""}]
[null,null,null,null,null,null,null,null,null,null,{"$f":"_xlfn.IFNA((VLOOKUP($B2272,Lists!$C$2:$D$13,2,FALSE)),\"\")","v":""}]
[null,null,null,null,null,null,null,null,null,null,{"$f":"_xlfn.IFNA((VLOOKUP($B2273,Lists!$C$2:$D$13,2,FALSE)),\"\")","v":""}]
[null,null,null,null,null,null,null,null,null,null,{"$f":"_xlfn.IFNA((VLOOKUP($B2274,Lists!$C$2:$D$13,2,FALSE)),\"\")","v":""}]
[null,null,null,null,null,null,null,null,null,null,{"$f":"_xlfn.IFNA((VLOOKUP($B2275,Lists!$C$2:$D$13,2,FALSE)),\"\")","v":""}]
[null,null,null,null,null,null,null,null,null,null,{"$f":"_xlfn.IFNA((VLOOKUP($B2276,Lists!$C$2:$D$13,2,FALSE)),\"\")","v":""}]
[null,null,null,null,null,null,null,null,null,null,{"$f":"_xlfn.IFNA((VLOOKUP($B2277,Lists!$C$2:$D$13,2,FALSE)),\"\")","v":""}]
[null,null,null,null,null,null,null,null,null,null,{"$f":"_xlfn.IFNA((VLOOKUP($B2278,Lists!$C$2:$D$13,2,FALSE)),\"\")","v":""}]
[null,null,null,null,null,null,null,null,null,null,{"$f":"_xlfn.IFNA((VLOOKUP($B2279,Lists!$C$2:$D$13,2,FALSE)),\"\")","v":""}]
[null,null,null,null,null,null,null,null,null,null,{"$f":"_xlfn.IFNA((VLOOKUP($B2280,Lists!$C$2:$D$13,2,FALSE)),\"\")","v":""}]
[null,null,null,null,null,null,null,null,null,null,{"$f":"_xlfn.IFNA((VLOOKUP($B2281,Lists!$C$2:$D$13,2,FALSE)),\"\")","v":""}]
[null,null,null,null,null,null,null,null,null,null,{"$f":"_xlfn.IFNA((VLOOKUP($B2282,Lists!$C$2:$D$13,2,FALSE)),\"\")","v":""}]
[null,null,null,null,null,null,null,null,null,null,{"$f":"_xlfn.IFNA((VLOOKUP($B2283,Lists!$C$2:$D$13,2,FALSE)),\"\")","v":""}]
[null,null,null,null,null,null,null,null,null,null,{"$f":"_xlfn.IFNA((VLOOKUP($B2284,Lists!$C$2:$D$13,2,FALSE)),\"\")","v":""}]
[null,null,null,null,null,null,null,null,null,null,{"$f":"_xlfn.IFNA((VLOOKUP($B2285,Lists!$C$2:$D$13,2,FALSE)),\"\")","v":""}]
[null,null,null,null,null,null,null,null,null,null,{"$f":"_xlfn.IFNA((VLOOKUP($B2286,Lists!$C$2:$D$13,2,FALSE)),\"\")","v":""}]
[null,null,null,null,null,null,null,null,null,null,{"$f":"_xlfn.IFNA((VLOOKUP($B2287,Lists!$C$2:$D$13,2,FALSE)),\"\")","v":""}]
[null,null,null,null,null,null,null,null,null,null,{"$f":"_xlfn.IFNA((VLOOKUP($B2288,Lists!$C$2:$D$13,2,FALSE)),\"\")","v":""}]
[null,null,null,null,null,null,null,null,null,null,{"$f":"_xlfn.IFNA((VLOOKUP($B2289,Lists!$C$2:$D$13,2,FALSE)),\"\")","v":""}]
[null,null,null,null,null,null,null,null,null,null,{"$f":"_xlfn.IFNA((VLOOKUP($B2290,Lists!$C$2:$D$13,2,FALSE)),\"\")","v":""}]
[null,null,null,null,null,null,null,null,null,null,{"$f":"_xlfn.IFNA((VLOOKUP($B2291,Lists!$C$2:$D$13,2,FALSE)),\"\")","v":""}]
[null,null,null,null,null,null,null,null,null,null,{"$f":"_xlfn.IFNA((VLOOKUP($B2292,Lists!$C$2:$D$13,2,FALSE)),\"\")","v":""}]
[null,null,null,null,null,null,null,null,null,null,{"$f":"_xlfn.IFNA((VLOOKUP($B2293,Lists!$C$2:$D$13,2,FALSE)),\"\")","v":""}]
[null,null,null,null,null,null,null,null,null,null,{"$f":"_xlfn.IFNA((VLOOKUP($B2294,Lists!$C$2:$D$13,2,FALSE)),\"\")","v":""}]
[null,null,null,null,null,null,null,null,null,null,{"$f":"_xlfn.IFNA((VLOOKUP($B2295,Lists!$C$2:$D$13,2,FALSE)),\"\")","v":""}]
[null,null,null,null,null,null,null,null,null,null,{"$f":"_xlfn.IFNA((VLOOKUP($B2296,Lists!$C$2:$D$13,2,FALSE)),\"\")","v":""}]
[null,null,null,null,null,null,null,null,null,null,{"$f":"_xlfn.IFNA((VLOOKUP($B2297,Lists!$C$2:$D$13,2,FALSE)),\"\")","v":""}]
[null,null,null,null,null,null,null,null,null,null,{"$f":"_xlfn.IFNA((VLOOKUP($B2298,Lists!$C$2:$D$13,2,FALSE)),\"\")","v":""}]
[null,null,null,null,null,null,null,null,null,null,{"$f":"_xlfn.IFNA((VLOOKUP($B2299,Lists!$C$2:$D$13,2,FALSE)),\"\")","v":""}]
[null,null,null,null,null,null,null,null,null,null,{"$f":"_xlfn.IFNA((VLOOKUP($B2300,Lists!$C$2:$D$13,2,FALSE)),\"\")","v":""}]
[null,null,null,null,null,null,null,null,null,null,{"$f":"_xlfn.IFNA((VLOOKUP($B2301,Lists!$C$2:$D$13,2,FALSE)),\"\")","v":""}]
[null,null,null,null,null,null,null,null,null,null,{"$f":"_xlfn.IFNA((VLOOKUP($B2302,Lists!$C$2:$D$13,2,FALSE)),\"\")","v":""}]
[null,null,null,null,null,null,null,null,null,null,{"$f":"_xlfn.IFNA((VLOOKUP($B2303,Lists!$C$2:$D$13,2,FALSE)),\"\")","v":""}]
[null,null,null,null,null,null,null,null,null,null,{"$f":"_xlfn.IFNA((VLOOKUP($B2304,Lists!$C$2:$D$13,2,FALSE)),\"\")","v":""}]
[null,null,null,null,null,null,null,null,null,null,{"$f":"_xlfn.IFNA((VLOOKUP($B2305,Lists!$C$2:$D$13,2,FALSE)),\"\")","v":""}]
[null,null,null,null,null,null,null,null,null,null,{"$f":"_xlfn.IFNA((VLOOKUP($B2306,Lists!$C$2:$D$13,2,FALSE)),\"\")","v":""}]
[null,null,null,null,null,null,null,null,null,null,{"$f":"_xlfn.IFNA((VLOOKUP($B2307,Lists!$C$2:$D$13,2,FALSE)),\"\")","v":""}]
[null,null,null,null,null,null,null,null,null,null,{"$f":"_xlfn.IFNA((VLOOKUP($B2308,Lists!$C$2:$D$13,2,FALSE)),\"\")","v":""}]
[null,null,null,null,null,null,null,null,null,null,{"$f":"_xlfn.IFNA((VLOOKUP($B2309,Lists!$C$2:$D$13,2,FALSE)),\"\")","v":""}]
[null,null,null,null,null,null,null,null,null,null,{"$f":"_xlfn.IFNA((VLOOKUP($B2310,Lists!$C$2:$D$13,2,FALSE)),\"\")","v":""}]
[null,null,null,null,null,null,null,null,null,null,{"$f":"_xlfn.IFNA((VLOOKUP($B2311,Lists!$C$2:$D$13,2,FALSE)),\"\")","v":""}]
[null,null,null,null,null,null,null,null,null,null,{"$f":"_xlfn.IFNA((VLOOKUP($B2312,Lists!$C$2:$D$13,2,FALSE)),\"\")","v":""}]
[null,null,null,null,null,null,null,null,null,null,{"$f":"_xlfn.IFNA((VLOOKUP($B2313,Lists!$C$2:$D$13,2,FALSE)),\"\")","v":""}]
[null,null,null,null,null,null,null,null,null,null,{"$f":"_xlfn.IFNA((VLOOKUP($B2314,Lists!$C$2:$D$13,2,FALSE)),\"\")","v":""}]
[null,null,null,null,null,null,null,null,null,null,{"$f":"_xlfn.IFNA((VLOOKUP($B2315,Lists!$C$2:$D$13,2,FALSE)),\"\")","v":""}]
[null,null,null,null,null,null,null,null,null,null,{"$f":"_xlfn.IFNA((VLOOKUP($B2316,Lists!$C$2:$D$13,2,FALSE)),\"\")","v":""}]
[null,null,null,null,null,null,null,null,null,null,{"$f":"_xlfn.IFNA((VLOOKUP($B2317,Lists!$C$2:$D$13,2,FALSE)),\"\")","v":""}]
[null,null,null,null,null,null,null,null,null,null,{"$f":"_xlfn.IFNA((VLOOKUP($B2318,Lists!$C$2:$D$13,2,FALSE)),\"\")","v":""}]
[null,null,null,null,null,null,null,null,null,null,{"$f":"_xlfn.IFNA((VLOOKUP($B2319,Lists!$C$2:$D$13,2,FALSE)),\"\")","v":""}]
[null,null,null,null,null,null,null,null,null,null,{"$f":"_xlfn.IFNA((VLOOKUP($B2320,Lists!$C$2:$D$13,2,FALSE)),\"\")","v":""}]
[null,null,null,null,null,null,null,null,null,null,{"$f":"_xlfn.IFNA((VLOOKUP($B2321,Lists!$C$2:$D$13,2,FALSE)),\"\")","v":""}]
[null,null,null,null,null,null,null,null,null,null,{"$f":"_xlfn.IFNA((VLOOKUP($B2322,Lists!$C$2:$D$13,2,FALSE)),\"\")","v":""}]
[null,null,null,null,null,null,null,null,null,null,{"$f":"_xlfn.IFNA((VLOOKUP($B2323,Lists!$C$2:$D$13,2,FALSE)),\"\")","v":""}]
[null,null,null,null,null,null,null,null,null,null,{"$f":"_xlfn.IFNA((VLOOKUP($B2324,Lists!$C$2:$D$13,2,FALSE)),\"\")","v":""}]
[null,null,null,null,null,null,null,null,null,null,{"$f":"_xlfn.IFNA((VLOOKUP($B2325,Lists!$C$2:$D$13,2,FALSE)),\"\")","v":""}]
[null,null,null,null,null,null,null,null,null,null,{"$f":"_xlfn.IFNA((VLOOKUP($B2326,Lists!$C$2:$D$13,2,FALSE)),\"\")","v":""}]
[null,null,null,null,null,null,null,null,null,null,{"$f":"_xlfn.IFNA((VLOOKUP($B2327,Lists!$C$2:$D$13,2,FALSE)),\"\")","v":""}]
[null,null,null,null,null,null,null,null,null,null,{"$f":"_xlfn.IFNA((VLOOKUP($B2328,Lists!$C$2:$D$13,2,FALSE)),\"\")","v":""}]
[null,null,null,null,null,null,null,null,null,null,{"$f":"_xlfn.IFNA((VLOOKUP($B2329,Lists!$C$2:$D$13,2,FALSE)),\"\")","v":""}]
[null,null,null,null,null,null,null,null,null,null,{"$f":"_xlfn.IFNA((VLOOKUP($B2330,Lists!$C$2:$D$13,2,FALSE)),\"\")","v":""}]
[null,null,null,null,null,null,null,null,null,null,{"$f":"_xlfn.IFNA((VLOOKUP($B2331,Lists!$C$2:$D$13,2,FALSE)),\"\")","v":""}]
[null,null,null,null,null,null,null,null,null,null,{"$f":"_xlfn.IFNA((VLOOKUP($B2332,Lists!$C$2:$D$13,2,FALSE)),\"\")","v":""}]
[null,null,null,null,null,null,null,null,null,null,{"$f":"_xlfn.IFNA((VLOOKUP($B2333,Lists!$C$2:$D$13,2,FALSE)),\"\")","v":""}]
[null,null,null,null,null,null,null,null,null,null,{"$f":"_xlfn.IFNA((VLOOKUP($B2334,Lists!$C$2:$D$13,2,FALSE)),\"\")","v":""}]
[null,null,null,null,null,null,null,null,null,null,{"$f":"_xlfn.IFNA((VLOOKUP($B2335,Lists!$C$2:$D$13,2,FALSE)),\"\")","v":""}]
[null,null,null,null,null,null,null,null,null,null,{"$f":"_xlfn.IFNA((VLOOKUP($B2336,Lists!$C$2:$D$13,2,FALSE)),\"\")","v":""}]
[null,null,null,null,null,null,null,null,null,null,{"$f":"_xlfn.IFNA((VLOOKUP($B2337,Lists!$C$2:$D$13,2,FALSE)),\"\")","v":""}]
[null,null,null,null,null,null,null,null,null,null,{"$f":"_xlfn.IFNA((VLOOKUP($B2338,Lists!$C$2:$D$13,2,FALSE)),\"\")","v":""}]
[null,null,null,null,null,null,null,null,null,null,{"$f":"_xlfn.IFNA((VLOOKUP($B2339,Lists!$C$2:$D$13,2,FALSE)),\"\")","v":""}]
[null,null,null,null,null,null,null,null,null,null,{"$f":"_xlfn.IFNA((VLOOKUP($B2340,Lists!$C$2:$D$13,2,FALSE)),\"\")","v":""}]
[null,null,null,null,null,null,null,null,null,null,{"$f":"_xlfn.IFNA((VLOOKUP($B2341,Lists!$C$2:$D$13,2,FALSE)),\"\")","v":""}]
[null,null,null,null,null,null,null,null,null,null,{"$f":"_xlfn.IFNA((VLOOKUP($B2342,Lists!$C$2:$D$13,2,FALSE)),\"\")","v":""}]
[null,null,null,null,null,null,null,null,null,null,{"$f":"_xlfn.IFNA((VLOOKUP($B2343,Lists!$C$2:$D$13,2,FALSE)),\"\")","v":""}]
[null,null,null,null,null,null,null,null,null,null,{"$f":"_xlfn.IFNA((VLOOKUP($B2344,Lists!$C$2:$D$13,2,FALSE)),\"\")","v":""}]
[null,null,null,null,null,null,null,null,null,null,{"$f":"_xlfn.IFNA((VLOOKUP($B2345,Lists!$C$2:$D$13,2,FALSE)),\"\")","v":""}]
[null,null,null,null,null,null,null,null,null,null,{"$f":"_xlfn.IFNA((VLOOKUP($B2346,Lists!$C$2:$D$13,2,FALSE)),\"\")","v":""}]
[null,null,null,null,null,null,null,null,null,null,{"$f":"_xlfn.IFNA((VLOOKUP($B2347,Lists!$C$2:$D$13,2,FALSE)),\"\")","v":""}]
[null,null,null,null,null,null,null,null,null,null,{"$f":"_xlfn.IFNA((VLOOKUP($B2348,Lists!$C$2:$D$13,2,FALSE)),\"\")","v":""}]
[null,null,null,null,null,null,null,null,null,null,{"$f":"_xlfn.IFNA((VLOOKUP($B2349,Lists!$C$2:$D$13,2,FALSE)),\"\")","v":""}]
[null,null,null,null,null,null,null,null,null,null,{"$f":"_xlfn.IFNA((VLOOKUP($B2350,Lists!$C$2:$D$13,2,FALSE)),\"\")","v":""}]
[null,null,null,null,null,null,null,null,null,null,{"$f":"_xlfn.IFNA((VLOOKUP($B2351,Lists!$C$2:$D$13,2,FALSE)),\"\")","v":""}]
[null,null,null,null,null,null,null,null,null,null,{"$f":"_xlfn.IFNA((VLOOKUP($B2352,Lists!$C$2:$D$13,2,FALSE)),\"\")","v":""}]
[null,null,null,null,null,null,null,null,null,null,{"$f":"_xlfn.IFNA((VLOOKUP($B2353,Lists!$C$2:$D$13,2,FALSE)),\"\")","v":""}]
[null,null,null,null,null,null,null,null,null,null,{"$f":"_xlfn.IFNA((VLOOKUP($B2354,Lists!$C$2:$D$13,2,FALSE)),\"\")","v":""}]
[null,null,null,null,null,null,null,null,null,null,{"$f":"_xlfn.IFNA((VLOOKUP($B2355,Lists!$C$2:$D$13,2,FALSE)),\"\")","v":""}]
[null,null,null,null,null,null,null,null,null,null,{"$f":"_xlfn.IFNA((VLOOKUP($B2356,Lists!$C$2:$D$13,2,FALSE)),\"\")","v":""}]
[null,null,null,null,null,null,null,null,null,null,{"$f":"_xlfn.IFNA((VLOOKUP($B2357,Lists!$C$2:$D$13,2,FALSE)),\"\")","v":""}]
[null,null,null,null,null,null,null,null,null,null,{"$f":"_xlfn.IFNA((VLOOKUP($B2358,Lists!$C$2:$D$13,2,FALSE)),\"\")","v":""}]
[null,null,null,null,null,null,null,null,null,null,{"$f":"_xlfn.IFNA((VLOOKUP($B2359,Lists!$C$2:$D$13,2,FALSE)),\"\")","v":""}]
[null,null,null,null,null,null,null,null,null,null,{"$f":"_xlfn.IFNA((VLOOKUP($B2360,Lists!$C$2:$D$13,2,FALSE)),\"\")","v":""}]
[null,null,null,null,null,null,null,null,null,null,{"$f":"_xlfn.IFNA((VLOOKUP($B2361,Lists!$C$2:$D$13,2,FALSE)),\"\")","v":""}]
[null,null,null,null,null,null,null,null,null,null,{"$f":"_xlfn.IFNA((VLOOKUP($B2362,Lists!$C$2:$D$13,2,FALSE)),\"\")","v":""}]
[null,null,null,null,null,null,null,null,null,null,{"$f":"_xlfn.IFNA((VLOOKUP($B2363,Lists!$C$2:$D$13,2,FALSE)),\"\")","v":""}]
[null,null,null,null,null,null,null,null,null,null,{"$f":"_xlfn.IFNA((VLOOKUP($B2364,Lists!$C$2:$D$13,2,FALSE)),\"\")","v":""}]
[null,null,null,null,null,null,null,null,null,null,{"$f":"_xlfn.IFNA((VLOOKUP($B2365,Lists!$C$2:$D$13,2,FALSE)),\"\")","v":""}]
[null,null,null,null,null,null,null,null,null,null,{"$f":"_xlfn.IFNA((VLOOKUP($B2366,Lists!$C$2:$D$13,2,FALSE)),\"\")","v":""}]
[null,null,null,null,null,null,null,null,null,null,{"$f":"_xlfn.IFNA((VLOOKUP($B2367,Lists!$C$2:$D$13,2,FALSE)),\"\")","v":""}]
[null,null,null,null,null,null,null,null,null,null,{"$f":"_xlfn.IFNA((VLOOKUP($B2368,Lists!$C$2:$D$13,2,FALSE)),\"\")","v":""}]
[null,null,null,null,null,null,null,null,null,null,{"$f":"_xlfn.IFNA((VLOOKUP($B2369,Lists!$C$2:$D$13,2,FALSE)),\"\")","v":""}]
[null,null,null,null,null,null,null,null,null,null,{"$f":"_xlfn.IFNA((VLOOKUP($B2370,Lists!$C$2:$D$13,2,FALSE)),\"\")","v":""}]
[null,null,null,null,null,null,null,null,null,null,{"$f":"_xlfn.IFNA((VLOOKUP($B2371,Lists!$C$2:$D$13,2,FALSE)),\"\")","v":""}]
[null,null,null,null,null,null,null,null,null,null,{"$f":"_xlfn.IFNA((VLOOKUP($B2372,Lists!$C$2:$D$13,2,FALSE)),\"\")","v":""}]
[null,null,null,null,null,null,null,null,null,null,{"$f":"_xlfn.IFNA((VLOOKUP($B2373,Lists!$C$2:$D$13,2,FALSE)),\"\")","v":""}]
[null,null,null,null,null,null,null,null,null,null,{"$f":"_xlfn.IFNA((VLOOKUP($B2374,Lists!$C$2:$D$13,2,FALSE)),\"\")","v":""}]
[null,null,null,null,null,null,null,null,null,null,{"$f":"_xlfn.IFNA((VLOOKUP($B2375,Lists!$C$2:$D$13,2,FALSE)),\"\")","v":""}]
[null,null,null,null,null,null,null,null,null,null,{"$f":"_xlfn.IFNA((VLOOKUP($B2376,Lists!$C$2:$D$13,2,FALSE)),\"\")","v":""}]
[null,null,null,null,null,null,null,null,null,null,{"$f":"_xlfn.IFNA((VLOOKUP($B2377,Lists!$C$2:$D$13,2,FALSE)),\"\")","v":""}]
[null,null,null,null,null,null,null,null,null,null,{"$f":"_xlfn.IFNA((VLOOKUP($B2378,Lists!$C$2:$D$13,2,FALSE)),\"\")","v":""}]
[null,null,null,null,null,null,null,null,null,null,{"$f":"_xlfn.IFNA((VLOOKUP($B2379,Lists!$C$2:$D$13,2,FALSE)),\"\")","v":""}]
[null,null,null,null,null,null,null,null,null,null,{"$f":"_xlfn.IFNA((VLOOKUP($B2380,Lists!$C$2:$D$13,2,FALSE)),\"\")","v":""}]
[null,null,null,null,null,null,null,null,null,null,{"$f":"_xlfn.IFNA((VLOOKUP($B2381,Lists!$C$2:$D$13,2,FALSE)),\"\")","v":""}]
[null,null,null,null,null,null,null,null,null,null,{"$f":"_xlfn.IFNA((VLOOKUP($B2382,Lists!$C$2:$D$13,2,FALSE)),\"\")","v":""}]
[null,null,null,null,null,null,null,null,null,null,{"$f":"_xlfn.IFNA((VLOOKUP($B2383,Lists!$C$2:$D$13,2,FALSE)),\"\")","v":""}]
[null,null,null,null,null,null,null,null,null,null,{"$f":"_xlfn.IFNA((VLOOKUP($B2384,Lists!$C$2:$D$13,2,FALSE)),\"\")","v":""}]
[null,null,null,null,null,null,null,null,null,null,{"$f":"_xlfn.IFNA((VLOOKUP($B2385,Lists!$C$2:$D$13,2,FALSE)),\"\")","v":""}]
[null,null,null,null,null,null,null,null,null,null,{"$f":"_xlfn.IFNA((VLOOKUP($B2386,Lists!$C$2:$D$13,2,FALSE)),\"\")","v":""}]
[null,null,null,null,null,null,null,null,null,null,{"$f":"_xlfn.IFNA((VLOOKUP($B2387,Lists!$C$2:$D$13,2,FALSE)),\"\")","v":""}]
[null,null,null,null,null,null,null,null,null,null,{"$f":"_xlfn.IFNA((VLOOKUP($B2388,Lists!$C$2:$D$13,2,FALSE)),\"\")","v":""}]
[null,null,null,null,null,null,null,null,null,null,{"$f":"_xlfn.IFNA((VLOOKUP($B2389,Lists!$C$2:$D$13,2,FALSE)),\"\")","v":""}]
[null,null,null,null,null,null,null,null,null,null,{"$f":"_xlfn.IFNA((VLOOKUP($B2390,Lists!$C$2:$D$13,2,FALSE)),\"\")","v":""}]
[null,null,null,null,null,null,null,null,null,null,{"$f":"_xlfn.IFNA((VLOOKUP($B2391,Lists!$C$2:$D$13,2,FALSE)),\"\")","v":""}]
[null,null,null,null,null,null,null,null,null,null,{"$f":"_xlfn.IFNA((VLOOKUP($B2392,Lists!$C$2:$D$13,2,FALSE)),\"\")","v":""}]
[null,null,null,null,null,null,null,null,null,null,{"$f":"_xlfn.IFNA((VLOOKUP($B2393,Lists!$C$2:$D$13,2,FALSE)),\"\")","v":""}]
[null,null,null,null,null,null,null,null,null,null,{"$f":"_xlfn.IFNA((VLOOKUP($B2394,Lists!$C$2:$D$13,2,FALSE)),\"\")","v":""}]
[null,null,null,null,null,null,null,null,null,null,{"$f":"_xlfn.IFNA((VLOOKUP($B2395,Lists!$C$2:$D$13,2,FALSE)),\"\")","v":""}]
[null,null,null,null,null,null,null,null,null,null,{"$f":"_xlfn.IFNA((VLOOKUP($B2396,Lists!$C$2:$D$13,2,FALSE)),\"\")","v":""}]
[null,null,null,null,null,null,null,null,null,null,{"$f":"_xlfn.IFNA((VLOOKUP($B2397,Lists!$C$2:$D$13,2,FALSE)),\"\")","v":""}]
[null,null,null,null,null,null,null,null,null,null,{"$f":"_xlfn.IFNA((VLOOKUP($B2398,Lists!$C$2:$D$13,2,FALSE)),\"\")","v":""}]
[null,null,null,null,null,null,null,null,null,null,{"$f":"_xlfn.IFNA((VLOOKUP($B2399,Lists!$C$2:$D$13,2,FALSE)),\"\")","v":""}]
[null,null,null,null,null,null,null,null,null,null,{"$f":"_xlfn.IFNA((VLOOKUP($B2400,Lists!$C$2:$D$13,2,FALSE)),\"\")","v":""}]
[null,null,null,null,null,null,null,null,null,null,{"$f":"_xlfn.IFNA((VLOOKUP($B2401,Lists!$C$2:$D$13,2,FALSE)),\"\")","v":""}]
[null,null,null,null,null,null,null,null,null,null,{"$f":"_xlfn.IFNA((VLOOKUP($B2402,Lists!$C$2:$D$13,2,FALSE)),\"\")","v":""}]
[null,null,null,null,null,null,null,null,null,null,{"$f":"_xlfn.IFNA((VLOOKUP($B2403,Lists!$C$2:$D$13,2,FALSE)),\"\")","v":""}]
[null,null,null,null,null,null,null,null,null,null,{"$f":"_xlfn.IFNA((VLOOKUP($B2404,Lists!$C$2:$D$13,2,FALSE)),\"\")","v":""}]
[null,null,null,null,null,null,null,null,null,null,{"$f":"_xlfn.IFNA((VLOOKUP($B2405,Lists!$C$2:$D$13,2,FALSE)),\"\")","v":""}]
[null,null,null,null,null,null,null,null,null,null,{"$f":"_xlfn.IFNA((VLOOKUP($B2406,Lists!$C$2:$D$13,2,FALSE)),\"\")","v":""}]
[null,null,null,null,null,null,null,null,null,null,{"$f":"_xlfn.IFNA((VLOOKUP($B2407,Lists!$C$2:$D$13,2,FALSE)),\"\")","v":""}]
[null,null,null,null,null,null,null,null,null,null,{"$f":"_xlfn.IFNA((VLOOKUP($B2408,Lists!$C$2:$D$13,2,FALSE)),\"\")","v":""}]
[null,null,null,null,null,null,null,null,null,null,{"$f":"_xlfn.IFNA((VLOOKUP($B2409,Lists!$C$2:$D$13,2,FALSE)),\"\")","v":""}]
[null,null,null,null,null,null,null,null,null,null,{"$f":"_xlfn.IFNA((VLOOKUP($B2410,Lists!$C$2:$D$13,2,FALSE)),\"\")","v":""}]
[null,null,null,null,null,null,null,null,null,null,{"$f":"_xlfn.IFNA((VLOOKUP($B2411,Lists!$C$2:$D$13,2,FALSE)),\"\")","v":""}]
[null,null,null,null,null,null,null,null,null,null,{"$f":"_xlfn.IFNA((VLOOKUP($B2412,Lists!$C$2:$D$13,2,FALSE)),\"\")","v":""}]
[null,null,null,null,null,null,null,null,null,null,{"$f":"_xlfn.IFNA((VLOOKUP($B2413,Lists!$C$2:$D$13,2,FALSE)),\"\")","v":""}]
[null,null,null,null,null,null,null,null,null,null,{"$f":"_xlfn.IFNA((VLOOKUP($B2414,Lists!$C$2:$D$13,2,FALSE)),\"\")","v":""}]
[null,null,null,null,null,null,null,null,null,null,{"$f":"_xlfn.IFNA((VLOOKUP($B2415,Lists!$C$2:$D$13,2,FALSE)),\"\")","v":""}]
[null,null,null,null,null,null,null,null,null,null,{"$f":"_xlfn.IFNA((VLOOKUP($B2416,Lists!$C$2:$D$13,2,FALSE)),\"\")","v":""}]
[null,null,null,null,null,null,null,null,null,null,{"$f":"_xlfn.IFNA((VLOOKUP($B2417,Lists!$C$2:$D$13,2,FALSE)),\"\")","v":""}]
[null,null,null,null,null,null,null,null,null,null,{"$f":"_xlfn.IFNA((VLOOKUP($B2418,Lists!$C$2:$D$13,2,FALSE)),\"\")","v":""}]
[null,null,null,null,null,null,null,null,null,null,{"$f":"_xlfn.IFNA((VLOOKUP($B2419,Lists!$C$2:$D$13,2,FALSE)),\"\")","v":""}]
[null,null,null,null,null,null,null,null,null,null,{"$f":"_xlfn.IFNA((VLOOKUP($B2420,Lists!$C$2:$D$13,2,FALSE)),\"\")","v":""}]
[null,null,null,null,null,null,null,null,null,null,{"$f":"_xlfn.IFNA((VLOOKUP($B2421,Lists!$C$2:$D$13,2,FALSE)),\"\")","v":""}]
[null,null,null,null,null,null,null,null,null,null,{"$f":"_xlfn.IFNA((VLOOKUP($B2422,Lists!$C$2:$D$13,2,FALSE)),\"\")","v":""}]
[null,null,null,null,null,null,null,null,null,null,{"$f":"_xlfn.IFNA((VLOOKUP($B2423,Lists!$C$2:$D$13,2,FALSE)),\"\")","v":""}]
[null,null,null,null,null,null,null,null,null,null,{"$f":"_xlfn.IFNA((VLOOKUP($B2424,Lists!$C$2:$D$13,2,FALSE)),\"\")","v":""}]
[null,null,null,null,null,null,null,null,null,null,{"$f":"_xlfn.IFNA((VLOOKUP($B2425,Lists!$C$2:$D$13,2,FALSE)),\"\")","v":""}]
[null,null,null,null,null,null,null,null,null,null,{"$f":"_xlfn.IFNA((VLOOKUP($B2426,Lists!$C$2:$D$13,2,FALSE)),\"\")","v":""}]
[null,null,null,null,null,null,null,null,null,null,{"$f":"_xlfn.IFNA((VLOOKUP($B2427,Lists!$C$2:$D$13,2,FALSE)),\"\")","v":""}]
[null,null,null,null,null,null,null,null,null,null,{"$f":"_xlfn.IFNA((VLOOKUP($B2428,Lists!$C$2:$D$13,2,FALSE)),\"\")","v":""}]
[null,null,null,null,null,null,null,null,null,null,{"$f":"_xlfn.IFNA((VLOOKUP($B2429,Lists!$C$2:$D$13,2,FALSE)),\"\")","v":""}]
[null,null,null,null,null,null,null,null,null,null,{"$f":"_xlfn.IFNA((VLOOKUP($B2430,Lists!$C$2:$D$13,2,FALSE)),\"\")","v":""}]
[null,null,null,null,null,null,null,null,null,null,{"$f":"_xlfn.IFNA((VLOOKUP($B2431,Lists!$C$2:$D$13,2,FALSE)),\"\")","v":""}]
[null,null,null,null,null,null,null,null,null,null,{"$f":"_xlfn.IFNA((VLOOKUP($B2432,Lists!$C$2:$D$13,2,FALSE)),\"\")","v":""}]
[null,null,null,null,null,null,null,null,null,null,{"$f":"_xlfn.IFNA((VLOOKUP($B2433,Lists!$C$2:$D$13,2,FALSE)),\"\")","v":""}]
[null,null,null,null,null,null,null,null,null,null,{"$f":"_xlfn.IFNA((VLOOKUP($B2434,Lists!$C$2:$D$13,2,FALSE)),\"\")","v":""}]
[null,null,null,null,null,null,null,null,null,null,{"$f":"_xlfn.IFNA((VLOOKUP($B2435,Lists!$C$2:$D$13,2,FALSE)),\"\")","v":""}]
[null,null,null,null,null,null,null,null,null,null,{"$f":"_xlfn.IFNA((VLOOKUP($B2436,Lists!$C$2:$D$13,2,FALSE)),\"\")","v":""}]
[null,null,null,null,null,null,null,null,null,null,{"$f":"_xlfn.IFNA((VLOOKUP($B2437,Lists!$C$2:$D$13,2,FALSE)),\"\")","v":""}]
[null,null,null,null,null,null,null,null,null,null,{"$f":"_xlfn.IFNA((VLOOKUP($B2438,Lists!$C$2:$D$13,2,FALSE)),\"\")","v":""}]
[null,null,null,null,null,null,null,null,null,null,{"$f":"_xlfn.IFNA((VLOOKUP($B2439,Lists!$C$2:$D$13,2,FALSE)),\"\")","v":""}]
[null,null,null,null,null,null,null,null,null,null,{"$f":"_xlfn.IFNA((VLOOKUP($B2440,Lists!$C$2:$D$13,2,FALSE)),\"\")","v":""}]
[null,null,null,null,null,null,null,null,null,null,{"$f":"_xlfn.IFNA((VLOOKUP($B2441,Lists!$C$2:$D$13,2,FALSE)),\"\")","v":""}]
[null,null,null,null,null,null,null,null,null,null,{"$f":"_xlfn.IFNA((VLOOKUP($B2442,Lists!$C$2:$D$13,2,FALSE)),\"\")","v":""}]
[null,null,null,null,null,null,null,null,null,null,{"$f":"_xlfn.IFNA((VLOOKUP($B2443,Lists!$C$2:$D$13,2,FALSE)),\"\")","v":""}]
[null,null,null,null,null,null,null,null,null,null,{"$f":"_xlfn.IFNA((VLOOKUP($B2444,Lists!$C$2:$D$13,2,FALSE)),\"\")","v":""}]
[null,null,null,null,null,null,null,null,null,null,{"$f":"_xlfn.IFNA((VLOOKUP($B2445,Lists!$C$2:$D$13,2,FALSE)),\"\")","v":""}]
[null,null,null,null,null,null,null,null,null,null,{"$f":"_xlfn.IFNA((VLOOKUP($B2446,Lists!$C$2:$D$13,2,FALSE)),\"\")","v":""}]
[null,null,null,null,null,null,null,null,null,null,{"$f":"_xlfn.IFNA((VLOOKUP($B2447,Lists!$C$2:$D$13,2,FALSE)),\"\")","v":""}]
[null,null,null,null,null,null,null,null,null,null,{"$f":"_xlfn.IFNA((VLOOKUP($B2448,Lists!$C$2:$D$13,2,FALSE)),\"\")","v":""}]
[null,null,null,null,null,null,null,null,null,null,{"$f":"_xlfn.IFNA((VLOOKUP($B2449,Lists!$C$2:$D$13,2,FALSE)),\"\")","v":""}]
[null,null,null,null,null,null,null,null,null,null,{"$f":"_xlfn.IFNA((VLOOKUP($B2450,Lists!$C$2:$D$13,2,FALSE)),\"\")","v":""}]
[null,null,null,null,null,null,null,null,null,null,{"$f":"_xlfn.IFNA((VLOOKUP($B2451,Lists!$C$2:$D$13,2,FALSE)),\"\")","v":""}]
[null,null,null,null,null,null,null,null,null,null,{"$f":"_xlfn.IFNA((VLOOKUP($B2452,Lists!$C$2:$D$13,2,FALSE)),\"\")","v":""}]
[null,null,null,null,null,null,null,null,null,null,{"$f":"_xlfn.IFNA((VLOOKUP($B2453,Lists!$C$2:$D$13,2,FALSE)),\"\")","v":""}]
[null,null,null,null,null,null,null,null,null,null,{"$f":"_xlfn.IFNA((VLOOKUP($B2454,Lists!$C$2:$D$13,2,FALSE)),\"\")","v":""}]
[null,null,null,null,null,null,null,null,null,null,{"$f":"_xlfn.IFNA((VLOOKUP($B2455,Lists!$C$2:$D$13,2,FALSE)),\"\")","v":""}]
[null,null,null,null,null,null,null,null,null,null,{"$f":"_xlfn.IFNA((VLOOKUP($B2456,Lists!$C$2:$D$13,2,FALSE)),\"\")","v":""}]
[null,null,null,null,null,null,null,null,null,null,{"$f":"_xlfn.IFNA((VLOOKUP($B2457,Lists!$C$2:$D$13,2,FALSE)),\"\")","v":""}]
[null,null,null,null,null,null,null,null,null,null,{"$f":"_xlfn.IFNA((VLOOKUP($B2458,Lists!$C$2:$D$13,2,FALSE)),\"\")","v":""}]
[null,null,null,null,null,null,null,null,null,null,{"$f":"_xlfn.IFNA((VLOOKUP($B2459,Lists!$C$2:$D$13,2,FALSE)),\"\")","v":""}]
[null,null,null,null,null,null,null,null,null,null,{"$f":"_xlfn.IFNA((VLOOKUP($B2460,Lists!$C$2:$D$13,2,FALSE)),\"\")","v":""}]
[null,null,null,null,null,null,null,null,null,null,{"$f":"_xlfn.IFNA((VLOOKUP($B2461,Lists!$C$2:$D$13,2,FALSE)),\"\")","v":""}]
[null,null,null,null,null,null,null,null,null,null,{"$f":"_xlfn.IFNA((VLOOKUP($B2462,Lists!$C$2:$D$13,2,FALSE)),\"\")","v":""}]
[null,null,null,null,null,null,null,null,null,null,{"$f":"_xlfn.IFNA((VLOOKUP($B2463,Lists!$C$2:$D$13,2,FALSE)),\"\")","v":""}]
[null,null,null,null,null,null,null,null,null,null,{"$f":"_xlfn.IFNA((VLOOKUP($B2464,Lists!$C$2:$D$13,2,FALSE)),\"\")","v":""}]
[null,null,null,null,null,null,null,null,null,null,{"$f":"_xlfn.IFNA((VLOOKUP($B2465,Lists!$C$2:$D$13,2,FALSE)),\"\")","v":""}]
[null,null,null,null,null,null,null,null,null,null,{"$f":"_xlfn.IFNA((VLOOKUP($B2466,Lists!$C$2:$D$13,2,FALSE)),\"\")","v":""}]
[null,null,null,null,null,null,null,null,null,null,{"$f":"_xlfn.IFNA((VLOOKUP($B2467,Lists!$C$2:$D$13,2,FALSE)),\"\")","v":""}]
[null,null,null,null,null,null,null,null,null,null,{"$f":"_xlfn.IFNA((VLOOKUP($B2468,Lists!$C$2:$D$13,2,FALSE)),\"\")","v":""}]
[null,null,null,null,null,null,null,null,null,null,{"$f":"_xlfn.IFNA((VLOOKUP($B2469,Lists!$C$2:$D$13,2,FALSE)),\"\")","v":""}]
[null,null,null,null,null,null,null,null,null,null,{"$f":"_xlfn.IFNA((VLOOKUP($B2470,Lists!$C$2:$D$13,2,FALSE)),\"\")","v":""}]
[null,null,null,null,null,null,null,null,null,null,{"$f":"_xlfn.IFNA((VLOOKUP($B2471,Lists!$C$2:$D$13,2,FALSE)),\"\")","v":""}]
[null,null,null,null,null,null,null,null,null,null,{"$f":"_xlfn.IFNA((VLOOKUP($B2472,Lists!$C$2:$D$13,2,FALSE)),\"\")","v":""}]
[null,null,null,null,null,null,null,null,null,null,{"$f":"_xlfn.IFNA((VLOOKUP($B2473,Lists!$C$2:$D$13,2,FALSE)),\"\")","v":""}]
[null,null,null,null,null,null,null,null,null,null,{"$f":"_xlfn.IFNA((VLOOKUP($B2474,Lists!$C$2:$D$13,2,FALSE)),\"\")","v":""}]
[null,null,null,null,null,null,null,null,null,null,{"$f":"_xlfn.IFNA((VLOOKUP($B2475,Lists!$C$2:$D$13,2,FALSE)),\"\")","v":""}]
[null,null,null,null,null,null,null,null,null,null,{"$f":"_xlfn.IFNA((VLOOKUP($B2476,Lists!$C$2:$D$13,2,FALSE)),\"\")","v":""}]
[null,null,null,null,null,null,null,null,null,null,{"$f":"_xlfn.IFNA((VLOOKUP($B2477,Lists!$C$2:$D$13,2,FALSE)),\"\")","v":""}]
[null,null,null,null,null,null,null,null,null,null,{"$f":"_xlfn.IFNA((VLOOKUP($B2478,Lists!$C$2:$D$13,2,FALSE)),\"\")","v":""}]
[null,null,null,null,null,null,null,null,null,null,{"$f":"_xlfn.IFNA((VLOOKUP($B2479,Lists!$C$2:$D$13,2,FALSE)),\"\")","v":""}]
[null,null,null,null,null,null,null,null,null,null,{"$f":"_xlfn.IFNA((VLOOKUP($B2480,Lists!$C$2:$D$13,2,FALSE)),\"\")","v":""}]
[null,null,null,null,null,null,null,null,null,null,{"$f":"_xlfn.IFNA((VLOOKUP($B2481,Lists!$C$2:$D$13,2,FALSE)),\"\")","v":""}]
[null,null,null,null,null,null,null,null,null,null,{"$f":"_xlfn.IFNA((VLOOKUP($B2482,Lists!$C$2:$D$13,2,FALSE)),\"\")","v":""}]
[null,null,null,null,null,null,null,null,null,null,{"$f":"_xlfn.IFNA((VLOOKUP($B2483,Lists!$C$2:$D$13,2,FALSE)),\"\")","v":""}]
[null,null,null,null,null,null,null,null,null,null,{"$f":"_xlfn.IFNA((VLOOKUP($B2484,Lists!$C$2:$D$13,2,FALSE)),\"\")","v":""}]
[null,null,null,null,null,null,null,null,null,null,{"$f":"_xlfn.IFNA((VLOOKUP($B2485,Lists!$C$2:$D$13,2,FALSE)),\"\")","v":""}]
[null,null,null,null,null,null,null,null,null,null,{"$f":"_xlfn.IFNA((VLOOKUP($B2486,Lists!$C$2:$D$13,2,FALSE)),\"\")","v":""}]
[null,null,null,null,null,null,null,null,null,null,{"$f":"_xlfn.IFNA((VLOOKUP($B2487,Lists!$C$2:$D$13,2,FALSE)),\"\")","v":""}]
[null,null,null,null,null,null,null,null,null,null,{"$f":"_xlfn.IFNA((VLOOKUP($B2488,Lists!$C$2:$D$13,2,FALSE)),\"\")","v":""}]
[null,null,null,null,null,null,null,null,null,null,{"$f":"_xlfn.IFNA((VLOOKUP($B2489,Lists!$C$2:$D$13,2,FALSE)),\"\")","v":""}]
[null,null,null,null,null,null,null,null,null,null,{"$f":"_xlfn.IFNA((VLOOKUP($B2490,Lists!$C$2:$D$13,2,FALSE)),\"\")","v":""}]
[null,null,null,null,null,null,null,null,null,null,{"$f":"_xlfn.IFNA((VLOOKUP($B2491,Lists!$C$2:$D$13,2,FALSE)),\"\")","v":""}]
[null,null,null,null,null,null,null,null,null,null,{"$f":"_xlfn.IFNA((VLOOKUP($B2492,Lists!$C$2:$D$13,2,FALSE)),\"\")","v":""}]
[null,null,null,null,null,null,null,null,null,null,{"$f":"_xlfn.IFNA((VLOOKUP($B2493,Lists!$C$2:$D$13,2,FALSE)),\"\")","v":""}]
[null,null,null,null,null,null,null,null,null,null,{"$f":"_xlfn.IFNA((VLOOKUP($B2494,Lists!$C$2:$D$13,2,FALSE)),\"\")","v":""}]
[null,null,null,null,null,null,null,null,null,null,{"$f":"_xlfn.IFNA((VLOOKUP($B2495,Lists!$C$2:$D$13,2,FALSE)),\"\")","v":""}]
[null,null,null,null,null,null,null,null,null,null,{"$f":"_xlfn.IFNA((VLOOKUP($B2496,Lists!$C$2:$D$13,2,FALSE)),\"\")","v":""}]
[null,null,null,null,null,null,null,null,null,null,{"$f":"_xlfn.IFNA((VLOOKUP($B2497,Lists!$C$2:$D$13,2,FALSE)),\"\")","v":""}]

{"sheet":"Flash Test Results","index":6,"n_rows":109,"n_cols":20,"rows_kept":109,"cut":false,"hidden":true,"merged":[[2,1,2,13],[4,1,4,13],[6,3,6,10],[6,11,6,17]]}
[null,"Flash Analysis Testing"]
[]
[null,"Instructions:  This spreadsheet is used for inputting flash analysis test data obtained at the facility listed under the Facilit Information tab.  Input data into a single row for each separator and tank system tested.  "]
[]
[null,"NOTE: Do not add or delete rows or alter the format of the table below.  Altering the table will result in data errors and could make this workbook unusable. "]
[]
[null,null,null,"Crude Oil or Condensate Samples",null,null,null,null,null,null,null,"Produced Water Samples"]
[null,"Tank System ID","Reporting Date","API Gravity","GOR               (scf/bbl)","MW                      (g/g-mole)","WT% CH4 (decimal)","Sample Temp         (Deg F)","Sample Pressure (psia)","Throughput (bbl/day)","MTCH4/Yr","GWR               (scf/bbl)","MW                      (g/g-mole)","WT% CH4 (decimal)","Sample Temp         (Deg F)","Sample Pressure (psia)","Throughput (bbl/day)","MTCH4/Yr","Days in Operation Per Year","Combined Emissions (MTCH4/Yr)"]
[null,null,null,null,null,null,null,null,null,null,{"$f":"((E9*J9*S9)*F9*(1/23.69)*28.317*(1/454))*G9*(1/2205)","v":0},null,null,null,null,null,null,{"$f":"((L9*Q9*S9)*M9*(1/23.69)*28.317*(1/454))*N9*(1/2205)","v":0},null,{"$f":"K9+R9","v":0}]
[null,null,null,null,null,null,null,null,null,null,{"$f":"((E10*J10*S10)*F10*(1/23.69)*28.317*(1/454))*G10*(1/2205)","v":0},null,null,null,null,null,null,{"$f":"((L10*Q10*S10)*M10*(1/23.69)*28.317*(1/454))*N10*(1/2205)","v":0},null,{"$f":"K10+R10","v":0}]
[null,null,null,null,null,null,null,null,null,null,0,null,null,null,null,null,null,0,null,0]
[null,null,null,null,null,null,null,null,null,null,0,null,null,null,null,null,null,0,null,0]
[null,null,null,null,null,null,null,null,null,null,0,null,null,null,null,null,null,0,null,0]
[null,null,null,null,null,null,null,null,null,null,{"$f":"((E14*J14*S14)*F14*(1/23.69)*28.317*(1/454))*G14*(1/2205)","v":0},null,null,null,null,null,null,0,null,0]
[null,null,null,null,null,null,null,null,null,null,0,null,null,null,null,null,null,0,null,0]
[null,null,null,null,null,null,null,null,null,null,0,null,null,null,null,null,null,0,null,0]
[null,null,null,null,null,null,null,null,null,null,0,null,null,null,null,null,null,0,null,0]
[null,null,null,null,null,null,null,null,null,null,0,null,null,null,null,null,null,0,null,0]
[null,null,null,null,null,null,null,null,null,null,0,null,null,null,null,null,null,0,null,0]
[null,null,null,null,null,null,null,null,null,null,0,null,null,null,null,null,null,0,null,0]
[null,null,null,null,null,null,null,null,null,null,0,null,null,null,null,null,null,0,null,0]
[null,null,null,null,null,null,null,null,null,null,0,null,null,null,null,null,null,0,null,0]
[null,null,null,null,null,null,null,null,null,null,0,null,null,null,null,null,null,0,null,0]
[null,null,null,null,null,null,null,null,null,null,0,null,null,null,null,null,null,0,null,0]
[null,null,null,null,null,null,null,null,null,null,0,null,null,null,null,null,null,0,null,0]
[null,null,null,null,null,null,null,null,null,null,0,null,null,null,null,null,null,0,null,0]
[null,null,null,null,null,null,null,null,null,null,0,null,null,null,null,null,null,0,null,0]
[null,null,null,null,null,null,null,null,null,null,0,null,null,null,null,null,null,0,null,0]
[null,null,null,null,null,null,null,null,null,null,0,null,null,null,null,null,null,0,null,0]
[null,null,null,null,null,null,null,null,null,null,0,null,null,null,null,null,null,0,null,0]
[null,null,null,null,null,null,null,null,null,null,0,null,null,null,null,null,null,0,null,0]
[null,null,null,null,null,null,null,null,null,null,0,null,null,null,null,null,null,0,null,0]
[null,null,null,null,null,null,null,null,null,null,0,null,null,null,null,null,null,0,null,0]
[null,null,null,null,null,null,null,null,null,null,0,null,null,null,null,null,null,0,null,0]
[null,null,null,null,null,null,null,null,null,null,0,null,null,null,null,null,null,0,null,0]
[null,null,null,null,null,null,null,null,null,null,0,null,null,null,null,null,null,0,null,0]
[null,null,null,null,null,null,null,null,null,null,0,null,null,null,null,null,null,0,null,0]
[null,null,null,null,null,null,null,null,null,null,0,null,null,null,null,null,null,0,null,0]
[null,null,null,null,null,null,null,null,null,null,0,null,null,null,null,null,null,0,null,0]
[null,null,null,null,null,null,null,null,null,null,0,null,null,null,null,null,null,0,null,0]
[null,null,null,null,null,null,null,null,null,null,0,null,null,null,null,null,null,0,null,0]
[null,null,null,null,null,null,null,null,null,null,0,null,null,null,null,null,null,0,null,0]
[null,null,null,null,null,null,null,null,null,null,0,null,null,null,null,null,null,0,null,0]
[null,null,null,null,null,null,null,null,null,null,0,null,null,null,null,null,null,0,null,0]
[null,null,null,null,null,null,null,null,null,null,0,null,null,null,null,null,null,0,null,0]
[null,null,null,null,null,null,null,null,null,null,0,null,null,null,null,null,null,0,null,0]
[null,null,null,null,null,null,null,null,null,null,0,null,null,null,null,null,null,0,null,0]
[null,null,null,null,null,null,null,null,null,null,0,null,null,null,null,null,null,0,null,0]
[null,null,null,null,null,null,null,null,null,null,0,null,null,null,null,null,null,0,null,0]
[null,null,null,null,null,null,null,null,null,null,0,null,null,null,null,null,null,0,null,0]
[null,null,null,null,null,null,null,null,null,null,0,null,null,null,null,null,null,0,null,0]
[null,null,null,null,null,null,null,null,null,null,0,null,null,null,null,null,null,0,null,0]
[null,null,null,null,null,null,null,null,null,null,0,null,null,null,null,null,null,0,null,0]
[null,null,null,null,null,null,null,null,null,null,0,null,null,null,null,null,null,0,null,0]
[null,null,null,null,null,null,null,null,null,null,0,null,null,null,null,null,null,0,null,0]
[null,null,null,null,null,null,null,null,null,null,0,null,null,null,null,null,null,0,null,0]
[null,null,null,null,null,null,null,null,null,null,0,null,null,null,null,null,null,0,null,0]
[null,null,null,null,null,null,null,null,null,null,0,null,null,null,null,null,null,0,null,0]
[null,null,null,null,null,null,null,null,null,null,0,null,null,null,null,null,null,0,null,0]
[null,null,null,null,null,null,null,null,null,null,0,null,null,null,null,null,null,0,null,0]
[null,null,null,null,null,null,null,null,null,null,0,null,null,null,null,null,null,0,null,0]
[null,null,null,null,null,null,null,null,null,null,0,null,null,null,null,null,null,0,null,0]
[null,null,null,null,null,null,null,null,null,null,0,null,null,null,null,null,null,0,null,0]
[null,null,null,null,null,null,null,null,null,null,0,null,null,null,null,null,null,0,null,0]
[null,null,null,null,null,null,null,null,null,null,0,null,null,null,null,null,null,0,null,0]
[null,null,null,null,null,null,null,null,null,null,0,null,null,null,null,null,null,0,null,0]
[null,null,null,null,null,null,null,null,null,null,0,null,null,null,null,null,null,0,null,0]
[null,null,null,null,null,null,null,null,null,null,0,null,null,null,null,null,null,0,null,0]
[null,null,null,null,null,null,null,null,null,null,0,null,null,null,null,null,null,0,null,0]
[null,null,null,null,null,null,null,null,null,null,0,null,null,null,null,null,null,0,null,0]
[null,null,null,null,null,null,null,null,null,null,0,null,null,null,null,null,null,0,null,0]
[null,null,null,null,null,null,null,null,null,null,0,null,null,null,null,null,null,0,null,0]
[null,null,null,null,null,null,null,null,null,null,0,null,null,null,null,null,null,0,null,0]
[null,null,null,null,null,null,null,null,null,null,{"$f":"((E74*J74*S74)*F74*(1/23.69)*28.317*(1/454))*G74*(1/2205)","v":0},null,null,null,null,null,null,{"$f":"((L74*Q74*S74)*M74*(1/23.69)*28.317*(1/454))*N74*(1/2205)","v":0},null,{"$f":"K74+R74","v":0}]
[null,null,null,null,null,null,null,null,null,null,0,null,null,null,null,null,null,0,null,0]
[null,null,null,null,null,null,null,null,null,null,0,null,null,null,null,null,null,0,null,0]
[null,null,null,null,null,null,null,null,null,null,0,null,null,null,null,null,null,0,null,0]
[null,null,null,null,null,null,null,null,null,null,0,null,null,null,null,null,null,0,null,0]
[null,null,null,null,null,null,null,null,null,null,0,null,null,null,null,null,null,0,null,0]
[null,null,null,null,null,null,null,null,null,null,0,null,null,null,null,null,null,0,null,0]
[null,null,null,null,null,null,null,null,null,null,0,null,null,null,null,null,null,0,null,0]
[null,null,null,null,null,null,null,null,null,null,0,null,null,null,null,null,null,0,null,0]
[null,null,null,null,null,null,null,null,null,null,0,null,null,null,null,null,null,0,null,0]
[null,null,null,null,null,null,null,null,null,null,0,null,null,null,null,null,null,0,null,0]
[null,null,null,null,null,null,null,null,null,null,0,null,null,null,null,null,null,0,null,0]
[null,null,null,null,null,null,null,null,null,null,0,null,null,null,null,null,null,0,null,0]
[null,null,null,null,null,null,null,null,null,null,0,null,null,null,null,null,null,0,null,0]
[null,null,null,null,null,null,null,null,null,null,0,null,null,null,null,null,null,0,null,0]
[null,null,null,null,null,null,null,null,null,null,0,null,null,null,null,null,null,0,null,0]
[null,null,null,null,null,null,null,null,null,null,0,null,null,null,null,null,null,0,null,0]
[null,null,null,null,null,null,null,null,null,null,0,null,null,null,null,null,null,0,null,0]
[null,null,null,null,null,null,null,null,null,null,0,null,null,null,null,null,null,0,null,0]
[null,null,null,null,null,null,null,null,null,null,0,null,null,null,null,null,null,0,null,0]
[null,null,null,null,null,null,null,null,null,null,0,null,null,null,null,null,null,0,null,0]
[null,null,null,null,null,null,null,null,null,null,0,null,null,null,null,null,null,0,null,0]
[null,null,null,null,null,null,null,null,null,null,0,null,null,null,null,null,null,0,null,0]
[null,null,null,null,null,null,null,null,null,null,0,null,null,null,null,null,null,0,null,0]
[null,null,null,null,null,null,null,null,null,null,0,null,null,null,null,null,null,0,null,0]
[null,null,null,null,null,null,null,null,null,null,0,null,null,null,null,null,null,0,null,0]
[null,null,null,null,null,null,null,null,null,null,0,null,null,null,null,null,null,0,null,0]
[null,null,null,null,null,null,null,null,null,null,0,null,null,null,null,null,null,0,null,0]
[null,null,null,null,null,null,null,null,null,null,0,null,null,null,null,null,null,0,null,0]
[null,null,null,null,null,null,null,null,null,null,0,null,null,null,null,null,null,0,null,0]
[null,null,null,null,null,null,null,null,null,null,0,null,null,null,null,null,null,0,null,0]
[null,null,null,null,null,null,null,null,null,null,0,null,null,null,null,null,null,0,null,0]
[null,null,null,null,null,null,null,null,null,null,0,null,null,null,null,null,null,0,null,0]
[null,null,null,null,null,null,null,null,null,null,0,null,null,null,null,null,null,0,null,0]
[null,null,null,null,null,null,null,null,null,null,0,null,null,null,null,null,null,0,null,0]
[null,null,null,null,null,null,null,null,null,null,0,null,null,null,null,null,null,0,null,0]

{"sheet":"Lists","index":7,"n_rows":51,"n_cols":18,"rows_kept":51,"cut":false,"hidden":true,"merged":[]}
["Prod_Type","ogmethane","Equip_Type","Units",null,"YN",null,"email",null,"Select Tank System",null,"Air Districts",null,"Year",null,"Tank Contents",null,"States"]
["Crude Oil Production",null,"Centrifugal Natural Gas Compressor","HP",null,"Yes",null,"oilandgas@arb.ca.gov",null,"NA",null,"AMADOR COUNTY APCD",null,2016,null,"Oil",null,"AL"]
["Natural Gas Production",null,"Continuous High Bleed Pneumatic Devices"," ",null,"No",null,null,null,null,null,"ANTELOPE VALLEY AQMD",null,2017,null,"Water",null,"AK"]
["Natural Gas Storage",null,"Continuous Low Bleed Pneumatic Devices"," ",null,"NA",null,null,null,null,null,"BAY AREA AQMD",null,2018,null,"Condensate",null,"AZ"]
[null,null,"Intermittent Bleed Pneumatic Devices"," ",null,null,null,null,null,null,null,"BUTTE COUNTY AQMD",null,2019,null,null,null,"AR"]
[null,null,"Pneumatic Pumps"," ",null,null,null,null,null,null,null,"CALAVERAS COUNTY APCD",null,2020,null,null,null,"CA"]
[null,null,"Pond","SQFT",null,null,null,null,null,null,null,"COLUSA COUNTY APCD",null,2021,null,null,null,"CO"]
[null,null,"Pressure Separator","BBL",null,null,null,null,null,null,null,"EL DORADO COUNTY AQMD",null,2022,null,null,null,"CT"]
[null,null,"Reciprocating Natural Gas Compressor","HP",null,null,null,null,null,null,null,"FEATHER RIVER AQMD",null,2023,null,null,null,"DE"]
[null,null,"Separator","BBL",null,null,null,null,null,null,null,"GLENN COUNTY APCD",null,null,null,null,null,"FL"]
[null,null,"Sump","SQFT",null,null,null,null,null,null,null,"GREAT BASIN UNIFIED APCD",null,null,null,null,null,"GA"]
[null,null,"Tank","BBL",null,null,null,null,null,null,null,"IMPERIAL COUNTY APCD",null,null,null,null,null,"HI"]
[null,null,"Open Well Casing Vent"," ",null,null,null,null,null,null,null,"KERN COUNTY APCD",null,null,null,null,null,"ID"]
[null,null,null,null,null,null,null,null,null,null,null,"LAKE COUNTY AQMD",null,null,null,null,null,"IL"]
[null,null,null,null,null,null,null,null,null,null,null,"LASSEN COUNTY APCD",null,null,null,null,null,"IN"]
[null,null,null,null,null,null,null,null,null,null,null,"MARIPOSA COUNTY APCD",null,null,null,null,null,"IA"]
[null,null,null,null,null,null,null,null,null,null,null,"MENDOCINO COUNTY AQMD",null,null,null,null,null,"KS"]
[null,null,null,null,null,null,null,null,null,null,null,"MODOC COUNTY APCD",null,null,null,null,null,"KY"]
[null,null,null,null,null,null,null,null,null,null,null,"MOJAVE DESERT AQMD",null,null,null,null,null,"LA"]
[null,null,null,null,null,null,null,null,null,null,null,"MONTEREY BAY UNIFIED APCD",null,null,null,null,null,"ME"]
[null,null,null,null,null,null,null,null,null,null,null,"NORTH COAST UNIFIED AQMD",null,null,null,null,null,"MD"]
[null,null,null,null,null,null,null,null,null,null,null,"NORTHERN SIERRA AQMD",null,null,null,null,null,"MA"]
[null,null,null,null,null,null,null,null,null,null,null,"NORTHERN SONOMA COUNTY APCD",null,null,null,null,null,"MI"]
[null,null,null,null,null,null,null,null,null,null,null,"PLACER COUNTY APCD",null,null,null,null,null,"MN"]
[null,null,null,null,null,null,null,null,null,null,null,"SACRAMENTO METROPOLITAN AQMD",null,null,null,null,null,"MS"]
[null,null,null,null,null,null,null,null,null,null,null,"SAN DIEGO COUNTY APCD",null,null,null,null,null,"MO"]
[null,null,null,null,null,null,null,null,null,null,null,"SAN JOAQUIN VALLEY APCD",null,null,null,null,null,"MT"]
[null,null,null,null,null,null,null,null,null,null,null,"SAN LUIS OBISPO COUNTY APCD",null,null,null,null,null,"NE"]
[null,null,null,null,null,null,null,null,null,null,null,"SANTA BARBARA COUNTY APCD",null,null,null,null,null,"NV"]
[null,null,null,null,null,null,null,null,null,null,null,"SHASTA COUNTY AQMD",null,null,null,null,null,"NH"]
[null,null,null,null,null,null,null,null,null,null,null,"SISKIYOU COUNTY APCD",null,null,null,null,null,"NJ"]
[null,null,null,null,null,null,null,null,null,null,null,"SOUTH COAST AQMD",null,null,null,null,null,"NM"]
[null,null,null,null,null,null,null,null,null,null,null,"TEHAMA COUNTY APCD",null,null,null,null,null,"NY"]
[null,null,null,null,null,null,null,null,null,null,null,"TUOLUMNE COUNTY APCD",null,null,null,null,null,"NC"]
[null,null,null,null,null,null,null,null,null,null,null,"VENTURA COUNTY APCD",null,null,null,null,null,"ND"]
[null,null,null,null,null,null,null,null,null,null,null,"YOLO/SOLANO AQMD",null,null,null,null,null,"OH"]
[null,null,null,null,null,null,null,null,null,null,null,null,null,null,null,null,null,"OK"]
[null,null,null,null,null,null,null,null,null,null,null,null,null,null,null,null,null,"OR"]
[null,null,null,null,null,null,null,null,null,null,null,null,null,null,null,null,null,"PA"]
[null,null,null,null,null,null,null,null,null,null,null,null,null,null,null,null,null,"RI"]
[null,null,null,null,null,null,null,null,null,null,null,null,null,null,null,null,null,"SC"]
[null,null,null,null,null,null,null,null,null,null,null,null,null,null,null,null,null,"SD"]
[null,null,null,null,null,null,null,null,null,null,null,null,null,null,null,null,null,"TN"]
[null,null,null,null,null,null,null,null,null,null,null,null,null,null,null,null,null,"TX"]
[null,null,null,null,null,null,null,null,null,null,null,null,null,null,null,null,null,"UT"]
[null,null,null,null,null,null,null,null,null,null,null,null,null,null,null,null,null,"VT"]
[null,null,null,null,null,null,null,null,null,null,null,null,null,null,null,null,null,"VA"]
[null,null,null,null,null,null,null,null,null,null,null,null,null,null,null,null,null,"WA"]
[null,null,null,null,null,null,null,null,null,null,null,null,null,null,null,null,null,"WV"]
[null,null,null,null,null,null,null,null,null,null,null,null,null,null,null,null,null,"WI"]
[null,null,null,null,null,null,null,null,null,null,null,null,null,null,null,null,null,"WY"]